Workbook

Sheet Lista
A1: Depto | B1: Mpio | D1: Udepto | E1: Filtro | H1: Mpio Unicos | N1: Dpto | O1: mpio | P1: para unicos
A2: =_xlfn.UNIQUE(N2:O5000) -> Sin Info | B2: Sin Info | D2: =_xlfn._xlws.SORT(_xlfn.UNIQUE(A2:A3355),,1) -> 0 | E2: =_xlfn._xlws.FILTER($A$2:$B$4500,$A$2:$A$4500=Visor!$Q$7,"") -> ANTIOQUIA | F2: MEDELLÍN | H2: =_xlfn._xlws.SORT(_xlfn.UNIQUE($F$2:$F$1000),,1) -> ABEJORRAL | J2: Conteo | N2: Sin Info | O2: Sin Info | Q2: MES | R2: Marzo
A3: ANTIOQUIA | B3: MEDELLÍN | D3: AMAZONAS | E3: ANTIOQUIA | F3: GUARNE | H3: ABRIAQUÍ | J3: =COUNTIF(_xlfn.ANCHORARRAY(H2),"<>"&"")-1 -> 125 | N3: Sin Info | O3: Sin Info
A4: BOGOTÁ, D.C. | B4: BOGOTÁ, D.C. | D4: ANTIOQUIA | E4: ANTIOQUIA | F4: LA UNIÓN | H4: ALEJANDRÍA | N4: Sin Info | O4: Sin Info
A5: VALLE DEL CAUCA | B5: CALI | D5: ARAUCA | E5: ANTIOQUIA | F5: SABANETA | H5: AMAGÁ | N5: ANTIOQUIA | O5: MEDELLÍN
A6: TOLIMA | B6: MELGAR | D6: ARCHIPIÉLAGO DE SAN ANDRÉS, PROVIDENCIA Y SANTA CATALINA | E6: ANTIOQUIA | F6: JARDÍN | H6: AMALFI | N6: BOGOTÁ, D.C. | O6: BOGOTÁ, D.C.
A7: ANTIOQUIA | B7: GUARNE | D7: ATLÁNTICO | E7: ANTIOQUIA | F7: ENVIGADO | H7: ANDES | N7: BOGOTÁ, D.C. | O7: BOGOTÁ, D.C.
A8: ANTIOQUIA | B8: LA UNIÓN | D8: BOGOTÁ, D.C. | E8: ANTIOQUIA | F8: RETIRO | H8: ANGELÓPOLIS | N8: VALLE DEL CAUCA | O8: CALI
A9: SANTANDER | B9: BUCARAMANGA | D9: BOLÍVAR | E9: ANTIOQUIA | F9: PUERTO BERRÍO | H9: ANGOSTURA | N9: BOGOTÁ, D.C. | O9: BOGOTÁ, D.C.
A10: ANTIOQUIA | B10: SABANETA | D10: BOYACÁ | E10: ANTIOQUIA | F10: RIONEGRO | H10: ANORÍ | N10: VALLE DEL CAUCA | O10: CALI
A11: BOLÍVAR | B11: CARTAGENA | D11: CALDAS | E11: ANTIOQUIA | F11: BARBOSA | H11: ANZA | N11: TOLIMA | O11: MELGAR
A12: SANTANDER | B12: AGUADA | D12: CAQUETÁ | E12: ANTIOQUIA | F12: BELLO | H12: APARTADÓ | N12: ANTIOQUIA | O12: GUARNE
A13: CUNDINAMARCA | B13: CAJICÁ | D13: CASANARE | E13: ANTIOQUIA | F13: ARMENIA | H13: ARBOLETES | N13: ANTIOQUIA | O13: MEDELLÍN
A14: HUILA | B14: NEIVA | D14: CAUCA | E14: ANTIOQUIA | F14: COPACABANA | H14: ARGELIA | N14: ANTIOQUIA | O14: LA UNIÓN
A15: QUINDÍO | B15: ARMENIA | D15: CESAR | E15: ANTIOQUIA | F15: BETANIA | H15: ARMENIA | N15: SANTANDER | O15: BUCARAMANGA
A16: CÓRDOBA | B16: MONTERÍA | D16: CHOCÓ | E16: ANTIOQUIA | F16: SEGOVIA | H16: BARBOSA | N16: ANTIOQUIA | O16: SABANETA
A17: ATLÁNTICO | B17: BARRANQUILLA | D17: CÓRDOBA | E17: ANTIOQUIA | F17: VIGÍA DEL FUERTE | H17: BELLO | N17: BOLÍVAR | O17: CARTAGENA
A18: CUNDINAMARCA | B18: CHÍA | D18: CUNDINAMARCA | E18: ANTIOQUIA | F18: ABRIAQUÍ | H18: BELMIRA | N18: SANTANDER | O18: AGUADA
A19: META | B19: ACACÍAS | D19: GUAINÍA | E19: ANTIOQUIA | F19: NARIÑO | H19: BETANIA | N19: CUNDINAMARCA | O19: CAJICÁ
A20: TOLIMA | B20: IBAGUÉ | D20: GUAVIARE | E20: ANTIOQUIA | F20: FREDONIA | H20: BETULIA | N20: HUILA | O20: NEIVA
A21: CAUCA | B21: SANTANDER DE QUILICHAO | D21: HUILA | E21: ANTIOQUIA | F21: CALDAS | H21: BRICEÑO | N21: ANTIOQUIA | O21: MEDELLÍN
A22: RISARALDA | B22: LA VIRGINIA | D22: LA GUAJIRA | E22: ANTIOQUIA | F22: ITAGUI | H22: BURITICÁ | N22: QUINDÍO | O22: ARMENIA
A23: TOLIMA | B23: HONDA | D23: MAGDALENA | E23: ANTIOQUIA | F23: FRONTINO | H23: CÁCERES | N23: CÓRDOBA | O23: MONTERÍA
A24: META | B24: VILLAVICENCIO | D24: META | E24: ANTIOQUIA | F24: SANTO DOMINGO | H24: CAICEDO | N24: CÓRDOBA | O24: MONTERÍA
A25: NORTE DE SANTANDER | B25: LOS PATIOS | D25: NARIÑO | E25: ANTIOQUIA | F25: APARTADÓ | H25: CALDAS | N25: SANTANDER | O25: BUCARAMANGA
A26: META | B26: CUMARAL | D26: NORTE DE SANTANDER | E26: ANTIOQUIA | F26: SOPETRÁN | H26: CAMPAMENTO | N26: ATLÁNTICO | O26: BARRANQUILLA
A27: SANTANDER | B27: ZAPATOCA | D27: PUTUMAYO | E27: ANTIOQUIA | F27: MARINILLA | H27: CAÑASGORDAS | N27: CUNDINAMARCA | O27: CHÍA
A28: CUNDINAMARCA | B28: TENJO | D28: QUINDÍO | E28: ANTIOQUIA | F28: TOLEDO | H28: CARACOLÍ | N28: META | O28: ACACÍAS
A29: MAGDALENA | B29: SANTA MARTA | D29: RISARALDA | E29: ANTIOQUIA | F29: LA CEJA | H29: CARAMANTA | N29: SANTANDER | O29: BUCARAMANGA
A30: SANTANDER | B30: FLORIDABLANCA | D30: SANTANDER | E30: ANTIOQUIA | F30: LA ESTRELLA | H30: CAREPA | N30: TOLIMA | O30: IBAGUÉ
A31: CAUCA | B31: POPAYÁN | D31: Sin Info | E31: ANTIOQUIA | F31: VALPARAÍSO | H31: CAROLINA | N31: ATLÁNTICO | O31: BARRANQUILLA
A32: CUNDINAMARCA | B32: GIRARDOT | D32: SUCRE | E32: ANTIOQUIA | F32: ENTRERRIOS | H32: CAUCASIA | N32: CAUCA | O32: SANTANDER DE QUILICHAO
A33: RISARALDA | B33: PEREIRA | D33: TOLIMA | E33: ANTIOQUIA | F33: PUERTO NARE | H33: CHIGORODÓ | N33: HUILA | O33: NEIVA
A34: ARAUCA | B34: FORTUL | D34: VALLE DEL CAUCA | E34: ANTIOQUIA | F34: PUERTO TRIUNFO | H34: CISNEROS | N34: RISARALDA | O34: LA VIRGINIA
A35: CUNDINAMARCA | B35: FUSAGASUGÁ | D35: VAUPÉS | E35: ANTIOQUIA | F35: GIRARDOTA | H35: CIUDAD BOLÍVAR | N35: TOLIMA | O35: HONDA
A36: CUNDINAMARCA | B36: LA VEGA | D36: VICHADA | E36: ANTIOQUIA | F36: SAN JERÓNIMO | H36: COCORNÁ | N36: META | O36: VILLAVICENCIO
A37: CUNDINAMARCA | B37: SOPÓ | D37: 0 | E37: ANTIOQUIA | F37: SANTAFÉ DE ANTIOQUIA | H37: CONCEPCIÓN | N37: NORTE DE SANTANDER | O37: LOS PATIOS
A38: ANTIOQUIA | B38: JARDÍN | E38: ANTIOQUIA | F38: CONCORDIA | H38: CONCORDIA | N38: META | O38: CUMARAL
A39: BOYACÁ | B39: SOGAMOSO | E39: ANTIOQUIA | F39: SAN PEDRO DE LOS MILAGROS | H39: COPACABANA | N39: SANTANDER | O39: ZAPATOCA
A40: BOYACÁ | B40: DUITAMA | E40: ANTIOQUIA | F40: EL SANTUARIO | H40: DABEIBA | N40: CUNDINAMARCA | O40: TENJO
A41: BOYACÁ | B41: SUTATENZA | E41: ANTIOQUIA | F41: ARGELIA | H41: DON MATÍAS | N41: MAGDALENA | O41: SANTA MARTA
A42: CÓRDOBA | B42: SAN PELAYO | E42: ANTIOQUIA | F42: CAUCASIA | H42: EBÉJICO | N42: SANTANDER | O42: FLORIDABLANCA
A43: VALLE DEL CAUCA | B43: TULUÁ | E43: ANTIOQUIA | F43: EL CARMEN DE VIBORAL | H43: EL BAGRE | N43: CAUCA | O43: POPAYÁN
A44: CALDAS | B44: MANIZALES | E44: ANTIOQUIA | F44: ABEJORRAL | H44: EL CARMEN DE VIBORAL | N44: BOLÍVAR | O44: CARTAGENA
A45: TOLIMA | B45: ESPINAL | E45: ANTIOQUIA | F45: URRAO | H45: EL SANTUARIO | N45: CUNDINAMARCA | O45: GIRARDOT
A46: CESAR | B46: VALLEDUPAR | E46: ANTIOQUIA | F46: ALEJANDRÍA | H46: ENTRERRIOS | N46: RISARALDA | O46: PEREIRA
A47: CUNDINAMARCA | B47: VILLA DE SAN DIEGO DE UBATE | E47: ANTIOQUIA | F47: AMAGÁ | H47: ENVIGADO | N47: ARAUCA | O47: FORTUL
A48: CUNDINAMARCA | B48: ZIPAQUIRÁ | E48: ANTIOQUIA | F48: AMALFI | H48: FREDONIA | N48: VALLE DEL CAUCA | O48: CALI
A49: ARCHIPIÉLAGO DE SAN ANDRÉS, PROVIDENCIA Y SANTA CATALINA | B49: SAN ANDRÉS | E49: ANTIOQUIA | F49: ANDES | H49: FRONTINO | N49: CUNDINAMARCA | O49: FUSAGASUGÁ
A50: NORTE DE SANTANDER | B50: CÚCUTA | E50: ANTIOQUIA | F50: JERICÓ | H50: GIRALDO | N50: CUNDINAMARCA | O50: LA VEGA
A51: CUNDINAMARCA | B51: TOCAIMA | E51: ANTIOQUIA | F51: HISPANIA | H51: GIRARDOTA | N51: TOLIMA | O51: IBAGUÉ
A52: CUNDINAMARCA | B52: LA MESA | E52: ANTIOQUIA | F52: ANGOSTURA | H52: GÓMEZ PLATA | N52: CUNDINAMARCA | O52: SOPÓ
A53: CALDAS | B53: AGUADAS | E53: ANTIOQUIA | F53: TURBO | H53: GRANADA | N53: ANTIOQUIA | O53: JARDÍN
A54: META | B54: SAN MARTÍN | E54: ANTIOQUIA | F54: DON MATÍAS | H54: GUADALUPE | N54: BOYACÁ | O54: SOGAMOSO
A55: CUNDINAMARCA | B55: VILLETA | E55: ANTIOQUIA | F55: BETULIA | H55: GUARNE | N55: BOYACÁ | O55: DUITAMA
A56: BOYACÁ | B56: CHIQUINQUIRÁ | E56: ANTIOQUIA | F56: CIUDAD BOLÍVAR | H56: GUATAPE | N56: BOYACÁ | O56: SUTATENZA
A57: CASANARE | B57: TAURAMENA | E57: ANTIOQUIA | F57: BURITICÁ | H57: HELICONIA | N57: CÓRDOBA | O57: SAN PELAYO
A58: BOYACÁ | B58: PAIPA | E58: ANTIOQUIA | F58: CÁCERES | H58: HISPANIA | N58: VALLE DEL CAUCA | O58: TULUÁ
A59: BOYACÁ | B59: TUNJA | E59: ANTIOQUIA | F59: YARUMAL | H59: ITAGUI | N59: META | O59: VILLAVICENCIO
A60: CUNDINAMARCA | B60: ANAPOIMA | E60: ANTIOQUIA | F60: CAMPAMENTO | H60: ITUANGO | N60: CALDAS | O60: MANIZALES
A61: NARIÑO | B61: PASTO | E61: ANTIOQUIA | F61: REMEDIOS | H61: JARDÍN | N61: TOLIMA | O61: ESPINAL
A62: SANTANDER | B62: PUENTE NACIONAL | E62: ANTIOQUIA | F62: VENECIA | H62: JERICÓ | N62: CESAR | O62: VALLEDUPAR
A63: LA GUAJIRA | B63: RIOHACHA | E63: ANTIOQUIA | F63: CHIGORODÓ | H63: LA CEJA | N63: CUNDINAMARCA | O63: VILLA DE SAN DIEGO DE UBATE
A64: CUNDINAMARCA | B64: LA CALERA | E64: ANTIOQUIA | F64: TITIRIBÍ | H64: LA ESTRELLA | N64: CUNDINAMARCA | O64: ZIPAQUIRÁ
A65: CUNDINAMARCA | B65: AGUA DE DIOS | E65: ANTIOQUIA | F65: CISNEROS | H65: LA PINTADA | N65: ARCHIPIÉLAGO DE SAN ANDRÉS, PROVIDENCIA Y SANTA CATALINA | O65: SAN ANDRÉS
A66: CUNDINAMARCA | B66: MOSQUERA | E66: ANTIOQUIA | F66: CONCEPCIÓN | H66: LA UNIÓN | N66: NORTE DE SANTANDER | O66: CÚCUTA
A67: CESAR | B67: AGUACHICA | E67: ANTIOQUIA | F67: COCORNÁ | H67: LIBORINA | N67: NORTE DE SANTANDER | O67: CÚCUTA
A68: TOLIMA | B68: VILLARRICA | E68: ANTIOQUIA | F68: ARBOLETES | H68: MACEO | N68: CUNDINAMARCA | O68: TOCAIMA
A69: CUNDINAMARCA | B69: FACATATIVÁ | E69: ANTIOQUIA | F69: EBÉJICO | H69: MARINILLA | N69: CUNDINAMARCA | O69: LA MESA
A70: CUNDINAMARCA | B70: TABIO | E70: ANTIOQUIA | F70: SANTA ROSA DE OSOS | H70: MEDELLÍN | N70: CALDAS | O70: AGUADAS
A71: CUNDINAMARCA | B71: SUBACHOQUE | E71: ANTIOQUIA | F71: SANTA BÁRBARA | H71: MONTEBELLO | N71: META | O71: SAN MARTÍN
A72: CUNDINAMARCA | B72: GUASCA | E72: ANTIOQUIA | F72: SAN VICENTE | H72: MURINDÓ | N72: CUNDINAMARCA | O72: VILLETA
A73: CAUCA | B73: PIENDAMÓ | E73: ANTIOQUIA | F73: GIRALDO | H73: MUTATÁ | N73: BOYACÁ | O73: CHIQUINQUIRÁ
A74: TOLIMA | B74: SUÁREZ | E74: ANTIOQUIA | F74: GÓMEZ PLATA | H74: NARIÑO | N74: CASANARE | O74: TAURAMENA
A75: CUNDINAMARCA | B75: FUNZA | E75: ANTIOQUIA | F75: GUATAPE | H75: NECHÍ | N75: BOYACÁ | O75: PAIPA
A76: BOYACÁ | B76: GUATEQUE | E76: ANTIOQUIA | F76: CAROLINA | H76: NECOCLÍ | N76: BOYACÁ | O76: TUNJA
A77: META | B77: GRANADA | E77: ANTIOQUIA | F77: GRANADA | H77: OLAYA | N77: CUNDINAMARCA | O77: ANAPOIMA
A78: CALDAS | B78: LA DORADA | E78: ANTIOQUIA | F78: PEÑOL | H78: PEÑOL | N78: NARIÑO | O78: PASTO
A79: SANTANDER | B79: GIRÓN | E79: ANTIOQUIA | F79: SAN RAFAEL | H79: PEQUE | N79: ANTIOQUIA | O79: SABANETA
A80: SANTANDER | B80: BARRANCABERMEJA | E80: ANTIOQUIA | F80: MURINDÓ | H80: PUEBLORRICO | N80: SANTANDER | O80: PUENTE NACIONAL
A81: TOLIMA | B81: ROVIRA | E81: ANTIOQUIA | F81: OLAYA | H81: PUERTO BERRÍO | N81: CUNDINAMARCA | O81: CHÍA
A82: CUNDINAMARCA | B82: APULO | E82: ANTIOQUIA | F82: SAN JOSÉ DE LA MONTAÑA | H82: PUERTO NARE | N82: LA GUAJIRA | O82: RIOHACHA
A83: VALLE DEL CAUCA | B83: CARTAGO | E83: ANTIOQUIA | F83: PUEBLORRICO | H83: PUERTO TRIUNFO | N83: CUNDINAMARCA | O83: LA CALERA
A84: ANTIOQUIA | B84: ENVIGADO | E84: ANTIOQUIA | F84: SAN ROQUE | H84: REMEDIOS | N84: CUNDINAMARCA | O84: AGUA DE DIOS
A85: ARAUCA | B85: ARAUCA | E85: ANTIOQUIA | F85: YONDÓ | H85: RETIRO | N85: CUNDINAMARCA | O85: TOCAIMA
A86: VALLE DEL CAUCA | B86: PALMIRA | E86: ANTIOQUIA | F86: CARACOLÍ | H86: RIONEGRO | N86: CUNDINAMARCA | O86: MOSQUERA
A87: SANTANDER | B87: SAN GIL | E87: ANTIOQUIA | F87: BELMIRA | H87: SABANALARGA | N87: CESAR | O87: AGUACHICA
A88: SANTANDER | B88: VÉLEZ | E88: ANTIOQUIA | F88: SALGAR | H88: SABANETA | N88: TOLIMA | O88: VILLARRICA
A89: ANTIOQUIA | B89: RETIRO | E89: ANTIOQUIA | F89: TÁMESIS | H89: SALGAR | N89: ANTIOQUIA | O89: GUARNE
A90: GUAVIARE | B90: CALAMAR | E90: ANTIOQUIA | F90: LA PINTADA | H90: SAN ANDRÉS DE CUERQUÍA | N90: CUNDINAMARCA | O90: FACATATIVÁ
A91: CUNDINAMARCA | B91: SOACHA | E91: ANTIOQUIA | F91: SONSON | H91: SAN CARLOS | N91: CUNDINAMARCA | O91: TABIO
A92: VALLE DEL CAUCA | B92: SEVILLA | E92: ANTIOQUIA | F92: TARSO | H92: SAN FRANCISCO | N92: CUNDINAMARCA | O92: SUBACHOQUE
A93: TOLIMA | B93: FLANDES | E93: ANTIOQUIA | F93: VALDIVIA | H93: SAN JERÓNIMO | N93: CUNDINAMARCA | O93: GUASCA
A94: CÓRDOBA | B94: SAHAGÚN | E94: ANTIOQUIA | F94: SAN ANDRÉS DE CUERQUÍA | H94: SAN JOSÉ DE LA MONTAÑA | N94: CAUCA | O94: PIENDAMÓ
A95: ANTIOQUIA | B95: PUERTO BERRÍO | E95: ANTIOQUIA | F95: EL BAGRE | H95: SAN JUAN DE URABÁ | N95: TOLIMA | O95: SUÁREZ
A96: VALLE DEL CAUCA | B96: FLORIDA | E96: ANTIOQUIA | F96: ZARAGOZA | H96: SAN LUIS | N96: CUNDINAMARCA | O96: FUNZA
A97: CUNDINAMARCA | B97: COTA | E97: ANTIOQUIA | F97: SAN FRANCISCO | H97: SAN PEDRO DE LOS MILAGROS | N97: BOYACÁ | O97: GUATEQUE
A98: ATLÁNTICO | B98: SOLEDAD | E98: ANTIOQUIA | F98: CAREPA | H98: SAN PEDRO DE URABA | N98: NORTE DE SANTANDER | O98: CÚCUTA
A99: CUNDINAMARCA | B99: SAN FRANCISCO | E99: ANTIOQUIA | F99: ANORÍ | H99: SAN RAFAEL | N99: META | O99: GRANADA
A100: ANTIOQUIA | B100: RIONEGRO | E100: ANTIOQUIA | F100: ANGELÓPOLIS | H100: SAN ROQUE | N100: CALDAS | O100: LA DORADA
A101: CUNDINAMARCA | B101: MADRID | E101: ANTIOQUIA | F101: SAN PEDRO DE URABA | H101: SAN VICENTE | N101: SANTANDER | O101: GIRÓN
A102: SUCRE | B102: SINCELEJO | E102: ANTIOQUIA | F102: CARAMANTA | H102: SANTA BÁRBARA | N102: SANTANDER | O102: BARRANCABERMEJA
A103: CASANARE | B103: PAZ DE ARIPORO | E103: ANTIOQUIA | F103: MACEO | H103: SANTA ROSA DE OSOS | N103: TOLIMA | O103: ROVIRA
A104: QUINDÍO | B104: CALARCA | E104: ANTIOQUIA | F104: PEQUE | H104: SANTAFÉ DE ANTIOQUIA | N104: CUNDINAMARCA | O104: APULO
A105: CUNDINAMARCA | B105: GRANADA | E105: ANTIOQUIA | F105: SAN CARLOS | H105: SANTO DOMINGO | N105: VALLE DEL CAUCA | O105: CARTAGO
A106: CASANARE | B106: MONTERREY | E106: ANTIOQUIA | F106: SAN JUAN DE URABÁ | H106: SEGOVIA | N106: ANTIOQUIA | O106: ENVIGADO
A107: CUNDINAMARCA | B107: ALBÁN | E107: ANTIOQUIA | F107: NECHÍ | H107: SONSON | N107: ARAUCA | O107: ARAUCA
A108: VALLE DEL CAUCA | B108: GUADALAJARA DE BUGA | E108: ANTIOQUIA | F108: YOLOMBÓ | H108: SOPETRÁN | N108: BOYACÁ | O108: TUNJA
A109: CUNDINAMARCA | B109: TOCANCIPÁ | E109: ANTIOQUIA | F109: VEGACHÍ | H109: TÁMESIS | N109: VALLE DEL CAUCA | O109: PALMIRA
A110: ANTIOQUIA | B110: BARBOSA | E110: ANTIOQUIA | F110: NECOCLÍ | H110: TARAZÁ | N110: SANTANDER | O110: SAN GIL
A111: TOLIMA | B111: SANTA ISABEL | E111: ANTIOQUIA | F111: SAN LUIS | H111: TARSO | N111: SANTANDER | O111: VÉLEZ
A112: BOYACÁ | B112: BOYACÁ | E112: ANTIOQUIA | F112: SABANALARGA | H112: TITIRIBÍ | N112: ANTIOQUIA | O112: RETIRO
A113: HUILA | B113: RIVERA | E113: ANTIOQUIA | F113: MONTEBELLO | H113: TOLEDO | N113: GUAVIARE | O113: CALAMAR
A114: SANTANDER | B114: OIBA | E114: ANTIOQUIA | F114: MUTATÁ | H114: TURBO | N114: CUNDINAMARCA | O114: SOACHA
A115: CUNDINAMARCA | B115: GUADUAS | E115: ANTIOQUIA | F115: BRICEÑO | H115: URAMITA | N115: VALLE DEL CAUCA | O115: SEVILLA
A116: CUNDINAMARCA | B116: ANOLAIMA | E116: ANTIOQUIA | F116: CAÑASGORDAS | H116: URRAO | N116: TOLIMA | O116: FLANDES
A117: CUNDINAMARCA | B117: NEMOCÓN | E117: ANTIOQUIA | F117: YALÍ | H117: VALDIVIA | N117: CÓRDOBA | O117: SAHAGÚN
A118: CUNDINAMARCA | B118: SASAIMA | E118: ANTIOQUIA | F118: URAMITA | H118: VALPARAÍSO | N118: CUNDINAMARCA | O118: MOSQUERA
A119: ANTIOQUIA | B119: BELLO | E119: ANTIOQUIA | F119: GUADALUPE | H119: VEGACHÍ | N119: ANTIOQUIA | O119: PUERTO BERRÍO
A120: VICHADA | B120: CUMARIBO | E120: ANTIOQUIA | F120: CAICEDO | H120: VENECIA | N120: VALLE DEL CAUCA | O120: FLORIDA
A121: CUNDINAMARCA | B121: TENA | E121: ANTIOQUIA | F121: ITUANGO | H121: VIGÍA DEL FUERTE | N121: CUNDINAMARCA | O121: COTA
A122: VALLE DEL CAUCA | B122: LA UNIÓN | E122: ANTIOQUIA | F122: TARAZÁ | H122: YALÍ | N122: ATLÁNTICO | O122: SOLEDAD
A123: CUNDINAMARCA | B123: SAN JUAN DE RÍO SECO | E123: ANTIOQUIA | F123: DABEIBA | H123: YARUMAL | N123: CUNDINAMARCA | O123: SAN FRANCISCO
A124: SANTANDER | B124: SABANA DE TORRES | E124: ANTIOQUIA | F124: ANZA | H124: YOLOMBÓ | N124: ANTIOQUIA | O124: RIONEGRO
A125: GUAVIARE | B125: SAN JOSÉ DEL GUAVIARE | E125: ANTIOQUIA | F125: HELICONIA | H125: YONDÓ | N125: CUNDINAMARCA | O125: MADRID
A126: CUNDINAMARCA | B126: FOMEQUE | E126: ANTIOQUIA | F126: LIBORINA | H126: ZARAGOZA | N126: CUNDINAMARCA | O126: MADRID
A127: CUNDINAMARCA | B127: QUEBRADANEGRA | H127: 0 | N127: SUCRE | O127: SINCELEJO
A128: CUNDINAMARCA | B128: GUAYABAL DE SIQUIMA | N128: CUNDINAMARCA | O128: FUNZA
A129: CHOCÓ | B129: ACANDÍ | N129: CUNDINAMARCA | O129: ZIPAQUIRÁ
A130: CUNDINAMARCA | B130: SIBATÉ | N130: CASANARE | O130: PAZ DE ARIPORO
A131: BOYACÁ | B131: VILLA DE LEYVA | N131: SUCRE | O131: SINCELEJO
A132: CUNDINAMARCA | B132: EL ROSAL | N132: QUINDÍO | O132: CALARCA
A133: ANTIOQUIA | B133: ARMENIA | N133: CUNDINAMARCA | O133: GRANADA
A134: LA GUAJIRA | B134: MAICAO | N134: CUNDINAMARCA | O134: FUSAGASUGÁ
A135: CASANARE | B135: YOPAL | N135: CUNDINAMARCA | O135: SOACHA
A136: CUNDINAMARCA | B136: CAPARRAPÍ | N136: CASANARE | O136: MONTERREY
A137: CUNDINAMARCA | B137: QUIPILE | N137: CUNDINAMARCA | O137: ALBÁN
A138: VALLE DEL CAUCA | B138: JAMUNDÍ | N138: VALLE DEL CAUCA | O138: GUADALAJARA DE BUGA
A139: CUNDINAMARCA | B139: COGUA | N139: CUNDINAMARCA | O139: FACATATIVÁ
A140: TOLIMA | B140: FRESNO | N140: CUNDINAMARCA | O140: TOCANCIPÁ
A141: RISARALDA | B141: DOSQUEBRADAS | N141: ANTIOQUIA | O141: BARBOSA
A142: CUNDINAMARCA | B142: SESQUILÉ | N142: META | O142: ACACÍAS
A143: CUNDINAMARCA | B143: UBALÁ | N143: TOLIMA | O143: SANTA ISABEL
A144: SANTANDER | B144: PUERTO PARRA | N144: CUNDINAMARCA | O144: ALBÁN
A145: PUTUMAYO | B145: MOCOA | N145: BOYACÁ | O145: BOYACÁ
A146: PUTUMAYO | B146: PUERTO ASÍS | N146: HUILA | O146: RIVERA
A147: CUNDINAMARCA | B147: CHOCONTÁ | N147: RISARALDA | O147: PEREIRA
A148: HUILA | B148: GARZÓN | N148: SANTANDER | O148: OIBA
A149: CUNDINAMARCA | B149: VENECIA | N149: CUNDINAMARCA | O149: GUADUAS
A150: CUNDINAMARCA | B150: RICAURTE | N150: CUNDINAMARCA | O150: FACATATIVÁ
A151: HUILA | B151: LA PLATA | N151: CUNDINAMARCA | O151: ANOLAIMA
A152: CUNDINAMARCA | B152: SUESCA | N152: CUNDINAMARCA | O152: AGUA DE DIOS
A153: BOLÍVAR | B153: EL CARMEN DE BOLÍVAR | N153: CUNDINAMARCA | O153: NEMOCÓN
A154: CASANARE | B154: VILLANUEVA | N154: CUNDINAMARCA | O154: LA VEGA
A155: CUNDINAMARCA | B155: EL COLEGIO | N155: META | O155: SAN MARTÍN
A156: CUNDINAMARCA | B156: VIOTÁ | N156: CUNDINAMARCA | O156: SASAIMA
A157: CUNDINAMARCA | B157: CACHIPAY | N157: CUNDINAMARCA | O157: VILLA DE SAN DIEGO DE UBATE
A158: BOYACÁ | B158: CHIVOR | N158: SANTANDER | O158: BARRANCABERMEJA
A159: TOLIMA | B159: MARIQUITA | N159: BOYACÁ | O159: DUITAMA
A160: CUNDINAMARCA | B160: ARBELÁEZ | N160: ANTIOQUIA | O160: BELLO
A161: CUNDINAMARCA | B161: BELTRÁN | N161: CUNDINAMARCA | O161: AGUA DE DIOS
A162: META | B162: PUERTO LÓPEZ | N162: VICHADA | O162: CUMARIBO
A163: META | B163: PUERTO GAITÁN | N163: BOYACÁ | O163: SOGAMOSO
A164: TOLIMA | B164: AMBALEMA | N164: CUNDINAMARCA | O164: TENA
A165: TOLIMA | B165: LÉRIDA | N165: VALLE DEL CAUCA | O165: LA UNIÓN
A166: NORTE DE SANTANDER | B166: OCAÑA | N166: CUNDINAMARCA | O166: CAJICÁ
A167: BOYACÁ | B167: PUERTO BOYACÁ | N167: CUNDINAMARCA | O167: SAN JUAN DE RÍO SECO
A168: MAGDALENA | B168: GUAMAL | N168: CUNDINAMARCA | O168: ALBÁN
A169: CUNDINAMARCA | B169: BITUIMA | N169: BOYACÁ | O169: SOGAMOSO
A170: TOLIMA | B170: LÍBANO | N170: SANTANDER | O170: SABANA DE TORRES
A171: CUNDINAMARCA | B171: VIANÍ | N171: GUAVIARE | O171: SAN JOSÉ DEL GUAVIARE
A172: META | B172: SAN CARLOS DE GUAROA | N172: CUNDINAMARCA | O172: FOMEQUE
A173: CUNDINAMARCA | B173: BOJACÁ | N173: CUNDINAMARCA | O173: GUADUAS
A174: CUNDINAMARCA | B174: SIMIJACA | N174: CUNDINAMARCA | O174: SOPÓ
A175: TOLIMA | B175: COELLO | N175: CUNDINAMARCA | O175: QUEBRADANEGRA
A176: CAQUETÁ | B176: SAN VICENTE DEL CAGUÁN | N176: CUNDINAMARCA | O176: SASAIMA
A177: SANTANDER | B177: LANDÁZURI | N177: CUNDINAMARCA | O177: GUAYABAL DE SIQUIMA
A178: CUNDINAMARCA | B178: PACHO | N178: CHOCÓ | O178: ACANDÍ
A179: CHOCÓ | B179: QUIBDÓ | N179: CUNDINAMARCA | O179: SIBATÉ
A180: CUNDINAMARCA | B180: GACHANCIPÁ | N180: CUNDINAMARCA | O180: TOCANCIPÁ
A181: CUNDINAMARCA | B181: GUACHETÁ | N181: CUNDINAMARCA | O181: SASAIMA
A182: TOLIMA | B182: ARMERO | N182: CUNDINAMARCA | O182: VILLETA
A183: TOLIMA | B183: VENADILLO | N183: BOYACÁ | O183: VILLA DE LEYVA
A184: CUNDINAMARCA | B184: PUERTO SALGAR | N184: CUNDINAMARCA | O184: EL ROSAL
A185: BOYACÁ | B185: CÓMBITA | N185: CUNDINAMARCA | O185: TENJO
A186: CHOCÓ | B186: BOJAYA | N186: GUAVIARE | O186: SAN JOSÉ DEL GUAVIARE
A187: CUNDINAMARCA | B187: CARMEN DE CARUPA | N187: ANTIOQUIA | O187: ARMENIA
A188: CUNDINAMARCA | B188: UBAQUE | N188: LA GUAJIRA | O188: MAICAO
A189: BOYACÁ | B189: RÁQUIRA | N189: CASANARE | O189: YOPAL
A190: CUNDINAMARCA | B190: MANTA | N190: CUNDINAMARCA | O190: CAPARRAPÍ
A191: PUTUMAYO | B191: SIBUNDOY | N191: VALLE DEL CAUCA | O191: CARTAGO
A192: VALLE DEL CAUCA | B192: YUMBO | N192: CUNDINAMARCA | O192: QUIPILE
A193: CUNDINAMARCA | B193: CUCUNUBÁ | N193: VALLE DEL CAUCA | O193: JAMUNDÍ
A194: CUNDINAMARCA | B194: SUTATAUSA | N194: CUNDINAMARCA | O194: LA MESA
A195: CUNDINAMARCA | B195: SUSA | N195: CUNDINAMARCA | O195: COGUA
A196: CUNDINAMARCA | B196: VILLAPINZÓN | N196: CUNDINAMARCA | O196: ANAPOIMA
A197: CUNDINAMARCA | B197: LENGUAZAQUE | N197: CUNDINAMARCA | O197: ANAPOIMA
A198: CUNDINAMARCA | B198: CHAGUANÍ | N198: CUNDINAMARCA | O198: LA MESA
A199: TOLIMA | B199: CAJAMARCA | N199: CUNDINAMARCA | O199: GIRARDOT
A200: CAUCA | B200: ARGELIA | N200: TOLIMA | O200: FRESNO
... 3259 more rows

Sheet Visor
J3: Informe Mensual de las cotizaciones
AB4: Pg. 1
J5: Fecha de corte: 17 de May de 2022
L7: Departamento | Q7: ANTIOQUIA
L8: Municipio | Q8: MEDELLÍN
C10: ="Resumen general mes "&Lista!R2&":" -> Resumen general mes Marzo:
H12: Total | L12: % | M12: Dependientes | Q12: % | R12: Dep.Privados* | V12: % | W12: Independientes | AA12: %
D13: Nacional | H13: =M13+W13 -> 12795449 | M13: =R13+SUMIFS('Cotizantes Mes'!$AK$2:$AK$4995,'Cotizantes Mes'!$I$2:$I$4995,"Dep_No_priv") -> 10604524 | R13: =SUMIFS('Cotizantes Mes'!$AK$2:$AK$4995,'Cotizantes Mes'!$I$2:$I$4995,"Dep_sec_priv") -> 8930843 | W13: =SUMIFS('Cotizantes Mes'!$AK$2:$AK$4995,'Cotizantes Mes'!$I$2:$I$4995,"Independiente") -> 2190925
D14: =PROPER(Q7) -> Antioquia | H14: =M14+W14 -> 2215848 | L14: =H14/H13 -> 0.1731746967 | M14: =R14+SUMIFS('Cotizantes Mes'!$CA$2:$CA$4995,'Cotizantes Mes'!$AY$2:$AY$4995,"Dep_No_priv") -> 1895629 | Q14: =M14/M13 -> 0.1787566325 | R14: =SUMIFS('Cotizantes Mes'!$CA$2:$CA$4995,'Cotizantes Mes'!$AY$2:$AY$4995,"Dep_sec_priv") -> 1636538 | V14: =R14/R13 -> 0.1832456354 | W14: =SUMIFS('Cotizantes Mes'!$CA$2:$CA$2000,'Cotizantes Mes'!$AY$2:$AY$2000,"Independiente") -> 320219 | AA14: =W14/W13 -> 0.1461569885
D15: =PROPER(Q8) -> Medellín | H15: =M15+W15 -> 1525179 | L15: =H15/H14 -> 0.6883048837 | M15: =R15+SUMIFS('Cotizantes Mes'!$CA$2:$CA$2000,'Cotizantes Mes'!$AY$2:$AY$2000,"Dep_No_priv",'Cotizantes Mes'!$AX$2:$AX$2000,Visor!$Q$8) -> 1330079 | Q15: =M15/M14 -> 0.7016557565 | R15: =SUMIFS('Cotizantes Mes'!$CA$2:$CA$2000,'Cotizantes Mes'!$AY$2:$AY$2000,"Dep_sec_priv",'Cotizantes Mes'!$AX$2:$AX$2000,Visor!$Q$8) -> 1159148 | V15: =R15/R14 -> 0.7082927497 | W15: =SUMIFS('Cotizantes Mes'!$CA$2:$CA$2000,'Cotizantes Mes'!$AY$2:$AY$2000,"Independiente",'Cotizantes Mes'!$AX$2:$AX$2000,Visor!$Q$8) -> 195100 | AA15: =W15/W14 -> 0.6092705305
C16: *Ubicación basada en la ubicación de los cotizantes
C18: Variaciones mensuales del número de cotizantes
C30: ="Variaciones anuales y mensuales de "&Lista!R2 -> Variaciones anuales y mensuales de Marzo
L32: Dependientes | P32: Dep. Privados | T32: Independientes
L33: ='Cotizantes Mes'!DL5 -> ∆ Anual Mar | N33: ='Cotizantes Mes'!DM5 -> ∆ Mensual Mar | P33: ='Cotizantes Mes'!DN5 -> ∆ Anual Mar | R33: ='Cotizantes Mes'!DO5 -> ∆ Mensual Mar | T33: =L33 -> ∆ Anual Mar | V33: =N33 -> ∆ Mensual Mar
H34: Nacional | L34: =IFERROR('Cotizantes Mes'!DL6,"") -> 0.07561404039 | N34: =IFERROR('Cotizantes Mes'!DM6,"") -> 0.0150392399 | P34: =IFERROR('Cotizantes Mes'!DN6,"") -> 0.07309450883 | R34: =IFERROR('Cotizantes Mes'!DO6,"") -> 0.005389414283 | T34: =IFERROR('Cotizantes Mes'!DP6,"") -> 0.008869700317 | V34: =IFERROR('Cotizantes Mes'!DQ6,"") -> -0.02166346125
H35: =PROPER(Q7) -> Antioquia | L35: =IFERROR('Cotizantes Mes'!DL7,"") -> 0.06100637344 | N35: =IFERROR('Cotizantes Mes'!DM7,"") -> 0.01121570209 | P35: =IFERROR('Cotizantes Mes'!DN7,"") -> 0.06176038574 | R35: =IFERROR('Cotizantes Mes'!DO7,"") -> 0.004361645261 | T35: =IFERROR('Cotizantes Mes'!DP7,"") -> 0.02633636964 | V35: =IFERROR('Cotizantes Mes'!DQ7,"") -> -0.01812166351
H36: =PROPER(Q8) -> Medellín | L36: =IFERROR('Cotizantes Mes'!DL8,"") -> 0.06233541768 | N36: =IFERROR('Cotizantes Mes'!DM8,"") -> 0.01136078495 | P36: =IFERROR('Cotizantes Mes'!DN8,"") -> 0.06117793105 | R36: =IFERROR('Cotizantes Mes'!DO8,"") -> 0.003858168362 | T36: =IFERROR('Cotizantes Mes'!DP8,"") -> -0.01077951183 | V36: =IFERROR('Cotizantes Mes'!DQ8,"") -> -0.01906562355
C38: *Ubicación basada en la ubicación de los cotizantes
C39: ="Número de aportantes privados por tamaño mes de "&Lista!R2 -> Número de aportantes privados por tamaño mes de Marzo
I41: Nacional | L41: % | M41: Cotizantes | O41: =PROPER(Q7) -> Antioquia | R41: % | S41: Cotizantes | U41: =PROPER(Q8) -> Medellín | X41: % | Y41: Cotizantes
E42: Micro | I42: =COUNTIFS(Tamaño!$G$2:$G$600000,"<=10") -> 409596 | L42: =I42/$I$47 -> 0.8079390253 | M42: =SUMIFS(Tamaño!$G$2:$G$600000,Tamaño!$G$2:$G$600000,"<="&10) -> 1216659 | O42: =COUNTIFS(Tamaño!$S$2:$S$300000,"<=10") -> 86172 | R42: =O42/$O$47 -> 0.8174470669 | S42: =SUMIFS(Tamaño!$S$2:$S$300000,Tamaño!$S$2:$S$300000,"<="&10) -> 253900 | U42: =COUNTIFS(Tamaño!$S$2:$S$300000,"<=10",Tamaño!$R$2:$R$300000,Visor!$Q$8) -> 54847 | X42: =U42/$U$47 -> 0.8228860349 | Y42: =SUMIFS(Tamaño!$S$2:$S$300000,Tamaño!$S$2:$S$300000,"<="&10,Tamaño!$R$2:$R$300000,Visor!$Q$8) -> 157427
E43: Pequeñas | I43: =COUNTIFS(Tamaño!$G$2:$G$600000,">=11",Tamaño!$G$2:$G$600000,"<=50") -> 73133 | L43: =I43/$I$47 -> 0.1442567914 | M43: =SUMIFS(Tamaño!$G$2:$G$600000,Tamaño!$G$2:$G$600000,">"&10,Tamaño!$G$2:$G$600000,"<="&50) -> 1585350 | O43: =COUNTIFS(Tamaño!$S$2:$S$300000,">=11",Tamaño!$S$2:$S$300000,"<=50") -> 14711 | R43: =O43/$O$47 -> 0.1395518707 | S43: =SUMIFS(Tamaño!$S$2:$S$300000,Tamaño!$S$2:$S$300000,">"&10,Tamaño!$S$2:$S$300000,"<="&50) -> 317588 | U43: =COUNTIFS(Tamaño!$S$2:$S$300000,">=11",Tamaño!$S$2:$S$300000,"<=50",Tamaño!$R$2:$R$300000,Visor!$Q$8) -> 8895 | X43: =U43/$U$47 -> 0.13345436 | Y43: =SUMIFS(Tamaño!$S$2:$S$300000,Tamaño!$S$2:$S$300000,">"&10,Tamaño!$S$2:$S$300000,"<="&50,Tamaño!$R$2:$R$300000,Visor!$Q$8) -> 193615
E44: Medianas | I44: =COUNTIFS(Tamaño!$G$2:$G$600000,">=51",Tamaño!$G$2:$G$600000,"<=200") -> 18413 | L44: =I44/$I$47 -> 0.03632013318 | M44: =SUMIFS(Tamaño!$G$2:$G$600000,Tamaño!$G$2:$G$600000,">"&50,Tamaño!$G$2:$G$600000,"<="&200) -> 1731956 | O44: =COUNTIFS(Tamaño!$S$2:$S$300000,">=51",Tamaño!$S$2:$S$300000,"<=200") -> 3523 | R44: =O44/$O$47 -> 0.0334199742 | S44: =SUMIFS(Tamaño!$S$2:$S$300000,Tamaño!$S$2:$S$300000,">"&50,Tamaño!$S$2:$S$300000,"<="&200) -> 328814 | U44: =COUNTIFS(Tamaño!$S$2:$S$300000,">=51",Tamaño!$S$2:$S$300000,"<=200",Tamaño!$R$2:$R$300000,Visor!$Q$8) -> 2204 | X44: =U44/$U$47 -> 0.0330672748 | Y44: =SUMIFS(Tamaño!$S$2:$S$300000,Tamaño!$S$2:$S$300000,">"&50,Tamaño!$S$2:$S$300000,"<="&200,Tamaño!$R$2:$R$300000,Visor!$Q$8) -> 207585
E45: Grandes | I45: =COUNTIFS(Tamaño!$G$2:$G$600000,">=201",Tamaño!$G$2:$G$600000,"<=500") -> 3749 | L45: =I45/$I$47 -> 0.007395002406 | M45: =SUMIFS(Tamaño!$G$2:$G$600000,Tamaño!$G$2:$G$600000,">"&200,Tamaño!$G$2:$G$600000,"<="&500) -> 1138145 | O45: =COUNTIFS(Tamaño!$S$2:$S$300000,">=201",Tamaño!$S$2:$S$300000,"<=500") -> 635 | R45: =O45/$O$47 -> 0.00602375351 | S45: =SUMIFS(Tamaño!$S$2:$S$300000,Tamaño!$S$2:$S$300000,">"&200,Tamaño!$S$2:$S$300000,"<="&500) -> 193813 | U45: =COUNTIFS(Tamaño!$S$2:$S$300000,">=201",Tamaño!$S$2:$S$300000,"<=500",Tamaño!$R$2:$R$300000,Visor!$Q$8) -> 425 | X45: =U45/$U$47 -> 0.006376402809 | Y45: =SUMIFS(Tamaño!$S$2:$S$300000,Tamaño!$S$2:$S$300000,">"&200,Tamaño!$S$2:$S$300000,"<="&500,Tamaño!$R$2:$R$300000,Visor!$Q$8) -> 130961
E46: Muy Grandes | I46: =COUNTIFS(Tamaño!$G$2:$G$600000,">=501") -> 2073 | L46: =I46/$I$47 -> 0.004089047743 | M46: =SUMIFS(Tamaño!$G$2:$G$600000,Tamaño!$G$2:$G$600000,">"&500) -> 3262569 | O46: =COUNTIFS(Tamaño!$S$2:$S$300000,">=501") -> 375 | R46: =O46/$O$47 -> 0.00355733475 | S46: =SUMIFS(Tamaño!$S$2:$S$300000,Tamaño!$S$2:$S$300000,">"&500) -> 631605 | U46: =COUNTIFS(Tamaño!$S$2:$S$300000,">=501",Tamaño!$R$2:$R$300000,Visor!$Q$8) -> 281 | X46: =U46/$U$47 -> 0.004215927504 | Y46: =SUMIFS(Tamaño!$S$2:$S$300000,Tamaño!$S$2:$S$300000,">"&500,Tamaño!$R$2:$R$300000,Visor!$Q$8) -> 480908
E47: Total | I47: =SUM(I42:K46) -> 506964 | L47: =SUM(L42:L46) -> 1 | M47: =SUM(M42:N46) -> 8934679 | O47: =SUM(O42:Q46) -> 105416 | R47: =SUM(R42:R46) -> 1 | S47: =SUM(S42:T46) -> 1725720 | U47: =SUM(U42:W46) -> 66652 | X47: =SUM(X42:X46) -> 1 | Y47: =SUM(Y42:Z46) -> 1170496
C49: *Ubicación basada en la ubicación de los aportantes
K51: =J3 -> Informe Mensual de las cotizaciones | AB51: Pg. 2
K53: =J5 -> Fecha de corte: 17 de May de 2022
L55: Departamento | Q55: =Q7 -> ANTIOQUIA
L56: Municipio | Q56: =Q8 -> MEDELLÍN
C58: ="Resumen por rangos de IBC privados e Independientes mes "&Lista!R2&":" -> Resumen por rangos de IBC privados e Independientes mes Marzo:
F60: Nacional | L60: =PROPER($Q$7) -> Antioquia | R60: =PROPER($Q$8) -> Medellín
Z61: <= 1 SMMLV
Z62: 1-2 SMMLV
B63: Privados | Z63: 2-5 SMMLV
Z64: > 5 SMMLV
Z68: <= 1 SMMLV
B69: Independientes | Z69: 1-2 SMMLV
Z70: 2-5 SMMLV
Z71: > 5 SMMLV
C73: *Ubicación basada en la ubicación de los cotizantes
C74: Resumen por actividades económicas aportantes del sector privado
C76: Actividades económicas | K76: =PROPER(Q7) -> Antioquia | S76: =PROPER(Q56) -> Medellín
K77: Apt.Privados | N77: % | O77: Empleados | R77: % | S77: Apt.Privados | V77: % | W77: Empleados | Z77: %
B78: =IF(C78="Total",1,0) -> 0 | C78: =IF(Tamaño!$AP2="",Total,Tamaño!$AP2) -> Otras actividades de servicios | K78: =Tamaño!AQ2 -> 16977 | N78: =K78/Tamaño!$AQ$24 -> 0.1610476588 | O78: =Tamaño!AR2 -> 156835 | R78: =O78/Tamaño!$AR$24 -> 0.09088090768 | S78: =Tamaño!AS2 -> 11348 | V78: =S78/Tamaño!$AS$24 -> 0.1702574566 | W78: =Tamaño!AT2 -> 102642 | Z78: =W78/Tamaño!$AT$24 -> 0.08769103013
B79: =IF(C79="Total",1,0) -> 0 | C79: =IF(C78="Total","",IF(Tamaño!$AQ3=0,"Total",Tamaño!$AP3)) -> Comercio y reparacion de vehiculos | K79: =IF(C79="","",IF(C79="Total",K78,Tamaño!$AQ3)) -> 14615 | N79: =IF(C79="Total","",K79/Tamaño!$AQ$24) -> 0.138641193 | O79: =IF(C79="","",IF(C79="Total",O78,Tamaño!$AR3)) -> 157994 | R79: =IF(C79="Total","",O79/Tamaño!$AR$24) -> 0.09155251142 | S79: =IF(C79="","",IF(C79="Total",SUM($S$78:$U78),Tamaño!$AS3)) -> 8286 | V79: =IF(OR(C78="",C78="Total"),"",IF(C79="Total","",S79/Tamaño!$AS$24)) -> 0.1243173498 | W79: =IF(C79="","",IF(C79="Total",SUM($W$78:$W78),Tamaño!$AT3)) -> 97014 | Z79: =IF(OR(C78="Total",C78=""),"",IF(C79="Total","",W79/Tamaño!$AT$24)) -> 0.08288281207
B80: 0 | C80: =IF(C79="Total","",IF(Tamaño!$AQ4=0,"Total",Tamaño!$AP4)) -> Act. profecionales cientificas y tecnicas | K80: =IF(C80="","",IF(C80="Total",SUM(K78:M79),Tamaño!$AQ4)) -> 12921 | N80: =IF(N79="","",IF(C80="Total","",K80/Tamaño!$AQ$24)) -> 0.1225715261 | O80: =IF(C80="","",IF(C80="Total",SUM($O$78:$Q79),Tamaño!$AR4)) -> 211918 | R80: =IF(N79="","",IF(C80="Total","",O80/Tamaño!$AR$24)) -> 0.1227997589 | S80: =IF(C80="","",IF(C80="Total",SUM($S$78:$U79),Tamaño!$AS4)) -> 9079 | V80: =IF(OR(C79="",C79="Total"),"",IF(C80="Total","",S80/Tamaño!$AS$24)) -> 0.1362149673 | W80: =IF(C80="","",IF(C80="Total",SUM($W$78:$W79),Tamaño!$AT4)) -> 150458 | Z80: =IF(OR(C79="Total",C79=""),"",IF(C80="Total","",W80/Tamaño!$AT$24)) -> 0.1285420881
B81: 0 | C81: =IF(OR(C80="Total",C80=""),"",IF(Tamaño!$AQ5=0,"Total",Tamaño!$AP5)) -> Actividades de servicios administrativos | K81: =IF(C81="","",IF(C81="Total",SUM(K78:M80),Tamaño!$AQ5)) -> 10074 | N81: =IF(N80="","",IF(C81="Total","",K81/Tamaño!$AQ$24)) -> 0.09556424072 | O81: =IF(C81="","",IF(C81="Total",SUM($O$78:$Q80),Tamaño!$AR5)) -> 269504 | R81: =IF(N80="","",IF(C81="Total","",O81/Tamaño!$AR$24)) -> 0.1561690193 | S81: =IF(C81="","",IF(C81="Total",SUM($S$78:$U80),Tamaño!$AS5)) -> 6811 | V81: =IF(OR(C80="",C80="Total"),"",IF(C81="Total","",S81/Tamaño!$AS$24)) -> 0.1021874812 | W81: =IF(C81="","",IF(C81="Total",SUM($W$78:$W80),Tamaño!$AT5)) -> 222284 | Z81: =IF(OR(C80="Total",C80=""),"",IF(C81="Total","",W81/Tamaño!$AT$24)) -> 0.1899058177
B82: 0 | C82: =IF(OR(C81="Total",C81=""),"",IF(Tamaño!$AQ6=0,"Total",Tamaño!$AP6)) -> Industrias manufactureras | K82: =IF(C82="","",IF(C82="Total",SUM(K78:M81),Tamaño!$AQ6)) -> 8786 | N82: =IF(N81="","",IF(C82="Total","",K82/Tamaño!$AQ$24)) -> 0.08334598163 | O82: =IF(C82="","",IF(C82="Total",SUM($O$78:$Q81),Tamaño!$AR6)) -> 210466 | R82: =IF(N81="","",IF(C82="Total","",O82/Tamaño!$AR$24)) -> 0.121958371 | S82: =IF(C82="","",IF(C82="Total",SUM($S$78:$U81),Tamaño!$AS6)) -> 5112 | V82: =IF(OR(C81="",C81="Total"),"",IF(C82="Total","",S82/Tamaño!$AS$24)) -> 0.07669687331 | W82: =IF(C82="","",IF(C82="Total",SUM($W$78:$W81),Tamaño!$AT6)) -> 111495 | Z82: =IF(OR(C81="Total",C81=""),"",IF(C82="Total","",W82/Tamaño!$AT$24)) -> 0.0952544904
B83: 0 | C83: =IF(OR(C82="Total",C82=""),"",IF(Tamaño!$AQ7=0,"Total",Tamaño!$AP7)) -> Admin. pública y defensa; planes seg. social | K83: =IF(C83="","",IF(C83="Total",SUM(K78:M82),Tamaño!$AQ7)) -> 8775 | N83: =IF(N82="","",IF(C83="Total","",K83/Tamaño!$AQ$24)) -> 0.08324163315 | O83: =IF(C83="","",IF(C83="Total",SUM($O$78:$Q82),Tamaño!$AR7)) -> 78313 | R83: =IF(N82="","",IF(C83="Total","",O83/Tamaño!$AR$24)) -> 0.0453798994 | S83: =IF(C83="","",IF(C83="Total",SUM($S$78:$U82),Tamaño!$AS7)) -> 5428 | V83: =IF(OR(C82="",C82="Total"),"",IF(C83="Total","",S83/Tamaño!$AS$24)) -> 0.08143791634 | W83: =IF(C83="","",IF(C83="Total",SUM($W$78:$W82),Tamaño!$AT7)) -> 55854 | Z83: =IF(OR(C82="Total",C82=""),"",IF(C83="Total","",W83/Tamaño!$AT$24)) -> 0.04771823227
B84: 0 | C84: =IF(OR(C83="Total",C83=""),"",IF(Tamaño!$AQ8=0,"Total",Tamaño!$AP8)) -> Construcción | K84: =IF(C84="","",IF(C84="Total",SUM($K$78:$M83),Tamaño!$AQ8)) -> 6105 | N84: =IF(N83="","",IF(C84="Total","",K84/Tamaño!$AQ$24)) -> 0.05791340973 | O84: =IF(C84="","",IF(C84="Total",SUM($O$78:$Q83),Tamaño!$AR8)) -> 154359 | R84: =IF(N83="","",IF(C84="Total","",O84/Tamaño!$AR$24)) -> 0.08944614422 | S84: =IF(C84="","",IF(C84="Total",SUM($S$78:$U83),Tamaño!$AS8)) -> 3767 | V84: =IF(OR(C83="",C83="Total"),"",IF(C84="Total","",S84/Tamaño!$AS$24)) -> 0.05651743384 | W84: =IF(C84="","",IF(C84="Total",SUM($W$78:$W83),Tamaño!$AT8)) -> 107802 | Z84: =IF(OR(C83="Total",C83=""),"",IF(C84="Total","",W84/Tamaño!$AT$24)) -> 0.09209941768
B85: 0 | C85: =IF(OR(C84="Total",C84=""),"",IF(Tamaño!$AQ9=0,"Total",Tamaño!$AP9)) -> Agricultura, ganadería, caza | K85: =IF(C85="","",IF(C85="Total",SUM($K$78:$M84),Tamaño!$AQ9)) -> 3962 | N85: =IF(N84="","",IF(C85="Total","",K85/Tamaño!$AQ$24)) -> 0.03758442741 | O85: =IF(C85="","",IF(C85="Total",SUM($O$78:$Q84),Tamaño!$AR9)) -> 79611 | R85: =IF(N84="","",IF(C85="Total","",O85/Tamaño!$AR$24)) -> 0.04613204923 | S85: =IF(C85="","",IF(C85="Total",SUM($S$78:$U84),Tamaño!$AS9)) -> 1702 | V85: =IF(OR(C84="",C84="Total"),"",IF(C85="Total","",S85/Tamaño!$AS$24)) -> 0.02553561784 | W85: =IF(C85="","",IF(C85="Total",SUM($W$78:$W84),Tamaño!$AT9)) -> 44460 | Z85: =IF(OR(C84="Total",C84=""),"",IF(C85="Total","",W85/Tamaño!$AT$24)) -> 0.03798389742
B86: 0 | C86: =IF(OR(C85="Total",C85=""),"",IF(Tamaño!$AQ10=0,"Total",Tamaño!$AP10)) -> Alojamiento y servicios de comida | K86: =IF(C86="","",IF(C86="Total",SUM($K$78:$M85),Tamaño!$AQ10)) -> 3862 | N86: =IF(N85="","",IF(C86="Total","",K86/Tamaño!$AQ$24)) -> 0.03663580481 | O86: =IF(C86="","",IF(C86="Total",SUM($O$78:$Q85),Tamaño!$AR10)) -> 37448 | R86: =IF(N85="","",IF(C86="Total","",O86/Tamaño!$AR$24)) -> 0.02169992815 | S86: =IF(C86="","",IF(C86="Total",SUM($S$78:$U85),Tamaño!$AS10)) -> 2324 | V86: =IF(OR(C85="",C85="Total"),"",IF(C86="Total","",S86/Tamaño!$AS$24)) -> 0.03486767089 | W86: =IF(C86="","",IF(C86="Total",SUM($W$78:$W85),Tamaño!$AT10)) -> 24583 | Z86: =IF(OR(C85="Total",C85=""),"",IF(C86="Total","",W86/Tamaño!$AT$24)) -> 0.02100220761
B87: 0 | C87: =IF(OR(C86="Total",C86=""),"",IF(Tamaño!$AQ11=0,"Total",Tamaño!$AP11)) -> Transporte y almacenamiento | K87: =IF(C87="","",IF(C87="Total",SUM($K$78:$M86),Tamaño!$AQ11)) -> 3637 | N87: =IF(N86="","",IF(C87="Total","",K87/Tamaño!$AQ$24)) -> 0.03450140396 | O87: =IF(C87="","",IF(C87="Total",SUM($O$78:$Q86),Tamaño!$AR11)) -> 126006 | R87: =IF(N86="","",IF(C87="Total","",O87/Tamaño!$AR$24)) -> 0.07301648008 | S87: =IF(C87="","",IF(C87="Total",SUM($S$78:$U86),Tamaño!$AS11)) -> 1861 | V87: =IF(OR(C86="",C86="Total"),"",IF(C87="Total","",S87/Tamaño!$AS$24)) -> 0.02792114265 | W87: =IF(C87="","",IF(C87="Total",SUM($W$78:$W86),Tamaño!$AT11)) -> 62624 | Z87: =IF(OR(C86="Total",C86=""),"",IF(C87="Total","",W87/Tamaño!$AT$24)) -> 0.05350210509
B88: 0 | C88: =IF(OR(C87="Total",C87=""),"",IF(Tamaño!$AQ12=0,"Total",Tamaño!$AP12)) -> Actividades de los hogares individuales | K88: =IF(C88="","",IF(C88="Total",SUM($K$78:$M87),Tamaño!$AQ12)) -> 3122 | N88: =IF(N87="","",IF(C88="Total","",K88/Tamaño!$AQ$24)) -> 0.02961599757 | O88: =IF(C88="","",IF(C88="Total",SUM($O$78:$Q87),Tamaño!$AR12)) -> 6203 | R88: =IF(N87="","",IF(C88="Total","",O88/Tamaño!$AR$24)) -> 0.00359444174 | S88: =IF(C88="","",IF(C88="Total",SUM($S$78:$U87),Tamaño!$AS12)) -> 2295 | V88: =IF(OR(C87="",C87="Total"),"",IF(C88="Total","",S88/Tamaño!$AS$24)) -> 0.03443257517 | W88: =IF(C88="","",IF(C88="Total",SUM($W$78:$W87),Tamaño!$AT12)) -> 4811 | Z88: =IF(OR(C87="Total",C87=""),"",IF(C88="Total","",W88/Tamaño!$AT$24)) -> 0.004110223358
B89: 0 | C89: =IF(OR(C88="Total",C88=""),"",IF(Tamaño!$AQ13=0,"Total",Tamaño!$AP13)) -> Actividades inmobiliarias | K89: =IF(C89="","",IF(C89="Total",SUM($K$78:$M88),Tamaño!$AQ13)) -> 2894 | N89: =IF(N88="","",IF(C89="Total","",K89/Tamaño!$AQ$24)) -> 0.02745313804 | O89: =IF(C89="","",IF(C89="Total",SUM($O$78:$Q88),Tamaño!$AR13)) -> 16092 | R89: =IF(N88="","",IF(C89="Total","",O89/Tamaño!$AR$24)) -> 0.00932480356 | S89: =IF(C89="","",IF(C89="Total",SUM($S$78:$U88),Tamaño!$AS13)) -> 2106 | V89: =IF(OR(C88="",C88="Total"),"",IF(C89="Total","",S89/Tamaño!$AS$24)) -> 0.03159695133 | W89: =IF(C89="","",IF(C89="Total",SUM($W$78:$W88),Tamaño!$AT13)) -> 12603 | Z89: =IF(OR(C88="Total",C88=""),"",IF(C89="Total","",W89/Tamaño!$AT$24)) -> 0.0107672303
B90: 0 | C90: =IF(OR(C89="Total",C89=""),"",IF(Tamaño!$AQ14=0,"Total",Tamaño!$AP14)) -> Información y comunicaciones | K90: =IF(C90="","",IF(C90="Total",SUM($K$78:$M89),Tamaño!$AQ14)) -> 2873 | N90: =IF(N89="","",IF(C90="Total","",K90/Tamaño!$AQ$24)) -> 0.0272539273 | O90: =IF(C90="","",IF(C90="Total",SUM($O$78:$Q89),Tamaño!$AR14)) -> 31616 | R90: =IF(N89="","",IF(C90="Total","",O90/Tamaño!$AR$24)) -> 0.01832046914 | S90: =IF(C90="","",IF(C90="Total",SUM($S$78:$U89),Tamaño!$AS14)) -> 1942 | V90: =IF(OR(C89="",C89="Total"),"",IF(C90="Total","",S90/Tamaño!$AS$24)) -> 0.02913641001 | W90: =IF(C90="","",IF(C90="Total",SUM($W$78:$W89),Tamaño!$AT14)) -> 24050 | Z90: =IF(OR(C89="Total",C89=""),"",IF(C90="Total","",W90/Tamaño!$AT$24)) -> 0.0205468451
B91: 0 | C91: =IF(OR(C90="Total",C90=""),"",IF(Tamaño!$AQ15=0,"Total",Tamaño!$AP15)) -> Act. de atención de la salud humana | K91: =IF(C91="","",IF(C91="Total",SUM($K$78:$M90),Tamaño!$AQ15)) -> 2572 | N91: =IF(N90="","",IF(C91="Total","",K91/Tamaño!$AQ$24)) -> 0.02439857327 | O91: =IF(C91="","",IF(C91="Total",SUM($O$78:$Q90),Tamaño!$AR15)) -> 51741 | R91: =IF(N90="","",IF(C91="Total","",O91/Tamaño!$AR$24)) -> 0.02998226827 | S91: =IF(C91="","",IF(C91="Total",SUM($S$78:$U90),Tamaño!$AS15)) -> 1884 | V91: =IF(OR(C90="",C90="Total"),"",IF(C91="Total","",S91/Tamaño!$AS$24)) -> 0.02826621857 | W91: =IF(C91="","",IF(C91="Total",SUM($W$78:$W90),Tamaño!$AT15)) -> 44199 | Z91: =IF(OR(C90="Total",C90=""),"",IF(C91="Total","",W91/Tamaño!$AT$24)) -> 0.03776091503
B92: 0 | C92: =IF(OR(C91="Total",C91=""),"",IF(Tamaño!$AQ16=0,"Total",Tamaño!$AP16)) -> Actividades financieras y de seguros | K92: =IF(C92="","",IF(C92="Total",SUM($K$78:$M91),Tamaño!$AQ16)) -> 1253 | N92: =IF(N91="","",IF(C92="Total","",K92/Tamaño!$AQ$24)) -> 0.01188624118 | O92: =IF(C92="","",IF(C92="Total",SUM($O$78:$Q91),Tamaño!$AR16)) -> 39803 | R92: =IF(N91="","",IF(C92="Total","",O92/Tamaño!$AR$24)) -> 0.02306457595 | S92: =IF(C92="","",IF(C92="Total",SUM($S$78:$U91),Tamaño!$AS16)) -> 945 | V92: =IF(OR(C91="",C91="Total"),"",IF(C92="Total","",S92/Tamaño!$AS$24)) -> 0.01417811919 | W92: =IF(C92="","",IF(C92="Total",SUM($W$78:$W91),Tamaño!$AT16)) -> 33708 | Z92: =IF(OR(C91="Total",C91=""),"",IF(C92="Total","",W92/Tamaño!$AT$24)) -> 0.02879804801
B93: 0 | C93: =IF(OR(C92="Total",C92=""),"",IF(Tamaño!$AQ17=0,"Total",Tamaño!$AP17)) -> Educación | K93: =IF(C93="","",IF(C93="Total",SUM($K$78:$M92),Tamaño!$AQ17)) -> 1122 | N93: =IF(N92="","",IF(C93="Total","",K93/Tamaño!$AQ$24)) -> 0.01064354557 | O93: =IF(C93="","",IF(C93="Total",SUM($O$78:$Q92),Tamaño!$AR17)) -> 46561 | R93: =IF(N92="","",IF(C93="Total","",O93/Tamaño!$AR$24)) -> 0.02698062258 | S93: =IF(C93="","",IF(C93="Total",SUM($S$78:$U92),Tamaño!$AS17)) -> 721 | V93: =IF(OR(C92="",C92="Total"),"",IF(C93="Total","",S93/Tamaño!$AS$24)) -> 0.01081737982 | W93: =IF(C93="","",IF(C93="Total",SUM($W$78:$W92),Tamaño!$AT17)) -> 37218 | Z93: =IF(OR(C92="Total",C92=""),"",IF(C93="Total","",W93/Tamaño!$AT$24)) -> 0.03179677675
B94: 0 | C94: =IF(OR(C93="Total",C93=""),"",IF(Tamaño!$AQ18=0,"Total",Tamaño!$AP18)) -> Act artísticas y de entretenimiento | K94: =IF(C94="","",IF(C94="Total",SUM($K$78:$M93),Tamaño!$AQ18)) -> 950 | N94: =IF(N93="","",IF(C94="Total","",K94/Tamaño!$AQ$24)) -> 0.0090119147 | O94: =IF(C94="","",IF(C94="Total",SUM($O$78:$Q93),Tamaño!$AR18)) -> 15310 | R94: =IF(N93="","",IF(C94="Total","",O94/Tamaño!$AR$24)) -> 0.008871659365 | S94: =IF(C94="","",IF(C94="Total",SUM($S$78:$U93),Tamaño!$AS18)) -> 668 | V94: =IF(OR(C93="",C93="Total"),"",IF(C94="Total","",S94/Tamaño!$AS$24)) -> 0.01002220489 | W94: =IF(C94="","",IF(C94="Total",SUM($W$78:$W93),Tamaño!$AT18)) -> 12419 | Z94: =IF(OR(C93="Total",C93=""),"",IF(C94="Total","",W94/Tamaño!$AT$24)) -> 0.01061003199
B95: 0 | C95: =IF(OR(C94="Total",C94=""),"",IF(Tamaño!$AQ19=0,"Total",Tamaño!$AP19)) -> Distribución de agua; gestión de desechos | K95: =IF(C95="","",IF(C95="Total",SUM($K$78:$M94),Tamaño!$AQ19)) -> 381 | N95: =IF(N94="","",IF(C95="Total","",K95/Tamaño!$AQ$24)) -> 0.003614252106 | O95: =IF(C95="","",IF(C95="Total",SUM($O$78:$Q94),Tamaño!$AR19)) -> 15142 | R95: =IF(N94="","",IF(C95="Total","",O95/Tamaño!$AR$24)) -> 0.008774308694 | S95: =IF(C95="","",IF(C95="Total",SUM($S$78:$U94),Tamaño!$AS19)) -> 141 | V95: =IF(OR(C94="",C94="Total"),"",IF(C95="Total","",S95/Tamaño!$AS$24)) -> 0.002115465402 | W95: =IF(C95="","",IF(C95="Total",SUM($W$78:$W94),Tamaño!$AT19)) -> 8456 | Z95: =IF(OR(C94="Total",C94=""),"",IF(C95="Total","",W95/Tamaño!$AT$24)) -> 0.007224287823
B96: 0 | C96: =IF(OR(C95="Total",C95=""),"",IF(Tamaño!$AQ20=0,"Total",Tamaño!$AP20)) -> Explotación de minas y canteras | K96: =IF(C96="","",IF(C96="Total",SUM($K$78:$M95),Tamaño!$AQ20)) -> 356 | N96: =IF(N95="","",IF(C96="Total","",K96/Tamaño!$AQ$24)) -> 0.003377096456 | O96: =IF(C96="","",IF(C96="Total",SUM($O$78:$Q95),Tamaño!$AR20)) -> 14604 | R96: =IF(N95="","",IF(C96="Total","",O96/Tamaño!$AR$24)) -> 0.00846255476 | S96: =IF(C96="","",IF(C96="Total",SUM($S$78:$U95),Tamaño!$AS20)) -> 112 | V96: =IF(OR(C95="",C95="Total"),"",IF(C96="Total","",S96/Tamaño!$AS$24)) -> 0.001680369681 | W96: =IF(C96="","",IF(C96="Total",SUM($W$78:$W95),Tamaño!$AT20)) -> 8518 | Z96: =IF(OR(C95="Total",C95=""),"",IF(C96="Total","",W96/Tamaño!$AT$24)) -> 0.007277256821
B97: 0 | C97: =IF(OR(C96="Total",C96=""),"",IF(Tamaño!$AQ21=0,"Total",Tamaño!$AP21)) -> Suministro de electricidad, gas y vapor | K97: =IF(C97="","",IF(C97="Total",SUM($K$78:$M96),Tamaño!$AQ21)) -> 107 | N97: =IF(N96="","",IF(C97="Total","",K97/Tamaño!$AQ$24)) -> 0.001015026182 | O97: =IF(C97="","",IF(C97="Total",SUM($O$78:$Q96),Tamaño!$AR21)) -> 1167 | R97: =IF(N96="","",IF(C97="Total","",O97/Tamaño!$AR$24)) -> 0.0006762394827 | S97: =IF(C97="","",IF(C97="Total",SUM($S$78:$U96),Tamaño!$AS21)) -> 71 | V97: =IF(OR(C96="",C96="Total"),"",IF(C97="Total","",S97/Tamaño!$AS$24)) -> 0.001065234352 | W97: =IF(C97="","",IF(C97="Total",SUM($W$78:$W96),Tamaño!$AT21)) -> 871 | Z97: =IF(OR(C96="Total",C96=""),"",IF(C97="Total","",W97/Tamaño!$AT$24)) -> 0.0007441289846
B98: 0 | C98: =IF(OR(C97="Total",C97=""),"",IF(Tamaño!$AQ22=0,"Total",Tamaño!$AP22)) -> Organizaciones y entidades extraterritoriales | K98: =IF(C98="","",IF(C98="Total",SUM($K$78:$M97),Tamaño!$AQ22)) -> 72 | N98: =IF(N97="","",IF(C98="Total","",K98/Tamaño!$AQ$24)) -> 0.000683008272 | O98: =IF(C98="","",IF(C98="Total",SUM($O$78:$Q97),Tamaño!$AR22)) -> 5027 | R98: =IF(N97="","",IF(C98="Total","",O98/Tamaño!$AR$24)) -> 0.002912987043 | S98: =IF(C98="","",IF(C98="Total",SUM($S$78:$U97),Tamaño!$AS22)) -> 49 | V98: =IF(OR(C97="",C97="Total"),"",IF(C98="Total","",S98/Tamaño!$AS$24)) -> 0.0007351617356 | W98: =IF(C98="","",IF(C98="Total",SUM($W$78:$W97),Tamaño!$AT22)) -> 4427 | Z98: =IF(OR(C97="Total",C97=""),"",IF(C98="Total","",W98/Tamaño!$AT$24)) -> 0.003782157308
B99: 1 | C99: =IF(OR(C98="Total",C98=""),"",IF(Tamaño!$AQ23=0,"Total",Tamaño!$AP23)) -> Total | K99: =IF(C99="","",IF(C99="Total",SUM($K$78:$M98),Tamaño!$AQ23)) -> 105416 | N99: =IF(N98="","",IF(C99="Total","",K99/Tamaño!$AQ$24)) ->  | O99: =IF(C99="","",IF(C99="Total",SUM($O$78:$Q98),Tamaño!$AR23)) -> 1725720 | R99: =IF(N98="","",IF(C99="Total","",O99/Tamaño!$AR$24)) ->  | S99: =IF(C99="","",IF(C99="Total",SUM($S$78:$U98),Tamaño!$AS23)) -> 66652 | V99: =IF(OR(C98="",C98="Total"),"",IF(C99="Total","",S99/Tamaño!$AS$24)) ->  | W99: =IF(C99="","",IF(C99="Total",SUM($W$78:$W98),Tamaño!$AT23)) -> 1170496 | Z99: =IF(OR(C98="Total",C98=""),"",IF(C99="Total","",W99/Tamaño!$AT$24)) -> 
C100: =IF(OR(C99="",C99="Total"),"","Total") ->  | K100: =IF(C100="","",IF(C100="","",SUM(K78:M99))) ->  | O100: =IF(C100="","",SUM(O78:Q99)) ->  | S100: =IF(C100="","",IF(C100="Total",SUM($S$78:$U99),Tamaño!$AS24)) ->  | W100: =IF(C100="","",IF(C100="Total",SUM($W$78:$W99),Tamaño!$AT24)) ->  | Z100: =IF(OR(C99="Total",C99=""),"",IF(C100="Total","",W100/Tamaño!$AT$24)) -> 
C101: *Ubicación basada en la ubicación de los aportantes
L105: =J3 -> Informe Mensual de las cotizaciones
L107: =J5 -> Fecha de corte: 17 de May de 2022 | AB107: Pg. 3
L109: Departamento | Q109: =Q7 -> ANTIOQUIA
L110: Municipio | Q110: =Q8 -> MEDELLÍN
D112: Resumen por actividades económicas de los independientes
F114: Actividades económicas | N114: =PROPER(Q55) -> Antioquia | R114: % | T114: =PROPER(Q8) -> Medellín | X114: %
F116: =IF(Tamaño!$BT2="",Total,Tamaño!$BT2) -> Act. profecionales cientificas y tecnicas | N116: =Tamaño!BU2 -> 58434 | R116: =N116/Tamaño!$BU$25 -> 0.1824813643 | T116: =Tamaño!BV2 -> 38813 | X116: =T116/Tamaño!$BV$25 -> 0.1989390056
F117: =IF(F116="Total","",IF(Tamaño!$BU3=0,"Total",Tamaño!$BT3)) -> Actividades de servicios administrativos | N117: =IF(F117="","",IF(F117="Total",N116,Tamaño!$BU3)) -> 47654 | R117: =IF(F117="Total","",N117/Tamaño!$BU$25) -> 0.1488169034 | T117: =IF(F117="","",IF(F117="Total",SUM($T$116:$T116),Tamaño!$BV3)) -> 28083 | X117: =IF(F117="Total","",T117/Tamaño!$BV$25) -> 0.1439415684
F118: =IF(F117="Total","",IF(Tamaño!$BU4=0,"Total",Tamaño!$BT4)) -> Otras actividades de servicios | N118: =IF(F118="","",IF(F118="Total",SUM($N$116:$N117),Tamaño!$BU4)) -> 45975 | R118: =IF(R117="","",IF(F118="Total","",N118/Tamaño!$BU$25)) -> 0.1435736168 | T118: =IF(F118="","",IF(F118="Total",SUM($T$116:$T117),Tamaño!$BV4)) -> 29760 | X118: =IF(X117="","",IF(F118="Total","",T118/Tamaño!$BV$25)) -> 0.1525371604
F119: =IF(OR(F118="Total",F118=""),"",IF(Tamaño!$BU5=0,"Total",Tamaño!$BT5)) -> Comercio y reparacion de vehiculos | N119: =IF(F119="","",IF(F119="Total",SUM($N$116:$N118),Tamaño!$BU5)) -> 33517 | R119: =IF(R118="","",IF(F119="Total","",N119/Tamaño!$BU$25)) -> 0.1046689922 | T119: =IF(F119="","",IF(F119="Total",SUM($T$116:$T118),Tamaño!$BV5)) -> 19077 | X119: =IF(X118="","",IF(F119="Total","",T119/Tamaño!$BV$25)) -> 0.09778062532
F120: =IF(OR(F119="Total",F119=""),"",IF(Tamaño!$BU6=0,"Total",Tamaño!$BT6)) -> Educación | N120: =IF(F120="","",IF(F120="Total",SUM($N$116:$N119),Tamaño!$BU6)) -> 17715 | R120: =IF(R119="","",IF(F120="Total","",N120/Tamaño!$BU$25)) -> 0.05532151434 | T120: =IF(F120="","",IF(F120="Total",SUM($T$116:$T119),Tamaño!$BV6)) -> 10106 | X120: =IF(X119="","",IF(F120="Total","",T120/Tamaño!$BV$25)) -> 0.0517990774
F121: =IF(OR(F120="Total",F120=""),"",IF(Tamaño!$BU7=0,"Total",Tamaño!$BT7)) -> Act. de atención de la salud humana | N121: =IF(F121="","",IF(F121="Total",SUM($N$116:$N120),Tamaño!$BU7)) -> 17615 | R121: =IF(R120="","",IF(F121="Total","",N121/Tamaño!$BU$25)) -> 0.05500922806 | T121: =IF(F121="","",IF(F121="Total",SUM($T$116:$T120),Tamaño!$BV7)) -> 11700 | X121: =IF(X120="","",IF(F121="Total","",T121/Tamaño!$BV$25)) -> 0.05996924654
F122: =IF(OR(F121="Total",F121=""),"",IF(Tamaño!$BU8=0,"Total",Tamaño!$BT8)) -> Transporte y almacenamiento | N122: =IF(F122="","",IF(F122="Total",SUM($N$116:$N121),Tamaño!$BU8)) -> 14904 | R122: =IF(R121="","",IF(F122="Total","",N122/Tamaño!$BU$25)) -> 0.04654314703 | T122: =IF(F122="","",IF(F122="Total",SUM($T$116:$T121),Tamaño!$BV8)) -> 9173 | X122: =IF(X121="","",IF(F122="Total","",T122/Tamaño!$BV$25)) -> 0.0470169144
F123: =IF(OR(F122="Total",F122=""),"",IF(Tamaño!$BU9=0,"Total",Tamaño!$BT9)) -> Admin. pública y defensa; planes seg. social | N123: =IF(F123="","",IF(F123="Total",SUM($N$116:$N122),Tamaño!$BU9)) -> 14590 | R123: =IF(R122="","",IF(F123="Total","",N123/Tamaño!$BU$25)) -> 0.04556256812 | T123: =IF(F123="","",IF(F123="Total",SUM($T$116:$T122),Tamaño!$BV9)) -> 7602 | X123: =IF(X122="","",IF(F123="Total","",T123/Tamaño!$BV$25)) -> 0.03896463352
F124: =IF(OR(F123="Total",F123=""),"",IF(Tamaño!$BU10=0,"Total",Tamaño!$BT10)) -> Industrias manufactureras | N124: =IF(F124="","",IF(F124="Total",SUM($N$116:$N123),Tamaño!$BU10)) -> 12487 | R124: =IF(R123="","",IF(F124="Total","",N124/Tamaño!$BU$25)) -> 0.03899518767 | T124: =IF(F124="","",IF(F124="Total",SUM($T$116:$T123),Tamaño!$BV10)) -> 7719 | X124: =IF(X123="","",IF(F124="Total","",T124/Tamaño!$BV$25)) -> 0.03956432599
F125: =IF(OR(F124="Total",F124=""),"",IF(Tamaño!$BU11=0,"Total",Tamaño!$BT11)) -> Agricultura, ganadería, caza | N125: =IF(F125="","",IF(F125="Total",SUM($N$116:$N124),Tamaño!$BU11)) -> 10683 | R125: =IF(R124="","",IF(F125="Total","",N125/Tamaño!$BU$25)) -> 0.03336154319 | T125: =IF(F125="","",IF(F125="Total",SUM($T$116:$T124),Tamaño!$BV11)) -> 3549 | X125: =IF(X124="","",IF(F125="Total","",T125/Tamaño!$BV$25)) -> 0.01819067145
F126: =IF(OR(F125="Total",F125=""),"",IF(Tamaño!$BU12=0,"Total",Tamaño!$BT12)) -> Construcción | N126: =IF(F126="","",IF(F126="Total",SUM($N$116:$N125),Tamaño!$BU12)) -> 8398 | R126: =IF(R125="","",IF(F126="Total","",N126/Tamaño!$BU$25)) -> 0.02622580172 | T126: =IF(F126="","",IF(F126="Total",SUM($T$116:$T125),Tamaño!$BV12)) -> 5027 | X126: =IF(X125="","",IF(F126="Total","",T126/Tamaño!$BV$25)) -> 0.02576627371
F127: =IF(OR(F126="Total",F126=""),"",IF(Tamaño!$BU13=0,"Total",Tamaño!$BT13)) -> Actividades inmobiliarias | N127: =IF(F127="","",IF(F127="Total",SUM($N$116:$N126),Tamaño!$BU13)) -> 7946 | R127: =IF(R126="","",IF(F127="Total","",N127/Tamaño!$BU$25)) -> 0.02481426774 | T127: =IF(F127="","",IF(F127="Total",SUM($T$116:$T126),Tamaño!$BV13)) -> 5585 | X127: =IF(X126="","",IF(F127="Total","",T127/Tamaño!$BV$25)) -> 0.02862634546
F128: =IF(OR(F127="Total",F127=""),"",IF(Tamaño!$BU14=0,"Total",Tamaño!$BT14)) -> Act artísticas y de entretenimiento | N128: =IF(F128="","",IF(F128="Total",SUM($N$116:$N127),Tamaño!$BU14)) -> 7438 | R128: =IF(R127="","",IF(F128="Total","",N128/Tamaño!$BU$25)) -> 0.02322785344 | T128: =IF(F128="","",IF(F128="Total",SUM($T$116:$T127),Tamaño!$BV14)) -> 4434 | X128: =IF(X127="","",IF(F128="Total","",T128/Tamaño!$BV$25)) -> 0.02272680677
F129: =IF(OR(F128="Total",F128=""),"",IF(Tamaño!$BU15=0,"Total",Tamaño!$BT15)) -> Información y comunicaciones | N129: =IF(F129="","",IF(F129="Total",SUM($N$116:$N128),Tamaño!$BU15)) -> 6941 | R129: =IF(R128="","",IF(F129="Total","",N129/Tamaño!$BU$25)) -> 0.02167579063 | T129: =IF(F129="","",IF(F129="Total",SUM($T$116:$T128),Tamaño!$BV15)) -> 4425 | X129: =IF(X128="","",IF(F129="Total","",T129/Tamaño!$BV$25)) -> 0.02268067658
F130: =IF(OR(F129="Total",F129=""),"",IF(Tamaño!$BU16=0,"Total",Tamaño!$BT16)) -> Alojamiento y servicios de comida | N130: =IF(F130="","",IF(F130="Total",SUM($N$116:$N129),Tamaño!$BU16)) -> 6667 | R130: =IF(R129="","",IF(F130="Total","",N130/Tamaño!$BU$25)) -> 0.02082012623 | T130: =IF(F130="","",IF(F130="Total",SUM($T$116:$T129),Tamaño!$BV16)) -> 3681 | X130: =IF(X129="","",IF(F130="Total","",T130/Tamaño!$BV$25)) -> 0.01886724757
F131: =IF(OR(F130="Total",F130=""),"",IF(Tamaño!$BU17=0,"Total",Tamaño!$BT17)) -> Otras | N131: =IF(F131="","",IF(F131="Total",SUM($N$116:$N130),Tamaño!$BU17)) -> 3263 | R131: =IF(R130="","",IF(F131="Total","",N131/Tamaño!$BU$25)) -> 0.01018990129 | T131: =IF(F131="","",IF(F131="Total",SUM($T$116:$T130),Tamaño!$BV17)) -> 2376 | X131: =IF(X130="","",IF(F131="Total","",T131/Tamaño!$BV$25)) -> 0.01217837007
F132: =IF(OR(F131="Total",F131=""),"",IF(Tamaño!$BU18=0,"Total",Tamaño!$BT18)) -> Actividades financieras y de seguros | N132: =IF(F132="","",IF(F132="Total",SUM($N$116:$N131),Tamaño!$BU18)) -> 2758 | R132: =IF(R131="","",IF(F132="Total","",N132/Tamaño!$BU$25)) -> 0.008612855577 | T132: =IF(F132="","",IF(F132="Total",SUM($T$116:$T131),Tamaño!$BV18)) -> 2047 | X132: =IF(X131="","",IF(F132="Total","",T132/Tamaño!$BV$25)) -> 0.01049205536
F133: =IF(OR(F132="Total",F132=""),"",IF(Tamaño!$BU19=0,"Total",Tamaño!$BT19)) -> Actividades de los hogares individuales | N133: =IF(F133="","",IF(F133="Total",SUM($N$116:$N132),Tamaño!$BU19)) -> 1346 | R133: =IF(R132="","",IF(F133="Total","",N133/Tamaño!$BU$25)) -> 0.004203373316 | T133: =IF(F133="","",IF(F133="Total",SUM($T$116:$T132),Tamaño!$BV19)) -> 951 | X133: =IF(X132="","",IF(F133="Total","",T133/Tamaño!$BV$25)) -> 0.004874423373
F134: =IF(OR(F133="Total",F133=""),"",IF(Tamaño!$BU20=0,"Total",Tamaño!$BT20)) -> Explotación de minas y canteras | N134: =IF(F134="","",IF(F134="Total",SUM($N$116:$N133),Tamaño!$BU20)) -> 1292 | R134: =IF(R133="","",IF(F134="Total","",N134/Tamaño!$BU$25)) -> 0.004034738726 | T134: =IF(F134="","",IF(F134="Total",SUM($T$116:$T133),Tamaño!$BV20)) -> 716 | X134: =IF(X133="","",IF(F134="Total","",T134/Tamaño!$BV$25)) -> 0.003669912865
F135: =IF(OR(F134="Total",F134=""),"",IF(Tamaño!$BU21=0,"Total",Tamaño!$BT21)) -> Distribución de agua; gestión de desechos | N135: =IF(F135="","",IF(F135="Total",SUM($N$116:$N134),Tamaño!$BU21)) -> 472 | R135: =IF(R134="","",IF(F135="Total","",N135/Tamaño!$BU$25)) -> 0.001473991237 | T135: =IF(F135="","",IF(F135="Total",SUM($T$116:$T134),Tamaño!$BV21)) -> 195 | X135: =IF(X134="","",IF(F135="Total","",T135/Tamaño!$BV$25)) -> 0.0009994874423
F136: =IF(OR(F135="Total",F135=""),"",IF(Tamaño!$BU22=0,"Total",Tamaño!$BT22)) -> Suministro de electricidad, gas y vapor | N136: =IF(F136="","",IF(F136="Total",SUM($N$116:$N135),Tamaño!$BU22)) -> 85 | R136: =IF(R135="","",IF(F136="Total","",N136/Tamaño!$BU$25)) -> 0.0002654433372 | T136: =IF(F136="","",IF(F136="Total",SUM($T$116:$T135),Tamaño!$BV22)) -> 58 | X136: =IF(X135="","",IF(F136="Total","",T136/Tamaño!$BV$25)) -> 0.0002972834444
F137: =IF(OR(F136="Total",F136=""),"",IF(Tamaño!$BU23=0,"Total",Tamaño!$BT23)) -> Organizaciones y entidades extraterritoriales | N137: =IF(F137="","",IF(F137="Total",SUM($N$116:$N136),Tamaño!$BU23)) -> 39 | R137: =IF(R136="","",IF(F137="Total","",N137/Tamaño!$BU$25)) -> 0.0001217916488 | T137: =IF(F137="","",IF(F137="Total",SUM($T$116:$T136),Tamaño!$BV23)) -> 23 | X137: =IF(X136="","",IF(F137="Total","",T137/Tamaño!$BV$25)) -> 0.0001178882624
F138: =IF(OR(F137="Total",F137=""),"",IF(Tamaño!$BU24=0,"Total",Tamaño!$BT24)) -> Total | N138: =IF(F138="","",IF(F138="Total",SUM($N$116:$N137),Tamaño!$BU24)) -> 320219 | R138: =IF(R137="","",IF(F138="Total","",N138/Tamaño!$BU$25)) ->  | T138: =IF(F138="","",IF(F138="Total",SUM($T$116:$T137),Tamaño!$BV24)) -> 195100 | X138: =IF(X137="","",IF(F138="Total","",T138/Tamaño!$BV$25)) -> 
C139: *Ubicación basada en la ubicación de los cotizantes
D140: ="Resumen por edad y sexo para "&PROPER(Q7) -> Resumen por edad y sexo para Antioquia
F142: =PROPER(Q7) -> Antioquia | X142: Piramided dependientes privados
B143: Edad | F143: Dependiente Privados | O143: Independientes
F144: Hombres | I144: Mujeres | L144: No Identificado | O144: Hombres | R144: Mujeres | U144: No Identificado
B145: 15-20 | F145: =SUMIFS('Edad y sexo'!$F$2:$F$5000,'Edad y sexo'!$B$2:$B$5000,Visor!$Q$7,'Edad y sexo'!$C$2:$C$5000,"M",'Edad y sexo'!$D$2:$D$5000,Visor!$B145,'Edad y sexo'!$E$2:$E$5000,"Dep_sec_priv") -> 11747 | I145: =SUMIFS('Edad y sexo'!$F$2:$F$5000,'Edad y sexo'!$B$2:$B$5000,Visor!$Q$7,'Edad y sexo'!$C$2:$C$5000,"F",'Edad y sexo'!$D$2:$D$5000,Visor!$B145,'Edad y sexo'!$E$2:$E$5000,"Dep_sec_priv") -> 6011 | L145: =SUMIFS('Edad y sexo'!$F$2:$F$5000,'Edad y sexo'!$B$2:$B$5000,Visor!$Q$7,'Edad y sexo'!$C$2:$C$5000,"NI",'Edad y sexo'!$D$2:$D$5000,Visor!$B145,'Edad y sexo'!$E$2:$E$5000,"Dep_sec_priv") -> 0 | O145: =SUMIFS('Edad y sexo'!$F$2:$F$5000,'Edad y sexo'!$B$2:$B$5000,Visor!$Q$7,'Edad y sexo'!$C$2:$C$5000,"M",'Edad y sexo'!$D$2:$D$5000,Visor!$B145,'Edad y sexo'!$E$2:$E$5000,"Independiente") -> 334 | R145: =SUMIFS('Edad y sexo'!$F$2:$F$5000,'Edad y sexo'!$B$2:$B$5000,Visor!$Q$7,'Edad y sexo'!$C$2:$C$5000,"F",'Edad y sexo'!$D$2:$D$5000,Visor!$B145,'Edad y sexo'!$E$2:$E$5000,"Independiente") -> 248 | U145: =SUMIFS('Edad y sexo'!$F$2:$F$5000,'Edad y sexo'!$B$2:$B$5000,Visor!$Q$7,'Edad y sexo'!$C$2:$C$5000,"NI",'Edad y sexo'!$D$2:$D$5000,Visor!$B145,'Edad y sexo'!$E$2:$E$5000,"Independiente") -> 0
B146: 20-25 | F146: =SUMIFS('Edad y sexo'!$F$2:$F$5000,'Edad y sexo'!$B$2:$B$5000,Visor!$Q$7,'Edad y sexo'!$C$2:$C$5000,"M",'Edad y sexo'!$D$2:$D$5000,Visor!$B146,'Edad y sexo'!$E$2:$E$5000,"Dep_sec_priv") -> 108673 | I146: =SUMIFS('Edad y sexo'!$F$2:$F$5000,'Edad y sexo'!$B$2:$B$5000,Visor!$Q$7,'Edad y sexo'!$C$2:$C$5000,"F",'Edad y sexo'!$D$2:$D$5000,Visor!$B146,'Edad y sexo'!$E$2:$E$5000,"Dep_sec_priv") -> 76455 | L146: =SUMIFS('Edad y sexo'!$F$2:$F$5000,'Edad y sexo'!$B$2:$B$5000,Visor!$Q$7,'Edad y sexo'!$C$2:$C$5000,"NI",'Edad y sexo'!$D$2:$D$5000,Visor!$B146,'Edad y sexo'!$E$2:$E$5000,"Dep_sec_priv") -> 0 | O146: =SUMIFS('Edad y sexo'!$F$2:$F$5000,'Edad y sexo'!$B$2:$B$5000,Visor!$Q$7,'Edad y sexo'!$C$2:$C$5000,"M",'Edad y sexo'!$D$2:$D$5000,Visor!$B146,'Edad y sexo'!$E$2:$E$5000,"Independiente") -> 5005 | R146: =SUMIFS('Edad y sexo'!$F$2:$F$5000,'Edad y sexo'!$B$2:$B$5000,Visor!$Q$7,'Edad y sexo'!$C$2:$C$5000,"F",'Edad y sexo'!$D$2:$D$5000,Visor!$B146,'Edad y sexo'!$E$2:$E$5000,"Independiente") -> 5148 | U146: =SUMIFS('Edad y sexo'!$F$2:$F$5000,'Edad y sexo'!$B$2:$B$5000,Visor!$Q$7,'Edad y sexo'!$C$2:$C$5000,"NI",'Edad y sexo'!$D$2:$D$5000,Visor!$B146,'Edad y sexo'!$E$2:$E$5000,"Independiente") -> 0
B147: 25-30 | F147: =SUMIFS('Edad y sexo'!$F$2:$F$5000,'Edad y sexo'!$B$2:$B$5000,Visor!$Q$7,'Edad y sexo'!$C$2:$C$5000,"M",'Edad y sexo'!$D$2:$D$5000,Visor!$B147,'Edad y sexo'!$E$2:$E$5000,"Dep_sec_priv") -> 159351 | I147: =SUMIFS('Edad y sexo'!$F$2:$F$5000,'Edad y sexo'!$B$2:$B$5000,Visor!$Q$7,'Edad y sexo'!$C$2:$C$5000,"F",'Edad y sexo'!$D$2:$D$5000,Visor!$B147,'Edad y sexo'!$E$2:$E$5000,"Dep_sec_priv") -> 125653 | L147: =SUMIFS('Edad y sexo'!$F$2:$F$5000,'Edad y sexo'!$B$2:$B$5000,Visor!$Q$7,'Edad y sexo'!$C$2:$C$5000,"NI",'Edad y sexo'!$D$2:$D$5000,Visor!$B147,'Edad y sexo'!$E$2:$E$5000,"Dep_sec_priv") -> 0 | O147: =SUMIFS('Edad y sexo'!$F$2:$F$5000,'Edad y sexo'!$B$2:$B$5000,Visor!$Q$7,'Edad y sexo'!$C$2:$C$5000,"M",'Edad y sexo'!$D$2:$D$5000,Visor!$B147,'Edad y sexo'!$E$2:$E$5000,"Independiente") -> 13711 | R147: =SUMIFS('Edad y sexo'!$F$2:$F$5000,'Edad y sexo'!$B$2:$B$5000,Visor!$Q$7,'Edad y sexo'!$C$2:$C$5000,"F",'Edad y sexo'!$D$2:$D$5000,Visor!$B147,'Edad y sexo'!$E$2:$E$5000,"Independiente") -> 14910 | U147: =SUMIFS('Edad y sexo'!$F$2:$F$5000,'Edad y sexo'!$B$2:$B$5000,Visor!$Q$7,'Edad y sexo'!$C$2:$C$5000,"NI",'Edad y sexo'!$D$2:$D$5000,Visor!$B147,'Edad y sexo'!$E$2:$E$5000,"Independiente") -> 0
B148: 30-35 | F148: =SUMIFS('Edad y sexo'!$F$2:$F$5000,'Edad y sexo'!$B$2:$B$5000,Visor!$Q$7,'Edad y sexo'!$C$2:$C$5000,"M",'Edad y sexo'!$D$2:$D$5000,Visor!$B148,'Edad y sexo'!$E$2:$E$5000,"Dep_sec_priv") -> 154326 | I148: =SUMIFS('Edad y sexo'!$F$2:$F$5000,'Edad y sexo'!$B$2:$B$5000,Visor!$Q$7,'Edad y sexo'!$C$2:$C$5000,"F",'Edad y sexo'!$D$2:$D$5000,Visor!$B148,'Edad y sexo'!$E$2:$E$5000,"Dep_sec_priv") -> 119824 | L148: =SUMIFS('Edad y sexo'!$F$2:$F$5000,'Edad y sexo'!$B$2:$B$5000,Visor!$Q$7,'Edad y sexo'!$C$2:$C$5000,"NI",'Edad y sexo'!$D$2:$D$5000,Visor!$B148,'Edad y sexo'!$E$2:$E$5000,"Dep_sec_priv") -> 0 | O148: =SUMIFS('Edad y sexo'!$F$2:$F$5000,'Edad y sexo'!$B$2:$B$5000,Visor!$Q$7,'Edad y sexo'!$C$2:$C$5000,"M",'Edad y sexo'!$D$2:$D$5000,Visor!$B148,'Edad y sexo'!$E$2:$E$5000,"Independiente") -> 17347 | R148: =SUMIFS('Edad y sexo'!$F$2:$F$5000,'Edad y sexo'!$B$2:$B$5000,Visor!$Q$7,'Edad y sexo'!$C$2:$C$5000,"F",'Edad y sexo'!$D$2:$D$5000,Visor!$B148,'Edad y sexo'!$E$2:$E$5000,"Independiente") -> 16917 | U148: =SUMIFS('Edad y sexo'!$F$2:$F$5000,'Edad y sexo'!$B$2:$B$5000,Visor!$Q$7,'Edad y sexo'!$C$2:$C$5000,"NI",'Edad y sexo'!$D$2:$D$5000,Visor!$B148,'Edad y sexo'!$E$2:$E$5000,"Independiente") -> 0
B149: 35-40 | F149: =SUMIFS('Edad y sexo'!$F$2:$F$5000,'Edad y sexo'!$B$2:$B$5000,Visor!$Q$7,'Edad y sexo'!$C$2:$C$5000,"M",'Edad y sexo'!$D$2:$D$5000,Visor!$B149,'Edad y sexo'!$E$2:$E$5000,"Dep_sec_priv") -> 128764 | I149: =SUMIFS('Edad y sexo'!$F$2:$F$5000,'Edad y sexo'!$B$2:$B$5000,Visor!$Q$7,'Edad y sexo'!$C$2:$C$5000,"F",'Edad y sexo'!$D$2:$D$5000,Visor!$B149,'Edad y sexo'!$E$2:$E$5000,"Dep_sec_priv") -> 101234 | L149: =SUMIFS('Edad y sexo'!$F$2:$F$5000,'Edad y sexo'!$B$2:$B$5000,Visor!$Q$7,'Edad y sexo'!$C$2:$C$5000,"NI",'Edad y sexo'!$D$2:$D$5000,Visor!$B149,'Edad y sexo'!$E$2:$E$5000,"Dep_sec_priv") -> 0 | O149: =SUMIFS('Edad y sexo'!$F$2:$F$5000,'Edad y sexo'!$B$2:$B$5000,Visor!$Q$7,'Edad y sexo'!$C$2:$C$5000,"M",'Edad y sexo'!$D$2:$D$5000,Visor!$B149,'Edad y sexo'!$E$2:$E$5000,"Independiente") -> 18229 | R149: =SUMIFS('Edad y sexo'!$F$2:$F$5000,'Edad y sexo'!$B$2:$B$5000,Visor!$Q$7,'Edad y sexo'!$C$2:$C$5000,"F",'Edad y sexo'!$D$2:$D$5000,Visor!$B149,'Edad y sexo'!$E$2:$E$5000,"Independiente") -> 16745 | U149: =SUMIFS('Edad y sexo'!$F$2:$F$5000,'Edad y sexo'!$B$2:$B$5000,Visor!$Q$7,'Edad y sexo'!$C$2:$C$5000,"NI",'Edad y sexo'!$D$2:$D$5000,Visor!$B149,'Edad y sexo'!$E$2:$E$5000,"Independiente") -> 0
B150: 40-45 | F150: =SUMIFS('Edad y sexo'!$F$2:$F$5000,'Edad y sexo'!$B$2:$B$5000,Visor!$Q$7,'Edad y sexo'!$C$2:$C$5000,"M",'Edad y sexo'!$D$2:$D$5000,Visor!$B150,'Edad y sexo'!$E$2:$E$5000,"Dep_sec_priv") -> 112218 | I150: =SUMIFS('Edad y sexo'!$F$2:$F$5000,'Edad y sexo'!$B$2:$B$5000,Visor!$Q$7,'Edad y sexo'!$C$2:$C$5000,"F",'Edad y sexo'!$D$2:$D$5000,Visor!$B150,'Edad y sexo'!$E$2:$E$5000,"Dep_sec_priv") -> 86206 | L150: =SUMIFS('Edad y sexo'!$F$2:$F$5000,'Edad y sexo'!$B$2:$B$5000,Visor!$Q$7,'Edad y sexo'!$C$2:$C$5000,"NI",'Edad y sexo'!$D$2:$D$5000,Visor!$B150,'Edad y sexo'!$E$2:$E$5000,"Dep_sec_priv") -> 0 | O150: =SUMIFS('Edad y sexo'!$F$2:$F$5000,'Edad y sexo'!$B$2:$B$5000,Visor!$Q$7,'Edad y sexo'!$C$2:$C$5000,"M",'Edad y sexo'!$D$2:$D$5000,Visor!$B150,'Edad y sexo'!$E$2:$E$5000,"Independiente") -> 19175 | R150: =SUMIFS('Edad y sexo'!$F$2:$F$5000,'Edad y sexo'!$B$2:$B$5000,Visor!$Q$7,'Edad y sexo'!$C$2:$C$5000,"F",'Edad y sexo'!$D$2:$D$5000,Visor!$B150,'Edad y sexo'!$E$2:$E$5000,"Independiente") -> 16538 | U150: =SUMIFS('Edad y sexo'!$F$2:$F$5000,'Edad y sexo'!$B$2:$B$5000,Visor!$Q$7,'Edad y sexo'!$C$2:$C$5000,"NI",'Edad y sexo'!$D$2:$D$5000,Visor!$B150,'Edad y sexo'!$E$2:$E$5000,"Independiente") -> 0
B151: 45-50 | F151: =SUMIFS('Edad y sexo'!$F$2:$F$5000,'Edad y sexo'!$B$2:$B$5000,Visor!$Q$7,'Edad y sexo'!$C$2:$C$5000,"M",'Edad y sexo'!$D$2:$D$5000,Visor!$B151,'Edad y sexo'!$E$2:$E$5000,"Dep_sec_priv") -> 83288 | I151: =SUMIFS('Edad y sexo'!$F$2:$F$5000,'Edad y sexo'!$B$2:$B$5000,Visor!$Q$7,'Edad y sexo'!$C$2:$C$5000,"F",'Edad y sexo'!$D$2:$D$5000,Visor!$B151,'Edad y sexo'!$E$2:$E$5000,"Dep_sec_priv") -> 60152 | L151: =SUMIFS('Edad y sexo'!$F$2:$F$5000,'Edad y sexo'!$B$2:$B$5000,Visor!$Q$7,'Edad y sexo'!$C$2:$C$5000,"NI",'Edad y sexo'!$D$2:$D$5000,Visor!$B151,'Edad y sexo'!$E$2:$E$5000,"Dep_sec_priv") -> 0 | O151: =SUMIFS('Edad y sexo'!$F$2:$F$5000,'Edad y sexo'!$B$2:$B$5000,Visor!$Q$7,'Edad y sexo'!$C$2:$C$5000,"M",'Edad y sexo'!$D$2:$D$5000,Visor!$B151,'Edad y sexo'!$E$2:$E$5000,"Independiente") -> 16284 | R151: =SUMIFS('Edad y sexo'!$F$2:$F$5000,'Edad y sexo'!$B$2:$B$5000,Visor!$Q$7,'Edad y sexo'!$C$2:$C$5000,"F",'Edad y sexo'!$D$2:$D$5000,Visor!$B151,'Edad y sexo'!$E$2:$E$5000,"Independiente") -> 13281 | U151: =SUMIFS('Edad y sexo'!$F$2:$F$5000,'Edad y sexo'!$B$2:$B$5000,Visor!$Q$7,'Edad y sexo'!$C$2:$C$5000,"NI",'Edad y sexo'!$D$2:$D$5000,Visor!$B151,'Edad y sexo'!$E$2:$E$5000,"Independiente") -> 0
B152: 50-55 | F152: =SUMIFS('Edad y sexo'!$F$2:$F$5000,'Edad y sexo'!$B$2:$B$5000,Visor!$Q$7,'Edad y sexo'!$C$2:$C$5000,"M",'Edad y sexo'!$D$2:$D$5000,Visor!$B152,'Edad y sexo'!$E$2:$E$5000,"Dep_sec_priv") -> 75559 | I152: =SUMIFS('Edad y sexo'!$F$2:$F$5000,'Edad y sexo'!$B$2:$B$5000,Visor!$Q$7,'Edad y sexo'!$C$2:$C$5000,"F",'Edad y sexo'!$D$2:$D$5000,Visor!$B152,'Edad y sexo'!$E$2:$E$5000,"Dep_sec_priv") -> 47634 | L152: =SUMIFS('Edad y sexo'!$F$2:$F$5000,'Edad y sexo'!$B$2:$B$5000,Visor!$Q$7,'Edad y sexo'!$C$2:$C$5000,"NI",'Edad y sexo'!$D$2:$D$5000,Visor!$B152,'Edad y sexo'!$E$2:$E$5000,"Dep_sec_priv") -> 0 | O152: =SUMIFS('Edad y sexo'!$F$2:$F$5000,'Edad y sexo'!$B$2:$B$5000,Visor!$Q$7,'Edad y sexo'!$C$2:$C$5000,"M",'Edad y sexo'!$D$2:$D$5000,Visor!$B152,'Edad y sexo'!$E$2:$E$5000,"Independiente") -> 17504 | R152: =SUMIFS('Edad y sexo'!$F$2:$F$5000,'Edad y sexo'!$B$2:$B$5000,Visor!$Q$7,'Edad y sexo'!$C$2:$C$5000,"F",'Edad y sexo'!$D$2:$D$5000,Visor!$B152,'Edad y sexo'!$E$2:$E$5000,"Independiente") -> 14033 | U152: =SUMIFS('Edad y sexo'!$F$2:$F$5000,'Edad y sexo'!$B$2:$B$5000,Visor!$Q$7,'Edad y sexo'!$C$2:$C$5000,"NI",'Edad y sexo'!$D$2:$D$5000,Visor!$B152,'Edad y sexo'!$E$2:$E$5000,"Independiente") -> 0
B153: 55-60 | F153: =SUMIFS('Edad y sexo'!$F$2:$F$5000,'Edad y sexo'!$B$2:$B$5000,Visor!$Q$7,'Edad y sexo'!$C$2:$C$5000,"M",'Edad y sexo'!$D$2:$D$5000,Visor!$B153,'Edad y sexo'!$E$2:$E$5000,"Dep_sec_priv") -> 65428 | I153: =SUMIFS('Edad y sexo'!$F$2:$F$5000,'Edad y sexo'!$B$2:$B$5000,Visor!$Q$7,'Edad y sexo'!$C$2:$C$5000,"F",'Edad y sexo'!$D$2:$D$5000,Visor!$B153,'Edad y sexo'!$E$2:$E$5000,"Dep_sec_priv") -> 31711 | L153: =SUMIFS('Edad y sexo'!$F$2:$F$5000,'Edad y sexo'!$B$2:$B$5000,Visor!$Q$7,'Edad y sexo'!$C$2:$C$5000,"NI",'Edad y sexo'!$D$2:$D$5000,Visor!$B153,'Edad y sexo'!$E$2:$E$5000,"Dep_sec_priv") -> 0 | O153: =SUMIFS('Edad y sexo'!$F$2:$F$5000,'Edad y sexo'!$B$2:$B$5000,Visor!$Q$7,'Edad y sexo'!$C$2:$C$5000,"M",'Edad y sexo'!$D$2:$D$5000,Visor!$B153,'Edad y sexo'!$E$2:$E$5000,"Independiente") -> 19450 | R153: =SUMIFS('Edad y sexo'!$F$2:$F$5000,'Edad y sexo'!$B$2:$B$5000,Visor!$Q$7,'Edad y sexo'!$C$2:$C$5000,"F",'Edad y sexo'!$D$2:$D$5000,Visor!$B153,'Edad y sexo'!$E$2:$E$5000,"Independiente") -> 15491 | U153: =SUMIFS('Edad y sexo'!$F$2:$F$5000,'Edad y sexo'!$B$2:$B$5000,Visor!$Q$7,'Edad y sexo'!$C$2:$C$5000,"NI",'Edad y sexo'!$D$2:$D$5000,Visor!$B153,'Edad y sexo'!$E$2:$E$5000,"Independiente") -> 0 | X153: Piramided independientes
B154: 60-65 | F154: =SUMIFS('Edad y sexo'!$F$2:$F$5000,'Edad y sexo'!$B$2:$B$5000,Visor!$Q$7,'Edad y sexo'!$C$2:$C$5000,"M",'Edad y sexo'!$D$2:$D$5000,Visor!$B154,'Edad y sexo'!$E$2:$E$5000,"Dep_sec_priv") -> 36692 | I154: =SUMIFS('Edad y sexo'!$F$2:$F$5000,'Edad y sexo'!$B$2:$B$5000,Visor!$Q$7,'Edad y sexo'!$C$2:$C$5000,"F",'Edad y sexo'!$D$2:$D$5000,Visor!$B154,'Edad y sexo'!$E$2:$E$5000,"Dep_sec_priv") -> 11696 | L154: =SUMIFS('Edad y sexo'!$F$2:$F$5000,'Edad y sexo'!$B$2:$B$5000,Visor!$Q$7,'Edad y sexo'!$C$2:$C$5000,"NI",'Edad y sexo'!$D$2:$D$5000,Visor!$B154,'Edad y sexo'!$E$2:$E$5000,"Dep_sec_priv") -> 0 | O154: =SUMIFS('Edad y sexo'!$F$2:$F$5000,'Edad y sexo'!$B$2:$B$5000,Visor!$Q$7,'Edad y sexo'!$C$2:$C$5000,"M",'Edad y sexo'!$D$2:$D$5000,Visor!$B154,'Edad y sexo'!$E$2:$E$5000,"Independiente") -> 16258 | R154: =SUMIFS('Edad y sexo'!$F$2:$F$5000,'Edad y sexo'!$B$2:$B$5000,Visor!$Q$7,'Edad y sexo'!$C$2:$C$5000,"F",'Edad y sexo'!$D$2:$D$5000,Visor!$B154,'Edad y sexo'!$E$2:$E$5000,"Independiente") -> 11983 | U154: =SUMIFS('Edad y sexo'!$F$2:$F$5000,'Edad y sexo'!$B$2:$B$5000,Visor!$Q$7,'Edad y sexo'!$C$2:$C$5000,"NI",'Edad y sexo'!$D$2:$D$5000,Visor!$B154,'Edad y sexo'!$E$2:$E$5000,"Independiente") -> 0
B155: 65-70 | F155: =SUMIFS('Edad y sexo'!$F$2:$F$5000,'Edad y sexo'!$B$2:$B$5000,Visor!$Q$7,'Edad y sexo'!$C$2:$C$5000,"M",'Edad y sexo'!$D$2:$D$5000,Visor!$B155,'Edad y sexo'!$E$2:$E$5000,"Dep_sec_priv") -> 10565 | I155: =SUMIFS('Edad y sexo'!$F$2:$F$5000,'Edad y sexo'!$B$2:$B$5000,Visor!$Q$7,'Edad y sexo'!$C$2:$C$5000,"F",'Edad y sexo'!$D$2:$D$5000,Visor!$B155,'Edad y sexo'!$E$2:$E$5000,"Dep_sec_priv") -> 4570 | L155: =SUMIFS('Edad y sexo'!$F$2:$F$5000,'Edad y sexo'!$B$2:$B$5000,Visor!$Q$7,'Edad y sexo'!$C$2:$C$5000,"NI",'Edad y sexo'!$D$2:$D$5000,Visor!$B155,'Edad y sexo'!$E$2:$E$5000,"Dep_sec_priv") -> 0 | O155: =SUMIFS('Edad y sexo'!$F$2:$F$5000,'Edad y sexo'!$B$2:$B$5000,Visor!$Q$7,'Edad y sexo'!$C$2:$C$5000,"M",'Edad y sexo'!$D$2:$D$5000,Visor!$B155,'Edad y sexo'!$E$2:$E$5000,"Independiente") -> 10071 | R155: =SUMIFS('Edad y sexo'!$F$2:$F$5000,'Edad y sexo'!$B$2:$B$5000,Visor!$Q$7,'Edad y sexo'!$C$2:$C$5000,"F",'Edad y sexo'!$D$2:$D$5000,Visor!$B155,'Edad y sexo'!$E$2:$E$5000,"Independiente") -> 9504 | U155: =SUMIFS('Edad y sexo'!$F$2:$F$5000,'Edad y sexo'!$B$2:$B$5000,Visor!$Q$7,'Edad y sexo'!$C$2:$C$5000,"NI",'Edad y sexo'!$D$2:$D$5000,Visor!$B155,'Edad y sexo'!$E$2:$E$5000,"Independiente") -> 0
B156: 70-75 | F156: =SUMIFS('Edad y sexo'!$F$2:$F$5000,'Edad y sexo'!$B$2:$B$5000,Visor!$Q$7,'Edad y sexo'!$C$2:$C$5000,"M",'Edad y sexo'!$D$2:$D$5000,Visor!$B156,'Edad y sexo'!$E$2:$E$5000,"Dep_sec_priv") -> 3347 | I156: =SUMIFS('Edad y sexo'!$F$2:$F$5000,'Edad y sexo'!$B$2:$B$5000,Visor!$Q$7,'Edad y sexo'!$C$2:$C$5000,"F",'Edad y sexo'!$D$2:$D$5000,Visor!$B156,'Edad y sexo'!$E$2:$E$5000,"Dep_sec_priv") -> 1715 | L156: =SUMIFS('Edad y sexo'!$F$2:$F$5000,'Edad y sexo'!$B$2:$B$5000,Visor!$Q$7,'Edad y sexo'!$C$2:$C$5000,"NI",'Edad y sexo'!$D$2:$D$5000,Visor!$B156,'Edad y sexo'!$E$2:$E$5000,"Dep_sec_priv") -> 0 | O156: =SUMIFS('Edad y sexo'!$F$2:$F$5000,'Edad y sexo'!$B$2:$B$5000,Visor!$Q$7,'Edad y sexo'!$C$2:$C$5000,"M",'Edad y sexo'!$D$2:$D$5000,Visor!$B156,'Edad y sexo'!$E$2:$E$5000,"Independiente") -> 6015 | R156: =SUMIFS('Edad y sexo'!$F$2:$F$5000,'Edad y sexo'!$B$2:$B$5000,Visor!$Q$7,'Edad y sexo'!$C$2:$C$5000,"F",'Edad y sexo'!$D$2:$D$5000,Visor!$B156,'Edad y sexo'!$E$2:$E$5000,"Independiente") -> 6662 | U156: =SUMIFS('Edad y sexo'!$F$2:$F$5000,'Edad y sexo'!$B$2:$B$5000,Visor!$Q$7,'Edad y sexo'!$C$2:$C$5000,"NI",'Edad y sexo'!$D$2:$D$5000,Visor!$B156,'Edad y sexo'!$E$2:$E$5000,"Independiente") -> 0
B157: 75-80 | F157: =SUMIFS('Edad y sexo'!$F$2:$F$5000,'Edad y sexo'!$B$2:$B$5000,Visor!$Q$7,'Edad y sexo'!$C$2:$C$5000,"M",'Edad y sexo'!$D$2:$D$5000,Visor!$B157,'Edad y sexo'!$E$2:$E$5000,"Dep_sec_priv") -> 1106 | I157: =SUMIFS('Edad y sexo'!$F$2:$F$5000,'Edad y sexo'!$B$2:$B$5000,Visor!$Q$7,'Edad y sexo'!$C$2:$C$5000,"F",'Edad y sexo'!$D$2:$D$5000,Visor!$B157,'Edad y sexo'!$E$2:$E$5000,"Dep_sec_priv") -> 685 | L157: =SUMIFS('Edad y sexo'!$F$2:$F$5000,'Edad y sexo'!$B$2:$B$5000,Visor!$Q$7,'Edad y sexo'!$C$2:$C$5000,"NI",'Edad y sexo'!$D$2:$D$5000,Visor!$B157,'Edad y sexo'!$E$2:$E$5000,"Dep_sec_priv") -> 0 | O157: =SUMIFS('Edad y sexo'!$F$2:$F$5000,'Edad y sexo'!$B$2:$B$5000,Visor!$Q$7,'Edad y sexo'!$C$2:$C$5000,"M",'Edad y sexo'!$D$2:$D$5000,Visor!$B157,'Edad y sexo'!$E$2:$E$5000,"Independiente") -> 3360 | R157: =SUMIFS('Edad y sexo'!$F$2:$F$5000,'Edad y sexo'!$B$2:$B$5000,Visor!$Q$7,'Edad y sexo'!$C$2:$C$5000,"F",'Edad y sexo'!$D$2:$D$5000,Visor!$B157,'Edad y sexo'!$E$2:$E$5000,"Independiente") -> 4881 | U157: =SUMIFS('Edad y sexo'!$F$2:$F$5000,'Edad y sexo'!$B$2:$B$5000,Visor!$Q$7,'Edad y sexo'!$C$2:$C$5000,"NI",'Edad y sexo'!$D$2:$D$5000,Visor!$B157,'Edad y sexo'!$E$2:$E$5000,"Independiente") -> 0
B158: Más de 80 años | F158: =SUMIFS('Edad y sexo'!$F$2:$F$5000,'Edad y sexo'!$B$2:$B$5000,Visor!$Q$7,'Edad y sexo'!$C$2:$C$5000,"M",'Edad y sexo'!$D$2:$D$5000,Visor!$B158,'Edad y sexo'!$E$2:$E$5000,"Dep_sec_priv") -> 933 | I158: =SUMIFS('Edad y sexo'!$F$2:$F$5000,'Edad y sexo'!$B$2:$B$5000,Visor!$Q$7,'Edad y sexo'!$C$2:$C$5000,"F",'Edad y sexo'!$D$2:$D$5000,Visor!$B158,'Edad y sexo'!$E$2:$E$5000,"Dep_sec_priv") -> 663 | L158: =SUMIFS('Edad y sexo'!$F$2:$F$5000,'Edad y sexo'!$B$2:$B$5000,Visor!$Q$7,'Edad y sexo'!$C$2:$C$5000,"NI",'Edad y sexo'!$D$2:$D$5000,Visor!$B158,'Edad y sexo'!$E$2:$E$5000,"Dep_sec_priv") -> 0 | O158: =SUMIFS('Edad y sexo'!$F$2:$F$5000,'Edad y sexo'!$B$2:$B$5000,Visor!$Q$7,'Edad y sexo'!$C$2:$C$5000,"M",'Edad y sexo'!$D$2:$D$5000,Visor!$B158,'Edad y sexo'!$E$2:$E$5000,"Independiente") -> 3485 | R158: =SUMIFS('Edad y sexo'!$F$2:$F$5000,'Edad y sexo'!$B$2:$B$5000,Visor!$Q$7,'Edad y sexo'!$C$2:$C$5000,"F",'Edad y sexo'!$D$2:$D$5000,Visor!$B158,'Edad y sexo'!$E$2:$E$5000,"Independiente") -> 6842 | U158: =SUMIFS('Edad y sexo'!$F$2:$F$5000,'Edad y sexo'!$B$2:$B$5000,Visor!$Q$7,'Edad y sexo'!$C$2:$C$5000,"NI",'Edad y sexo'!$D$2:$D$5000,Visor!$B158,'Edad y sexo'!$E$2:$E$5000,"Independiente") -> 0
B159: No identificado | F159: =SUMIFS('Edad y sexo'!$F$2:$F$5000,'Edad y sexo'!$B$2:$B$5000,Visor!$Q$7,'Edad y sexo'!$C$2:$C$5000,"M",'Edad y sexo'!$D$2:$D$5000,"NI",'Edad y sexo'!$E$2:$E$5000,"Dep_sec_priv") -> 38 | I159: =SUMIFS('Edad y sexo'!$F$2:$F$5000,'Edad y sexo'!$B$2:$B$5000,Visor!$Q$7,'Edad y sexo'!$C$2:$C$5000,"F",'Edad y sexo'!$D$2:$D$5000,"NI",'Edad y sexo'!$E$2:$E$5000,"Dep_sec_priv") -> 17 | L159: =SUMIFS('Edad y sexo'!$F$2:$F$5000,'Edad y sexo'!$B$2:$B$5000,Visor!$Q$7,'Edad y sexo'!$C$2:$C$5000,"NI",'Edad y sexo'!$D$2:$D$5000,"NI",'Edad y sexo'!$E$2:$E$5000,"Dep_sec_priv") -> 10277 | O159: =SUMIFS('Edad y sexo'!$F$2:$F$5000,'Edad y sexo'!$B$2:$B$5000,Visor!$Q$7,'Edad y sexo'!$C$2:$C$5000,"M",'Edad y sexo'!$D$2:$D$5000,"NI",'Edad y sexo'!$E$2:$E$5000,"Independiente") -> 1 | R159: =SUMIFS('Edad y sexo'!$F$2:$F$5000,'Edad y sexo'!$B$2:$B$5000,Visor!$Q$7,'Edad y sexo'!$C$2:$C$5000,"F",'Edad y sexo'!$D$2:$D$5000,"NI",'Edad y sexo'!$E$2:$E$5000,"Independiente") -> 1 | U159: =SUMIFS('Edad y sexo'!$F$2:$F$5000,'Edad y sexo'!$B$2:$B$5000,Visor!$Q$7,'Edad y sexo'!$C$2:$C$5000,"NI",'Edad y sexo'!$D$2:$D$5000,"NI",'Edad y sexo'!$E$2:$E$5000,"Independiente") -> 806
B160: Total | F160: =SUM(F145:H159) -> 952035 | I160: =SUM(I145:K159) -> 674226 | L160: =SUM(L145:N159) -> 10277 | O160: =SUM(O145:Q159) -> 166229 | R160: =SUM(R145:T159) -> 153184 | U160: =SUM(U145:W159) -> 806
C162: *Ubicación basada en la ubicación de los cotizantes
L164: =J3 -> Informe Mensual de las cotizaciones
L166: =K53 -> Fecha de corte: 17 de May de 2022 | AB166: Pg. 4
L168: Departamento | Q168: =Q55 -> ANTIOQUIA
L169: Municipio | Q169: =Q56 -> MEDELLÍN
C171: ="Resumen municipal "&Q168&":" -> Resumen municipal ANTIOQUIA:
B174: =Q168 -> ANTIOQUIA
B175: Municipio | H175: Apt.Privados | L175: % | M175: Dep.Privados (Ubicación del aportante) | Q175: % | R175: Dep.Privados (Ubicación del cotizante) | V175: % | W175: Independientes | AA175: %
A176: =IF(AND(B177="",B175<>"",B176<>""),1,0) -> 0 | B176: =IF(Tamaño!BF2=0,"",PROPER(Tamaño!BF2)) -> Medellín | H176: =IF(B176="","",Tamaño!BG2) -> 66652 | L176: =H176/SUM($H$176:$K$201) -> 0.6322759353 | M176: =IF(B176="","",Tamaño!BJ2) -> 1170496 | Q176: =M176/SUM($M$176:$P$201) -> 0.7019255794 | R176: =IF(B176="","",Tamaño!BH2) -> 1159148 | V176: =R176/SUM($R$176:$U$201) -> 0.7082927497 | W176: =IF(B176="","",Tamaño!BI2) -> 195100 | AA176: =W176/SUM($W$176:$Z$201) -> 0.6092705305
A177: 0 | B177: =IF(OR(B176="",Tamaño!BF3=0),"",PROPER(Tamaño!BF3)) -> Envigado | H177: =IF(B177="","",Tamaño!BG3) -> 6797 | L177: =IF(H177="","",H177/SUM($H$176:$K$201)) -> 0.06447787812 | M177: =IF(B177="","",Tamaño!BJ3) -> 115514 | Q177: =IF(H177="","",M177/SUM($M$176:$P$201)) -> 0.06927168601 | R177: =IF(B177="","",Tamaño!BH3) -> 40559 | V177: =IF(R177="","",R177/SUM($R$176:$U$201)) -> 0.02478341475 | W177: =IF(B177="","",Tamaño!BI3) -> 16582 | AA177: =IF(W177="","",W177/SUM($W$176:$Z$201)) -> 0.0517833108
A178: 0 | B178: =IF(OR(B177="",Tamaño!BF4=0),"",PROPER(Tamaño!BF4)) -> Itagui | H178: =IF(B178="","",Tamaño!BG4) -> 4195 | L178: =IF(H178="","",H178/SUM($H$176:$K$201)) -> 0.03979471807 | M178: =IF(B178="","",Tamaño!BJ4) -> 90707 | Q178: =IF(H178="","",M178/SUM($M$176:$P$201)) -> 0.05439537045 | R178: =IF(B178="","",Tamaño!BH4) -> 51672 | V178: 0.03157396895 | W178: =IF(B178="","",Tamaño!BI4) -> 10302 | AA178: 0.03217173247
A179: 0 | B179: =IF(OR(B178="",Tamaño!BF5=0),"",PROPER(Tamaño!BF5)) -> Rionegro | H179: =IF(B179="","",Tamaño!BG5) -> 3306 | L179: 0.03136146316 | M179: =IF(B179="","",Tamaño!BJ5) -> 47954 | Q179: 0.02875715871 | R179: =IF(B179="","",Tamaño!BH5) -> 52931 | V179: 0.03234327587 | W179: =IF(B179="","",Tamaño!BI5) -> 10136 | AA179: 0.03165333725
A180: 0 | B180: =IF(OR(B179="",Tamaño!BF6=0),"",PROPER(Tamaño!BF6)) -> Bello | H180: =IF(B180="","",Tamaño!BG6) -> 2903 | L180: 0.02753851408 | M180: =IF(B180="","",Tamaño!BJ6) -> 44591 | Q180: 0.02674042757 | R180: =IF(B180="","",Tamaño!BH6) -> 38023 | V180: 0.02323380209 | W180: =IF(B180="","",Tamaño!BI6) -> 12758 | AA180: 0.03984148348
A181: 0 | B181: =IF(OR(B180="",Tamaño!BF7=0),"",PROPER(Tamaño!BF7)) -> Sabaneta | H181: =IF(B181="","",Tamaño!BG7) -> 2175 | L181: 0.02063254155 | M181: =IF(B181="","",Tamaño!BJ7) -> 38428 | Q181: 0.02304458637 | R181: =IF(B181="","",Tamaño!BH7) -> 24348 | V181: 0.01487774803 | W181: =IF(B181="","",Tamaño!BI7) -> 7229 | AA181: 0.02257517511
A182: =IF(AND(B183="",B181<>"",B182<>""),1,0) -> 0 | B182: =IF(OR(B181="",Tamaño!BF8=0),"",PROPER(Tamaño!BF8)) -> Apartadó | H182: =IF(B182="","",Tamaño!BG8) -> 1426 | L182: 0.01352735828 | M182: =IF(B182="","",Tamaño!BJ8) -> 21461 | Q182: 0.01286977902 | R182: =IF(B182="","",Tamaño!BH8) -> 36034 | V182: 0.02201843159 | W182: =IF(B182="","",Tamaño!BI8) -> 3911 | AA182: 0.01221351637
A183: 0 | B183: =IF(OR(B182="",Tamaño!BF9=0),"",PROPER(Tamaño!BF9)) -> La Ceja | H183: =IF(B183="","",Tamaño!BG9) -> 1178 | L183: 0.01117477423 | M183: =IF(B183="","",Tamaño!BJ9) -> 14952 | Q183: 0.008966447783 | R183: =IF(B183="","",Tamaño!BH9) -> 13934 | V183: 0.008514314975 | W183: =IF(B183="","",Tamaño!BI9) -> 3839 | AA183: 0.01198867025
A184: 0 | B184: =IF(OR(B183="",Tamaño!BF10=0),"",PROPER(Tamaño!BF10)) -> La Estrella | H184: =IF(B184="","",Tamaño!BG10) -> 1106 | L184: 0.01049176596 | M184: =IF(B184="","",Tamaño!BJ10) -> 24973 | Q184: 0.01497586279 | R184: =IF(B184="","",Tamaño!BH10) -> 16256 | V184: 0.009933163788 | W184: =IF(B184="","",Tamaño!BI10) -> 2772 | AA184: 0.008656575656
A185: 0 | B185: =IF(OR(B184="",Tamaño!BF11=0),"",PROPER(Tamaño!BF11)) -> Ciudad Bolívar | H185: =IF(B185="","",Tamaño!BG11) -> 1011 | L185: 0.009590574486 | M185: =IF(B185="","",Tamaño!BJ11) -> 6093 | Q185: 0.003653863452 | R185: =IF(B185="","",Tamaño!BH11) -> 1912 | V185: 0.001168319953 | W185: =IF(B185="","",Tamaño!BI11) -> 848 | AA185: 0.002648187647
A186: 0 | B186: =IF(OR(B185="",Tamaño!BF12=0),"",PROPER(Tamaño!BF12)) -> Caldas | H186: =IF(B186="","",Tamaño!BG12) -> 826 | L186: 0.007835622676 | M186: =IF(B186="","",Tamaño!BJ12) -> 8941 | Q186: 0.005361758268 | R186: =IF(B186="","",Tamaño!BH12) -> 8744 | V186: 0.005342986231 | W186: =IF(B186="","",Tamaño!BI12) -> 2695 | AA186: 0.008416115221
A187: 0 | B187: =IF(OR(B186="",Tamaño!BF13=0),"",PROPER(Tamaño!BF13)) -> Marinilla | H187: =IF(B187="","",Tamaño!BG13) -> 727 | L187: 0.006896486302 | M187: =IF(B187="","",Tamaño!BJ13) -> 10054 | Q187: 0.006029204522 | R187: =IF(B187="","",Tamaño!BH13) -> 10027 | V187: 0.00612695825 | W187: =IF(B187="","",Tamaño!BI13) -> 2537 | AA187: 0.0079227029
A188: 0 | B188: =IF(OR(B187="",Tamaño!BF14=0),"",PROPER(Tamaño!BF14)) -> El Carmen De Viboral | H188: =IF(B188="","",Tamaño!BG14) -> 696 | L188: 0.006602413296 | M188: =IF(B188="","",Tamaño!BJ14) -> 8140 | Q188: 0.004881412851 | R188: =IF(B188="","",Tamaño!BH14) -> 8436 | V188: 0.005154784062 | W188: =IF(B188="","",Tamaño!BI14) -> 2433 | AA188: 0.00759792517
A189: 0 | B189: =IF(OR(B188="",Tamaño!BF15=0),"",PROPER(Tamaño!BF15)) -> Copacabana | H189: =IF(B189="","",Tamaño!BG15) -> 687 | L189: 0.006517037262 | M189: =IF(B189="","",Tamaño!BJ15) -> 11421 | Q189: 0.006848970046 | R189: =IF(B189="","",Tamaño!BH15) -> 7749 | V189: 0.00473499546 | W189: =IF(B189="","",Tamaño!BI15) -> 2378 | AA189: 0.007426167716
A190: 0 | B190: =IF(OR(B189="",Tamaño!BF16=0),"",PROPER(Tamaño!BF16)) -> Retiro | H190: =IF(B190="","",Tamaño!BG16) -> 666 | L190: 0.006317826516 | M190: =IF(B190="","",Tamaño!BJ16) -> 3997 | Q190: 0.002396929627 | R190: =IF(B190="","",Tamaño!BH16) -> 4109 | V190: 0.002510788017 | W190: =IF(B190="","",Tamaño!BI16) -> 1523 | AA190: 0.00475612003
A191: 0 | B191: =IF(OR(B190="",Tamaño!BF17=0),"",PROPER(Tamaño!BF17)) -> Caucasia | H191: =IF(B191="","",Tamaño!BG17) -> 615 | L191: 0.00583402899 | M191: =IF(B191="","",Tamaño!BJ17) -> 6516 | Q191: 0.00390752901 | R191: =IF(B191="","",Tamaño!BH17) -> 8541 | V191: 0.005218943893 | W191: =IF(B191="","",Tamaño!BI17) -> 1779 | AA191: 0.005555572905
A192: 0 | B192: =IF(OR(B191="",Tamaño!BF18=0),"",PROPER(Tamaño!BF18)) -> Guarne | H192: =IF(B192="","",Tamaño!BG18) -> 592 | L192: 0.005615845792 | M192: =IF(B192="","",Tamaño!BJ18) -> 8543 | Q192: 0.005123084765 | R192: =IF(B192="","",Tamaño!BH18) -> 9365 | V192: 0.005722445797 | W192: =IF(B192="","",Tamaño!BI18) -> 1885 | AA192: 0.005886596361
A193: 0 | B193: =IF(OR(B192="",Tamaño!BF19=0),"",PROPER(Tamaño!BF19)) -> Santa Rosa De Osos | H193: =IF(B193="","",Tamaño!BG19) -> 528 | L193: 0.005008727328 | M193: =IF(B193="","",Tamaño!BJ19) -> 4855 | Q193: 0.002911456928 | R193: =IF(B193="","",Tamaño!BH19) -> 6301 | V193: 0.003850200851 | W193: =IF(B193="","",Tamaño!BI19) -> 1924 | AA193: 0.006008388009
A194: 0 | B194: =IF(OR(B193="",Tamaño!BF20=0),"",PROPER(Tamaño!BF20)) -> Turbo | H194: =IF(B194="","",Tamaño!BG20) -> 482 | L194: 0.004572360932 | M194: =IF(B194="","",Tamaño!BJ20) -> 4675 | Q194: 0.002803514138 | R194: =IF(B194="","",Tamaño!BH20) -> 7875 | V194: 0.004811987256 | W194: =IF(B194="","",Tamaño!BI20) -> 1326 | AA194: 0.004140916061
A195: 0 | B195: =IF(OR(B194="",Tamaño!BF21=0),"",PROPER(Tamaño!BF21)) -> Don Matías | H195: =IF(B195="","",Tamaño!BG21) -> 477 | L195: 0.004524929802 | M195: =IF(B195="","",Tamaño!BJ21) -> 3661 | Q195: 0.002195436419 | R195: =IF(B195="","",Tamaño!BH21) -> 3853 | V195: 0.002354360241 | W195: =IF(B195="","",Tamaño!BI21) -> 2014 | AA195: 0.006289445661
A196: 0 | B196: =IF(OR(B195="",Tamaño!BF22=0),"",PROPER(Tamaño!BF22)) -> Girardota | H196: =IF(B196="","",Tamaño!BG22) -> 439 | L196: 0.004164453214 | M196: =IF(B196="","",Tamaño!BJ22) -> 8161 | Q196: 0.004894006177 | R196: =IF(B196="","",Tamaño!BH22) -> 10566 | V196: 0.006456312044 | W196: =IF(B196="","",Tamaño!BI22) -> 1545 | AA196: 0.004824823012
A197: 0 | B197: =IF(OR(B196="",Tamaño!BF23=0),"",PROPER(Tamaño!BF23)) -> Puerto Berrío | H197: =IF(B197="","",Tamaño!BG23) -> 373 | L197: 0.003538362298 | M197: =IF(B197="","",Tamaño!BJ23) -> 3493 | Q197: 0.002094689814 | R197: =IF(B197="","",Tamaño!BH23) -> 5918 | V197: 0.003616170233 | W197: =IF(B197="","",Tamaño!BI23) -> 997 | AA197: 0.003113494202
A198: 0 | B198: =IF(OR(B197="",Tamaño!BF24=0),"",PROPER(Tamaño!BF24)) -> El Santuario | H198: =IF(B198="","",Tamaño!BG24) -> 364 | L198: 0.003452986264 | M198: =IF(B198="","",Tamaño!BJ24) -> 3416 | Q198: 0.002048514287 | R198: =IF(B198="","",Tamaño!BH24) -> 3754 | V198: 0.002293866687 | W198: =IF(B198="","",Tamaño!BI24) -> 1498 | AA198: 0.004678048461
A199: 0 | B199: =IF(OR(B198="",Tamaño!BF25=0),"",PROPER(Tamaño!BF25)) -> San Pedro De Los Milagros | H199: =IF(B199="","",Tamaño!BG25) -> 353 | L199: 0.003348637778 | M199: =IF(B199="","",Tamaño!BJ25) -> 2075 | Q199: 0.0012443405 | R199: =IF(B199="","",Tamaño!BH25) -> 3477 | V199: 0.002124606945 | W199: =IF(B199="","",Tamaño!BI25) -> 1168 | AA199: 0.00364750374
A200: 0 | B200: =IF(OR(B199="",Tamaño!BF26=0),"",PROPER(Tamaño!BF26)) -> Yarumal | H200: =IF(B200="","",Tamaño!BG26) -> 352 | L200: 0.003339151552 | M200: =IF(B200="","",Tamaño!BJ26) -> 2328 | Q200: 0.001396060088 | R200: =IF(B200="","",Tamaño!BH26) -> 3203 | V200: 0.00195718034 | W200: =IF(B200="","",Tamaño!BI26) -> 1376 | AA200: 0.0042970592
B201: =IF(Lista!J3>25,"Otros","") -> Otros | H201: =IF(B201="Otros",SUM(Tamaño!$BG$27:$BG$150),"") -> 6490 | L201: 0.06156560674 | M201: =IF(B201="","",Tamaño!BJ27) -> 2105 | Q201: 0.001262330965 | R201: =IF(B201="Otros",R14-SUM(R176:U200),"") -> 99803 | V201: 0.06098422401 | W201: =IF(B201="Otros",W14-SUM(W176:Z200),"") -> 29664 | AA201: 0.09263660183
C202: *Para la columna de Apt.Privados y Dep.Privados/Apt se usa la ubicación del aportante, para las demas columnas la ubicación del cotizante
C204: ="Resumen de las novedades Dep.Privados e Independientes mes "&Lista!R2 -> Resumen de las novedades Dep.Privados e Independientes mes Marzo
C219: *Ubicación basada en la ubicación de los cotizantes
C220: * Nota: Corresponden a los asociados a aportantes del sector privado, es decir los tipos de cotizantes 1, 2 o 22

Sheet Cotizantes Mes
A1: Divipola | B1: Llave | C1: Tipologia | D1: Depto | E1: Mpio | F1: Mpio_0 | G1: Depto_Nom | H1: Mpio_Nom | I1: Tipologia_MES | J1: Ingresos_MES | K1: Retiros_MES | L1: Total_relaciones_laborales_2_20 | M1: Total_relaciones_laborales_3_20 | N1: Total_relaciones_laborales_4_20 | O1: Total_relaciones_laborales_5_20 | P1: Total_relaciones_laborales_6_20 | Q1: Total_relaciones_laborales_7_20 | R1: Total_relaciones_laborales_8_20 | S1: Total_relaciones_laborales_9_20 | T1: Total_relaciones_laborales_10_20 | U1: Total_relaciones_laborales_11_20 | V1: Total_relaciones_laborales_12_20 | W1: Total_relaciones_laborales_1_21 | X1: Total_relaciones_laborales_2_21 | Y1: Total_relaciones_laborales_3_21 | Z1: Total_relaciones_laborales_4_21 | AA1: Total_relaciones_laborales_5_21 | AB1: Total_relaciones_laborales_6_21 | AC1: Total_relaciones_laborales_7_21 | AD1: Total_relaciones_laborales_8_21 | AE1: Total_relaciones_laborales_9_21 | AF1: Total_relaciones_laborales_10_21 | AG1: Total_relaciones_laborales_11_21 | AH1: Total_relaciones_laborales_12_21 | AI1: Total_relaciones_laborales_1_22 | AJ1: Total_relaciones_laborales_2_22 | AK1: Total_relaciones_laborales_3_22 | AQ1: =A1 -> Divipola | AR1: =B1 -> Llave | AS1: Tipologia | AT1: Depto | AU1: Mpio | AV1: Mpio_0 | AW1: Depto_Nom | AX1: Mpio_Nom | AY1: Tipologia_MES | AZ1: Ingresos_MES | BA1: Retiros_MES | BB1: =L1 -> Total_relaciones_laborales_2_20 | BC1: =M1 -> Total_relaciones_laborales_3_20 | BD1: =N1 -> Total_relaciones_laborales_4_20 | BE1: =O1 -> Total_relaciones_laborales_5_20 | BF1: =P1 -> Total_relaciones_laborales_6_20 | BG1: =Q1 -> Total_relaciones_laborales_7_20 | BH1: =R1 -> Total_relaciones_laborales_8_20 | BI1: =S1 -> Total_relaciones_laborales_9_20 | BJ1: =T1 -> Total_relaciones_laborales_10_20 | BK1: =U1 -> Total_relaciones_laborales_11_20 | BL1: =V1 -> Total_relaciones_laborales_12_20 | BM1: =W1 -> Total_relaciones_laborales_1_21 | BN1: =X1 -> Total_relaciones_laborales_2_21 | BO1: =Y1 -> Total_relaciones_laborales_3_21 | BP1: =Z1 -> Total_relaciones_laborales_4_21 | BQ1: =AA1 -> Total_relaciones_laborales_5_21 | BR1: =AB1 -> Total_relaciones_laborales_6_21 | BS1: =AC1 -> Total_relaciones_laborales_7_21 | BT1: =AD1 -> Total_relaciones_laborales_8_21 | BU1: =AE1 -> Total_relaciones_laborales_9_21 | BV1: =AF1 -> Total_relaciones_laborales_10_21 | BW1: =AG1 -> Total_relaciones_laborales_11_21 | BX1: =AH1 -> Total_relaciones_laborales_12_21 | BY1: =AI1 -> Total_relaciones_laborales_1_22 | BZ1: =AJ1 -> Total_relaciones_laborales_2_22 | CA1: =AK1 -> Total_relaciones_laborales_3_22
A2: Sin Info | B2: Sin Info1 | C2: 1 | D2: Sin Info | E2: Sin Info | F2: Sin Info | G2: Sin Info | H2: Sin Info | I2: Dep_No_priv | J2: 0 | K2: 0 | L2: 6 | M2: 5 | N2: 5 | O2: 6 | P2: 6 | Q2: 5 | R2: 6 | S2: 4 | T2: 8 | U2: 7 | V2: 8 | W2: 9 | X2: 8 | Y2: 10 | Z2: 8 | AA2: 8 | AB2: 8 | AC2: 9 | AD2: 8 | AE2: 7 | AF2: 9 | AG2: 9 | AH2: 16 | AI2: 2 | AJ2: 1 | AK2: 1 | AL2: =IF(SUM(L2:AK2)=0,"VERDADERO","FALSO") -> FALSO | AQ2: =_xlfn._xlws.FILTER($A$2:$AK$4989,$G$2:$G$4989=Visor!$Q$7,"") -> 5001 | AR2: 50011 | AS2: 1 | AT2: 5 | AU2: 1 | AV2: 001 | AW2: ANTIOQUIA | AX2: MEDELLÍN | AY2: Dep_No_priv | AZ2: 21854 | BA2: 8517 | BB2: 156265 | BC2: 163974 | BD2: 147590 | BE2: 148310 | BF2: 153799 | BG2: 157199 | BH2: 162955 | BI2: 164600 | BJ2: 158454 | BK2: 152185 | BL2: 141512 | BM2: 135841 | BN2: 151291 | BO2: 159711 | BP2: 158948 | BQ2: 162455 | BR2: 162283 | BS2: 158706 | BT2: 170597 | BU2: 177861 | BV2: 180215 | BW2: 174635 | BX2: 147251 | BY2: 140962 | BZ2: 160445 | CA2: 170931
A3: Sin Info | B3: Sin Info2 | C3: 2 | D3: Sin Info | E3: Sin Info | F3: Sin Info | G3: Sin Info | H3: Sin Info | I3: Dep_sec_priv | J3: 268 | K3: 190 | L3: 1167 | M3: 438 | N3: 322 | O3: 414 | P3: 388 | Q3: 436 | R3: 433 | S3: 434 | T3: 444 | U3: 365 | V3: 502 | W3: 457 | X3: 431 | Y3: 486 | Z3: 447 | AA3: 359 | AB3: 397 | AC3: 412 | AD3: 419 | AE3: 517 | AF3: 524 | AG3: 539 | AH3: 527 | AI3: 572 | AJ3: 532 | AK3: 586 | AL3: =IF(SUM(L3:AK3)=0,"VERDADERO","FALSO") -> FALSO | AQ3: 5318 | AR3: 53182 | AS3: 2 | AT3: 5 | AU3: 318 | AV3: 318 | AW3: ANTIOQUIA | AX3: GUARNE | AY3: Dep_sec_priv | AZ3: 898 | BA3: 710 | BB3: 7111 | BC3: 7402 | BD3: 7153 | BE3: 7188 | BF3: 7150 | BG3: 7169 | BH3: 7196 | BI3: 7410 | BJ3: 7609 | BK3: 7753 | BL3: 7941 | BM3: 7967 | BN3: 8134 | BO3: 8353 | BP3: 8560 | BQ3: 8665 | BR3: 8687 | BS3: 8825 | BT3: 8945 | BU3: 8790 | BV3: 8961 | BW3: 9043 | BX3: 9038 | BY3: 9046 | BZ3: 9193 | CA3: 9365 | CH3: ="Variaciones de "&PROPER(Visor!$Q$7) -> Variaciones de Antioquia
A4: Sin Info | B4: Sin Info3 | C4: 3 | D4: Sin Info | E4: Sin Info | F4: Sin Info | G4: Sin Info | H4: Sin Info | I4: Independiente | J4: 722 | K4: 381 | L4: 21119 | M4: 21018 | N4: 20900 | O4: 21040 | P4: 21187 | Q4: 21347 | R4: 21504 | S4: 21322 | T4: 21396 | U4: 21519 | V4: 21604 | W4: 21747 | X4: 22013 | Y4: 22222 | Z4: 22244 | AA4: 22366 | AB4: 22560 | AC4: 22793 | AD4: 23013 | AE4: 23410 | AF4: 23562 | AG4: 23391 | AH4: 23538 | AI4: 23569 | AJ4: 23364 | AK4: 22941 | AL4: FALSO | AQ4: 5001 | AR4: 50012 | AS4: 2 | AT4: 5 | AU4: 1 | AV4: 001 | AW4: ANTIOQUIA | AX4: MEDELLÍN | AY4: Dep_sec_priv | AZ4: 96225 | BA4: 88018 | BB4: 1107438 | BC4: 1093588 | BD4: 1011688 | BE4: 1009718 | BF4: 1013116 | BG4: 1019221 | BH4: 1022409 | BI4: 1042923 | BJ4: 1060816 | BK4: 1073647 | BL4: 1069593 | BM4: 1055879 | BN4: 1078004 | BO4: 1092322 | BP4: 1091227 | BQ4: 1093979 | BR4: 1101166 | BS4: 1113952 | BT4: 1129031 | BU4: 1142132 | BV4: 1149904 | BW4: 1160422 | BX4: 1144314 | BY4: 1135669 | BZ4: 1154693 | CA4: 1159148 | CH4: 2020-03-01 | CI4: 2020-04-01 | CJ4: 2020-05-01 | CK4: 2020-06-01 | CL4: 2020-07-01 | CM4: 2020-08-01 | CN4: 2020-09-01 | CO4: 2020-10-01 | CP4: 2020-11-01 | CQ4: 2020-12-01 | CR4: 2021-01-01 | CS4: 2021-02-01 | CT4: 2021-03-01 | CU4: 2021-04-01 | CV4: 2021-05-01 | CW4: 2021-06-01 | CX4: 2021-07-01 | CY4: 2021-08-01 | CZ4: 2021-09-01 | DA4: 2021-10-01 | DB4: 2021-11-01 | DC4: 2021-12-01 | DD4: 2022-01-01 | DE4: 2022-02-01 | DF4: 2022-03-01 | DL4: Dependientes | DN4: Dep. Privados | DP4: Independientes
A5: 5001 | B5: 50011 | C5: 1 | D5: 5 | E5: 1 | F5: 001 | G5: ANTIOQUIA | H5: MEDELLÍN | I5: Dep_No_priv | J5: 21854 | K5: 8517 | L5: 156265 | M5: 163974 | N5: 147590 | O5: 148310 | P5: 153799 | Q5: 157199 | R5: 162955 | S5: 164600 | T5: 158454 | U5: 152185 | V5: 141512 | W5: 135841 | X5: 151291 | Y5: 159711 | Z5: 158948 | AA5: 162455 | AB5: 162283 | AC5: 158706 | AD5: 170597 | AE5: 177861 | AF5: 180215 | AG5: 174635 | AH5: 147251 | AI5: 140962 | AJ5: 160445 | AK5: 170931 | AL5: FALSO | AQ5: 5400 | AR5: 54002 | AS5: 2 | AT5: 5 | AU5: 400 | AV5: 400 | AW5: ANTIOQUIA | AX5: LA UNIÓN | AY5: Dep_sec_priv | AZ5: 211 | BA5: 169 | BB5: 1937 | BC5: 1902 | BD5: 1735 | BE5: 1729 | BF5: 1730 | BG5: 1788 | BH5: 1827 | BI5: 1864 | BJ5: 1859 | BK5: 1866 | BL5: 1824 | BM5: 1824 | BN5: 1891 | BO5: 1923 | BP5: 1944 | BQ5: 1863 | BR5: 1884 | BS5: 1911 | BT5: 1933 | BU5: 1951 | BV5: 2025 | BW5: 2076 | BX5: 2105 | BY5: 2196 | BZ5: 2199 | CA5: 2209 | CG5: Independientes | CH5: =IFERROR(SUMIFS(BC$2:BC$600,$AS$2:$AS$600,3)/SUMIFS(BB$2:BB$600,$AS$2:$AS$600,3)-1,"") -> -0.000892580467 | CI5: =IFERROR(SUMIFS(BD$2:BD$600,$AS$2:$AS$600,3)/SUMIFS(BC$2:BC$600,$AS$2:$AS$600,3)-1,"") -> -0.03051981108 | CJ5: 0.007253785113 | CK5: 0.01426500035 | CL5: 0.01173279055 | CM5: 0.01266321041 | CN5: 0.01866094358 | CO5: 0.01679277281 | CP5: 0.01300000962 | CQ5: -0.007795530394 | CR5: -0.04027955068 | CS5: 0.01953860171 | CT5: 0.01757258312 | CU5: 0.008980711662 | CV5: 0.007325192818 | CW5: 0.007079562297 | CX5: 0.003754442548 | CY5: 0.01300872864 | CZ5: 0.008444094061 | DA5: 0.006922856113 | DB5: 0.007812381533 | DC5: -0.01699021092 | DD5: -0.02595029128 | DE5: 0.0249633862 | DF5: -0.01812166351 | DL5: ="∆ Anual "&MID(Lista!$R$2,1,3) -> ∆ Anual Mar | DM5: ="∆ Mensual "&MID(Lista!$R$2,1,3) -> ∆ Mensual Mar | DN5: ="∆ Anual "&MID(Lista!$R$2,1,3) -> ∆ Anual Mar | DO5: ="∆ Mensual "&MID(Lista!$R$2,1,3) -> ∆ Mensual Mar | DP5: ="∆ Anual "&MID(Lista!$R$2,1,3) -> ∆ Anual Mar | DQ5: ="∆ Mensual "&MID(Lista!$R$2,1,3) -> ∆ Mensual Mar
A6: 11001 | B6: 110011 | C6: 1 | D6: 11 | E6: 1 | F6: 001 | G6: BOGOTÁ, D.C. | H6: BOGOTÁ, D.C. | I6: Dep_No_priv | J6: 42547 | K6: 21675 | L6: 388754 | M6: 390480 | N6: 366570 | O6: 377188 | P6: 365273 | Q6: 393585 | R6: 414361 | S6: 423487 | T6: 419748 | U6: 397816 | V6: 335498 | W6: 328156 | X6: 369530 | Y6: 378017 | Z6: 399311 | AA6: 409058 | AB6: 402699 | AC6: 402846 | AD6: 418668 | AE6: 429893 | AF6: 434568 | AG6: 433798 | AH6: 353251 | AI6: 341915 | AJ6: 384919 | AK6: 415875 | AL6: FALSO | AQ6: 5631 | AR6: 56312 | AS6: 2 | AT6: 5 | AU6: 631 | AV6: 631 | AW6: ANTIOQUIA | AX6: SABANETA | AY6: Dep_sec_priv | AZ6: 1900 | BA6: 1635 | BB6: 21672 | BC6: 21591 | BD6: 20085 | BE6: 19943 | BF6: 19788 | BG6: 19959 | BH6: 20412 | BI6: 20798 | BJ6: 21235 | BK6: 22132 | BL6: 21874 | BM6: 21782 | BN6: 22128 | BO6: 22488 | BP6: 22450 | BQ6: 22381 | BR6: 22265 | BS6: 22667 | BT6: 23060 | BU6: 23659 | BV6: 24122 | BW6: 24220 | BX6: 23834 | BY6: 23722 | BZ6: 24372 | CA6: 24348 | CG6: Dependientes | CH6: =IFERROR((SUMIFS(BC$2:BC$600,$AS$2:$AS$600,2)+SUMIFS(BC$2:BC$600,$AS$2:$AS$600,1))/(SUMIFS(BB$2:BB$600,$AS$2:$AS$600,2)+SUMIFS(BB$2:BB$600,$AS$2:$AS$600,1))-1,"") -> -0.003432953875 | CI6: =IFERROR((SUMIFS(BD$2:BD$600,$AS$2:$AS$600,2)+SUMIFS(BD$2:BD$600,$AS$2:$AS$600,1))/(SUMIFS(BC$2:BC$600,$AS$2:$AS$600,2)+SUMIFS(BC$2:BC$600,$AS$2:$AS$600,1))-1,"") -> -0.07259682039 | CJ6: 0.001180561872 | CK6: 0.01090945452 | CL6: 0.01056012256 | CM6: 0.007711548344 | CN6: 0.0175479431 | CO6: 0.008462308996 | CP6: 0.005874890629 | CQ6: -0.01184411125 | CR6: -0.0142088592 | CS6: 0.03188970928 | CT6: 0.01986432504 | CU6: 0.001118864367 | CV6: 0.005707154965 | CW6: 0.005190011341 | CX6: 0.007362115192 | CY6: 0.01869515473 | CZ6: 0.01471430704 | DA6: 0.00724170457 | DB6: 0.003715833394 | DC6: -0.03142484001 | DD6: -0.01065624275 | DE6: 0.0277090514 | DF6: 0.01121570209 | DK6: Nacional | DL6: =(SUMIFS($AK$2:$AK$4995,$C$2:$C$4995,2)+SUMIFS($AK$2:$AK$4995,$C$2:$C$4995,1))/(SUMIFS($Y$2:$Y$4995,$C$2:$C$4995,2)+SUMIFS($Y$2:$Y$4995,$C$2:$C$4995,1))-1 -> 0.07561404039 | DM6: =(SUMIFS($AK$2:$AK$4995,$C$2:$C$4995,2)+SUMIFS($AK$2:$AK$4995,$C$2:$C$4995,1))/(SUMIFS($AJ$2:$AJ$4995,$C$2:$C$4995,2)+SUMIFS($AJ$2:$AJ$4995,$C$2:$C$4995,1))-1 -> 0.0150392399 | DN6: =SUMIFS($AK$2:$AK$4995,$C$2:$C$4995,2)/SUMIFS($Y$2:$Y$4995,$C$2:$C$4995,2)-1 -> 0.07309450883 | DO6: =SUMIFS($AK$2:$AK$4995,$C$2:$C$4995,2)/SUMIFS($AJ$2:$AJ$4995,$C$2:$C$4995,2)-1 -> 0.005389414283 | DP6: =SUMIFS($AK$2:$AK$4995,$C$2:$C$4995,3)/SUMIFS($Y$2:$Y$4995,$C$2:$C$4995,3)-1 -> 0.008869700317 | DQ6: =SUMIFS($AK$2:$AK$4995,$C$2:$C$4995,3)/SUMIFS($AJ$2:$AJ$4995,$C$2:$C$4995,3)-1 -> -0.02166346125
A7: 11001 | B7: 110012 | C7: 2 | D7: 11 | E7: 1 | F7: 001 | G7: BOGOTÁ, D.C. | H7: BOGOTÁ, D.C. | I7: Dep_sec_priv | J7: 254370 | K7: 215309 | L7: 2654768 | M7: 2625113 | N7: 2446599 | O7: 2418436 | P7: 2407116 | Q7: 2421978 | R7: 2421912 | S7: 2458170 | T7: 2484025 | U7: 2516465 | V7: 2506097 | W7: 2484982 | X7: 2529632 | Y7: 2558838 | Z7: 2570654 | AA7: 2569003 | AB7: 2584466 | AC7: 2606465 | AD7: 2644715 | AE7: 2679534 | AF7: 2710201 | AG7: 2736874 | AH7: 2709137 | AI7: 2696798 | AJ7: 2745393 | AK7: 2749279 | AL7: FALSO | AQ7: 5001 | AR7: 50013 | AS7: 3 | AT7: 5 | AU7: 1 | AV7: 001 | AW7: ANTIOQUIA | AX7: MEDELLÍN | AY7: Independiente | AZ7: 9979 | BA7: 7267 | BB7: 195436 | BC7: 193750 | BD7: 186035 | BE7: 186809 | BF7: 189841 | BG7: 191610 | BH7: 193311 | BI7: 195883 | BJ7: 198275 | BK7: 200237 | BL7: 199258 | BM7: 193740 | BN7: 195332 | BO7: 197226 | BP7: 197879 | BQ7: 198506 | BR7: 199136 | BS7: 199265 | BT7: 201436 | BU7: 202805 | BV7: 203454 | BW7: 204603 | BX7: 201980 | BY7: 196497 | BZ7: 198892 | CA7: 195100 | CG7: Dep.Privados | CH7: =IFERROR(SUMIFS(BC$2:BC$600,$AS$2:$AS$600,2)/SUMIFS(BB$2:BB$600,$AS$2:$AS$600,2)-1,"") -> -0.009813388163 | CI7: =IFERROR(SUMIFS(BD$2:BD$600,$AS$2:$AS$600,2)/SUMIFS(BC$2:BC$600,$AS$2:$AS$600,2)-1,"") -> -0.07395331049 | CJ7: 0.001235403646 | CK7: 0.006449340431 | CL7: 0.007517092142 | CM7: 0.003452681489 | CN7: 0.02035296773 | CO7: 0.01743219656 | CP7: 0.0124390293 | CQ7: -0.004453250807 | CR7: -0.01198570183 | CS7: 0.02321051766 | CT7: 0.01488673139 | CU7: 0.001444842942 | CV7: 0.002860898527 | CW7: 0.006514266593 | CX7: 0.01035061945 | CY7: 0.01233517004 | CZ7: 0.01221561531 | DA7: 0.006698353402 | DB7: 0.007263431961 | DC7: -0.01482194288 | DD7: -0.006306164863 | DE7: 0.01758221719 | DF7: 0.004361645261 | DK7: =PROPER(Visor!Q7) -> Antioquia | DL7: =(SUMIFS($CA$2:$CA$700,$AS$2:$AS$700,2)+SUMIFS($CA$2:$CA$700,$AS$2:$AS$700,1))/(SUMIFS($BO$2:$BO$700,$AS$2:$AS$700,2)+SUMIFS($BO$2:$BO$700,$AS$2:$AS$700,1))-1 -> 0.06100637344 | DM7: =(SUMIFS($CA$2:$CA$700,$AS$2:$AS$700,2)+SUMIFS($CA$2:$CA$700,$AS$2:$AS$700,1))/(SUMIFS($BZ$2:$BZ$700,$AS$2:$AS$700,2)+SUMIFS($BZ$2:$BZ$700,$AS$2:$AS$700,1))-1 -> 0.01121570209 | DN7: =SUMIFS($CA$2:$CA$700,$AS$2:$AS$700,2)/SUMIFS($BO$2:$BO$700,$AS$2:$AS$700,2)-1 -> 0.06176038574 | DO7: =SUMIFS($CA$2:$CA$700,$AS$2:$AS$700,2)/SUMIFS($BZ$2:$BZ$700,$AS$2:$AS$700,2)-1 -> 0.004361645261 | DP7: =SUMIFS($CA$2:$CA$700,$AS$2:$AS$700,3)/SUMIFS($BO$2:$BO$700,$AS$2:$AS$700,3)-1 -> 0.02633636964 | DQ7: =SUMIFS($CA$2:$CA$700,$AS$2:$AS$700,3)/SUMIFS($BZ$2:$BZ$700,$AS$2:$AS$700,3)-1 -> -0.01812166351
A8: 76001 | B8: 760013 | C8: 3 | D8: 76 | E8: 1 | F8: 001 | G8: VALLE DEL CAUCA | H8: CALI | I8: Independiente | J8: 6053 | K8: 4355 | L8: 133050 | M8: 132911 | N8: 129391 | O8: 129525 | P8: 130768 | Q8: 132802 | R8: 133759 | S8: 135098 | T8: 136629 | U8: 138720 | V8: 137887 | W8: 129240 | X8: 132053 | Y8: 134274 | Z8: 134917 | AA8: 133711 | AB8: 134118 | AC8: 135391 | AD8: 138000 | AE8: 138861 | AF8: 139678 | AG8: 142292 | AH8: 141057 | AI8: 134430 | AJ8: 136815 | AK8: 134512 | AL8: FALSO | AQ8: 5364 | AR8: 53642 | AS8: 2 | AT8: 5 | AU8: 364 | AV8: 364 | AW8: ANTIOQUIA | AX8: JARDÍN | AY8: Dep_sec_priv | AZ8: 80 | BA8: 65 | BB8: 853 | BC8: 807 | BD8: 801 | BE8: 839 | BF8: 855 | BG8: 854 | BH8: 823 | BI8: 817 | BJ8: 906 | BK8: 967 | BL8: 1002 | BM8: 1051 | BN8: 1022 | BO8: 971 | BP8: 1048 | BQ8: 1093 | BR8: 1111 | BS8: 1098 | BT8: 1148 | BU8: 1099 | BV8: 1199 | BW8: 1216 | BX8: 1177 | BY8: 1187 | BZ8: 1187 | CA8: 1151 | DK8: =PROPER(Visor!Q8) -> Medellín | DL8: =(SUMIFS($CA$2:$CA$700,$AX$2:$AX$700,Visor!$Q$8,'Cotizantes Mes'!$AS$2:$AS$700,2)+SUMIFS($CA$2:$CA$700,$AX$2:$AX$700,Visor!$Q$8,'Cotizantes Mes'!$AS$2:$AS$700,1))/(SUMIFS($BO$2:$BO$700,$AX$2:$AX$700,Visor!$Q$8,'Cotizantes Mes'!$AS$2:$AS$700,2)+SUMIFS($BO$2:$BO$700,$AX$2:$AX$700,Visor!$Q$8,'Cotizantes Mes'!$AS$2:$AS$700,1))-1 -> 0.06233541768 | DM8: =(SUMIFS($CA$2:$CA$700,$AS$2:$AS$700,2,$AX$2:$AX$700,Visor!$Q$8)+SUMIFS($CA$2:$CA$700,$AS$2:$AS$700,1,$AX$2:$AX$700,Visor!$Q$8))/(SUMIFS($BZ$2:$BZ$700,$AS$2:$AS$700,2,$AX$2:$AX$700,Visor!$Q$8)+SUMIFS($BZ$2:$BZ$700,$AS$2:$AS$700,1,$AX$2:$AX$700,Visor!$Q$8))-1 -> 0.01136078495 | DN8: =SUMIFS($CA$2:$CA$700,$AX$2:$AX$700,Visor!$Q$8,'Cotizantes Mes'!$AS$2:$AS$700,2)/SUMIFS($BO$2:$BO$700,$AX$2:$AX$700,Visor!$Q$8,'Cotizantes Mes'!$AS$2:$AS$700,2)-1 -> 0.06117793105 | DO8: =SUMIFS($CA$2:$CA$700,$AS$2:$AS$700,2,$AX$2:$AX$700,Visor!$Q$8)/SUMIFS($BZ$2:$BZ$700,$AS$2:$AS$700,2,$AX$2:$AX$700,Visor!$Q$8)-1 -> 0.003858168362 | DP8: =SUMIFS($CA$2:$CA$700,$AX$2:$AX$700,Visor!$Q$8,'Cotizantes Mes'!$AS$2:$AS$700,3)/SUMIFS($BO$2:$BO$700,$AX$2:$AX$700,Visor!$Q$8,'Cotizantes Mes'!$AS$2:$AS$700,3)-1 -> -0.01077951183 | DQ8: =SUMIFS($CA$2:$CA$700,$AS$2:$AS$700,3,$AX$2:$AX$700,Visor!$Q$8)/SUMIFS($BZ$2:$BZ$700,$AS$2:$AS$700,3,$AX$2:$AX$700,Visor!$Q$8)-1 -> -0.01906562355
A9: 11001 | B9: 110013 | C9: 3 | D9: 11 | E9: 1 | F9: 001 | G9: BOGOTÁ, D.C. | H9: BOGOTÁ, D.C. | I9: Independiente | J9: 48807 | K9: 39191 | L9: 711593 | M9: 701656 | N9: 672236 | O9: 675339 | P9: 683729 | Q9: 689688 | R9: 690835 | S9: 699522 | T9: 704814 | U9: 709270 | V9: 706591 | W9: 681685 | X9: 685943 | Y9: 693856 | Z9: 694694 | AA9: 694743 | AB9: 698276 | AC9: 700778 | AD9: 703815 | AE9: 708068 | AF9: 710647 | AG9: 711334 | AH9: 703352 | AI9: 685072 | AJ9: 687622 | AK9: 668879 | AL9: FALSO | AQ9: 5631 | AR9: 56313 | AS9: 3 | AT9: 5 | AU9: 631 | AV9: 631 | AW9: ANTIOQUIA | AX9: SABANETA | AY9: Independiente | AZ9: 339 | BA9: 290 | BB9: 5326 | BC9: 5513 | BD9: 5491 | BE9: 5659 | BF9: 5736 | BG9: 5754 | BH9: 5946 | BI9: 6108 | BJ9: 6274 | BK9: 6414 | BL9: 6391 | BM9: 6067 | BN9: 6338 | BO9: 6470 | BP9: 6480 | BQ9: 6571 | BR9: 6648 | BS9: 6698 | BT9: 6806 | BU9: 6898 | BV9: 6906 | BW9: 7019 | BX9: 7027 | BY9: 7105 | BZ9: 7384 | CA9: 7229
A10: 76001 | B10: 760011 | C10: 1 | D10: 76 | E10: 1 | F10: 001 | G10: VALLE DEL CAUCA | H10: CALI | I10: Dep_No_priv | J10: 12288 | K10: 7437 | L10: 91714 | M10: 95443 | N10: 79139 | O10: 77711 | P10: 75881 | Q10: 80462 | R10: 88844 | S10: 94657 | T10: 95229 | U10: 92563 | V10: 81126 | W10: 71416 | X10: 84439 | Y10: 85852 | Z10: 87988 | AA10: 86759 | AB10: 81854 | AC10: 76823 | AD10: 96131 | AE10: 98790 | AF10: 101264 | AG10: 102981 | AH10: 86119 | AI10: 78842 | AJ10: 89550 | AK10: 96137 | AL10: FALSO | AQ10: 5318 | AR10: 53183 | AS10: 3 | AT10: 5 | AU10: 318 | AV10: 318 | AW10: ANTIOQUIA | AX10: GUARNE | AY10: Independiente | AZ10: 89 | BA10: 72 | BB10: 1347 | BC10: 1369 | BD10: 1378 | BE10: 1409 | BF10: 1441 | BG10: 1477 | BH10: 1509 | BI10: 1556 | BJ10: 1608 | BK10: 1641 | BL10: 1562 | BM10: 1465 | BN10: 1537 | BO10: 1610 | BP10: 1641 | BQ10: 1676 | BR10: 1711 | BS10: 1752 | BT10: 1798 | BU10: 1850 | BV10: 1870 | BW10: 1898 | BX10: 1849 | BY10: 1781 | BZ10: 1908 | CA10: 1885
A11: 73449 | B11: 734493 | C11: 3 | D11: 73 | E11: 449 | F11: 449 | G11: TOLIMA | H11: MELGAR | I11: Independiente | J11: 32 | K11: 48 | L11: 1106 | M11: 1186 | N11: 1166 | O11: 1167 | P11: 1184 | Q11: 1169 | R11: 1212 | S11: 1273 | T11: 1285 | U11: 1295 | V11: 1279 | W11: 1100 | X11: 1317 | Y11: 1347 | Z11: 1352 | AA11: 1370 | AB11: 1339 | AC11: 1375 | AD11: 1394 | AE11: 1361 | AF11: 1366 | AG11: 1414 | AH11: 1390 | AI11: 1352 | AJ11: 1464 | AK11: 1374 | AL11: FALSO | AQ11: 5266 | AR11: 52663 | AS11: 3 | AT11: 5 | AU11: 266 | AV11: 266 | AW11: ANTIOQUIA | AX11: ENVIGADO | AY11: Independiente | AZ11: 713 | BA11: 496 | BB11: 13584 | BC11: 13778 | BD11: 13576 | BE11: 13729 | BF11: 13923 | BG11: 14190 | BH11: 14409 | BI11: 14704 | BJ11: 14923 | BK11: 15145 | BL11: 15267 | BM11: 15057 | BN11: 15505 | BO11: 15791 | BP11: 15872 | BQ11: 15934 | BR11: 16158 | BS11: 16228 | BT11: 16404 | BU11: 16579 | BV11: 16773 | BW11: 16932 | BX11: 16813 | BY11: 16625 | BZ11: 16847 | CA11: 16582
A12: 5318 | B12: 53182 | C12: 2 | D12: 5 | E12: 318 | F12: 318 | G12: ANTIOQUIA | H12: GUARNE | I12: Dep_sec_priv | J12: 898 | K12: 710 | L12: 7111 | M12: 7402 | N12: 7153 | O12: 7188 | P12: 7150 | Q12: 7169 | R12: 7196 | S12: 7410 | T12: 7609 | U12: 7753 | V12: 7941 | W12: 7967 | X12: 8134 | Y12: 8353 | Z12: 8560 | AA12: 8665 | AB12: 8687 | AC12: 8825 | AD12: 8945 | AE12: 8790 | AF12: 8961 | AG12: 9043 | AH12: 9038 | AI12: 9046 | AJ12: 9193 | AK12: 9365 | AL12: FALSO | AQ12: 5607 | AR12: 56073 | AS12: 3 | AT12: 5 | AU12: 607 | AV12: 607 | AW12: ANTIOQUIA | AX12: RETIRO | AY12: Independiente | AZ12: 56 | BA12: 27 | BB12: 1100 | BC12: 1105 | BD12: 1089 | BE12: 1122 | BF12: 1144 | BG12: 1175 | BH12: 1195 | BI12: 1245 | BJ12: 1268 | BK12: 1286 | BL12: 1273 | BM12: 1263 | BN12: 1314 | BO12: 1340 | BP12: 1365 | BQ12: 1397 | BR12: 1420 | BS12: 1452 | BT12: 1468 | BU12: 1449 | BV12: 1469 | BW12: 1495 | BX12: 1507 | BY12: 1501 | BZ12: 1545 | CA12: 1523 | CH12: ="Variaciones de "&PROPER(Visor!Q8) -> Variaciones de Medellín
A13: 5001 | B13: 50012 | C13: 2 | D13: 5 | E13: 1 | F13: 001 | G13: ANTIOQUIA | H13: MEDELLÍN | I13: Dep_sec_priv | J13: 96225 | K13: 88018 | L13: 1107438 | M13: 1093588 | N13: 1011688 | O13: 1009718 | P13: 1013116 | Q13: 1019221 | R13: 1022409 | S13: 1042923 | T13: 1060816 | U13: 1073647 | V13: 1069593 | W13: 1055879 | X13: 1078004 | Y13: 1092322 | Z13: 1091227 | AA13: 1093979 | AB13: 1101166 | AC13: 1113952 | AD13: 1129031 | AE13: 1142132 | AF13: 1149904 | AG13: 1160422 | AH13: 1144314 | AI13: 1135669 | AJ13: 1154693 | AK13: 1159148 | AL13: FALSO | AQ13: 5579 | AR13: 55793 | AS13: 3 | AT13: 5 | AU13: 579 | AV13: 579 | AW13: ANTIOQUIA | AX13: PUERTO BERRÍO | AY13: Independiente | AZ13: 26 | BA13: 24 | BB13: 773 | BC13: 807 | BD13: 800 | BE13: 817 | BF13: 829 | BG13: 849 | BH13: 852 | BI13: 858 | BJ13: 914 | BK13: 1057 | BL13: 1034 | BM13: 764 | BN13: 794 | BO13: 861 | BP13: 936 | BQ13: 982 | BR13: 973 | BS13: 1017 | BT13: 1034 | BU13: 1048 | BV13: 985 | BW13: 1117 | BX13: 1076 | BY13: 1001 | BZ13: 1040 | CA13: 997 | CH13: =CH4 -> 2020-03-01 | CI13: =CI4 -> 2020-04-01 | CJ13: 2020-05-01 | CK13: 2020-06-01 | CL13: 2020-07-01 | CM13: 2020-08-01 | CN13: 2020-09-01 | CO13: 2020-10-01 | CP13: 2020-11-01 | CQ13: 2020-12-01 | CR13: 2021-01-01 | CS13: 2021-02-01 | CT13: 2021-03-01 | CU13: 2021-04-01 | CV13: 2021-05-01 | CW13: 2021-06-01 | CX13: 2021-07-01 | CY13: 2021-08-01 | CZ13: 2021-09-01 | DA13: 2021-10-01 | DB13: 2021-11-01 | DC13: 2021-12-01 | DD13: 2022-01-01 | DE13: 2022-02-01 | DF13: 2022-03-01
A14: 5400 | B14: 54002 | C14: 2 | D14: 5 | E14: 400 | F14: 400 | G14: ANTIOQUIA | H14: LA UNIÓN | I14: Dep_sec_priv | J14: 211 | K14: 169 | L14: 1937 | M14: 1902 | N14: 1735 | O14: 1729 | P14: 1730 | Q14: 1788 | R14: 1827 | S14: 1864 | T14: 1859 | U14: 1866 | V14: 1824 | W14: 1824 | X14: 1891 | Y14: 1923 | Z14: 1944 | AA14: 1863 | AB14: 1884 | AC14: 1911 | AD14: 1933 | AE14: 1951 | AF14: 2025 | AG14: 2076 | AH14: 2105 | AI14: 2196 | AJ14: 2199 | AK14: 2209 | AL14: FALSO | AQ14: 5615 | AR14: 56153 | AS14: 3 | AT14: 5 | AU14: 615 | AV14: 615 | AW14: ANTIOQUIA | AX14: RIONEGRO | AY14: Independiente | AZ14: 382 | BA14: 239 | BB14: 9422 | BC14: 9408 | BD14: 9026 | BE14: 8885 | BF14: 9030 | BG14: 9160 | BH14: 9396 | BI14: 9510 | BJ14: 9672 | BK14: 9736 | BL14: 9658 | BM14: 9462 | BN14: 9542 | BO14: 9803 | BP14: 9980 | BQ14: 10018 | BR14: 10095 | BS14: 10183 | BT14: 10322 | BU14: 10357 | BV14: 10451 | BW14: 10508 | BX14: 10334 | BY14: 10226 | BZ14: 10312 | CA14: 10136 | CG14: Independientes | CH14: =IFERROR(SUMIFS(BC$2:BC$500,$AS$2:$AS$500,3,$AX$2:$AX$500,Visor!$Q$8)/SUMIFS(BB$2:BB$500,$AS$2:$AS$500,3,$AX$2:$AX$500,Visor!$Q$8)-1,"") -> -0.008626865061 | CI14: =IFERROR(SUMIFS(BD$2:BD$500,$AS$2:$AS$500,3,$AX$2:$AX$500,Visor!$Q$8)/SUMIFS(BC$2:BC$500,$AS$2:$AS$500,3,$AX$2:$AX$500,Visor!$Q$8)-1,"") -> -0.03981935484 | CJ14: =IFERROR(SUMIFS(BE$2:BE$500,$AS$2:$AS$500,3,$AX$2:$AX$500,Visor!$Q$8)/SUMIFS(BD$2:BD$500,$AS$2:$AS$500,3,$AX$2:$AX$500,Visor!$Q$8)-1,"") -> 0.004160507431 | CK14: =IFERROR(SUMIFS(BF$2:BF$500,$AS$2:$AS$500,3,$AX$2:$AX$500,Visor!$Q$8)/SUMIFS(BE$2:BE$500,$AS$2:$AS$500,3,$AX$2:$AX$500,Visor!$Q$8)-1,"") -> 0.0162304814 | CL14: =IFERROR(SUMIFS(BG$2:BG$500,$AS$2:$AS$500,3,$AX$2:$AX$500,Visor!$Q$8)/SUMIFS(BF$2:BF$500,$AS$2:$AS$500,3,$AX$2:$AX$500,Visor!$Q$8)-1,"") -> 0.009318324282 | CM14: =IFERROR(SUMIFS(BH$2:BH$500,$AS$2:$AS$500,3,$AX$2:$AX$500,Visor!$Q$8)/SUMIFS(BG$2:BG$500,$AS$2:$AS$500,3,$AX$2:$AX$500,Visor!$Q$8)-1,"") -> 0.008877407233 | CN14: =IFERROR(SUMIFS(BI$2:BI$500,$AS$2:$AS$500,3,$AX$2:$AX$500,Visor!$Q$8)/SUMIFS(BH$2:BH$500,$AS$2:$AS$500,3,$AX$2:$AX$500,Visor!$Q$8)-1,"") -> 0.01330498523 | CO14: =IFERROR(SUMIFS(BJ$2:BJ$500,$AS$2:$AS$500,3,$AX$2:$AX$500,Visor!$Q$8)/SUMIFS(BI$2:BI$500,$AS$2:$AS$500,3,$AX$2:$AX$500,Visor!$Q$8)-1,"") -> 0.01221137107 | CP14: =IFERROR(SUMIFS(BK$2:BK$500,$AS$2:$AS$500,3,$AX$2:$AX$500,Visor!$Q$8)/SUMIFS(BJ$2:BJ$500,$AS$2:$AS$500,3,$AX$2:$AX$500,Visor!$Q$8)-1,"") -> 0.009895347371 | CQ14: =IFERROR(SUMIFS(BL$2:BL$500,$AS$2:$AS$500,3,$AX$2:$AX$500,Visor!$Q$8)/SUMIFS(BK$2:BK$500,$AS$2:$AS$500,3,$AX$2:$AX$500,Visor!$Q$8)-1,"") -> -0.004889206291 | CR14: =IFERROR(SUMIFS(BM$2:BM$500,$AS$2:$AS$500,3,$AX$2:$AX$500,Visor!$Q$8)/SUMIFS(BL$2:BL$500,$AS$2:$AS$500,3,$AX$2:$AX$500,Visor!$Q$8)-1,"") -> -0.02769274007 | CS14: =IFERROR(SUMIFS(BN$2:BN$500,$AS$2:$AS$500,3,$AX$2:$AX$500,Visor!$Q$8)/SUMIFS(BM$2:BM$500,$AS$2:$AS$500,3,$AX$2:$AX$500,Visor!$Q$8)-1,"") -> 0.008217198307 | CT14: =IFERROR(SUMIFS(BO$2:BO$500,$AS$2:$AS$500,3,$AX$2:$AX$500,Visor!$Q$8)/SUMIFS(BN$2:BN$500,$AS$2:$AS$500,3,$AX$2:$AX$500,Visor!$Q$8)-1,"") -> 0.00969631192 | CU14: =IFERROR(SUMIFS(BP$2:BP$500,$AS$2:$AS$500,3,$AX$2:$AX$500,Visor!$Q$8)/SUMIFS(BO$2:BO$500,$AS$2:$AS$500,3,$AX$2:$AX$500,Visor!$Q$8)-1,"") -> 0.003310922495 | CV14: =IFERROR(SUMIFS(BQ$2:BQ$500,$AS$2:$AS$500,3,$AX$2:$AX$500,Visor!$Q$8)/SUMIFS(BP$2:BP$500,$AS$2:$AS$500,3,$AX$2:$AX$500,Visor!$Q$8)-1,"") -> 0.003168603035 | CW14: =IFERROR(SUMIFS(BR$2:BR$500,$AS$2:$AS$500,3,$AX$2:$AX$500,Visor!$Q$8)/SUMIFS(BQ$2:BQ$500,$AS$2:$AS$500,3,$AX$2:$AX$500,Visor!$Q$8)-1,"") -> 0.003173707596 | CX14: =IFERROR(SUMIFS(BS$2:BS$500,$AS$2:$AS$500,3,$AX$2:$AX$500,Visor!$Q$8)/SUMIFS(BR$2:BR$500,$AS$2:$AS$500,3,$AX$2:$AX$500,Visor!$Q$8)-1,"") -> 0.0006477984895 | CY14: =IFERROR(SUMIFS(BT$2:BT$500,$AS$2:$AS$500,3,$AX$2:$AX$500,Visor!$Q$8)/SUMIFS(BS$2:BS$500,$AS$2:$AS$500,3,$AX$2:$AX$500,Visor!$Q$8)-1,"") -> 0.01089503927 | CZ14: =IFERROR(SUMIFS(BU$2:BU$500,$AS$2:$AS$500,3,$AX$2:$AX$500,Visor!$Q$8)/SUMIFS(BT$2:BT$500,$AS$2:$AS$500,3,$AX$2:$AX$500,Visor!$Q$8)-1,"") -> 0.006796203261 | DA14: =IFERROR(SUMIFS(BV$2:BV$500,$AS$2:$AS$500,3,$AX$2:$AX$500,Visor!$Q$8)/SUMIFS(BU$2:BU$500,$AS$2:$AS$500,3,$AX$2:$AX$500,Visor!$Q$8)-1,"") -> 0.00320011834 | DB14: =IFERROR(SUMIFS(BW$2:BW$500,$AS$2:$AS$500,3,$AX$2:$AX$500,Visor!$Q$8)/SUMIFS(BV$2:BV$500,$AS$2:$AS$500,3,$AX$2:$AX$500,Visor!$Q$8)-1,"") -> 0.005647468224 | DC14: =IFERROR(SUMIFS(BX$2:BX$500,$AS$2:$AS$500,3,$AX$2:$AX$500,Visor!$Q$8)/SUMIFS(BW$2:BW$500,$AS$2:$AS$500,3,$AX$2:$AX$500,Visor!$Q$8)-1,"") -> -0.01281994888 | DD14: =IFERROR(SUMIFS(BY$2:BY$500,$AS$2:$AS$500,3,$AX$2:$AX$500,Visor!$Q$8)/SUMIFS(BX$2:BX$500,$AS$2:$AS$500,3,$AX$2:$AX$500,Visor!$Q$8)-1,"") -> -0.0271462521 | DE14: =IFERROR(SUMIFS(BZ$2:BZ$500,$AS$2:$AS$500,3,$AX$2:$AX$500,Visor!$Q$8)/SUMIFS(BY$2:BY$500,$AS$2:$AS$500,3,$AX$2:$AX$500,Visor!$Q$8)-1,"") -> 0.01218848125 | DF14: =IFERROR(SUMIFS(CA$2:CA$500,$AS$2:$AS$500,3,$AX$2:$AX$500,Visor!$Q$8)/SUMIFS(BZ$2:BZ$500,$AS$2:$AS$500,3,$AX$2:$AX$500,Visor!$Q$8)-1,"") -> -0.01906562355
A15: 68001 | B15: 680013 | C15: 3 | D15: 68 | E15: 1 | F15: 001 | G15: SANTANDER | H15: BUCARAMANGA | I15: Independiente | J15: 2726 | K15: 2178 | L15: 62030 | M15: 61455 | N15: 59245 | O15: 59184 | P15: 59971 | Q15: 60283 | R15: 60294 | S15: 60736 | T15: 61588 | U15: 61989 | V15: 62345 | W15: 58963 | X15: 59807 | Y15: 60683 | Z15: 60893 | AA15: 61069 | AB15: 61439 | AC15: 61606 | AD15: 61587 | AE15: 62078 | AF15: 62516 | AG15: 62991 | AH15: 62349 | AI15: 60811 | AJ15: 61562 | AK15: 59975 | AL15: FALSO | AQ15: 5079 | AR15: 50792 | AS15: 2 | AT15: 5 | AU15: 79 | AV15: 079 | AW15: ANTIOQUIA | AX15: BARBOSA | AY15: Dep_sec_priv | AZ15: 277 | BA15: 406 | BB15: 4200 | BC15: 4286 | BD15: 4045 | BE15: 4120 | BF15: 4275 | BG15: 4317 | BH15: 4331 | BI15: 4372 | BJ15: 4338 | BK15: 4377 | BL15: 4270 | BM15: 4204 | BN15: 4263 | BO15: 4120 | BP15: 4002 | BQ15: 3931 | BR15: 3932 | BS15: 4031 | BT15: 4022 | BU15: 3863 | BV15: 3938 | BW15: 4147 | BX15: 3982 | BY15: 3835 | BZ15: 3854 | CA15: 3855 | CG15: Dependientes | CH15: =IFERROR((SUMIFS(BC$2:BC$500,$AS$2:$AS$500,2,$AX$2:$AX$500,Visor!$Q$8)+SUMIFS(BC$2:BC$500,$AS$2:$AS$500,1,$AX$2:$AX$500,Visor!$Q$8))/(SUMIFS(BB$2:BB$500,$AS$2:$AS$500,2,$AX$2:$AX$500,Visor!$Q$8)+SUMIFS(BB$2:BB$500,$AS$2:$AS$500,1,$AX$2:$AX$500,Visor!$Q$8))-1,"") -> -0.004859527911 | CI15: =IFERROR((SUMIFS(BD$2:BD$500,$AS$2:$AS$500,2,$AX$2:$AX$500,Visor!$Q$8)+SUMIFS(BD$2:BD$500,$AS$2:$AS$500,1,$AX$2:$AX$500,Visor!$Q$8))/(SUMIFS(BC$2:BC$500,$AS$2:$AS$500,2,$AX$2:$AX$500,Visor!$Q$8)+SUMIFS(BC$2:BC$500,$AS$2:$AS$500,1,$AX$2:$AX$500,Visor!$Q$8))-1,"") -> -0.07815439716 | CJ15: =IFERROR((SUMIFS(BE$2:BE$500,$AS$2:$AS$500,2,$AX$2:$AX$500,Visor!$Q$8)+SUMIFS(BE$2:BE$500,$AS$2:$AS$500,1,$AX$2:$AX$500,Visor!$Q$8))/(SUMIFS(BD$2:BD$500,$AS$2:$AS$500,2,$AX$2:$AX$500,Visor!$Q$8)+SUMIFS(BD$2:BD$500,$AS$2:$AS$500,1,$AX$2:$AX$500,Visor!$Q$8))-1,"") -> -0.001078257329 | CK15: =IFERROR((SUMIFS(BF$2:BF$500,$AS$2:$AS$500,2,$AX$2:$AX$500,Visor!$Q$8)+SUMIFS(BF$2:BF$500,$AS$2:$AS$500,1,$AX$2:$AX$500,Visor!$Q$8))/(SUMIFS(BE$2:BE$500,$AS$2:$AS$500,2,$AX$2:$AX$500,Visor!$Q$8)+SUMIFS(BE$2:BE$500,$AS$2:$AS$500,1,$AX$2:$AX$500,Visor!$Q$8))-1,"") -> 0.007674253127 | CL15: =IFERROR((SUMIFS(BG$2:BG$500,$AS$2:$AS$500,2,$AX$2:$AX$500,Visor!$Q$8)+SUMIFS(BG$2:BG$500,$AS$2:$AS$500,1,$AX$2:$AX$500,Visor!$Q$8))/(SUMIFS(BF$2:BF$500,$AS$2:$AS$500,2,$AX$2:$AX$500,Visor!$Q$8)+SUMIFS(BF$2:BF$500,$AS$2:$AS$500,1,$AX$2:$AX$500,Visor!$Q$8))-1,"") -> 0.008145409049 | CM15: =IFERROR((SUMIFS(BH$2:BH$500,$AS$2:$AS$500,2,$AX$2:$AX$500,Visor!$Q$8)+SUMIFS(BH$2:BH$500,$AS$2:$AS$500,1,$AX$2:$AX$500,Visor!$Q$8))/(SUMIFS(BG$2:BG$500,$AS$2:$AS$500,2,$AX$2:$AX$500,Visor!$Q$8)+SUMIFS(BG$2:BG$500,$AS$2:$AS$500,1,$AX$2:$AX$500,Visor!$Q$8))-1,"") -> 0.007602726917 | CN15: =IFERROR((SUMIFS(BI$2:BI$500,$AS$2:$AS$500,2,$AX$2:$AX$500,Visor!$Q$8)+SUMIFS(BI$2:BI$500,$AS$2:$AS$500,1,$AX$2:$AX$500,Visor!$Q$8))/(SUMIFS(BH$2:BH$500,$AS$2:$AS$500,2,$AX$2:$AX$500,Visor!$Q$8)+SUMIFS(BH$2:BH$500,$AS$2:$AS$500,1,$AX$2:$AX$500,Visor!$Q$8))-1,"") -> 0.01869383582 | CO15: =IFERROR((SUMIFS(BJ$2:BJ$500,$AS$2:$AS$500,2,$AX$2:$AX$500,Visor!$Q$8)+SUMIFS(BJ$2:BJ$500,$AS$2:$AS$500,1,$AX$2:$AX$500,Visor!$Q$8))/(SUMIFS(BI$2:BI$500,$AS$2:$AS$500,2,$AX$2:$AX$500,Visor!$Q$8)+SUMIFS(BI$2:BI$500,$AS$2:$AS$500,1,$AX$2:$AX$500,Visor!$Q$8))-1,"") -> 0.009728179091 | CP15: =IFERROR((SUMIFS(BK$2:BK$500,$AS$2:$AS$500,2,$AX$2:$AX$500,Visor!$Q$8)+SUMIFS(BK$2:BK$500,$AS$2:$AS$500,1,$AX$2:$AX$500,Visor!$Q$8))/(SUMIFS(BJ$2:BJ$500,$AS$2:$AS$500,2,$AX$2:$AX$500,Visor!$Q$8)+SUMIFS(BJ$2:BJ$500,$AS$2:$AS$500,1,$AX$2:$AX$500,Visor!$Q$8))-1,"") -> 0.005381908847 | CQ15: =IFERROR((SUMIFS(BL$2:BL$500,$AS$2:$AS$500,2,$AX$2:$AX$500,Visor!$Q$8)+SUMIFS(BL$2:BL$500,$AS$2:$AS$500,1,$AX$2:$AX$500,Visor!$Q$8))/(SUMIFS(BK$2:BK$500,$AS$2:$AS$500,2,$AX$2:$AX$500,Visor!$Q$8)+SUMIFS(BK$2:BK$500,$AS$2:$AS$500,1,$AX$2:$AX$500,Visor!$Q$8))-1,"") -> -0.01201388118 | CR15: =IFERROR((SUMIFS(BM$2:BM$500,$AS$2:$AS$500,2,$AX$2:$AX$500,Visor!$Q$8)+SUMIFS(BM$2:BM$500,$AS$2:$AS$500,1,$AX$2:$AX$500,Visor!$Q$8))/(SUMIFS(BL$2:BL$500,$AS$2:$AS$500,2,$AX$2:$AX$500,Visor!$Q$8)+SUMIFS(BL$2:BL$500,$AS$2:$AS$500,1,$AX$2:$AX$500,Visor!$Q$8))-1,"") -> -0.01600604407 | CS15: =IFERROR((SUMIFS(BN$2:BN$500,$AS$2:$AS$500,2,$AX$2:$AX$500,Visor!$Q$8)+SUMIFS(BN$2:BN$500,$AS$2:$AS$500,1,$AX$2:$AX$500,Visor!$Q$8))/(SUMIFS(BM$2:BM$500,$AS$2:$AS$500,2,$AX$2:$AX$500,Visor!$Q$8)+SUMIFS(BM$2:BM$500,$AS$2:$AS$500,1,$AX$2:$AX$500,Visor!$Q$8))-1,"") -> 0.0315300574 | CT15: =IFERROR((SUMIFS(BO$2:BO$500,$AS$2:$AS$500,2,$AX$2:$AX$500,Visor!$Q$8)+SUMIFS(BO$2:BO$500,$AS$2:$AS$500,1,$AX$2:$AX$500,Visor!$Q$8))/(SUMIFS(BN$2:BN$500,$AS$2:$AS$500,2,$AX$2:$AX$500,Visor!$Q$8)+SUMIFS(BN$2:BN$500,$AS$2:$AS$500,1,$AX$2:$AX$500,Visor!$Q$8))-1,"") -> 0.01849678068 | CU15: =IFERROR((SUMIFS(BP$2:BP$500,$AS$2:$AS$500,2,$AX$2:$AX$500,Visor!$Q$8)+SUMIFS(BP$2:BP$500,$AS$2:$AS$500,1,$AX$2:$AX$500,Visor!$Q$8))/(SUMIFS(BO$2:BO$500,$AS$2:$AS$500,2,$AX$2:$AX$500,Visor!$Q$8)+SUMIFS(BO$2:BO$500,$AS$2:$AS$500,1,$AX$2:$AX$500,Visor!$Q$8))-1,"") -> -0.001483986444 | CV15: =IFERROR((SUMIFS(BQ$2:BQ$500,$AS$2:$AS$500,2,$AX$2:$AX$500,Visor!$Q$8)+SUMIFS(BQ$2:BQ$500,$AS$2:$AS$500,1,$AX$2:$AX$500,Visor!$Q$8))/(SUMIFS(BP$2:BP$500,$AS$2:$AS$500,2,$AX$2:$AX$500,Visor!$Q$8)+SUMIFS(BP$2:BP$500,$AS$2:$AS$500,1,$AX$2:$AX$500,Visor!$Q$8))-1,"") -> 0.00500649909 | CW15: =IFERROR((SUMIFS(BR$2:BR$500,$AS$2:$AS$500,2,$AX$2:$AX$500,Visor!$Q$8)+SUMIFS(BR$2:BR$500,$AS$2:$AS$500,1,$AX$2:$AX$500,Visor!$Q$8))/(SUMIFS(BQ$2:BQ$500,$AS$2:$AS$500,2,$AX$2:$AX$500,Visor!$Q$8)+SUMIFS(BQ$2:BQ$500,$AS$2:$AS$500,1,$AX$2:$AX$500,Visor!$Q$8))-1,"") -> 0.005583261835 | CX15: =IFERROR((SUMIFS(BS$2:BS$500,$AS$2:$AS$500,2,$AX$2:$AX$500,Visor!$Q$8)+SUMIFS(BS$2:BS$500,$AS$2:$AS$500,1,$AX$2:$AX$500,Visor!$Q$8))/(SUMIFS(BR$2:BR$500,$AS$2:$AS$500,2,$AX$2:$AX$500,Visor!$Q$8)+SUMIFS(BR$2:BR$500,$AS$2:$AS$500,1,$AX$2:$AX$500,Visor!$Q$8))-1,"") -> 0.007288778574 | CY15: =IFERROR((SUMIFS(BT$2:BT$500,$AS$2:$AS$500,2,$AX$2:$AX$500,Visor!$Q$8)+SUMIFS(BT$2:BT$500,$AS$2:$AS$500,1,$AX$2:$AX$500,Visor!$Q$8))/(SUMIFS(BS$2:BS$500,$AS$2:$AS$500,2,$AX$2:$AX$500,Visor!$Q$8)+SUMIFS(BS$2:BS$500,$AS$2:$AS$500,1,$AX$2:$AX$500,Visor!$Q$8))-1,"") -> 0.02119186773 | CZ15: =IFERROR((SUMIFS(BU$2:BU$500,$AS$2:$AS$500,2,$AX$2:$AX$500,Visor!$Q$8)+SUMIFS(BU$2:BU$500,$AS$2:$AS$500,1,$AX$2:$AX$500,Visor!$Q$8))/(SUMIFS(BT$2:BT$500,$AS$2:$AS$500,2,$AX$2:$AX$500,Visor!$Q$8)+SUMIFS(BT$2:BT$500,$AS$2:$AS$500,1,$AX$2:$AX$500,Visor!$Q$8))-1,"") -> 0.01566986861 | DA15: =IFERROR((SUMIFS(BV$2:BV$500,$AS$2:$AS$500,2,$AX$2:$AX$500,Visor!$Q$8)+SUMIFS(BV$2:BV$500,$AS$2:$AS$500,1,$AX$2:$AX$500,Visor!$Q$8))/(SUMIFS(BU$2:BU$500,$AS$2:$AS$500,2,$AX$2:$AX$500,Visor!$Q$8)+SUMIFS(BU$2:BU$500,$AS$2:$AS$500,1,$AX$2:$AX$500,Visor!$Q$8))-1,"") -> 0.007671252802 | DB15: =IFERROR((SUMIFS(BW$2:BW$500,$AS$2:$AS$500,2,$AX$2:$AX$500,Visor!$Q$8)+SUMIFS(BW$2:BW$500,$AS$2:$AS$500,1,$AX$2:$AX$500,Visor!$Q$8))/(SUMIFS(BV$2:BV$500,$AS$2:$AS$500,2,$AX$2:$AX$500,Visor!$Q$8)+SUMIFS(BV$2:BV$500,$AS$2:$AS$500,1,$AX$2:$AX$500,Visor!$Q$8))-1,"") -> 0.003712449788 | DC15: =IFERROR((SUMIFS(BX$2:BX$500,$AS$2:$AS$500,2,$AX$2:$AX$500,Visor!$Q$8)+SUMIFS(BX$2:BX$500,$AS$2:$AS$500,1,$AX$2:$AX$500,Visor!$Q$8))/(SUMIFS(BW$2:BW$500,$AS$2:$AS$500,2,$AX$2:$AX$500,Visor!$Q$8)+SUMIFS(BW$2:BW$500,$AS$2:$AS$500,1,$AX$2:$AX$500,Visor!$Q$8))-1,"") -> -0.03257688623 | DD15: =IFERROR((SUMIFS(BY$2:BY$500,$AS$2:$AS$500,2,$AX$2:$AX$500,Visor!$Q$8)+SUMIFS(BY$2:BY$500,$AS$2:$AS$500,1,$AX$2:$AX$500,Visor!$Q$8))/(SUMIFS(BX$2:BX$500,$AS$2:$AS$500,2,$AX$2:$AX$500,Visor!$Q$8)+SUMIFS(BX$2:BX$500,$AS$2:$AS$500,1,$AX$2:$AX$500,Visor!$Q$8))-1,"") -> -0.01156271655 | DE15: =IFERROR((SUMIFS(BZ$2:BZ$500,$AS$2:$AS$500,2,$AX$2:$AX$500,Visor!$Q$8)+SUMIFS(BZ$2:BZ$500,$AS$2:$AS$500,1,$AX$2:$AX$500,Visor!$Q$8))/(SUMIFS(BY$2:BY$500,$AS$2:$AS$500,2,$AX$2:$AX$500,Visor!$Q$8)+SUMIFS(BY$2:BY$500,$AS$2:$AS$500,1,$AX$2:$AX$500,Visor!$Q$8))-1,"") -> 0.03016298367 | DF15: =IFERROR((SUMIFS(CA$2:CA$500,$AS$2:$AS$500,2,$AX$2:$AX$500,Visor!$Q$8)+SUMIFS(CA$2:CA$500,$AS$2:$AS$500,1,$AX$2:$AX$500,Visor!$Q$8))/(SUMIFS(BZ$2:BZ$500,$AS$2:$AS$500,2,$AX$2:$AX$500,Visor!$Q$8)+SUMIFS(BZ$2:BZ$500,$AS$2:$AS$500,1,$AX$2:$AX$500,Visor!$Q$8))-1,"") -> 0.01136078495
A16: 5631 | B16: 56312 | C16: 2 | D16: 5 | E16: 631 | F16: 631 | G16: ANTIOQUIA | H16: SABANETA | I16: Dep_sec_priv | J16: 1900 | K16: 1635 | L16: 21672 | M16: 21591 | N16: 20085 | O16: 19943 | P16: 19788 | Q16: 19959 | R16: 20412 | S16: 20798 | T16: 21235 | U16: 22132 | V16: 21874 | W16: 21782 | X16: 22128 | Y16: 22488 | Z16: 22450 | AA16: 22381 | AB16: 22265 | AC16: 22667 | AD16: 23060 | AE16: 23659 | AF16: 24122 | AG16: 24220 | AH16: 23834 | AI16: 23722 | AJ16: 24372 | AK16: 24348 | AL16: FALSO | AQ16: 5088 | AR16: 50883 | AS16: 3 | AT16: 5 | AU16: 88 | AV16: 088 | AW16: ANTIOQUIA | AX16: BELLO | AY16: Independiente | AZ16: 707 | BA16: 391 | BB16: 9679 | BC16: 9821 | BD16: 9942 | BE16: 10083 | BF16: 10276 | BG16: 10496 | BH16: 10715 | BI16: 11076 | BJ16: 11414 | BK16: 11717 | BL16: 11559 | BM16: 10714 | BN16: 11192 | BO16: 11622 | BP16: 11794 | BQ16: 12056 | BR16: 12209 | BS16: 12315 | BT16: 12482 | BU16: 12612 | BV16: 12770 | BW16: 13054 | BX16: 12744 | BY16: 12639 | BZ16: 13046 | CA16: 12758 | CG16: Dep.Privados | CH16: =IFERROR(SUMIFS(BC$2:BC$500,$AS$2:$AS$500,2,$AX$2:$AX$500,Visor!$Q$8)/SUMIFS(BB$2:BB$500,$AS$2:$AS$500,2,$AX$2:$AX$500,Visor!$Q$8)-1,"") -> -0.01250634347 | CI16: =IFERROR(SUMIFS(BD$2:BD$500,$AS$2:$AS$500,2,$AX$2:$AX$500,Visor!$Q$8)/SUMIFS(BC$2:BC$500,$AS$2:$AS$500,2,$AX$2:$AX$500,Visor!$Q$8)-1,"") -> -0.07489109244 | CJ16: =IFERROR(SUMIFS(BE$2:BE$500,$AS$2:$AS$500,2,$AX$2:$AX$500,Visor!$Q$8)/SUMIFS(BD$2:BD$500,$AS$2:$AS$500,2,$AX$2:$AX$500,Visor!$Q$8)-1,"") -> -0.001947240651 | CK16: =IFERROR(SUMIFS(BF$2:BF$500,$AS$2:$AS$500,2,$AX$2:$AX$500,Visor!$Q$8)/SUMIFS(BE$2:BE$500,$AS$2:$AS$500,2,$AX$2:$AX$500,Visor!$Q$8)-1,"") -> 0.003365296053 | CL16: =IFERROR(SUMIFS(BG$2:BG$500,$AS$2:$AS$500,2,$AX$2:$AX$500,Visor!$Q$8)/SUMIFS(BF$2:BF$500,$AS$2:$AS$500,2,$AX$2:$AX$500,Visor!$Q$8)-1,"") -> 0.006025963463 | CM16: =IFERROR(SUMIFS(BH$2:BH$500,$AS$2:$AS$500,2,$AX$2:$AX$500,Visor!$Q$8)/SUMIFS(BG$2:BG$500,$AS$2:$AS$500,2,$AX$2:$AX$500,Visor!$Q$8)-1,"") -> 0.003127879037 | CN16: =IFERROR(SUMIFS(BI$2:BI$500,$AS$2:$AS$500,2,$AX$2:$AX$500,Visor!$Q$8)/SUMIFS(BH$2:BH$500,$AS$2:$AS$500,2,$AX$2:$AX$500,Visor!$Q$8)-1,"") -> 0.02006437737 | CO16: =IFERROR(SUMIFS(BJ$2:BJ$500,$AS$2:$AS$500,2,$AX$2:$AX$500,Visor!$Q$8)/SUMIFS(BI$2:BI$500,$AS$2:$AS$500,2,$AX$2:$AX$500,Visor!$Q$8)-1,"") -> 0.01715658778 | CP16: =IFERROR(SUMIFS(BK$2:BK$500,$AS$2:$AS$500,2,$AX$2:$AX$500,Visor!$Q$8)/SUMIFS(BJ$2:BJ$500,$AS$2:$AS$500,2,$AX$2:$AX$500,Visor!$Q$8)-1,"") -> 0.0120954058 | CQ16: =IFERROR(SUMIFS(BL$2:BL$500,$AS$2:$AS$500,2,$AX$2:$AX$500,Visor!$Q$8)/SUMIFS(BK$2:BK$500,$AS$2:$AS$500,2,$AX$2:$AX$500,Visor!$Q$8)-1,"") -> -0.003775915175 | CR16: =IFERROR(SUMIFS(BM$2:BM$500,$AS$2:$AS$500,2,$AX$2:$AX$500,Visor!$Q$8)/SUMIFS(BL$2:BL$500,$AS$2:$AS$500,2,$AX$2:$AX$500,Visor!$Q$8)-1,"") -> -0.01282169947 | CS16: =IFERROR(SUMIFS(BN$2:BN$500,$AS$2:$AS$500,2,$AX$2:$AX$500,Visor!$Q$8)/SUMIFS(BM$2:BM$500,$AS$2:$AS$500,2,$AX$2:$AX$500,Visor!$Q$8)-1,"") -> 0.02095410554 | CT16: =IFERROR(SUMIFS(BO$2:BO$500,$AS$2:$AS$500,2,$AX$2:$AX$500,Visor!$Q$8)/SUMIFS(BN$2:BN$500,$AS$2:$AS$500,2,$AX$2:$AX$500,Visor!$Q$8)-1,"") -> 0.01328195443 | CU16: =IFERROR(SUMIFS(BP$2:BP$500,$AS$2:$AS$500,2,$AX$2:$AX$500,Visor!$Q$8)/SUMIFS(BO$2:BO$500,$AS$2:$AS$500,2,$AX$2:$AX$500,Visor!$Q$8)-1,"") -> -0.001002451658 | CV16: =IFERROR(SUMIFS(BQ$2:BQ$500,$AS$2:$AS$500,2,$AX$2:$AX$500,Visor!$Q$8)/SUMIFS(BP$2:BP$500,$AS$2:$AS$500,2,$AX$2:$AX$500,Visor!$Q$8)-1,"") -> 0.002521931734 | CW16: =IFERROR(SUMIFS(BR$2:BR$500,$AS$2:$AS$500,2,$AX$2:$AX$500,Visor!$Q$8)/SUMIFS(BQ$2:BQ$500,$AS$2:$AS$500,2,$AX$2:$AX$500,Visor!$Q$8)-1,"") -> 0.006569595943 | CX16: =IFERROR(SUMIFS(BS$2:BS$500,$AS$2:$AS$500,2,$AX$2:$AX$500,Visor!$Q$8)/SUMIFS(BR$2:BR$500,$AS$2:$AS$500,2,$AX$2:$AX$500,Visor!$Q$8)-1,"") -> 0.01161132836 | CY16: =IFERROR(SUMIFS(BT$2:BT$500,$AS$2:$AS$500,2,$AX$2:$AX$500,Visor!$Q$8)/SUMIFS(BS$2:BS$500,$AS$2:$AS$500,2,$AX$2:$AX$500,Visor!$Q$8)-1,"") -> 0.0135364899 | CZ16: =IFERROR(SUMIFS(BU$2:BU$500,$AS$2:$AS$500,2,$AX$2:$AX$500,Visor!$Q$8)/SUMIFS(BT$2:BT$500,$AS$2:$AS$500,2,$AX$2:$AX$500,Visor!$Q$8)-1,"") -> 0.01160375579 | DA16: =IFERROR(SUMIFS(BV$2:BV$500,$AS$2:$AS$500,2,$AX$2:$AX$500,Visor!$Q$8)/SUMIFS(BU$2:BU$500,$AS$2:$AS$500,2,$AX$2:$AX$500,Visor!$Q$8)-1,"") -> 0.006804817657 | DB16: =IFERROR(SUMIFS(BW$2:BW$500,$AS$2:$AS$500,2,$AX$2:$AX$500,Visor!$Q$8)/SUMIFS(BV$2:BV$500,$AS$2:$AS$500,2,$AX$2:$AX$500,Visor!$Q$8)-1,"") -> 0.00914685052 | DC16: =IFERROR(SUMIFS(BX$2:BX$500,$AS$2:$AS$500,2,$AX$2:$AX$500,Visor!$Q$8)/SUMIFS(BW$2:BW$500,$AS$2:$AS$500,2,$AX$2:$AX$500,Visor!$Q$8)-1,"") -> -0.01388115703 | DD16: =IFERROR(SUMIFS(BY$2:BY$500,$AS$2:$AS$500,2,$AX$2:$AX$500,Visor!$Q$8)/SUMIFS(BX$2:BX$500,$AS$2:$AS$500,2,$AX$2:$AX$500,Visor!$Q$8)-1,"") -> -0.007554744589 | DE16: =IFERROR(SUMIFS(BZ$2:BZ$500,$AS$2:$AS$500,2,$AX$2:$AX$500,Visor!$Q$8)/SUMIFS(BY$2:BY$500,$AS$2:$AS$500,2,$AX$2:$AX$500,Visor!$Q$8)-1,"") -> 0.01675135977 | DF16: =IFERROR(SUMIFS(CA$2:CA$500,$AS$2:$AS$500,2,$AX$2:$AX$500,Visor!$Q$8)/SUMIFS(BZ$2:BZ$500,$AS$2:$AS$500,2,$AX$2:$AX$500,Visor!$Q$8)-1,"") -> 0.003858168362
A17: 13001 | B17: 130012 | C17: 2 | D17: 13 | E17: 1 | F17: 001 | G17: BOLÍVAR | H17: CARTAGENA | I17: Dep_sec_priv | J17: 22011 | K17: 19438 | L17: 215778 | M17: 212304 | N17: 192636 | O17: 190468 | P17: 187854 | Q17: 186353 | R17: 187174 | S17: 189079 | T17: 192743 | U17: 196716 | V17: 198977 | W17: 194033 | X17: 200245 | Y17: 206157 | Z17: 205111 | AA17: 203456 | AB17: 204999 | AC17: 207741 | AD17: 211672 | AE17: 215966 | AF17: 219940 | AG17: 222499 | AH17: 222515 | AI17: 220009 | AJ17: 225504 | AK17: 227737 | AL17: FALSO | AQ17: 5059 | AR17: 50592 | AS17: 2 | AT17: 5 | AU17: 59 | AV17: 059 | AW17: ANTIOQUIA | AX17: ARMENIA | AY17: Dep_sec_priv | AZ17: 29 | BA17: 15 | BB17: 201 | BC17: 160 | BD17: 162 | BE17: 160 | BF17: 172 | BG17: 171 | BH17: 179 | BI17: 170 | BJ17: 162 | BK17: 166 | BL17: 171 | BM17: 160 | BN17: 164 | BO17: 189 | BP17: 174 | BQ17: 201 | BR17: 186 | BS17: 228 | BT17: 307 | BU17: 263 | BV17: 285 | BW17: 310 | BX17: 297 | BY17: 185 | BZ17: 169 | CA17: 181
A18: 68013 | B18: 680132 | C18: 2 | D18: 68 | E18: 13 | F18: 013 | G18: SANTANDER | H18: AGUADA | I18: Dep_sec_priv | J18: 23 | K18: 21 | L18: 1715 | M18: 842 | N18: 794 | O18: 714 | P18: 783 | Q18: 834 | R18: 710 | S18: 717 | T18: 704 | U18: 842 | V18: 1014 | W18: 981 | X18: 982 | Y18: 1883 | Z18: 757 | AA18: 779 | AB18: 1646 | AC18: 709 | AD18: 743 | AE18: 965 | AF18: 1387 | AG18: 374 | AH18: 473 | AI18: 400 | AJ18: 397 | AK18: 359 | AL18: FALSO | AQ18: 5088 | AR18: 50882 | AS18: 2 | AT18: 5 | AU18: 88 | AV18: 088 | AW18: ANTIOQUIA | AX18: BELLO | AY18: Dep_sec_priv | AZ18: 3161 | BA18: 3006 | BB18: 36730 | BC18: 36502 | BD18: 33656 | BE18: 33973 | BF18: 35145 | BG18: 35479 | BH18: 35160 | BI18: 35489 | BJ18: 35981 | BK18: 36330 | BL18: 35922 | BM18: 35470 | BN18: 36973 | BO18: 37598 | BP18: 37328 | BQ18: 37468 | BR18: 36683 | BS18: 37198 | BT18: 37669 | BU18: 38237 | BV18: 38558 | BW18: 39313 | BX18: 37522 | BY18: 37747 | BZ18: 38399 | CA18: 38023
A19: 25126 | B19: 251263 | C19: 3 | D19: 25 | E19: 126 | F19: 126 | G19: CUNDINAMARCA | H19: CAJICÁ | I19: Independiente | J19: 348 | K19: 190 | L19: 4559 | M19: 4625 | N19: 4438 | O19: 4467 | P19: 4574 | Q19: 4722 | R19: 4763 | S19: 4930 | T19: 5054 | U19: 5072 | V19: 5065 | W19: 4994 | X19: 5172 | Y19: 5271 | Z19: 5359 | AA19: 5408 | AB19: 5446 | AC19: 5470 | AD19: 5552 | AE19: 5622 | AF19: 5660 | AG19: 5687 | AH19: 5647 | AI19: 5607 | AJ19: 5783 | AK19: 5672 | AL19: FALSO | AQ19: 5212 | AR19: 52122 | AS19: 2 | AT19: 5 | AU19: 212 | AV19: 212 | AW19: ANTIOQUIA | AX19: COPACABANA | AY19: Dep_sec_priv | AZ19: 576 | BA19: 477 | BB19: 7635 | BC19: 7459 | BD19: 7032 | BE19: 6813 | BF19: 6905 | BG19: 7047 | BH19: 7164 | BI19: 7359 | BJ19: 7630 | BK19: 7840 | BL19: 7729 | BM19: 7718 | BN19: 7785 | BO19: 7825 | BP19: 7660 | BQ19: 7511 | BR19: 7429 | BS19: 7391 | BT19: 7449 | BU19: 7492 | BV19: 7508 | BW19: 7389 | BX19: 7354 | BY19: 7469 | BZ19: 7626 | CA19: 7749
A20: 41001 | B20: 410013 | C20: 3 | D20: 41 | E20: 1 | F20: 001 | G20: HUILA | H20: NEIVA | I20: Independiente | J20: 1227 | K20: 932 | L20: 21053 | M20: 21048 | N20: 20264 | O20: 20332 | P20: 20655 | Q20: 21043 | R20: 21451 | S20: 21962 | T20: 22350 | U20: 22663 | V20: 22346 | W20: 20721 | X20: 21746 | Y20: 22194 | Z20: 22506 | AA20: 22447 | AB20: 22627 | AC20: 22863 | AD20: 23050 | AE20: 23201 | AF20: 23430 | AG20: 23556 | AH20: 23187 | AI20: 22734 | AJ20: 23238 | AK20: 22532 | AL20: FALSO | AQ20: 5091 | AR20: 50913 | AS20: 3 | AT20: 5 | AU20: 91 | AV20: 091 | AW20: ANTIOQUIA | AX20: BETANIA | AY20: Independiente | AZ20: 4 | BA20: 3 | BB20: 300 | BC20: 290 | BD20: 282 | BE20: 279 | BF20: 288 | BG20: 289 | BH20: 291 | BI20: 291 | BJ20: 315 | BK20: 327 | BL20: 321 | BM20: 289 | BN20: 286 | BO20: 277 | BP20: 273 | BQ20: 266 | BR20: 266 | BS20: 264 | BT20: 270 | BU20: 270 | BV20: 268 | BW20: 265 | BX20: 258 | BY20: 240 | BZ20: 256 | CA20: 251
A21: 5001 | B21: 50013 | C21: 3 | D21: 5 | E21: 1 | F21: 001 | G21: ANTIOQUIA | H21: MEDELLÍN | I21: Independiente | J21: 9979 | K21: 7267 | L21: 195436 | M21: 193750 | N21: 186035 | O21: 186809 | P21: 189841 | Q21: 191610 | R21: 193311 | S21: 195883 | T21: 198275 | U21: 200237 | V21: 199258 | W21: 193740 | X21: 195332 | Y21: 197226 | Z21: 197879 | AA21: 198506 | AB21: 199136 | AC21: 199265 | AD21: 201436 | AE21: 202805 | AF21: 203454 | AG21: 204603 | AH21: 201980 | AI21: 196497 | AJ21: 198892 | AK21: 195100 | AL21: FALSO | AQ21: 5736 | AR21: 57361 | AS21: 1 | AT21: 5 | AU21: 736 | AV21: 736 | AW21: ANTIOQUIA | AX21: SEGOVIA | AY21: Dep_No_priv | AZ21: 78 | BA21: 40 | BB21: 510 | BC21: 517 | BD21: 507 | BE21: 501 | BF21: 495 | BG21: 512 | BH21: 535 | BI21: 539 | BJ21: 530 | BK21: 534 | BL21: 539 | BM21: 534 | BN21: 543 | BO21: 537 | BP21: 522 | BQ21: 517 | BR21: 523 | BS21: 526 | BT21: 528 | BU21: 523 | BV21: 524 | BW21: 538 | BX21: 540 | BY21: 514 | BZ21: 513 | CA21: 562
A22: 63001 | B22: 630013 | C22: 3 | D22: 63 | E22: 1 | F22: 001 | G22: QUINDÍO | H22: ARMENIA | I22: Independiente | J22: 909 | K22: 682 | L22: 23439 | M22: 23383 | N22: 22527 | O22: 22412 | P22: 22353 | Q22: 22272 | R22: 22416 | S22: 22658 | T22: 22948 | U22: 23608 | V22: 23408 | W22: 22103 | X22: 23111 | Y22: 23409 | Z22: 23486 | AA22: 23410 | AB22: 23565 | AC22: 23649 | AD22: 23736 | AE22: 24007 | AF22: 24175 | AG22: 24271 | AH22: 23805 | AI22: 24559 | AJ22: 24800 | AK22: 24181 | AL22: FALSO | AQ22: 5091 | AR22: 50911 | AS22: 1 | AT22: 5 | AU22: 91 | AV22: 091 | AW22: ANTIOQUIA | AX22: BETANIA | AY22: Dep_No_priv | AZ22: 14 | BA22: 9 | BB22: 156 | BC22: 164 | BD22: 164 | BE22: 164 | BF22: 163 | BG22: 164 | BH22: 164 | BI22: 163 | BJ22: 160 | BK22: 159 | BL22: 166 | BM22: 157 | BN22: 158 | BO22: 160 | BP22: 161 | BQ22: 164 | BR22: 163 | BS22: 168 | BT22: 172 | BU22: 169 | BV22: 175 | BW22: 174 | BX22: 177 | BY22: 166 | BZ22: 158 | CA22: 169
A23: 23001 | B23: 230012 | C23: 2 | D23: 23 | E23: 1 | F23: 001 | G23: CÓRDOBA | H23: MONTERÍA | I23: Dep_sec_priv | J23: 7249 | K23: 6505 | L23: 72063 | M23: 73706 | N23: 69043 | O23: 70790 | P23: 70846 | Q23: 70829 | R23: 71129 | S23: 72090 | T23: 73344 | U23: 74735 | V23: 74478 | W23: 68967 | X23: 70557 | Y23: 72210 | Z23: 72754 | AA23: 73728 | AB23: 74735 | AC23: 75215 | AD23: 76323 | AE23: 78572 | AF23: 79241 | AG23: 81501 | AH23: 80918 | AI23: 76136 | AJ23: 78837 | AK23: 80076 | AL23: FALSO | AQ23: 5873 | AR23: 58731 | AS23: 1 | AT23: 5 | AU23: 873 | AV23: 873 | AW23: ANTIOQUIA | AX23: VIGÍA DEL FUERTE | AY23: Dep_No_priv | AZ23: 10 | BA23: 12 | BB23: 178 | BC23: 186 | BD23: 185 | BE23: 184 | BF23: 181 | BG23: 184 | BH23: 187 | BI23: 184 | BJ23: 189 | BK23: 190 | BL23: 190 | BM23: 180 | BN23: 194 | BO23: 196 | BP23: 188 | BQ23: 182 | BR23: 181 | BS23: 181 | BT23: 180 | BU23: 182 | BV23: 185 | BW23: 188 | BX23: 188 | BY23: 186 | BZ23: 180 | CA23: 186
A24: 23001 | B24: 230013 | C24: 3 | D24: 23 | E24: 1 | F24: 001 | G24: CÓRDOBA | H24: MONTERÍA | I24: Independiente | J24: 931 | K24: 633 | L24: 16298 | M24: 16257 | N24: 15613 | O24: 15602 | P24: 15767 | Q24: 15990 | R24: 16186 | S24: 16484 | T24: 16816 | U24: 17104 | V24: 16668 | W24: 15488 | X24: 16157 | Y24: 16808 | Z24: 17066 | AA24: 17289 | AB24: 17484 | AC24: 17639 | AD24: 17839 | AE24: 17963 | AF24: 18158 | AG24: 18225 | AH24: 17585 | AI24: 16600 | AJ24: 17433 | AK24: 16578 | AL24: FALSO | AQ24: 5004 | AR24: 50043 | AS24: 3 | AT24: 5 | AU24: 4 | AV24: 004 | AW24: ANTIOQUIA | AX24: ABRIAQUÍ | AY24: Independiente | AZ24: 6 | BA24: 2 | BB24: 55 | BC24: 57 | BD24: 55 | BE24: 56 | BF24: 58 | BG24: 55 | BH24: 52 | BI24: 126 | BJ24: 137 | BK24: 137 | BL24: 137 | BM24: 113 | BN24: 118 | BO24: 118 | BP24: 110 | BQ24: 66 | BR24: 70 | BS24: 72 | BT24: 71 | BU24: 76 | BV24: 72 | BW24: 71 | BX24: 69 | BY24: 44 | BZ24: 69 | CA24: 66
A25: 68001 | B25: 680012 | C25: 2 | D25: 68 | E25: 1 | F25: 001 | G25: SANTANDER | H25: BUCARAMANGA | I25: Dep_sec_priv | J25: 22559 | K25: 21290 | L25: 248799 | M25: 247709 | N25: 224579 | O25: 222139 | P25: 224860 | Q25: 226486 | R25: 228001 | S25: 231410 | T25: 234523 | U25: 238446 | V25: 237216 | W25: 231609 | X25: 238561 | Y25: 241734 | Z25: 242400 | AA25: 241691 | AB25: 245242 | AC25: 248278 | AD25: 251811 | AE25: 252929 | AF25: 254300 | AG25: 258310 | AH25: 254701 | AI25: 251240 | AJ25: 255061 | AK25: 256408 | AL25: FALSO | AQ25: 5483 | AR25: 54831 | AS25: 1 | AT25: 5 | AU25: 483 | AV25: 483 | AW25: ANTIOQUIA | AX25: NARIÑO | AY25: Dep_No_priv | AZ25: 14 | BA25: 12 | BB25: 184 | BC25: 189 | BD25: 190 | BE25: 190 | BF25: 191 | BG25: 192 | BH25: 193 | BI25: 194 | BJ25: 194 | BK25: 189 | BL25: 187 | BM25: 189 | BN25: 194 | BO25: 195 | BP25: 203 | BQ25: 208 | BR25: 203 | BS25: 200 | BT25: 192 | BU25: 195 | BV25: 194 | BW25: 197 | BX25: 197 | BY25: 191 | BZ25: 187 | CA25: 197
A26: 8001 | B26: 80013 | C26: 3 | D26: 8 | E26: 1 | F26: 001 | G26: ATLÁNTICO | H26: BARRANQUILLA | I26: Independiente | J26: 5391 | K26: 3984 | L26: 63266 | M26: 63365 | N26: 68331 | O26: 68011 | P26: 62778 | Q26: 63014 | R26: 63619 | S26: 64866 | T26: 65973 | U26: 66448 | V26: 64460 | W26: 61076 | X26: 62085 | Y26: 64041 | Z26: 65641 | AA26: 66708 | AB26: 67167 | AC26: 67158 | AD26: 67803 | AE26: 68301 | AF26: 68673 | AG26: 68811 | AH26: 65622 | AI26: 63456 | AJ26: 66709 | AK26: 64869 | AL26: FALSO | AQ26: 5282 | AR26: 52821 | AS26: 1 | AT26: 5 | AU26: 282 | AV26: 282 | AW26: ANTIOQUIA | AX26: FREDONIA | AY26: Dep_No_priv | AZ26: 30 | BA26: 26 | BB26: 366 | BC26: 367 | BD26: 368 | BE26: 377 | BF26: 378 | BG26: 375 | BH26: 385 | BI26: 393 | BJ26: 388 | BK26: 383 | BL26: 375 | BM26: 361 | BN26: 353 | BO26: 374 | BP26: 390 | BQ26: 399 | BR26: 393 | BS26: 398 | BT26: 394 | BU26: 397 | BV26: 407 | BW26: 422 | BX26: 404 | BY26: 398 | BZ26: 374 | CA26: 379
A27: 25175 | B27: 251753 | C27: 3 | D27: 25 | E27: 175 | F27: 175 | G27: CUNDINAMARCA | H27: CHÍA | I27: Independiente | J27: 366 | K27: 275 | L27: 10231 | M27: 10121 | N27: 9821 | O27: 9891 | P27: 10081 | Q27: 10184 | R27: 10181 | S27: 10292 | T27: 10427 | U27: 10546 | V27: 10611 | W27: 10348 | X27: 10533 | Y27: 10747 | Z27: 10829 | AA27: 10920 | AB27: 10928 | AC27: 11007 | AD27: 11020 | AE27: 11077 | AF27: 11100 | AG27: 11056 | AH27: 11118 | AI27: 10944 | AJ27: 10929 | AK27: 10490 | AL27: FALSO | AQ27: 5129 | AR27: 51292 | AS27: 2 | AT27: 5 | AU27: 129 | AV27: 129 | AW27: ANTIOQUIA | AX27: CALDAS | AY27: Dep_sec_priv | AZ27: 857 | BA27: 771 | BB27: 7942 | BC27: 7904 | BD27: 6746 | BE27: 7032 | BF27: 7120 | BG27: 7459 | BH27: 7612 | BI27: 7826 | BJ27: 8086 | BK27: 8241 | BL27: 8323 | BM27: 8462 | BN27: 8552 | BO27: 8699 | BP27: 8689 | BQ27: 8644 | BR27: 8694 | BS27: 8726 | BT27: 8753 | BU27: 8931 | BV27: 9128 | BW27: 9101 | BX27: 8927 | BY27: 8681 | BZ27: 8725 | CA27: 8744
A28: 50006 | B28: 500063 | C28: 3 | D28: 50 | E28: 6 | F28: 006 | G28: META | H28: ACACÍAS | I28: Independiente | J28: 137 | K28: 102 | L28: 2511 | M28: 2506 | N28: 2391 | O28: 2368 | P28: 2429 | Q28: 2411 | R28: 2452 | S28: 2474 | T28: 2547 | U28: 2555 | V28: 2582 | W28: 2404 | X28: 2479 | Y28: 2544 | Z28: 2587 | AA28: 2643 | AB28: 2657 | AC28: 2745 | AD28: 2719 | AE28: 2737 | AF28: 2723 | AG28: 2714 | AH28: 2717 | AI28: 2664 | AJ28: 2667 | AK28: 2593 | AL28: FALSO | AQ28: 5579 | AR28: 55792 | AS28: 2 | AT28: 5 | AU28: 579 | AV28: 579 | AW28: ANTIOQUIA | AX28: PUERTO BERRÍO | AY28: Dep_sec_priv | AZ28: 746 | BA28: 811 | BB28: 5433 | BC28: 5422 | BD28: 4957 | BE28: 5048 | BF28: 5047 | BG28: 5161 | BH28: 5253 | BI28: 5566 | BJ28: 5621 | BK28: 5472 | BL28: 5707 | BM28: 5688 | BN28: 5941 | BO28: 6224 | BP28: 6406 | BQ28: 6480 | BR28: 6671 | BS28: 6514 | BT28: 6427 | BU28: 6560 | BV28: 5975 | BW28: 5969 | BX28: 5582 | BY28: 5661 | BZ28: 5990 | CA28: 5918 | CG28: Novedades | CH28: Privados | CJ28: Independientes | CN28: Privados | CP28: Independientes
A29: 68001 | B29: 680011 | C29: 1 | D29: 68 | E29: 1 | F29: 001 | G29: SANTANDER | H29: BUCARAMANGA | I29: Dep_No_priv | J29: 6453 | K29: 5510 | L29: 42585 | M29: 44933 | N29: 35336 | O29: 36393 | P29: 46287 | Q29: 33674 | R29: 36753 | S29: 38674 | T29: 46678 | U29: 41299 | V29: 38414 | W29: 30926 | X29: 38517 | Y29: 41394 | Z29: 42688 | AA29: 44032 | AB29: 43982 | AC29: 49397 | AD29: 54124 | AE29: 54638 | AF29: 55352 | AG29: 64768 | AH29: 37678 | AI29: 34495 | AJ29: 41398 | AK29: 44401 | AL29: FALSO | AQ29: 5360 | AR29: 53602 | AS29: 2 | AT29: 5 | AU29: 360 | AV29: 360 | AW29: ANTIOQUIA | AX29: ITAGUI | AY29: Dep_sec_priv | AZ29: 4032 | BA29: 4088 | BB29: 47704 | BC29: 47445 | BD29: 44060 | BE29: 43995 | BF29: 44538 | BG29: 45027 | BH29: 45726 | BI29: 47045 | BJ29: 47593 | BK29: 47892 | BL29: 47823 | BM29: 46865 | BN29: 48000 | BO29: 48770 | BP29: 48999 | BQ29: 49000 | BR29: 50508 | BS29: 50703 | BT29: 50786 | BU29: 51273 | BV29: 52183 | BW29: 52442 | BX29: 51608 | BY29: 51073 | BZ29: 51572 | CA29: 51672 | CH29: Ingresos | CI29: Retiros | CJ29: Ingresos | CK29: Retiros | CN29: Ingresos | CO29: Retiros | CP29: Ingresos | CQ29: Retiros
A30: 73001 | B30: 730013 | C30: 3 | D30: 73 | E30: 1 | F30: 001 | G30: TOLIMA | H30: IBAGUÉ | I30: Independiente | J30: 1751 | K30: 1588 | L30: 29852 | M30: 29852 | N30: 29165 | O30: 29319 | P30: 29839 | Q30: 29963 | R30: 30229 | S30: 30553 | T30: 31256 | U30: 31784 | V30: 31530 | W30: 29175 | X30: 30227 | Y30: 30957 | Z30: 31249 | AA30: 31577 | AB30: 31929 | AC30: 32426 | AD30: 32785 | AE30: 33133 | AF30: 33473 | AG30: 33563 | AH30: 32813 | AI30: 31968 | AJ30: 32878 | AK30: 31959 | AL30: FALSO | AQ30: 5615 | AR30: 56152 | AS30: 2 | AT30: 5 | AU30: 615 | AV30: 615 | AW30: ANTIOQUIA | AX30: RIONEGRO | AY30: Dep_sec_priv | AZ30: 5416 | BA30: 4887 | BB30: 46657 | BC30: 45506 | BD30: 40595 | BE30: 40670 | BF30: 41760 | BG30: 41787 | BH30: 42100 | BI30: 43626 | BJ30: 44893 | BK30: 45783 | BL30: 45425 | BM30: 46193 | BN30: 47108 | BO30: 47878 | BP30: 47073 | BQ30: 46756 | BR30: 47814 | BS30: 48854 | BT30: 49215 | BU30: 50711 | BV30: 51240 | BW30: 51310 | BX30: 50429 | BY30: 52477 | BZ30: 52926 | CA30: 52931 | CG30: =Visor!$Q$7 -> ANTIOQUIA | CH30: =SUMIFS($AZ$2:$AZ$500,$AY$2:$AY$500,"Dep_sec_priv") -> 138419 | CI30: =SUMIFS($BA$2:$BA$500,$AY$2:$AY$500,"Dep_sec_priv") -> 127077 | CJ30: =SUMIFS($AZ$2:$AZ$500,$AY$2:$AY$500,"Independiente") -> 16122 | CK30: =SUMIFS($BA$2:$BA$500,$AY$2:$AY$500,"Independiente") -> 11081 | CM30: =Visor!$Q$7 -> ANTIOQUIA | CN30: =CH30/CH$30 -> 1 | CO30: 1 | CP30: 1 | CQ30: 1
A31: 8001 | B31: 80012 | C31: 2 | D31: 8 | E31: 1 | F31: 001 | G31: ATLÁNTICO | H31: BARRANQUILLA | I31: Dep_sec_priv | J31: 39306 | K31: 36621 | L31: 393888 | M31: 391444 | N31: 362420 | O31: 363833 | P31: 366803 | Q31: 369929 | R31: 370111 | S31: 374509 | T31: 379189 | U31: 382084 | V31: 380582 | W31: 374106 | X31: 381775 | Y31: 389741 | Z31: 390642 | AA31: 392930 | AB31: 398075 | AC31: 403044 | AD31: 408815 | AE31: 413415 | AF31: 418077 | AG31: 422100 | AH31: 419426 | AI31: 410318 | AJ31: 417752 | AK31: 418194 | AL31: FALSO | AQ31: 5284 | AR31: 52841 | AS31: 1 | AT31: 5 | AU31: 284 | AV31: 284 | AW31: ANTIOQUIA | AX31: FRONTINO | AY31: Dep_No_priv | AZ31: 27 | BA31: 25 | BB31: 350 | BC31: 356 | BD31: 360 | BE31: 365 | BF31: 366 | BG31: 372 | BH31: 381 | BI31: 382 | BJ31: 379 | BK31: 369 | BL31: 373 | BM31: 361 | BN31: 433 | BO31: 443 | BP31: 442 | BQ31: 445 | BR31: 450 | BS31: 433 | BT31: 438 | BU31: 436 | BV31: 440 | BW31: 437 | BX31: 445 | BY31: 403 | BZ31: 414 | CA31: 429 | CG31: =Visor!$Q$8 -> MEDELLÍN | CH31: =SUMIFS($AZ$2:$AZ$500,$AY$2:$AY$500,"Dep_sec_priv",$AX$2:$AX$500,Visor!$Q$8) -> 96225 | CI31: =SUMIFS($BA$2:$BA$500,$AY$2:$AY$500,"Dep_sec_priv",$AX$2:$AX$500,Visor!$Q$8) -> 88018 | CJ31: =SUMIFS($AZ$2:$AZ$500,$AY$2:$AY$500,"Independiente",$AX$2:$AX$500,Visor!$Q$8) -> 9979 | CK31: =SUMIFS($BA$2:$BA$500,$AY$2:$AY$500,"Independiente",$AX$2:$AX$500,Visor!$Q$8) -> 7267 | CM31: =Visor!$Q$8 -> MEDELLÍN | CN31: 0.6951719056 | CO31: 0.6926351739 | CP31: 0.61896787 | CQ31: 0.6558072376
A32: 19698 | B32: 196982 | C32: 2 | D32: 19 | E32: 698 | F32: 698 | G32: CAUCA | H32: SANTANDER DE QUILICHAO | I32: Dep_sec_priv | J32: 751 | K32: 502 | L32: 7998 | M32: 8082 | N32: 7661 | O32: 7518 | P32: 7397 | Q32: 7538 | R32: 7768 | S32: 7764 | T32: 7884 | U32: 7698 | V32: 7727 | W32: 6761 | X32: 7642 | Y32: 7780 | Z32: 7878 | AA32: 7654 | AB32: 7834 | AC32: 8153 | AD32: 8102 | AE32: 8184 | AF32: 8196 | AG32: 8273 | AH32: 8045 | AI32: 7116 | AJ32: 7813 | AK32: 7558 | AL32: FALSO | AQ32: 5690 | AR32: 56902 | AS32: 2 | AT32: 5 | AU32: 690 | AV32: 690 | AW32: ANTIOQUIA | AX32: SANTO DOMINGO | AY32: Dep_sec_priv | AZ32: 39 | BA32: 26 | BB32: 241 | BC32: 242 | BD32: 281 | BE32: 268 | BF32: 272 | BG32: 252 | BH32: 265 | BI32: 265 | BJ32: 285 | BK32: 278 | BL32: 277 | BM32: 249 | BN32: 251 | BO32: 255 | BP32: 248 | BQ32: 250 | BR32: 245 | BS32: 274 | BT32: 262 | BU32: 289 | BV32: 282 | BW32: 259 | BX32: 254 | BY32: 197 | BZ32: 210 | CA32: 232
A33: 41001 | B33: 410012 | C33: 2 | D33: 41 | E33: 1 | F33: 001 | G33: HUILA | H33: NEIVA | I33: Dep_sec_priv | J33: 8228 | K33: 8077 | L33: 76084 | M33: 74774 | N33: 67222 | O33: 67147 | P33: 67508 | Q33: 68467 | R33: 69176 | S33: 71021 | T33: 72400 | U33: 73766 | V33: 72694 | W33: 69881 | X33: 72352 | Y33: 73371 | Z33: 73912 | AA33: 72400 | AB33: 73780 | AC33: 75436 | AD33: 77690 | AE33: 78594 | AF33: 79421 | AG33: 80467 | AH33: 79525 | AI33: 77798 | AJ33: 80467 | AK33: 80551 | AL33: FALSO | AQ33: 5045 | AR33: 50452 | AS33: 2 | AT33: 5 | AU33: 45 | AV33: 045 | AW33: ANTIOQUIA | AX33: APARTADÓ | AY33: Dep_sec_priv | AZ33: 2712 | BA33: 2760 | BB33: 34643 | BC33: 34764 | BD33: 32800 | BE33: 34233 | BF33: 34940 | BG33: 35403 | BH33: 35476 | BI33: 35799 | BJ33: 36179 | BK33: 36470 | BL33: 36056 | BM33: 35616 | BN33: 36118 | BO33: 36909 | BP33: 37166 | BQ33: 37715 | BR33: 37207 | BS33: 36818 | BT33: 36930 | BU33: 37485 | BV33: 37463 | BW33: 37160 | BX33: 36134 | BY33: 35760 | BZ33: 36414 | CA33: 36034
A34: 66400 | B34: 664002 | C34: 2 | D34: 66 | E34: 400 | F34: 400 | G34: RISARALDA | H34: LA VIRGINIA | I34: Dep_sec_priv | J34: 227 | K34: 241 | L34: 2774 | M34: 2853 | N34: 2751 | O34: 2864 | P34: 2781 | Q34: 2804 | R34: 2871 | S34: 2864 | T34: 2908 | U34: 2962 | V34: 2786 | W34: 2701 | X34: 2703 | Y34: 2867 | Z34: 2881 | AA34: 2876 | AB34: 2923 | AC34: 2824 | AD34: 2814 | AE34: 2908 | AF34: 3032 | AG34: 3197 | AH34: 3089 | AI34: 2978 | AJ34: 3072 | AK34: 3133 | AL34: FALSO | AQ34: 5761 | AR34: 57612 | AS34: 2 | AT34: 5 | AU34: 761 | AV34: 761 | AW34: ANTIOQUIA | AX34: SOPETRÁN | AY34: Dep_sec_priv | AZ34: 63 | BA34: 47 | BB34: 659 | BC34: 628 | BD34: 595 | BE34: 628 | BF34: 622 | BG34: 643 | BH34: 644 | BI34: 641 | BJ34: 654 | BK34: 697 | BL34: 639 | BM34: 638 | BN34: 704 | BO34: 696 | BP34: 686 | BQ34: 670 | BR34: 680 | BS34: 659 | BT34: 658 | BU34: 684 | BV34: 708 | BW34: 619 | BX34: 626 | BY34: 647 | BZ34: 712 | CA34: 699
A35: 73349 | B35: 733493 | C35: 3 | D35: 73 | E35: 349 | F35: 349 | G35: TOLIMA | H35: HONDA | I35: Independiente | J35: 42 | K35: 16 | L35: 1001 | M35: 1005 | N35: 979 | O35: 991 | P35: 1022 | Q35: 1033 | R35: 1030 | S35: 1031 | T35: 1041 | U35: 1040 | V35: 1056 | W35: 966 | X35: 993 | Y35: 995 | Z35: 999 | AA35: 995 | AB35: 1009 | AC35: 1039 | AD35: 1028 | AE35: 1051 | AF35: 1064 | AG35: 1061 | AH35: 1041 | AI35: 999 | AJ35: 1034 | AK35: 1020 | AL35: FALSO | AQ35: 5440 | AR35: 54403 | AS35: 3 | AT35: 5 | AU35: 440 | AV35: 440 | AW35: ANTIOQUIA | AX35: MARINILLA | AY35: Independiente | AZ35: 96 | BA35: 51 | BB35: 2092 | BC35: 2110 | BD35: 2064 | BE35: 2063 | BF35: 2116 | BG35: 2155 | BH35: 2170 | BI35: 2220 | BJ35: 2257 | BK35: 2292 | BL35: 2261 | BM35: 2197 | BN35: 2254 | BO35: 2291 | BP35: 2328 | BQ35: 2365 | BR35: 2391 | BS35: 2387 | BT35: 2418 | BU35: 2443 | BV35: 2524 | BW35: 2560 | BX35: 2479 | BY35: 2461 | BZ35: 2579 | CA35: 2537
A36: 50001 | B36: 500013 | C36: 3 | D36: 50 | E36: 1 | F36: 001 | G36: META | H36: VILLAVICENCIO | I36: Independiente | J36: 1699 | K36: 1282 | L36: 26412 | M36: 26253 | N36: 24762 | O36: 24906 | P36: 25541 | Q36: 25869 | R36: 26152 | S36: 26851 | T36: 27473 | U36: 27763 | V36: 27672 | W36: 25230 | X36: 26437 | Y36: 27289 | Z36: 27741 | AA36: 27635 | AB36: 27810 | AC36: 28190 | AD36: 28692 | AE36: 28923 | AF36: 29117 | AG36: 29345 | AH36: 28820 | AI36: 27853 | AJ36: 28419 | AK36: 27514 | AL36: FALSO | AQ36: 5819 | AR36: 58192 | AS36: 2 | AT36: 5 | AU36: 819 | AV36: 819 | AW36: ANTIOQUIA | AX36: TOLEDO | AY36: Dep_sec_priv | AZ36: 32 | BA36: 9 | BB36: 478 | BC36: 439 | BD36: 437 | BE36: 454 | BF36: 476 | BG36: 455 | BH36: 456 | BI36: 462 | BJ36: 452 | BK36: 472 | BL36: 460 | BM36: 421 | BN36: 438 | BO36: 462 | BP36: 469 | BQ36: 476 | BR36: 483 | BS36: 486 | BT36: 476 | BU36: 503 | BV36: 512 | BW36: 489 | BX36: 491 | BY36: 503 | BZ36: 503 | CA36: 521
A37: 54405 | B37: 544052 | C37: 2 | D37: 54 | E37: 405 | F37: 405 | G37: NORTE DE SANTANDER | H37: LOS PATIOS | I37: Dep_sec_priv | J37: 323 | K37: 254 | L37: 2270 | M37: 2251 | N37: 2190 | O37: 2378 | P37: 2447 | Q37: 2598 | R37: 2534 | S37: 2505 | T37: 2398 | U37: 2374 | V37: 2264 | W37: 2363 | X37: 2477 | Y37: 2532 | Z37: 2579 | AA37: 2713 | AB37: 2719 | AC37: 2821 | AD37: 2859 | AE37: 2869 | AF37: 2832 | AG37: 2905 | AH37: 2781 | AI37: 2771 | AJ37: 2887 | AK37: 3031 | AL37: FALSO | AQ37: 5376 | AR37: 53763 | AS37: 3 | AT37: 5 | AU37: 376 | AV37: 376 | AW37: ANTIOQUIA | AX37: LA CEJA | AY37: Independiente | AZ37: 181 | BA37: 95 | BB37: 3019 | BC37: 3039 | BD37: 2922 | BE37: 2992 | BF37: 3029 | BG37: 3096 | BH37: 3128 | BI37: 3195 | BJ37: 3269 | BK37: 3323 | BL37: 3301 | BM37: 3226 | BN37: 3311 | BO37: 3411 | BP37: 3508 | BQ37: 3588 | BR37: 3625 | BS37: 3723 | BT37: 3809 | BU37: 3831 | BV37: 3907 | BW37: 3909 | BX37: 3872 | BY37: 3797 | BZ37: 3893 | CA37: 3839
A38: 50226 | B38: 502263 | C38: 3 | D38: 50 | E38: 226 | F38: 226 | G38: META | H38: CUMARAL | I38: Independiente | J38: 91 | K38: 55 | L38: 556 | M38: 570 | N38: 506 | O38: 496 | P38: 516 | Q38: 499 | R38: 531 | S38: 582 | T38: 598 | U38: 601 | V38: 598 | W38: 508 | X38: 575 | Y38: 593 | Z38: 594 | AA38: 632 | AB38: 647 | AC38: 640 | AD38: 638 | AE38: 639 | AF38: 648 | AG38: 659 | AH38: 638 | AI38: 632 | AJ38: 674 | AK38: 680 | AL38: FALSO | AQ38: 5380 | AR38: 53803 | AS38: 3 | AT38: 5 | AU38: 380 | AV38: 380 | AW38: ANTIOQUIA | AX38: LA ESTRELLA | AY38: Independiente | AZ38: 135 | BA38: 86 | BB38: 2094 | BC38: 2168 | BD38: 2095 | BE38: 2140 | BF38: 2197 | BG38: 2235 | BH38: 2285 | BI38: 2353 | BJ38: 2402 | BK38: 2446 | BL38: 2454 | BM38: 2338 | BN38: 2451 | BO38: 2467 | BP38: 2502 | BQ38: 2529 | BR38: 2565 | BS38: 2602 | BT38: 2647 | BU38: 2711 | BV38: 2731 | BW38: 2763 | BX38: 2704 | BY38: 2678 | BZ38: 2792 | CA38: 2772
A39: 68895 | B39: 688953 | C39: 3 | D39: 68 | E39: 895 | F39: 895 | G39: SANTANDER | H39: ZAPATOCA | I39: Independiente | J39: 5 | K39: 11 | L39: 226 | M39: 226 | N39: 220 | O39: 226 | P39: 229 | Q39: 224 | R39: 227 | S39: 230 | T39: 231 | U39: 238 | V39: 236 | W39: 227 | X39: 228 | Y39: 231 | Z39: 237 | AA39: 241 | AB39: 249 | AC39: 244 | AD39: 241 | AE39: 242 | AF39: 248 | AG39: 252 | AH39: 249 | AI39: 248 | AJ39: 250 | AK39: 243 | AL39: FALSO | AQ39: 5360 | AR39: 53601 | AS39: 1 | AT39: 5 | AU39: 360 | AV39: 360 | AW39: ANTIOQUIA | AX39: ITAGUI | AY39: Dep_No_priv | AZ39: 596 | BA39: 499 | BB39: 5131 | BC39: 5191 | BD39: 5554 | BE39: 5715 | BF39: 6031 | BG39: 6502 | BH39: 6635 | BI39: 6298 | BJ39: 5532 | BK39: 5019 | BL39: 4809 | BM39: 5140 | BN39: 5252 | BO39: 5482 | BP39: 6418 | BQ39: 7930 | BR39: 7857 | BS39: 7827 | BT39: 7875 | BU39: 7805 | BV39: 7847 | BW39: 7819 | BX39: 5121 | BY39: 5371 | BZ39: 5431 | CA39: 5602
A40: 25799 | B40: 257993 | C40: 3 | D40: 25 | E40: 799 | F40: 799 | G40: CUNDINAMARCA | H40: TENJO | I40: Independiente | J40: 45 | K40: 27 | L40: 1133 | M40: 1149 | N40: 1142 | O40: 1152 | P40: 1149 | Q40: 1179 | R40: 1199 | S40: 1199 | T40: 1218 | U40: 1209 | V40: 1210 | W40: 1178 | X40: 1204 | Y40: 1270 | Z40: 1296 | AA40: 1284 | AB40: 1293 | AC40: 1307 | AD40: 1336 | AE40: 1335 | AF40: 1338 | AG40: 1292 | AH40: 1282 | AI40: 1312 | AJ40: 1326 | AK40: 1295 | AL40: FALSO | AQ40: 5380 | AR40: 53802 | AS40: 2 | AT40: 5 | AU40: 380 | AV40: 380 | AW40: ANTIOQUIA | AX40: LA ESTRELLA | AY40: Dep_sec_priv | AZ40: 1136 | BA40: 1417 | BB40: 14586 | BC40: 14413 | BD40: 13416 | BE40: 13228 | BF40: 13070 | BG40: 13061 | BH40: 13114 | BI40: 13384 | BJ40: 13654 | BK40: 13787 | BL40: 14289 | BM40: 14154 | BN40: 14333 | BO40: 14615 | BP40: 14835 | BQ40: 15013 | BR40: 15001 | BS40: 15316 | BT40: 15587 | BU40: 15851 | BV40: 15998 | BW40: 16285 | BX40: 16079 | BY40: 16001 | BZ40: 16318 | CA40: 16256
A41: 47001 | B41: 470013 | C41: 3 | D41: 47 | E41: 1 | F41: 001 | G41: MAGDALENA | H41: SANTA MARTA | I41: Independiente | J41: 1300 | K41: 772 | L41: 19387 | M41: 20127 | N41: 19340 | O41: 19327 | P41: 19461 | Q41: 19557 | R41: 19534 | S41: 19965 | T41: 19999 | U41: 20577 | V41: 19966 | W41: 18297 | X41: 19143 | Y41: 20314 | Z41: 20961 | AA41: 21082 | AB41: 21212 | AC41: 21077 | AD41: 21345 | AE41: 21709 | AF41: 21936 | AG41: 22040 | AH41: 21141 | AI41: 19385 | AJ41: 21031 | AK41: 20491 | AL41: FALSO | AQ41: 5856 | AR41: 58563 | AS41: 3 | AT41: 5 | AU41: 856 | AV41: 856 | AW41: ANTIOQUIA | AX41: VALPARAÍSO | AY41: Independiente | AZ41: 29 | BA41: 9 | BB41: 96 | BC41: 96 | BD41: 87 | BE41: 89 | BF41: 90 | BG41: 88 | BH41: 85 | BI41: 89 | BJ41: 87 | BK41: 85 | BL41: 88 | BM41: 67 | BN41: 76 | BO41: 82 | BP41: 87 | BQ41: 90 | BR41: 94 | BS41: 95 | BT41: 100 | BU41: 100 | BV41: 105 | BW41: 107 | BX41: 106 | BY41: 102 | BZ41: 108 | CA41: 137 | CH41: Privs Mar 21 | CI41: Privs Feb 22 | CJ41: Privs Mar 22 | CK41: Ind Mar 21 | CL41: Ind Feb 22 | CM41: Ind Mar 22
A42: 68276 | B42: 682763 | C42: 3 | D42: 68 | E42: 276 | F42: 276 | G42: SANTANDER | H42: FLORIDABLANCA | I42: Independiente | J42: 586 | K42: 450 | L42: 8641 | M42: 8699 | N42: 8607 | O42: 8776 | P42: 8944 | Q42: 9117 | R42: 9128 | S42: 9364 | T42: 9621 | U42: 9687 | V42: 9802 | W42: 8913 | X42: 9213 | Y42: 9546 | Z42: 9745 | AA42: 9792 | AB42: 9926 | AC42: 10037 | AD42: 10127 | AE42: 10265 | AF42: 10279 | AG42: 10452 | AH42: 10382 | AI42: 10211 | AJ42: 10853 | AK42: 10581 | AL42: FALSO | AQ42: 5264 | AR42: 52643 | AS42: 3 | AT42: 5 | AU42: 264 | AV42: 264 | AW42: ANTIOQUIA | AX42: ENTRERRIOS | AY42: Independiente | AZ42: 29 | BA42: 18 | BB42: 1045 | BC42: 1044 | BD42: 1025 | BE42: 1047 | BF42: 1050 | BG42: 1069 | BH42: 1078 | BI42: 1088 | BJ42: 1089 | BK42: 1110 | BL42: 1115 | BM42: 1108 | BN42: 1112 | BO42: 1112 | BP42: 1106 | BQ42: 1116 | BR42: 1115 | BS42: 1116 | BT42: 1111 | BU42: 1114 | BV42: 1119 | BW42: 1122 | BX42: 1125 | BY42: 1125 | BZ42: 1127 | CA42: 1113 | CG42: AMAZONAS | CH42: =SUMIFS($Y$2:$Y$4998,$G$2:$G$4998,$CG42,$I$2:$I$4998,"Dep_sec_priv") -> 16166 | CI42: =SUMIFS($AJ$2:$AJ$4998,$G$2:$G$4998,$CG42,$I$2:$I$4998,"Dep_sec_priv") -> 16766 | CJ42: =SUMIFS($AK$2:$AK$4998,$G$2:$G$4998,$CG42,$I$2:$I$4998,"Dep_sec_priv") -> 16467 | CK42: =SUMIFS($Y$2:$Y$4998,$G$2:$G$4998,$CG42,$I$2:$I$4998,"Independiente") -> 3301 | CL42: =SUMIFS($AJ$2:$AJ$4998,$G$2:$G$4998,$CG42,$I$2:$I$4998,"Independiente") -> 3714 | CM42: =SUMIFS($AK$2:$AK$4998,$G$2:$G$4998,$CG42,$I$2:$I$4998,"Independiente") -> 3517
A43: 19001 | B43: 190013 | C43: 3 | D43: 19 | E43: 1 | F43: 001 | G43: CAUCA | H43: POPAYÁN | I43: Independiente | J43: 1323 | K43: 845 | L43: 19198 | M43: 19447 | N43: 18545 | O43: 18141 | P43: 18379 | Q43: 18701 | R43: 19037 | S43: 19554 | T43: 20261 | U43: 20385 | V43: 19745 | W43: 17650 | X43: 18768 | Y43: 19385 | Z43: 19615 | AA43: 19396 | AB43: 19685 | AC43: 20036 | AD43: 20300 | AE43: 20623 | AF43: 20967 | AG43: 21027 | AH43: 20711 | AI43: 19297 | AJ43: 20242 | AK43: 19664 | AL43: FALSO | AQ43: 5282 | AR43: 52823 | AS43: 3 | AT43: 5 | AU43: 282 | AV43: 282 | AW43: ANTIOQUIA | AX43: FREDONIA | AY43: Independiente | AZ43: 10 | BA43: 17 | BB43: 279 | BC43: 282 | BD43: 288 | BE43: 291 | BF43: 307 | BG43: 313 | BH43: 322 | BI43: 325 | BJ43: 333 | BK43: 380 | BL43: 389 | BM43: 324 | BN43: 354 | BO43: 348 | BP43: 358 | BQ43: 361 | BR43: 368 | BS43: 403 | BT43: 432 | BU43: 428 | BV43: 434 | BW43: 435 | BX43: 431 | BY43: 453 | BZ43: 471 | CA43: 439 | CG43: ANTIOQUIA | CH43: 1541344 | CI43: 1629431 | CJ43: 1636538 | CK43: 312002 | CL43: 326129 | CM43: 320219
A44: 13001 | B44: 130013 | C44: 3 | D44: 13 | E44: 1 | F44: 001 | G44: BOLÍVAR | H44: CARTAGENA | I44: Independiente | J44: 3818 | K44: 2738 | L44: 41098 | M44: 40231 | N44: 37187 | O44: 37334 | P44: 37505 | Q44: 37765 | R44: 37962 | S44: 38727 | T44: 39791 | U44: 40992 | V44: 39381 | W44: 37023 | X44: 38755 | Y44: 40006 | Z44: 40676 | AA44: 40872 | AB44: 40978 | AC44: 41045 | AD44: 41196 | AE44: 41850 | AF44: 42481 | AG44: 42884 | AH44: 39980 | AI44: 40099 | AJ44: 41184 | AK44: 40123 | AL44: FALSO | AQ44: 5585 | AR44: 55852 | AS44: 2 | AT44: 5 | AU44: 585 | AV44: 585 | AW44: ANTIOQUIA | AX44: PUERTO NARE | AY44: Dep_sec_priv | AZ44: 189 | BA44: 120 | BB44: 833 | BC44: 836 | BD44: 693 | BE44: 676 | BF44: 750 | BG44: 770 | BH44: 805 | BI44: 797 | BJ44: 834 | BK44: 950 | BL44: 1021 | BM44: 848 | BN44: 890 | BO44: 904 | BP44: 877 | BQ44: 889 | BR44: 888 | BS44: 854 | BT44: 945 | BU44: 992 | BV44: 1010 | BW44: 982 | BX44: 924 | BY44: 799 | BZ44: 843 | CA44: 936 | CG44: ARAUCA | CH44: 45596 | CI44: 48669 | CJ44: 51508 | CK44: 9201 | CL44: 8896 | CM44: 8341
A45: 25307 | B45: 253073 | C45: 3 | D45: 25 | E45: 307 | F45: 307 | G45: CUNDINAMARCA | H45: GIRARDOT | I45: Independiente | J45: 406 | K45: 322 | L45: 5801 | M45: 5858 | N45: 5679 | O45: 5595 | P45: 5527 | Q45: 5644 | R45: 5589 | S45: 5658 | T45: 5730 | U45: 5834 | V45: 5800 | W45: 5237 | X45: 5460 | Y45: 5589 | Z45: 5680 | AA45: 5812 | AB45: 5900 | AC45: 5987 | AD45: 6030 | AE45: 6161 | AF45: 6108 | AG45: 6062 | AH45: 5981 | AI45: 5929 | AJ45: 6122 | AK45: 5882 | AL45: FALSO | AQ45: 5591 | AR45: 55912 | AS45: 2 | AT45: 5 | AU45: 591 | AV45: 591 | AW45: ANTIOQUIA | AX45: PUERTO TRIUNFO | AY45: Dep_sec_priv | AZ45: 187 | BA45: 179 | BB45: 1538 | BC45: 1547 | BD45: 1247 | BE45: 1271 | BF45: 1397 | BG45: 1491 | BH45: 1456 | BI45: 1493 | BJ45: 1573 | BK45: 1741 | BL45: 1707 | BM45: 1673 | BN45: 1812 | BO45: 1732 | BP45: 1719 | BQ45: 1728 | BR45: 1696 | BS45: 1768 | BT45: 1780 | BU45: 1839 | BV45: 1836 | BW45: 1880 | BX45: 1877 | BY45: 1745 | BZ45: 1799 | CA45: 1786 | CG45: ARCHIPIÉLAGO DE SAN ANDRÉS, PROVIDENCIA Y SANTA CATALINA | CH45: 48023 | CI45: 46867 | CJ45: 46642 | CK45: 6628 | CL45: 7576 | CM45: 7539
A46: 66001 | B46: 660013 | C46: 3 | D46: 66 | E46: 1 | F46: 001 | G46: RISARALDA | H46: PEREIRA | I46: Independiente | J46: 1619 | K46: 1265 | L46: 39166 | M46: 39198 | N46: 38195 | O46: 39897 | P46: 39619 | Q46: 39432 | R46: 39136 | S46: 39408 | T46: 40040 | U46: 40559 | V46: 40218 | W46: 38287 | X46: 39006 | Y46: 39604 | Z46: 39507 | AA46: 39304 | AB46: 39585 | AC46: 39862 | AD46: 40091 | AE46: 40482 | AF46: 40818 | AG46: 40924 | AH46: 40236 | AI46: 39533 | AJ46: 39575 | AK46: 38966 | AL46: FALSO | AQ46: 5376 | AR46: 53762 | AS46: 2 | AT46: 5 | AU46: 376 | AV46: 376 | AW46: ANTIOQUIA | AX46: LA CEJA | AY46: Dep_sec_priv | AZ46: 1322 | BA46: 1247 | BB46: 12602 | BC46: 12417 | BD46: 11093 | BE46: 11344 | BF46: 11374 | BG46: 11486 | BH46: 11653 | BI46: 12269 | BJ46: 12028 | BK46: 12181 | BL46: 12015 | BM46: 12093 | BN46: 12214 | BO46: 12522 | BP46: 12738 | BQ46: 12800 | BR46: 12983 | BS46: 13061 | BT46: 13292 | BU46: 13452 | BV46: 13871 | BW46: 13878 | BX46: 13442 | BY46: 13625 | BZ46: 13827 | CA46: 13934 | CG46: ATLÁNTICO | CH46: 421054 | CI46: 453118 | CJ46: 453945 | CK46: 76546 | CL46: 80958 | CM46: 78760
A47: 81300 | B47: 813002 | C47: 2 | D47: 81 | E47: 300 | F47: 300 | G47: ARAUCA | H47: FORTUL | I47: Dep_sec_priv | J47: 5751 | K47: 5816 | L47: 15508 | M47: 15915 | N47: 17751 | O47: 19088 | P47: 20564 | Q47: 21628 | R47: 24176 | S47: 24077 | T47: 24281 | U47: 24816 | V47: 24907 | W47: 24781 | X47: 22305 | Y47: 22315 | Z47: 22096 | AA47: 21703 | AB47: 23335 | AC47: 23699 | AD47: 24033 | AE47: 24110 | AF47: 24789 | AG47: 24834 | AH47: 24802 | AI47: 24654 | AJ47: 25135 | AK47: 27804 | AL47: FALSO | AQ47: 5266 | AR47: 52662 | AS47: 2 | AT47: 5 | AU47: 266 | AV47: 266 | AW47: ANTIOQUIA | AX47: ENVIGADO | AY47: Dep_sec_priv | AZ47: 2861 | BA47: 2327 | BB47: 38181 | BC47: 37822 | BD47: 36016 | BE47: 35808 | BF47: 35929 | BG47: 35871 | BH47: 35702 | BI47: 36467 | BJ47: 37062 | BK47: 37400 | BL47: 36997 | BM47: 36516 | BN47: 37292 | BO47: 37716 | BP47: 37350 | BQ47: 37603 | BR47: 37910 | BS47: 38070 | BT47: 38439 | BU47: 39423 | BV47: 39479 | BW47: 39500 | BX47: 39150 | BY47: 39063 | BZ47: 39747 | CA47: 40559 | CG47: BOGOTÁ, D.C. | CH47: 2558838 | CI47: 2745393 | CJ47: 2749279 | CK47: 693856 | CL47: 687622 | CM47: 668879
A48: 76001 | B48: 760012 | C48: 2 | D48: 76 | E48: 1 | F48: 001 | G48: VALLE DEL CAUCA | H48: CALI | I48: Dep_sec_priv | J48: 51915 | K48: 48750 | L48: 670399 | M48: 663291 | N48: 614047 | O48: 612301 | P48: 612507 | Q48: 615396 | R48: 616869 | S48: 627578 | T48: 634960 | U48: 642371 | V48: 644140 | W48: 625036 | X48: 638371 | Y48: 645876 | Z48: 647138 | AA48: 627858 | AB48: 631984 | AC48: 643769 | AD48: 656347 | AE48: 667704 | AF48: 670282 | AG48: 677999 | AH48: 671230 | AI48: 657945 | AJ48: 668933 | AK48: 671651 | AL48: FALSO | AQ48: 5360 | AR48: 53603 | AS48: 3 | AT48: 5 | AU48: 360 | AV48: 360 | AW48: ANTIOQUIA | AX48: ITAGUI | AY48: Independiente | AZ48: 547 | BA48: 304 | BB48: 7741 | BC48: 7816 | BD48: 7681 | BE48: 7815 | BF48: 8038 | BG48: 8233 | BH48: 8386 | BI48: 8634 | BJ48: 8846 | BK48: 8983 | BL48: 8952 | BM48: 8772 | BN48: 9000 | BO48: 9228 | BP48: 9414 | BQ48: 9476 | BR48: 9568 | BS48: 9630 | BT48: 9839 | BU48: 9942 | BV48: 10095 | BW48: 10150 | BX48: 9924 | BY48: 9846 | BZ48: 10124 | CA48: 10302 | CG48: BOLÍVAR | CH48: 224914 | CI48: 247002 | CJ48: 248637 | CK48: 48453 | CL48: 51102 | CM48: 49852
A49: 25290 | B49: 252903 | C49: 3 | D49: 25 | E49: 290 | F49: 290 | G49: CUNDINAMARCA | H49: FUSAGASUGÁ | I49: Independiente | J49: 322 | K49: 351 | L49: 8311 | M49: 8297 | N49: 8160 | O49: 8174 | P49: 8300 | Q49: 8320 | R49: 8341 | S49: 8463 | T49: 8534 | U49: 8653 | V49: 8449 | W49: 8209 | X49: 8403 | Y49: 8565 | Z49: 8598 | AA49: 8593 | AB49: 8693 | AC49: 8726 | AD49: 8774 | AE49: 8805 | AF49: 8856 | AG49: 8839 | AH49: 8746 | AI49: 8564 | AJ49: 8699 | AK49: 8466 | AL49: FALSO | AQ49: 5045 | AR49: 50453 | AS49: 3 | AT49: 5 | AU49: 45 | AV49: 045 | AW49: ANTIOQUIA | AX49: APARTADÓ | AY49: Independiente | AZ49: 210 | BA49: 160 | BB49: 4160 | BC49: 4062 | BD49: 3917 | BE49: 3913 | BF49: 3904 | BG49: 3861 | BH49: 3952 | BI49: 4011 | BJ49: 4085 | BK49: 4081 | BL49: 4003 | BM49: 3622 | BN49: 3764 | BO49: 3919 | BP49: 3940 | BQ49: 4008 | BR49: 4036 | BS49: 4085 | BT49: 4130 | BU49: 4190 | BV49: 4204 | BW49: 4215 | BX49: 4020 | BY49: 3687 | BZ49: 4063 | CA49: 3911 | CG49: BOYACÁ | CH49: 132706 | CI49: 139834 | CJ49: 140242 | CK49: 49663 | CL49: 50982 | CM49: 49488
A50: 25402 | B50: 254023 | C50: 3 | D50: 25 | E50: 402 | F50: 402 | G50: CUNDINAMARCA | H50: LA VEGA | I50: Independiente | J50: 24 | K50: 13 | L50: 651 | M50: 651 | N50: 647 | O50: 648 | P50: 663 | Q50: 686 | R50: 679 | S50: 686 | T50: 687 | U50: 689 | V50: 676 | W50: 684 | X50: 725 | Y50: 730 | Z50: 732 | AA50: 729 | AB50: 716 | AC50: 707 | AD50: 713 | AE50: 708 | AF50: 699 | AG50: 704 | AH50: 709 | AI50: 693 | AJ50: 690 | AK50: 690 | AL50: FALSO | AQ50: 5308 | AR50: 53083 | AS50: 3 | AT50: 5 | AU50: 308 | AV50: 308 | AW50: ANTIOQUIA | AX50: GIRARDOTA | AY50: Independiente | AZ50: 61 | BA50: 46 | BB50: 1118 | BC50: 1126 | BD50: 1134 | BE50: 1154 | BF50: 1172 | BG50: 1269 | BH50: 1336 | BI50: 1353 | BJ50: 1388 | BK50: 1385 | BL50: 1378 | BM50: 1289 | BN50: 1398 | BO50: 1443 | BP50: 1475 | BQ50: 1508 | BR50: 1522 | BS50: 1531 | BT50: 1564 | BU50: 1577 | BV50: 1613 | BW50: 1637 | BX50: 1601 | BY50: 1553 | BZ50: 1579 | CA50: 1545 | CG50: CALDAS | CH50: 143806 | CI50: 154280 | CJ50: 155404 | CK50: 43327 | CL50: 45533 | CM50: 45105
A51: 73001 | B51: 730012 | C51: 2 | D51: 73 | E51: 1 | F51: 001 | G51: TOLIMA | H51: IBAGUÉ | I51: Dep_sec_priv | J51: 10742 | K51: 10618 | L51: 116156 | M51: 114498 | N51: 103166 | O51: 104168 | P51: 106072 | Q51: 107807 | R51: 109092 | S51: 109789 | T51: 112208 | U51: 113186 | V51: 111670 | W51: 109073 | X51: 112148 | Y51: 113542 | Z51: 114176 | AA51: 113964 | AB51: 116033 | AC51: 116966 | AD51: 119193 | AE51: 120260 | AF51: 120954 | AG51: 121754 | AH51: 120025 | AI51: 117165 | AJ51: 118081 | AK51: 117770 | AL51: FALSO | AQ51: 5656 | AR51: 56563 | AS51: 3 | AT51: 5 | AU51: 656 | AV51: 656 | AW51: ANTIOQUIA | AX51: SAN JERÓNIMO | AY51: Independiente | AZ51: 18 | BA51: 8 | BB51: 294 | BC51: 288 | BD51: 284 | BE51: 300 | BF51: 300 | BG51: 301 | BH51: 308 | BI51: 302 | BJ51: 309 | BK51: 314 | BL51: 312 | BM51: 269 | BN51: 293 | BO51: 296 | BP51: 298 | BQ51: 300 | BR51: 312 | BS51: 311 | BT51: 302 | BU51: 303 | BV51: 313 | BW51: 316 | BX51: 318 | BY51: 300 | BZ51: 333 | CA51: 336 | CG51: CAQUETÁ | CH51: 23018 | CI51: 23385 | CJ51: 23408 | CK51: 11473 | CL51: 11798 | CM51: 11649
A52: 25758 | B52: 257583 | C52: 3 | D52: 25 | E52: 758 | F52: 758 | G52: CUNDINAMARCA | H52: SOPÓ | I52: Independiente | J52: 108 | K52: 53 | L52: 1732 | M52: 1784 | N52: 1724 | O52: 1761 | P52: 1774 | Q52: 1803 | R52: 1817 | S52: 1855 | T52: 1849 | U52: 1862 | V52: 1754 | W52: 1690 | X52: 1832 | Y52: 1878 | Z52: 1876 | AA52: 1882 | AB52: 1862 | AC52: 1880 | AD52: 1911 | AE52: 1892 | AF52: 1895 | AG52: 1890 | AH52: 1827 | AI52: 1829 | AJ52: 1920 | AK52: 1850 | AL52: FALSO | AQ52: 5042 | AR52: 50423 | AS52: 3 | AT52: 5 | AU52: 42 | AV52: 042 | AW52: ANTIOQUIA | AX52: SANTAFÉ DE ANTIOQUIA | AY52: Independiente | AZ52: 34 | BA52: 19 | BB52: 681 | BC52: 690 | BD52: 673 | BE52: 657 | BF52: 667 | BG52: 676 | BH52: 695 | BI52: 708 | BJ52: 707 | BK52: 741 | BL52: 726 | BM52: 683 | BN52: 693 | BO52: 693 | BP52: 705 | BQ52: 692 | BR52: 691 | BS52: 716 | BT52: 738 | BU52: 740 | BV52: 741 | BW52: 740 | BX52: 718 | BY52: 702 | BZ52: 724 | CA52: 725 | CG52: CASANARE | CH52: 63594 | CI52: 66313 | CJ52: 66918 | CK52: 17446 | CL52: 18813 | CM52: 18102
A53: 5364 | B53: 53642 | C53: 2 | D53: 5 | E53: 364 | F53: 364 | G53: ANTIOQUIA | H53: JARDÍN | I53: Dep_sec_priv | J53: 80 | K53: 65 | L53: 853 | M53: 807 | N53: 801 | O53: 839 | P53: 855 | Q53: 854 | R53: 823 | S53: 817 | T53: 906 | U53: 967 | V53: 1002 | W53: 1051 | X53: 1022 | Y53: 971 | Z53: 1048 | AA53: 1093 | AB53: 1111 | AC53: 1098 | AD53: 1148 | AE53: 1099 | AF53: 1199 | AG53: 1216 | AH53: 1177 | AI53: 1187 | AJ53: 1187 | AK53: 1151 | AL53: FALSO | AQ53: 5209 | AR53: 52092 | AS53: 2 | AT53: 5 | AU53: 209 | AV53: 209 | AW53: ANTIOQUIA | AX53: CONCORDIA | AY53: Dep_sec_priv | AZ53: 74 | BA53: 146 | BB53: 794 | BC53: 799 | BD53: 748 | BE53: 791 | BF53: 771 | BG53: 818 | BH53: 782 | BI53: 797 | BJ53: 806 | BK53: 800 | BL53: 802 | BM53: 771 | BN53: 849 | BO53: 834 | BP53: 814 | BQ53: 840 | BR53: 837 | BS53: 864 | BT53: 850 | BU53: 873 | BV53: 842 | BW53: 855 | BX53: 859 | BY53: 933 | BZ53: 985 | CA53: 977 | CG53: CAUCA | CH53: 94609 | CI53: 97642 | CJ53: 97220 | CK53: 30382 | CL53: 31900 | CM53: 31698
A54: 15759 | B54: 157593 | C54: 3 | D54: 15 | E54: 759 | F54: 759 | G54: BOYACÁ | H54: SOGAMOSO | I54: Independiente | J54: 284 | K54: 266 | L54: 7941 | M54: 7980 | N54: 7664 | O54: 7669 | P54: 7776 | Q54: 7839 | R54: 7898 | S54: 7962 | T54: 8084 | U54: 8221 | V54: 8159 | W54: 7664 | X54: 7929 | Y54: 8100 | Z54: 8136 | AA54: 8237 | AB54: 8303 | AC54: 8261 | AD54: 8250 | AE54: 8362 | AF54: 8435 | AG54: 8461 | AH54: 8375 | AI54: 7913 | AJ54: 7972 | AK54: 7676 | AL54: FALSO | AQ54: 5212 | AR54: 52123 | AS54: 3 | AT54: 5 | AU54: 212 | AV54: 212 | AW54: ANTIOQUIA | AX54: COPACABANA | AY54: Independiente | AZ54: 122 | BA54: 60 | BB54: 1602 | BC54: 1627 | BD54: 1624 | BE54: 1634 | BF54: 1692 | BG54: 1732 | BH54: 1784 | BI54: 1847 | BJ54: 1920 | BK54: 2005 | BL54: 2001 | BM54: 1923 | BN54: 2055 | BO54: 2172 | BP54: 2186 | BQ54: 2234 | BR54: 2267 | BS54: 2283 | BT54: 2311 | BU54: 2345 | BV54: 2379 | BW54: 2401 | BX54: 2382 | BY54: 2332 | BZ54: 2410 | CA54: 2378 | CG54: CESAR | CH54: 97491 | CI54: 106637 | CJ54: 108377 | CK54: 28197 | CL54: 29288 | CM54: 28631
A55: 15238 | B55: 152383 | C55: 3 | D55: 15 | E55: 238 | F55: 238 | G55: BOYACÁ | H55: DUITAMA | I55: Independiente | J55: 309 | K55: 222 | L55: 8223 | M55: 8223 | N55: 7949 | O55: 7945 | P55: 7983 | Q55: 8069 | R55: 8088 | S55: 8155 | T55: 8270 | U55: 8364 | V55: 8258 | W55: 7962 | X55: 8037 | Y55: 8162 | Z55: 8219 | AA55: 8219 | AB55: 8247 | AC55: 8351 | AD55: 8305 | AE55: 8382 | AF55: 8523 | AG55: 8564 | AH55: 8371 | AI55: 8105 | AJ55: 8146 | AK55: 7874 | AL55: FALSO | AQ55: 5664 | AR55: 56643 | AS55: 3 | AT55: 5 | AU55: 664 | AV55: 664 | AW55: ANTIOQUIA | AX55: SAN PEDRO DE LOS MILAGROS | AY55: Independiente | AZ55: 43 | BA55: 24 | BB55: 935 | BC55: 957 | BD55: 969 | BE55: 1040 | BF55: 1050 | BG55: 1074 | BH55: 1107 | BI55: 1097 | BJ55: 1114 | BK55: 1121 | BL55: 1108 | BM55: 1094 | BN55: 1116 | BO55: 1143 | BP55: 1147 | BQ55: 1161 | BR55: 1167 | BS55: 1177 | BT55: 1190 | BU55: 1183 | BV55: 1204 | BW55: 1203 | BX55: 1192 | BY55: 1179 | BZ55: 1186 | CA55: 1168 | CG55: CHOCÓ | CH55: 71217 | CI55: 76482 | CJ55: 76537 | CK55: 9721 | CL55: 10128 | CM55: 10034
A56: 15778 | B56: 157783 | C56: 3 | D56: 15 | E56: 778 | F56: 778 | G56: BOYACÁ | H56: SUTATENZA | I56: Independiente | J56: 3 | K56: 1 | L56: 45 | M56: 49 | N56: 45 | O56: 42 | P56: 44 | Q56: 38 | R56: 42 | S56: 43 | T56: 44 | U56: 52 | V56: 41 | W56: 37 | X56: 48 | Y56: 52 | Z56: 52 | AA56: 49 | AB56: 52 | AC56: 50 | AD56: 50 | AE56: 52 | AF56: 52 | AG56: 49 | AH56: 49 | AI56: 45 | AJ56: 50 | AK56: 49 | AL56: FALSO | AQ56: 5607 | AR56: 56072 | AS56: 2 | AT56: 5 | AU56: 607 | AV56: 607 | AW56: ANTIOQUIA | AX56: RETIRO | AY56: Dep_sec_priv | AZ56: 376 | BA56: 305 | BB56: 3304 | BC56: 3323 | BD56: 3052 | BE56: 2993 | BF56: 3138 | BG56: 3168 | BH56: 3169 | BI56: 3409 | BJ56: 3548 | BK56: 3496 | BL56: 3419 | BM56: 3432 | BN56: 3728 | BO56: 3720 | BP56: 3766 | BQ56: 3807 | BR56: 3815 | BS56: 3910 | BT56: 3846 | BU56: 3892 | BV56: 4004 | BW56: 3952 | BX56: 3911 | BY56: 4042 | BZ56: 4164 | CA56: 4109 | CG56: CÓRDOBA | CH56: 99803 | CI56: 109413 | CJ56: 110311 | CK56: 28023 | CL56: 29861 | CM56: 28854
A57: 23686 | B57: 236863 | C57: 3 | D57: 23 | E57: 686 | F57: 686 | G57: CÓRDOBA | H57: SAN PELAYO | I57: Independiente | J57: 15 | K57: 11 | L57: 158 | M57: 150 | N57: 178 | O57: 196 | P57: 205 | Q57: 215 | R57: 212 | S57: 234 | T57: 245 | U57: 255 | V57: 221 | W57: 232 | X57: 257 | Y57: 253 | Z57: 271 | AA57: 278 | AB57: 282 | AC57: 296 | AD57: 311 | AE57: 305 | AF57: 323 | AG57: 314 | AH57: 271 | AI57: 325 | AJ57: 365 | AK57: 338 | AL57: FALSO | AQ57: 5697 | AR57: 56973 | AS57: 3 | AT57: 5 | AU57: 697 | AV57: 697 | AW57: ANTIOQUIA | AX57: EL SANTUARIO | AY57: Independiente | AZ57: 37 | BA57: 22 | BB57: 1336 | BC57: 1355 | BD57: 1369 | BE57: 1393 | BF57: 1383 | BG57: 1387 | BH57: 1386 | BI57: 1403 | BJ57: 1396 | BK57: 1398 | BL57: 1388 | BM57: 1381 | BN57: 1403 | BO57: 1411 | BP57: 1425 | BQ57: 1412 | BR57: 1425 | BS57: 1442 | BT57: 1456 | BU57: 1466 | BV57: 1489 | BW57: 1490 | BX57: 1484 | BY57: 1491 | BZ57: 1510 | CA57: 1498 | CG57: CUNDINAMARCA | CH57: 342289 | CI57: 372446 | CJ57: 379161 | CK57: 104482 | CL57: 113434 | CM57: 110863
A58: 76834 | B58: 768343 | C58: 3 | D58: 76 | E58: 834 | F58: 834 | G58: VALLE DEL CAUCA | H58: TULUÁ | I58: Independiente | J58: 366 | K58: 229 | L58: 8317 | M58: 8385 | N58: 8180 | O58: 8175 | P58: 8230 | Q58: 8229 | R58: 8359 | S58: 8603 | T58: 8720 | U58: 8833 | V58: 8777 | W58: 8043 | X58: 8525 | Y58: 8695 | Z58: 8704 | AA58: 8646 | AB58: 8867 | AC58: 8658 | AD58: 8913 | AE58: 9061 | AF58: 9120 | AG58: 9239 | AH58: 9143 | AI58: 8805 | AJ58: 9157 | AK58: 8990 | AL58: FALSO | AQ58: 5129 | AR58: 51293 | AS58: 3 | AT58: 5 | AU58: 129 | AV58: 129 | AW58: ANTIOQUIA | AX58: CALDAS | AY58: Independiente | AZ58: 133 | BA58: 94 | BB58: 2192 | BC58: 2210 | BD58: 2177 | BE58: 2247 | BF58: 2297 | BG58: 2336 | BH58: 2392 | BI58: 2449 | BJ58: 2486 | BK58: 2516 | BL58: 2493 | BM58: 2439 | BN58: 2501 | BO58: 2554 | BP58: 2603 | BQ58: 2616 | BR58: 2668 | BS58: 2697 | BT58: 2710 | BU58: 2718 | BV58: 2753 | BW58: 2790 | BX58: 2718 | BY58: 2690 | BZ58: 2715 | CA58: 2695 | CG58: GUAINÍA | CH58: 11361 | CI58: 14454 | CJ58: 14560 | CK58: 1380 | CL58: 1728 | CM58: 1654
A59: 50001 | B59: 500012 | C59: 2 | D59: 50 | E59: 1 | F59: 001 | G59: META | H59: VILLAVICENCIO | I59: Dep_sec_priv | J59: 14425 | K59: 12934 | L59: 121735 | M59: 120768 | N59: 107379 | O59: 104650 | P59: 105205 | Q59: 106958 | R59: 107187 | S59: 108889 | T59: 110412 | U59: 112829 | V59: 111136 | W59: 109037 | X59: 112723 | Y59: 115013 | Z59: 116531 | AA59: 115639 | AB59: 117304 | AC59: 118869 | AD59: 121305 | AE59: 123652 | AF59: 124631 | AG59: 125458 | AH59: 122749 | AI59: 119812 | AJ59: 124131 | AK59: 126369 | AL59: FALSO | AQ59: 5761 | AR59: 57613 | AS59: 3 | AT59: 5 | AU59: 761 | AV59: 761 | AW59: ANTIOQUIA | AX59: SOPETRÁN | AY59: Independiente | AZ59: 29 | BA59: 6 | BB59: 218 | BC59: 216 | BD59: 203 | BE59: 218 | BF59: 219 | BG59: 220 | BH59: 239 | BI59: 244 | BJ59: 265 | BK59: 270 | BL59: 247 | BM59: 234 | BN59: 258 | BO59: 270 | BP59: 263 | BQ59: 261 | BR59: 267 | BS59: 280 | BT59: 296 | BU59: 303 | BV59: 307 | BW59: 302 | BX59: 272 | BY59: 320 | BZ59: 344 | CA59: 350 | CG59: GUAVIARE | CH59: 9699 | CI59: 13749 | CJ59: 14118 | CK59: 3557 | CL59: 3710 | CM59: 3668
A60: 17001 | B60: 170013 | C60: 3 | D60: 17 | E60: 1 | F60: 001 | G60: CALDAS | H60: MANIZALES | I60: Independiente | J60: 1436 | K60: 1150 | L60: 28501 | M60: 28373 | N60: 27703 | O60: 27687 | P60: 27786 | Q60: 28023 | R60: 28048 | S60: 28214 | T60: 28622 | U60: 29016 | V60: 28824 | W60: 27925 | X60: 28388 | Y60: 28786 | Z60: 29224 | AA60: 29421 | AB60: 29629 | AC60: 29754 | AD60: 30235 | AE60: 30472 | AF60: 30709 | AG60: 30772 | AH60: 29890 | AI60: 29669 | AJ60: 29752 | AK60: 29322 | AL60: FALSO | AQ60: 5055 | AR60: 50553 | AS60: 3 | AT60: 5 | AU60: 55 | AV60: 055 | AW60: ANTIOQUIA | AX60: ARGELIA | AY60: Independiente | AZ60: 8 | BA60: 5 | BB60: 79 | BC60: 78 | BD60: 73 | BE60: 77 | BF60: 54 | BG60: 85 | BH60: 97 | BI60: 97 | BJ60: 103 | BK60: 104 | BL60: 108 | BM60: 69 | BN60: 78 | BO60: 81 | BP60: 83 | BQ60: 98 | BR60: 99 | BS60: 102 | BT60: 100 | BU60: 99 | BV60: 105 | BW60: 103 | BX60: 99 | BY60: 99 | BZ60: 113 | CA60: 119 | CG60: HUILA | CH60: 97249 | CI60: 106391 | CJ60: 106665 | CK60: 39505 | CL60: 41871 | CM60: 40852
A61: 73268 | B61: 732683 | C61: 3 | D61: 73 | E61: 268 | F61: 268 | G61: TOLIMA | H61: ESPINAL | I61: Independiente | J61: 148 | K61: 99 | L61: 2652 | M61: 2755 | N61: 2729 | O61: 2678 | P61: 2635 | Q61: 2554 | R61: 2675 | S61: 2659 | T61: 2846 | U61: 2861 | V61: 2863 | W61: 2430 | X61: 2728 | Y61: 2859 | Z61: 2892 | AA61: 2890 | AB61: 2872 | AC61: 2849 | AD61: 2839 | AE61: 3110 | AF61: 3133 | AG61: 3098 | AH61: 3003 | AI61: 2859 | AJ61: 3142 | AK61: 3093 | AL61: FALSO | AQ61: 5154 | AR61: 51543 | AS61: 3 | AT61: 5 | AU61: 154 | AV61: 154 | AW61: ANTIOQUIA | AX61: CAUCASIA | AY61: Independiente | AZ61: 133 | BA61: 71 | BB61: 1604 | BC61: 1552 | BD61: 1530 | BE61: 1541 | BF61: 1560 | BG61: 1595 | BH61: 1595 | BI61: 1647 | BJ61: 1666 | BK61: 1719 | BL61: 1576 | BM61: 1512 | BN61: 1609 | BO61: 1622 | BP61: 1659 | BQ61: 1707 | BR61: 1787 | BS61: 1765 | BT61: 1806 | BU61: 1862 | BV61: 1904 | BW61: 1874 | BX61: 1681 | BY61: 1733 | BZ61: 1842 | CA61: 1779 | CG61: LA GUAJIRA | CH61: 52569 | CI61: 56352 | CJ61: 58412 | CK61: 17313 | CL61: 16042 | CM61: 18995
A62: 20001 | B62: 200013 | C62: 3 | D62: 20 | E62: 1 | F62: 001 | G62: CESAR | H62: VALLEDUPAR | I62: Independiente | J62: 941 | K62: 565 | L62: 17030 | M62: 17596 | N62: 17068 | O62: 17099 | P62: 17205 | Q62: 17267 | R62: 17339 | S62: 17664 | T62: 18220 | U62: 18475 | V62: 17745 | W62: 15839 | X62: 16527 | Y62: 17377 | Z62: 17663 | AA62: 17752 | AB62: 17759 | AC62: 17878 | AD62: 18011 | AE62: 18093 | AF62: 18445 | AG62: 18568 | AH62: 17921 | AI62: 17506 | AJ62: 17671 | AK62: 17395 | AL62: FALSO | AQ62: 5148 | AR62: 51483 | AS62: 3 | AT62: 5 | AU62: 148 | AV62: 148 | AW62: ANTIOQUIA | AX62: EL CARMEN DE VIBORAL | AY62: Independiente | AZ62: 113 | BA62: 83 | BB62: 1820 | BC62: 1836 | BD62: 1778 | BE62: 1799 | BF62: 1800 | BG62: 1837 | BH62: 1906 | BI62: 2005 | BJ62: 2036 | BK62: 2066 | BL62: 2086 | BM62: 1978 | BN62: 2023 | BO62: 2035 | BP62: 2065 | BQ62: 2082 | BR62: 2120 | BS62: 2128 | BT62: 2183 | BU62: 2222 | BV62: 2303 | BW62: 2312 | BX62: 2244 | BY62: 2249 | BZ62: 2462 | CA62: 2433 | CG62: MAGDALENA | CH62: 104762 | CI62: 114910 | CJ62: 115075 | CK62: 29831 | CL62: 30817 | CM62: 29923
A63: 25843 | B63: 258433 | C63: 3 | D63: 25 | E63: 843 | F63: 843 | G63: CUNDINAMARCA | H63: VILLA DE SAN DIEGO DE UBATE | I63: Independiente | J63: 119 | K63: 62 | L63: 2055 | M63: 2116 | N63: 2074 | O63: 2070 | P63: 2088 | Q63: 2084 | R63: 2084 | S63: 2084 | T63: 2135 | U63: 2170 | V63: 2115 | W63: 2024 | X63: 2081 | Y63: 2134 | Z63: 2185 | AA63: 2184 | AB63: 2195 | AC63: 2220 | AD63: 2231 | AE63: 2300 | AF63: 2310 | AG63: 2329 | AH63: 2308 | AI63: 2302 | AJ63: 2328 | AK63: 2312 | AL63: FALSO | AQ63: 5002 | AR63: 50023 | AS63: 3 | AT63: 5 | AU63: 2 | AV63: 002 | AW63: ANTIOQUIA | AX63: ABEJORRAL | AY63: Independiente | AZ63: 52 | BA63: 15 | BB63: 418 | BC63: 451 | BD63: 441 | BE63: 438 | BF63: 438 | BG63: 444 | BH63: 465 | BI63: 474 | BJ63: 484 | BK63: 481 | BL63: 478 | BM63: 431 | BN63: 463 | BO63: 444 | BP63: 437 | BQ63: 439 | BR63: 445 | BS63: 443 | BT63: 455 | BU63: 462 | BV63: 461 | BW63: 455 | BX63: 442 | BY63: 455 | BZ63: 453 | CA63: 484 | CG63: META | CH63: 154964 | CI63: 170352 | CJ63: 172970 | CK63: 38545 | CL63: 41060 | CM63: 40008
A64: 25899 | B64: 258993 | C64: 3 | D64: 25 | E64: 899 | F64: 899 | G64: CUNDINAMARCA | H64: ZIPAQUIRÁ | I64: Independiente | J64: 467 | K64: 305 | L64: 6852 | M64: 7185 | N64: 6587 | O64: 6757 | P64: 6706 | Q64: 6814 | R64: 6854 | S64: 6881 | T64: 7030 | U64: 7073 | V64: 7001 | W64: 6812 | X64: 7028 | Y64: 7215 | Z64: 7290 | AA64: 7377 | AB64: 7525 | AC64: 7580 | AD64: 7598 | AE64: 7632 | AF64: 7666 | AG64: 7631 | AH64: 7653 | AI64: 7583 | AJ64: 7743 | AK64: 7573 | AL64: FALSO | AQ64: 5400 | AR64: 54003 | AS64: 3 | AT64: 5 | AU64: 400 | AV64: 400 | AW64: ANTIOQUIA | AX64: LA UNIÓN | AY64: Independiente | AZ64: 42 | BA64: 31 | BB64: 1148 | BC64: 1165 | BD64: 1149 | BE64: 1177 | BF64: 1201 | BG64: 1210 | BH64: 1219 | BI64: 1236 | BJ64: 1236 | BK64: 1254 | BL64: 1246 | BM64: 1212 | BN64: 1207 | BO64: 1202 | BP64: 1213 | BQ64: 1221 | BR64: 1215 | BS64: 1222 | BT64: 1236 | BU64: 1239 | BV64: 1262 | BW64: 1278 | BX64: 1258 | BY64: 1250 | BZ64: 1278 | CA64: 1266 | CG64: NARIÑO | CH64: 96286 | CI64: 98092 | CJ64: 98117 | CK64: 43226 | CL64: 45131 | CM64: 43971
A65: 88001 | B65: 880013 | C65: 3 | D65: 88 | E65: 1 | F65: 001 | G65: ARCHIPIÉLAGO DE SAN ANDRÉS, PROVIDENCIA Y SANTA CATALINA | H65: SAN ANDRÉS | I65: Independiente | J65: 435 | K65: 104 | L65: 5546 | M65: 5487 | N65: 5367 | O65: 5479 | P65: 5684 | Q65: 5675 | R65: 5686 | S65: 5805 | T65: 5808 | U65: 5962 | V65: 5736 | W65: 4950 | X65: 5133 | Y65: 5416 | Z65: 5676 | AA65: 5589 | AB65: 5600 | AC65: 5511 | AD65: 5571 | AE65: 5646 | AF65: 5949 | AG65: 6136 | AH65: 5650 | AI65: 5440 | AJ65: 6011 | AK65: 5977 | AL65: FALSO | AQ65: 5847 | AR65: 58473 | AS65: 3 | AT65: 5 | AU65: 847 | AV65: 847 | AW65: ANTIOQUIA | AX65: URRAO | AY65: Independiente | AZ65: 22 | BA65: 23 | BB65: 410 | BC65: 435 | BD65: 424 | BE65: 397 | BF65: 394 | BG65: 398 | BH65: 417 | BI65: 426 | BJ65: 447 | BK65: 460 | BL65: 458 | BM65: 405 | BN65: 399 | BO65: 416 | BP65: 452 | BQ65: 467 | BR65: 470 | BS65: 494 | BT65: 505 | BU65: 513 | BV65: 519 | BW65: 532 | BX65: 506 | BY65: 475 | BZ65: 521 | CA65: 502 | CG65: SANTANDER | CH65: 352771 | CI65: 373335 | CJ65: 375702 | CK65: 106019 | CL65: 111998 | CM65: 109839
A66: 54001 | B66: 540011 | C66: 1 | D66: 54 | E66: 1 | F66: 001 | G66: NORTE DE SANTANDER | H66: CÚCUTA | I66: Dep_No_priv | J66: 4009 | K66: 1449 | L66: 26170 | M66: 29406 | N66: 23534 | O66: 21872 | P66: 23328 | Q66: 21107 | R66: 22077 | S66: 24069 | T66: 24990 | U66: 24407 | V66: 22452 | W66: 18586 | X66: 20994 | Y66: 23095 | Z66: 24294 | AA66: 22945 | AB66: 23095 | AC66: 22751 | AD66: 27882 | AE66: 29641 | AF66: 29516 | AG66: 28740 | AH66: 24121 | AI66: 21104 | AJ66: 23839 | AK66: 25583 | AL66: FALSO | AQ66: 5021 | AR66: 50213 | AS66: 3 | AT66: 5 | AU66: 21 | AV66: 021 | AW66: ANTIOQUIA | AX66: ALEJANDRÍA | AY66: Independiente | AZ66: 3 | BA66: 5 | BB66: 99 | BC66: 99 | BD66: 99 | BE66: 103 | BF66: 109 | BG66: 114 | BH66: 114 | BI66: 113 | BJ66: 118 | BK66: 118 | BL66: 112 | BM66: 78 | BN66: 103 | BO66: 116 | BP66: 127 | BQ66: 132 | BR66: 136 | BS66: 138 | BT66: 138 | BU66: 131 | BV66: 131 | BW66: 137 | BX66: 120 | BY66: 125 | BZ66: 137 | CA66: 134 | CG66: PUTUMAYO | CH66: 20748 | CI66: 21768 | CJ66: 22170 | CK66: 9922 | CL66: 10645 | CM66: 10444
A67: 54001 | B67: 540013 | C67: 3 | D67: 54 | E67: 1 | F67: 001 | G67: NORTE DE SANTANDER | H67: CÚCUTA | I67: Independiente | J67: 1840 | K67: 1486 | L67: 30954 | M67: 31182 | N67: 30308 | O67: 30232 | P67: 30414 | Q67: 30502 | R67: 30871 | S67: 31373 | T67: 32169 | U67: 32485 | V67: 31794 | W67: 29864 | X67: 30336 | Y67: 31505 | Z67: 31084 | AA67: 32002 | AB67: 32279 | AC67: 32641 | AD67: 33133 | AE67: 33614 | AF67: 33756 | AG67: 34111 | AH67: 33514 | AI67: 32278 | AJ67: 32974 | AK67: 31994 | AL67: =IF(SUM(L67:AK67)=0,"VERDADERO","FALSO") -> FALSO | AQ67: 5615 | AR67: 56151 | AS67: 1 | AT67: 5 | AU67: 615 | AV67: 615 | AW67: ANTIOQUIA | AX67: RIONEGRO | AY67: Dep_No_priv | AZ67: 594 | BA67: 337 | BB67: 4226 | BC67: 4372 | BD67: 4041 | BE67: 4091 | BF67: 4871 | BG67: 5343 | BH67: 5740 | BI67: 5681 | BJ67: 5174 | BK67: 4984 | BL67: 4541 | BM67: 4248 | BN67: 4806 | BO67: 4907 | BP67: 5046 | BQ67: 5205 | BR67: 4917 | BS67: 4705 | BT67: 4880 | BU67: 5085 | BV67: 5364 | BW67: 5402 | BX67: 4518 | BY67: 4275 | BZ67: 4799 | CA67: 5066 | CG67: QUINDÍO | CH67: 77842 | CI67: 83815 | CJ67: 84493 | CK67: 28860 | CL67: 30960 | CM67: 30284
A68: 25815 | B68: 258152 | C68: 2 | D68: 25 | E68: 815 | F68: 815 | G68: CUNDINAMARCA | H68: TOCAIMA | I68: Dep_sec_priv | J68: 76 | K68: 51 | L68: 478 | M68: 453 | N68: 534 | O68: 471 | P68: 492 | Q68: 515 | R68: 520 | S68: 530 | T68: 594 | U68: 603 | V68: 638 | W68: 669 | X68: 671 | Y68: 666 | Z68: 687 | AA68: 679 | AB68: 680 | AC68: 701 | AD68: 712 | AE68: 718 | AF68: 743 | AG68: 760 | AH68: 758 | AI68: 763 | AJ68: 792 | AK68: 787 | AL68: FALSO | AQ68: 5030 | AR68: 50303 | AS68: 3 | AT68: 5 | AU68: 30 | AV68: 030 | AW68: ANTIOQUIA | AX68: AMAGÁ | AY68: Independiente | AZ68: 50 | BA68: 35 | BB68: 599 | BC68: 573 | BD68: 554 | BE68: 564 | BF68: 586 | BG68: 584 | BH68: 588 | BI68: 593 | BJ68: 620 | BK68: 625 | BL68: 612 | BM68: 586 | BN68: 630 | BO68: 662 | BP68: 658 | BQ68: 673 | BR68: 683 | BS68: 681 | BT68: 696 | BU68: 701 | BV68: 707 | BW68: 729 | BX68: 723 | BY68: 709 | BZ68: 780 | CA68: 774 | CG68: RISARALDA | CH68: 170505 | CI68: 183611 | CJ68: 184680 | CK68: 51115 | CL68: 52315 | CM68: 51494
A69: 25386 | B69: 253863 | C69: 3 | D69: 25 | E69: 386 | F69: 386 | G69: CUNDINAMARCA | H69: LA MESA | I69: Independiente | J69: 67 | K69: 42 | L69: 1571 | M69: 1585 | N69: 1570 | O69: 1608 | P69: 1673 | Q69: 1681 | R69: 1651 | S69: 1694 | T69: 1736 | U69: 1737 | V69: 1709 | W69: 1689 | X69: 1729 | Y69: 1754 | Z69: 1829 | AA69: 1842 | AB69: 1844 | AC69: 1863 | AD69: 1858 | AE69: 1868 | AF69: 1847 | AG69: 1873 | AH69: 1846 | AI69: 1763 | AJ69: 1818 | AK69: 1744 | AL69: FALSO | AQ69: 5031 | AR69: 50313 | AS69: 3 | AT69: 5 | AU69: 31 | AV69: 031 | AW69: ANTIOQUIA | AX69: AMALFI | AY69: Independiente | AZ69: 28 | BA69: 15 | BB69: 665 | BC69: 668 | BD69: 622 | BE69: 393 | BF69: 387 | BG69: 381 | BH69: 370 | BI69: 621 | BJ69: 648 | BK69: 425 | BL69: 429 | BM69: 349 | BN69: 388 | BO69: 402 | BP69: 431 | BQ69: 427 | BR69: 440 | BS69: 448 | BT69: 458 | BU69: 465 | BV69: 489 | BW69: 485 | BX69: 470 | BY69: 440 | BZ69: 462 | CA69: 419 | CG69: NORTE DE SANTANDER | CH69: 145416 | CI69: 156195 | CJ69: 157395 | CK69: 44615 | CL69: 47438 | CM69: 46224
A70: 17013 | B70: 170133 | C70: 3 | D70: 17 | E70: 13 | F70: 013 | G70: CALDAS | H70: AGUADAS | I70: Independiente | J70: 24 | K70: 35 | L70: 538 | M70: 552 | N70: 536 | O70: 560 | P70: 567 | Q70: 589 | R70: 603 | S70: 612 | T70: 620 | U70: 623 | V70: 619 | W70: 619 | X70: 644 | Y70: 636 | Z70: 636 | AA70: 656 | AB70: 643 | AC70: 657 | AD70: 664 | AE70: 678 | AF70: 688 | AG70: 713 | AH70: 710 | AI70: 691 | AJ70: 711 | AK70: 718 | AL70: FALSO | AQ70: 5034 | AR70: 50343 | AS70: 3 | AT70: 5 | AU70: 34 | AV70: 034 | AW70: ANTIOQUIA | AX70: ANDES | AY70: Independiente | AZ70: 48 | BA70: 33 | BB70: 1156 | BC70: 1196 | BD70: 1137 | BE70: 1154 | BF70: 1142 | BG70: 1154 | BH70: 1169 | BI70: 1204 | BJ70: 1315 | BK70: 1334 | BL70: 1328 | BM70: 1200 | BN70: 1248 | BO70: 1252 | BP70: 1254 | BQ70: 1266 | BR70: 1263 | BS70: 1294 | BT70: 1299 | BU70: 1329 | BV70: 1346 | BW70: 1355 | BX70: 1274 | BY70: 1293 | BZ70: 1340 | CA70: 1315 | CG70: SUCRE | CH70: 48100 | CI70: 50012 | CJ70: 50730 | CK70: 15912 | CL70: 16527 | CM70: 15813
A71: 50689 | B71: 506893 | C71: 3 | D71: 50 | E71: 689 | F71: 689 | G71: META | H71: SAN MARTÍN | I71: Independiente | J71: 46 | K71: 45 | L71: 595 | M71: 611 | N71: 621 | O71: 606 | P71: 611 | Q71: 630 | R71: 633 | S71: 639 | T71: 635 | U71: 668 | V71: 638 | W71: 543 | X71: 595 | Y71: 631 | Z71: 642 | AA71: 681 | AB71: 688 | AC71: 680 | AD71: 711 | AE71: 759 | AF71: 746 | AG71: 805 | AH71: 747 | AI71: 725 | AJ71: 769 | AK71: 757 | AL71: FALSO | AQ71: 5368 | AR71: 53683 | AS71: 3 | AT71: 5 | AU71: 368 | AV71: 368 | AW71: ANTIOQUIA | AX71: JERICÓ | AY71: Independiente | AZ71: 23 | BA71: 8 | BB71: 415 | BC71: 419 | BD71: 417 | BE71: 428 | BF71: 431 | BG71: 450 | BH71: 443 | BI71: 448 | BJ71: 446 | BK71: 447 | BL71: 438 | BM71: 425 | BN71: 443 | BO71: 443 | BP71: 457 | BQ71: 463 | BR71: 463 | BS71: 467 | BT71: 476 | BU71: 487 | BV71: 495 | BW71: 496 | BX71: 490 | BY71: 490 | BZ71: 496 | CA71: 494 | CG71: TOLIMA | CH71: 141063 | CI71: 147080 | CJ71: 147266 | CK71: 47232 | CL71: 50453 | CM71: 49152
A72: 25875 | B72: 258753 | C72: 3 | D72: 25 | E72: 875 | F72: 875 | G72: CUNDINAMARCA | H72: VILLETA | I72: Independiente | J72: 71 | K72: 44 | L72: 2051 | M72: 2053 | N72: 2019 | O72: 2050 | P72: 2049 | Q72: 2071 | R72: 2098 | S72: 2096 | T72: 2127 | U72: 2136 | V72: 2124 | W72: 2117 | X72: 2117 | Y72: 2147 | Z72: 2188 | AA72: 2181 | AB72: 2200 | AC72: 2205 | AD72: 2183 | AE72: 2204 | AF72: 2171 | AG72: 2180 | AH72: 2142 | AI72: 2113 | AJ72: 2100 | AK72: 2036 | AL72: FALSO | AQ72: 5353 | AR72: 53533 | AS72: 3 | AT72: 5 | AU72: 353 | AV72: 353 | AW72: ANTIOQUIA | AX72: HISPANIA | AY72: Independiente | AZ72: 5 | BA72: 1 | BB72: 68 | BC72: 67 | BD72: 72 | BE72: 77 | BF72: 81 | BG72: 74 | BH72: 73 | BI72: 77 | BJ72: 79 | BK72: 92 | BL72: 97 | BM72: 67 | BN72: 79 | BO72: 73 | BP72: 81 | BQ72: 85 | BR72: 85 | BS72: 83 | BT72: 85 | BU72: 85 | BV72: 87 | BW72: 91 | BX72: 86 | BY72: 86 | BZ72: 87 | CA72: 88 | CG72: VALLE DEL CAUCA | CH72: 838980 | CI72: 869543 | CJ72: 874046 | CK72: 196696 | CL72: 204107 | CM72: 200626
A73: 15176 | B73: 151763 | C73: 3 | D73: 15 | E73: 176 | F73: 176 | G73: BOYACÁ | H73: CHIQUINQUIRÁ | I73: Independiente | J73: 130 | K73: 84 | L73: 2884 | M73: 2942 | N73: 2795 | O73: 2773 | P73: 2793 | Q73: 2867 | R73: 2924 | S73: 2956 | T73: 2991 | U73: 2994 | V73: 2994 | W73: 2787 | X73: 2826 | Y73: 2919 | Z73: 2927 | AA73: 2961 | AB73: 2990 | AC73: 3050 | AD73: 3032 | AE73: 3087 | AF73: 3132 | AG73: 3092 | AH73: 3030 | AI73: 2870 | AJ73: 2922 | AK73: 2823 | AL73: FALSO | AQ73: 5038 | AR73: 50383 | AS73: 3 | AT73: 5 | AU73: 38 | AV73: 038 | AW73: ANTIOQUIA | AX73: ANGOSTURA | AY73: Independiente | AZ73: 3 | BA73: 2 | BB73: 95 | BC73: 101 | BD73: 101 | BE73: 106 | BF73: 108 | BG73: 111 | BH73: 119 | BI73: 130 | BJ73: 132 | BK73: 139 | BL73: 133 | BM73: 84 | BN73: 108 | BO73: 109 | BP73: 108 | BQ73: 110 | BR73: 114 | BS73: 106 | BT73: 110 | BU73: 114 | BV73: 114 | BW73: 113 | BX73: 115 | BY73: 94 | BZ73: 106 | CA73: 109 | CG73: VAUPÉS | CH73: 2604 | CI73: 2317 | CJ73: 2285 | CK73: 991 | CL73: 1307 | CM73: 1282
A74: 85410 | B74: 854103 | C74: 3 | D74: 85 | E74: 410 | F74: 410 | G74: CASANARE | H74: TAURAMENA | I74: Independiente | J74: 72 | K74: 35 | L74: 614 | M74: 601 | N74: 547 | O74: 579 | P74: 604 | Q74: 625 | R74: 626 | S74: 657 | T74: 679 | U74: 715 | V74: 711 | W74: 579 | X74: 640 | Y74: 676 | Z74: 694 | AA74: 702 | AB74: 697 | AC74: 731 | AD74: 728 | AE74: 762 | AF74: 758 | AG74: 763 | AH74: 793 | AI74: 710 | AJ74: 734 | AK74: 714 | AL74: FALSO | AQ74: 5031 | AR74: 50312 | AS74: 2 | AT74: 5 | AU74: 31 | AV74: 031 | AW74: ANTIOQUIA | AX74: AMALFI | AY74: Dep_sec_priv | AZ74: 414 | BA74: 551 | BB74: 1736 | BC74: 1758 | BD74: 1521 | BE74: 1550 | BF74: 1741 | BG74: 1829 | BH74: 1787 | BI74: 1804 | BJ74: 1800 | BK74: 1950 | BL74: 1873 | BM74: 1852 | BN74: 2008 | BO74: 2022 | BP74: 2070 | BQ74: 2229 | BR74: 2084 | BS74: 2159 | BT74: 2553 | BU74: 2119 | BV74: 1948 | BW74: 2106 | BX74: 1962 | BY74: 2037 | BZ74: 1921 | CA74: 2278 | CG74: VICHADA | CH74: 72640 | CI74: 86783 | CJ74: 90979 | CK74: 2021 | CL74: 2232 | CM74: 2224
A75: 15516 | B75: 155163 | C75: 3 | D75: 15 | E75: 516 | F75: 516 | G75: BOYACÁ | H75: PAIPA | I75: Independiente | J75: 58 | K75: 41 | L75: 1143 | M75: 1153 | N75: 1109 | O75: 1099 | P75: 1146 | Q75: 1171 | R75: 1182 | S75: 1217 | T75: 1243 | U75: 1257 | V75: 1275 | W75: 1199 | X75: 1270 | Y75: 1292 | Z75: 1318 | AA75: 1347 | AB75: 1350 | AC75: 1384 | AD75: 1390 | AE75: 1404 | AF75: 1426 | AG75: 1427 | AH75: 1413 | AI75: 1372 | AJ75: 1388 | AK75: 1358 | AL75: FALSO | AQ75: 5042 | AR75: 50422 | AS75: 2 | AT75: 5 | AU75: 42 | AV75: 042 | AW75: ANTIOQUIA | AX75: SANTAFÉ DE ANTIOQUIA | AY75: Dep_sec_priv | AZ75: 894 | BA75: 657 | BB75: 7077 | BC75: 6932 | BD75: 6212 | BE75: 5928 | BF75: 5828 | BG75: 5756 | BH75: 5720 | BI75: 5338 | BJ75: 5477 | BK75: 5784 | BL75: 5959 | BM75: 5585 | BN75: 5858 | BO75: 6019 | BP75: 6122 | BQ75: 6168 | BR75: 6169 | BS75: 6140 | BT75: 6195 | BU75: 6151 | BV75: 6225 | BW75: 6398 | BX75: 6287 | BY75: 6091 | BZ75: 6235 | CA75: 6571 | CG75: Sin Info | CH75: 486 | CI75: 532 | CJ75: 586 | CK75: 22222 | CL75: 23364 | CM75: 22941
A76: 15001 | B76: 150012 | C76: 2 | D76: 15 | E76: 1 | F76: 001 | G76: BOYACÁ | H76: TUNJA | I76: Dep_sec_priv | J76: 4107 | K76: 3901 | L76: 50665 | M76: 51434 | N76: 45522 | O76: 45033 | P76: 46011 | Q76: 46134 | R76: 46654 | S76: 47963 | T76: 48536 | U76: 49362 | V76: 48324 | W76: 47142 | X76: 48708 | Y76: 49281 | Z76: 49575 | AA76: 49273 | AB76: 49080 | AC76: 50099 | AD76: 51190 | AE76: 51746 | AF76: 51861 | AG76: 54013 | AH76: 52385 | AI76: 50201 | AJ76: 52644 | AK76: 52182 | AL76: FALSO | AQ76: 5837 | AR76: 58373 | AS76: 3 | AT76: 5 | AU76: 837 | AV76: 837 | AW76: ANTIOQUIA | AX76: TURBO | AY76: Independiente | AZ76: 55 | BA76: 33 | BB76: 1214 | BC76: 1253 | BD76: 1263 | BE76: 1292 | BF76: 1342 | BG76: 1367 | BH76: 1384 | BI76: 1457 | BJ76: 1481 | BK76: 1484 | BL76: 1385 | BM76: 1142 | BN76: 1220 | BO76: 1374 | BP76: 1407 | BQ76: 1452 | BR76: 1491 | BS76: 1490 | BT76: 1536 | BU76: 1506 | BV76: 1507 | BW76: 1518 | BX76: 1376 | BY76: 1296 | BZ76: 1373 | CA76: 1326
A77: 25035 | B77: 250353 | C77: 3 | D77: 25 | E77: 35 | F77: 035 | G77: CUNDINAMARCA | H77: ANAPOIMA | I77: Independiente | J77: 32 | K77: 31 | L77: 538 | M77: 564 | N77: 546 | O77: 538 | P77: 536 | Q77: 545 | R77: 560 | S77: 575 | T77: 573 | U77: 584 | V77: 574 | W77: 604 | X77: 622 | Y77: 625 | Z77: 629 | AA77: 637 | AB77: 649 | AC77: 634 | AD77: 636 | AE77: 652 | AF77: 637 | AG77: 631 | AH77: 604 | AI77: 635 | AJ77: 660 | AK77: 631 | AL77: FALSO | AQ77: 5079 | AR77: 50793 | AS77: 3 | AT77: 5 | AU77: 79 | AV77: 079 | AW77: ANTIOQUIA | AX77: BARBOSA | AY77: Independiente | AZ77: 49 | BA77: 27 | BB77: 834 | BC77: 846 | BD77: 831 | BE77: 826 | BF77: 846 | BG77: 842 | BH77: 860 | BI77: 880 | BJ77: 902 | BK77: 941 | BL77: 940 | BM77: 863 | BN77: 930 | BO77: 976 | BP77: 998 | BQ77: 1032 | BR77: 1041 | BS77: 1063 | BT77: 1101 | BU77: 1111 | BV77: 1120 | BW77: 1135 | BX77: 1113 | BY77: 1008 | BZ77: 1080 | CA77: 1057
A78: 52001 | B78: 520013 | C78: 3 | D78: 52 | E78: 1 | F78: 001 | G78: NARIÑO | H78: PASTO | I78: Independiente | J78: 1555 | K78: 1051 | L78: 22020 | M78: 22200 | N78: 21205 | O78: 21238 | P78: 21576 | Q78: 21885 | R78: 22250 | S78: 22716 | T78: 23163 | U78: 23493 | V78: 23125 | W78: 20950 | X78: 22240 | Y78: 22869 | Z78: 22976 | AA78: 23011 | AB78: 22955 | AC78: 23005 | AD78: 23442 | AE78: 23718 | AF78: 24272 | AG78: 24662 | AH78: 23971 | AI78: 22637 | AJ78: 23209 | AK78: 22635 | AL78: FALSO | AQ78: 5237 | AR78: 52373 | AS78: 3 | AT78: 5 | AU78: 237 | AV78: 237 | AW78: ANTIOQUIA | AX78: DON MATÍAS | AY78: Independiente | AZ78: 47 | BA78: 35 | BB78: 1844 | BC78: 1864 | BD78: 1863 | BE78: 1972 | BF78: 1952 | BG78: 1985 | BH78: 1975 | BI78: 1960 | BJ78: 1961 | BK78: 1967 | BL78: 1933 | BM78: 1925 | BN78: 1952 | BO78: 1971 | BP78: 1962 | BQ78: 1956 | BR78: 1963 | BS78: 1973 | BT78: 1986 | BU78: 2007 | BV78: 2016 | BW78: 2014 | BX78: 2006 | BY78: 2020 | BZ78: 2068 | CA78: 2014
A79: 5631 | B79: 56313 | C79: 3 | D79: 5 | E79: 631 | F79: 631 | G79: ANTIOQUIA | H79: SABANETA | I79: Independiente | J79: 339 | K79: 290 | L79: 5326 | M79: 5513 | N79: 5491 | O79: 5659 | P79: 5736 | Q79: 5754 | R79: 5946 | S79: 6108 | T79: 6274 | U79: 6414 | V79: 6391 | W79: 6067 | X79: 6338 | Y79: 6470 | Z79: 6480 | AA79: 6571 | AB79: 6648 | AC79: 6698 | AD79: 6806 | AE79: 6898 | AF79: 6906 | AG79: 7019 | AH79: 7027 | AI79: 7105 | AJ79: 7384 | AK79: 7229 | AL79: FALSO | AQ79: 5093 | AR79: 50933 | AS79: 3 | AT79: 5 | AU79: 93 | AV79: 093 | AW79: ANTIOQUIA | AX79: BETULIA | AY79: Independiente | AZ79: 5 | BA79: 1 | BB79: 197 | BC79: 199 | BD79: 170 | BE79: 168 | BF79: 168 | BG79: 187 | BH79: 200 | BI79: 172 | BJ79: 223 | BK79: 227 | BL79: 226 | BM79: 150 | BN79: 164 | BO79: 174 | BP79: 168 | BQ79: 169 | BR79: 174 | BS79: 181 | BT79: 180 | BU79: 192 | BV79: 192 | BW79: 190 | BX79: 191 | BY79: 180 | BZ79: 181 | CA79: 179
A80: 68572 | B80: 685723 | C80: 3 | D80: 68 | E80: 572 | F80: 572 | G80: SANTANDER | H80: PUENTE NACIONAL | I80: Independiente | J80: 16 | K80: 4 | L80: 326 | M80: 332 | N80: 326 | O80: 337 | P80: 336 | Q80: 331 | R80: 339 | S80: 342 | T80: 353 | U80: 336 | V80: 340 | W80: 302 | X80: 318 | Y80: 345 | Z80: 349 | AA80: 344 | AB80: 360 | AC80: 374 | AD80: 377 | AE80: 368 | AF80: 370 | AG80: 372 | AH80: 378 | AI80: 354 | AJ80: 382 | AK80: 383 | AL80: FALSO | AQ80: 5101 | AR80: 51013 | AS80: 3 | AT80: 5 | AU80: 101 | AV80: 101 | AW80: ANTIOQUIA | AX80: CIUDAD BOLÍVAR | AY80: Independiente | AZ80: 37 | BA80: 32 | BB80: 582 | BC80: 593 | BD80: 601 | BE80: 629 | BF80: 628 | BG80: 665 | BH80: 665 | BI80: 712 | BJ80: 774 | BK80: 804 | BL80: 792 | BM80: 740 | BN80: 775 | BO80: 811 | BP80: 813 | BQ80: 813 | BR80: 808 | BS80: 822 | BT80: 838 | BU80: 840 | BV80: 857 | BW80: 864 | BX80: 858 | BY80: 840 | BZ80: 865 | CA80: 848
A81: 25175 | B81: 251752 | C81: 2 | D81: 25 | E81: 175 | F81: 175 | G81: CUNDINAMARCA | H81: CHÍA | I81: Dep_sec_priv | J81: 2481 | K81: 2168 | L81: 26988 | M81: 26146 | N81: 24147 | O81: 24604 | P81: 24404 | Q81: 24667 | R81: 24070 | S81: 24738 | T81: 25124 | U81: 24531 | V81: 24040 | W81: 24370 | X81: 25734 | Y81: 25282 | Z81: 26122 | AA81: 26210 | AB81: 25835 | AC81: 25745 | AD81: 26442 | AE81: 26717 | AF81: 26576 | AG81: 27092 | AH81: 25881 | AI81: 26556 | AJ81: 27409 | AK81: 27175 | AL81: FALSO | AQ81: 5113 | AR81: 51132 | AS81: 2 | AT81: 5 | AU81: 113 | AV81: 113 | AW81: ANTIOQUIA | AX81: BURITICÁ | AY81: Dep_sec_priv | AZ81: 81 | BA81: 109 | BB81: 1183 | BC81: 1038 | BD81: 807 | BE81: 803 | BF81: 721 | BG81: 652 | BH81: 591 | BI81: 549 | BJ81: 505 | BK81: 539 | BL81: 551 | BM81: 674 | BN81: 769 | BO81: 789 | BP81: 814 | BQ81: 862 | BR81: 811 | BS81: 828 | BT81: 882 | BU81: 918 | BV81: 927 | BW81: 892 | BX81: 842 | BY81: 809 | BZ81: 827 | CA81: 905
A82: 44001 | B82: 440013 | C82: 3 | D82: 44 | E82: 1 | F82: 001 | G82: LA GUAJIRA | H82: RIOHACHA | I82: Independiente | J82: 2574 | K82: 401 | L82: 5835 | M82: 7903 | N82: 9476 | O82: 9457 | P82: 9487 | Q82: 9743 | R82: 9816 | S82: 9974 | T82: 10145 | U82: 10253 | V82: 9615 | W82: 5589 | X82: 5963 | Y82: 7890 | Z82: 8924 | AA82: 9442 | AB82: 9581 | AC82: 9798 | AD82: 9983 | AE82: 10091 | AF82: 10211 | AG82: 10345 | AH82: 9898 | AI82: 5990 | AJ82: 7461 | AK82: 9291 | AL82: FALSO | AQ82: 5120 | AR82: 51201 | AS82: 1 | AT82: 5 | AU82: 120 | AV82: 120 | AW82: ANTIOQUIA | AX82: CÁCERES | AY82: Dep_No_priv | AZ82: 17 | BA82: 17 | BB82: 368 | BC82: 376 | BD82: 375 | BE82: 376 | BF82: 379 | BG82: 379 | BH82: 382 | BI82: 391 | BJ82: 385 | BK82: 382 | BL82: 374 | BM82: 364 | BN82: 372 | BO82: 361 | BP82: 359 | BQ82: 365 | BR82: 369 | BS82: 371 | BT82: 367 | BU82: 373 | BV82: 378 | BW82: 391 | BX82: 400 | BY82: 388 | BZ82: 384 | CA82: 391
A83: 25377 | B83: 253773 | C83: 3 | D83: 25 | E83: 377 | F83: 377 | G83: CUNDINAMARCA | H83: LA CALERA | I83: Independiente | J83: 70 | K83: 50 | L83: 1627 | M83: 1668 | N83: 1636 | O83: 1674 | P83: 1684 | Q83: 1709 | R83: 1719 | S83: 1724 | T83: 1765 | U83: 1807 | V83: 1804 | W83: 1707 | X83: 1795 | Y83: 1824 | Z83: 1835 | AA83: 1845 | AB83: 1851 | AC83: 1867 | AD83: 1877 | AE83: 1909 | AF83: 1921 | AG83: 1900 | AH83: 1947 | AI83: 1948 | AJ83: 1927 | AK83: 1878 | AL83: FALSO | AQ83: 5887 | AR83: 58873 | AS83: 3 | AT83: 5 | AU83: 887 | AV83: 887 | AW83: ANTIOQUIA | AX83: YARUMAL | AY83: Independiente | AZ83: 57 | BA83: 43 | BB83: 1199 | BC83: 1212 | BD83: 1201 | BE83: 1197 | BF83: 1199 | BG83: 1216 | BH83: 1229 | BI83: 1243 | BJ83: 1280 | BK83: 1288 | BL83: 1276 | BM83: 1206 | BN83: 1260 | BO83: 1261 | BP83: 1255 | BQ83: 1265 | BR83: 1288 | BS83: 1340 | BT83: 1374 | BU83: 1396 | BV83: 1405 | BW83: 1422 | BX83: 1394 | BY83: 1317 | BZ83: 1384 | CA83: 1376
A84: 25001 | B84: 250013 | C84: 3 | D84: 25 | E84: 1 | F84: 001 | G84: CUNDINAMARCA | H84: AGUA DE DIOS | I84: Independiente | J84: 56 | K84: 54 | L84: 680 | M84: 608 | N84: 603 | O84: 574 | P84: 568 | Q84: 567 | R84: 561 | S84: 575 | T84: 582 | U84: 575 | V84: 552 | W84: 524 | X84: 530 | Y84: 608 | Z84: 611 | AA84: 592 | AB84: 601 | AC84: 634 | AD84: 643 | AE84: 651 | AF84: 654 | AG84: 644 | AH84: 646 | AI84: 611 | AJ84: 654 | AK84: 669 | AL84: FALSO | AQ84: 5134 | AR84: 51342 | AS84: 2 | AT84: 5 | AU84: 134 | AV84: 134 | AW84: ANTIOQUIA | AX84: CAMPAMENTO | AY84: Dep_sec_priv | AZ84: 6 | BA84: 13 | BB84: 77 | BC84: 73 | BD84: 64 | BE84: 63 | BF84: 67 | BG84: 63 | BH84: 64 | BI84: 65 | BJ84: 64 | BK84: 53 | BL84: 51 | BM84: 30 | BN84: 46 | BO84: 62 | BP84: 68 | BQ84: 93 | BR84: 84 | BS84: 72 | BT84: 82 | BU84: 91 | BV84: 100 | BW84: 111 | BX84: 125 | BY84: 128 | BZ84: 120 | CA84: 68
A85: 25815 | B85: 258153 | C85: 3 | D85: 25 | E85: 815 | F85: 815 | G85: CUNDINAMARCA | H85: TOCAIMA | I85: Independiente | J85: 29 | K85: 13 | L85: 276 | M85: 288 | N85: 288 | O85: 296 | P85: 293 | Q85: 297 | R85: 319 | S85: 357 | T85: 360 | U85: 360 | V85: 346 | W85: 333 | X85: 368 | Y85: 372 | Z85: 375 | AA85: 398 | AB85: 403 | AC85: 388 | AD85: 405 | AE85: 392 | AF85: 410 | AG85: 416 | AH85: 407 | AI85: 361 | AJ85: 414 | AK85: 404 | AL85: FALSO | AQ85: 5134 | AR85: 51343 | AS85: 3 | AT85: 5 | AU85: 134 | AV85: 134 | AW85: ANTIOQUIA | AX85: CAMPAMENTO | AY85: Independiente | AZ85: 1 | BA85: 2 | BB85: 69 | BC85: 71 | BD85: 68 | BE85: 67 | BF85: 71 | BG85: 77 | BH85: 88 | BI85: 99 | BJ85: 98 | BK85: 105 | BL85: 99 | BM85: 95 | BN85: 102 | BO85: 102 | BP85: 98 | BQ85: 102 | BR85: 100 | BS85: 101 | BT85: 109 | BU85: 107 | BV85: 108 | BW85: 111 | BX85: 105 | BY85: 102 | BZ85: 102 | CA85: 99
A86: 25473 | B86: 254733 | C86: 3 | D86: 25 | E86: 473 | F86: 473 | G86: CUNDINAMARCA | H86: MOSQUERA | I86: Independiente | J86: 297 | K86: 177 | L86: 3808 | M86: 3891 | N86: 3778 | O86: 3857 | P86: 3907 | Q86: 4002 | R86: 4074 | S86: 4192 | T86: 4313 | U86: 4379 | V86: 4398 | W86: 4224 | X86: 4382 | Y86: 4519 | Z86: 4584 | AA86: 4660 | AB86: 4711 | AC86: 4797 | AD86: 4857 | AE86: 4952 | AF86: 4993 | AG86: 5035 | AH86: 4953 | AI86: 4944 | AJ86: 5117 | AK86: 5060 | AL86: FALSO | AQ86: 5148 | AR86: 51482 | AS86: 2 | AT86: 5 | AU86: 148 | AV86: 148 | AW86: ANTIOQUIA | AX86: EL CARMEN DE VIBORAL | AY86: Dep_sec_priv | AZ86: 774 | BA86: 656 | BB86: 7183 | BC86: 7154 | BD86: 6303 | BE86: 6402 | BF86: 6406 | BG86: 6473 | BH86: 6606 | BI86: 6788 | BJ86: 6868 | BK86: 7079 | BL86: 7005 | BM86: 7147 | BN86: 7432 | BO86: 7644 | BP86: 7674 | BQ86: 7689 | BR86: 7623 | BS86: 7739 | BT86: 7826 | BU86: 7917 | BV86: 8060 | BW86: 8173 | BX86: 8040 | BY86: 8138 | BZ86: 8341 | CA86: 8436
A87: 20011 | B87: 200113 | C87: 3 | D87: 20 | E87: 11 | F87: 011 | G87: CESAR | H87: AGUACHICA | I87: Independiente | J87: 198 | K87: 144 | L87: 2869 | M87: 3022 | N87: 2953 | O87: 3166 | P87: 3170 | Q87: 3478 | R87: 3320 | S87: 3420 | T87: 3539 | U87: 3526 | V87: 3498 | W87: 3065 | X87: 2937 | Y87: 3020 | Z87: 3023 | AA87: 3060 | AB87: 3112 | AC87: 3101 | AD87: 3175 | AE87: 3165 | AF87: 3205 | AG87: 3186 | AH87: 3127 | AI87: 3002 | AJ87: 3233 | AK87: 3159 | AL87: FALSO | AQ87: 5604 | AR87: 56043 | AS87: 3 | AT87: 5 | AU87: 604 | AV87: 604 | AW87: ANTIOQUIA | AX87: REMEDIOS | AY87: Independiente | AZ87: 27 | BA87: 35 | BB87: 318 | BC87: 333 | BD87: 316 | BE87: 317 | BF87: 330 | BG87: 323 | BH87: 368 | BI87: 391 | BJ87: 390 | BK87: 402 | BL87: 386 | BM87: 349 | BN87: 330 | BO87: 345 | BP87: 364 | BQ87: 381 | BR87: 379 | BS87: 383 | BT87: 395 | BU87: 394 | BV87: 394 | BW87: 407 | BX87: 387 | BY87: 353 | BZ87: 385 | CA87: 379
A88: 73873 | B88: 738733 | C88: 3 | D88: 73 | E88: 873 | F88: 873 | G88: TOLIMA | H88: VILLARRICA | I88: Independiente | J88: 6 | K88: 2 | L88: 61 | M88: 67 | N88: 64 | O88: 67 | P88: 65 | Q88: 67 | R88: 71 | S88: 69 | T88: 75 | U88: 67 | V88: 62 | W88: 46 | X88: 68 | Y88: 77 | Z88: 80 | AA88: 82 | AB88: 87 | AC88: 85 | AD88: 85 | AE88: 86 | AF88: 85 | AG88: 86 | AH88: 86 | AI88: 69 | AJ88: 85 | AK88: 85 | AL88: FALSO | AQ88: 5154 | AR88: 51542 | AS88: 2 | AT88: 5 | AU88: 154 | AV88: 154 | AW88: ANTIOQUIA | AX88: CAUCASIA | AY88: Dep_sec_priv | AZ88: 823 | BA88: 574 | BB88: 7453 | BC88: 7832 | BD88: 7412 | BE88: 7626 | BF88: 7781 | BG88: 7659 | BH88: 7804 | BI88: 7716 | BJ88: 7663 | BK88: 7864 | BL88: 7828 | BM88: 7011 | BN88: 8004 | BO88: 8234 | BP88: 8454 | BQ88: 7728 | BR88: 7813 | BS88: 7961 | BT88: 8055 | BU88: 8180 | BV88: 8351 | BW88: 8295 | BX88: 8182 | BY88: 7946 | BZ88: 8419 | CA88: 8541
A89: 5318 | B89: 53183 | C89: 3 | D89: 5 | E89: 318 | F89: 318 | G89: ANTIOQUIA | H89: GUARNE | I89: Independiente | J89: 89 | K89: 72 | L89: 1347 | M89: 1369 | N89: 1378 | O89: 1409 | P89: 1441 | Q89: 1477 | R89: 1509 | S89: 1556 | T89: 1608 | U89: 1641 | V89: 1562 | W89: 1465 | X89: 1537 | Y89: 1610 | Z89: 1641 | AA89: 1676 | AB89: 1711 | AC89: 1752 | AD89: 1798 | AE89: 1850 | AF89: 1870 | AG89: 1898 | AH89: 1849 | AI89: 1781 | AJ89: 1908 | AK89: 1885 | AL89: FALSO | AQ89: 5861 | AR89: 58612 | AS89: 2 | AT89: 5 | AU89: 861 | AV89: 861 | AW89: ANTIOQUIA | AX89: VENECIA | AY89: Dep_sec_priv | AZ89: 97 | BA89: 80 | BB89: 1484 | BC89: 1430 | BD89: 1341 | BE89: 1401 | BF89: 1453 | BG89: 1490 | BH89: 1409 | BI89: 1445 | BJ89: 1500 | BK89: 1634 | BL89: 1556 | BM89: 1573 | BN89: 1552 | BO89: 1508 | BP89: 1514 | BQ89: 1482 | BR89: 1453 | BS89: 1443 | BT89: 1410 | BU89: 1430 | BV89: 1425 | BW89: 1253 | BX89: 1190 | BY89: 1134 | BZ89: 1159 | CA89: 1144
A90: 25269 | B90: 252693 | C90: 3 | D90: 25 | E90: 269 | F90: 269 | G90: CUNDINAMARCA | H90: FACATATIVÁ | I90: Independiente | J90: 254 | K90: 177 | L90: 4857 | M90: 4826 | N90: 4748 | O90: 4746 | P90: 4778 | Q90: 4937 | R90: 4969 | S90: 5030 | T90: 5057 | U90: 5104 | V90: 5010 | W90: 4814 | X90: 5007 | Y90: 5101 | Z90: 5179 | AA90: 5211 | AB90: 5267 | AC90: 5269 | AD90: 5259 | AE90: 5336 | AF90: 5364 | AG90: 5405 | AH90: 5199 | AI90: 5123 | AJ90: 5309 | AK90: 5125 | AL90: FALSO | AQ90: 5172 | AR90: 51723 | AS90: 3 | AT90: 5 | AU90: 172 | AV90: 172 | AW90: ANTIOQUIA | AX90: CHIGORODÓ | AY90: Independiente | AZ90: 34 | BA90: 22 | BB90: 566 | BC90: 596 | BD90: 616 | BE90: 633 | BF90: 643 | BG90: 654 | BH90: 656 | BI90: 716 | BJ90: 716 | BK90: 719 | BL90: 663 | BM90: 547 | BN90: 592 | BO90: 648 | BP90: 689 | BQ90: 737 | BR90: 762 | BS90: 767 | BT90: 774 | BU90: 797 | BV90: 822 | BW90: 872 | BX90: 790 | BY90: 636 | BZ90: 840 | CA90: 767
A91: 25785 | B91: 257853 | C91: 3 | D91: 25 | E91: 785 | F91: 785 | G91: CUNDINAMARCA | H91: TABIO | I91: Independiente | J91: 63 | K91: 35 | L91: 1114 | M91: 1106 | N91: 1099 | O91: 1091 | P91: 1093 | Q91: 1150 | R91: 1160 | S91: 1186 | T91: 1153 | U91: 1152 | V91: 1151 | W91: 1113 | X91: 1134 | Y91: 1153 | Z91: 1155 | AA91: 1156 | AB91: 1146 | AC91: 1144 | AD91: 1153 | AE91: 1159 | AF91: 1195 | AG91: 1187 | AH91: 1156 | AI91: 1152 | AJ91: 1210 | AK91: 1183 | AL91: FALSO | AQ91: 5154 | AR91: 51541 | AS91: 1 | AT91: 5 | AU91: 154 | AV91: 154 | AW91: ANTIOQUIA | AX91: CAUCASIA | AY91: Dep_No_priv | AZ91: 192 | BA91: 139 | BB91: 1682 | BC91: 1810 | BD91: 1808 | BE91: 1809 | BF91: 1815 | BG91: 1850 | BH91: 1820 | BI91: 1826 | BJ91: 1844 | BK91: 1823 | BL91: 1847 | BM91: 1781 | BN91: 1913 | BO91: 2075 | BP91: 2130 | BQ91: 2150 | BR91: 2071 | BS91: 2026 | BT91: 2083 | BU91: 2055 | BV91: 2048 | BW91: 2049 | BX91: 1934 | BY91: 1828 | BZ91: 1834 | CA91: 1928
A92: 25769 | B92: 257693 | C92: 3 | D92: 25 | E92: 769 | F92: 769 | G92: CUNDINAMARCA | H92: SUBACHOQUE | I92: Independiente | J92: 15 | K92: 15 | L92: 694 | M92: 686 | N92: 685 | O92: 680 | P92: 697 | Q92: 689 | R92: 696 | S92: 693 | T92: 695 | U92: 701 | V92: 702 | W92: 700 | X92: 707 | Y92: 709 | Z92: 714 | AA92: 712 | AB92: 727 | AC92: 724 | AD92: 724 | AE92: 731 | AF92: 723 | AG92: 702 | AH92: 701 | AI92: 703 | AJ92: 694 | AK92: 677 | AL92: FALSO | AQ92: 5809 | AR92: 58092 | AS92: 2 | AT92: 5 | AU92: 809 | AV92: 809 | AW92: ANTIOQUIA | AX92: TITIRIBÍ | AY92: Dep_sec_priv | AZ92: 77 | BA92: 52 | BB92: 1029 | BC92: 1005 | BD92: 973 | BE92: 959 | BF92: 956 | BG92: 966 | BH92: 978 | BI92: 978 | BJ92: 996 | BK92: 993 | BL92: 1007 | BM92: 982 | BN92: 1027 | BO92: 998 | BP92: 1004 | BQ92: 992 | BR92: 1001 | BS92: 999 | BT92: 1015 | BU92: 1024 | BV92: 1033 | BW92: 1058 | BX92: 1038 | BY92: 1021 | BZ92: 1029 | CA92: 1034
A93: 25322 | B93: 253222 | C93: 2 | D93: 25 | E93: 322 | F93: 322 | G93: CUNDINAMARCA | H93: GUASCA | I93: Dep_sec_priv | J93: 143 | K93: 129 | L93: 1539 | M93: 1525 | N93: 1710 | O93: 1420 | P93: 1422 | Q93: 1444 | R93: 1415 | S93: 1373 | T93: 1374 | U93: 1364 | V93: 1360 | W93: 1363 | X93: 1386 | Y93: 1369 | Z93: 1396 | AA93: 1403 | AB93: 1659 | AC93: 1672 | AD93: 1678 | AE93: 1751 | AF93: 1909 | AG93: 1924 | AH93: 1865 | AI93: 1798 | AJ93: 1841 | AK93: 1825 | AL93: FALSO | AQ93: 5190 | AR93: 51903 | AS93: 3 | AT93: 5 | AU93: 190 | AV93: 190 | AW93: ANTIOQUIA | AX93: CISNEROS | AY93: Independiente | AZ93: 5 | BA93: 6 | BB93: 188 | BC93: 198 | BD93: 195 | BE93: 199 | BF93: 204 | BG93: 210 | BH93: 205 | BI93: 205 | BJ93: 205 | BK93: 210 | BL93: 202 | BM93: 190 | BN93: 205 | BO93: 219 | BP93: 239 | BQ93: 237 | BR93: 240 | BS93: 240 | BT93: 250 | BU93: 251 | BV93: 252 | BW93: 260 | BX93: 258 | BY93: 234 | BZ93: 250 | CA93: 230
A94: 19548 | B94: 195483 | C94: 3 | D94: 19 | E94: 548 | F94: 548 | G94: CAUCA | H94: PIENDAMÓ | I94: Independiente | J94: 54 | K94: 23 | L94: 589 | M94: 648 | N94: 639 | O94: 634 | P94: 648 | Q94: 664 | R94: 688 | S94: 700 | T94: 698 | U94: 720 | V94: 700 | W94: 495 | X94: 644 | Y94: 660 | Z94: 674 | AA94: 695 | AB94: 715 | AC94: 732 | AD94: 730 | AE94: 753 | AF94: 759 | AG94: 761 | AH94: 730 | AI94: 626 | AJ94: 679 | AK94: 686 | AL94: FALSO | AQ94: 5206 | AR94: 52063 | AS94: 3 | AT94: 5 | AU94: 206 | AV94: 206 | AW94: ANTIOQUIA | AX94: CONCEPCIÓN | AY94: Independiente | AZ94: 3 | BA94: 3 | BB94: 103 | BC94: 104 | BD94: 106 | BE94: 110 | BF94: 119 | BG94: 127 | BH94: 132 | BI94: 134 | BJ94: 132 | BK94: 131 | BL94: 136 | BM94: 123 | BN94: 120 | BO94: 123 | BP94: 127 | BQ94: 136 | BR94: 140 | BS94: 142 | BT94: 143 | BU94: 153 | BV94: 150 | BW94: 154 | BX94: 143 | BY94: 147 | BZ94: 145 | CA94: 139
A95: 73770 | B95: 737703 | C95: 3 | D95: 73 | E95: 770 | F95: 770 | G95: TOLIMA | H95: SUÁREZ | I95: Independiente | J95: 10 | K95: 11 | L95: 65 | M95: 63 | N95: 61 | O95: 63 | P95: 57 | Q95: 56 | R95: 56 | S95: 60 | T95: 55 | U95: 58 | V95: 62 | W95: 47 | X95: 59 | Y95: 60 | Z95: 62 | AA95: 62 | AB95: 60 | AC95: 64 | AD95: 67 | AE95: 65 | AF95: 66 | AG95: 68 | AH95: 64 | AI95: 56 | AJ95: 71 | AK95: 70 | AL95: FALSO | AQ95: 5197 | AR95: 51973 | AS95: 3 | AT95: 5 | AU95: 197 | AV95: 197 | AW95: ANTIOQUIA | AX95: COCORNÁ | AY95: Independiente | AZ95: 6 | BA95: 5 | BB95: 196 | BC95: 198 | BD95: 201 | BE95: 192 | BF95: 187 | BG95: 192 | BH95: 201 | BI95: 207 | BJ95: 206 | BK95: 216 | BL95: 216 | BM95: 193 | BN95: 193 | BO95: 214 | BP95: 217 | BQ95: 225 | BR95: 223 | BS95: 228 | BT95: 232 | BU95: 238 | BV95: 243 | BW95: 247 | BX95: 255 | BY95: 240 | BZ95: 256 | CA95: 248
A96: 25286 | B96: 252863 | C96: 3 | D96: 25 | E96: 286 | F96: 286 | G96: CUNDINAMARCA | H96: FUNZA | I96: Independiente | J96: 275 | K96: 200 | L96: 3460 | M96: 3677 | N96: 3573 | O96: 3672 | P96: 3827 | Q96: 3881 | R96: 4011 | S96: 4101 | T96: 4262 | U96: 4335 | V96: 4127 | W96: 4087 | X96: 4310 | Y96: 4302 | Z96: 4410 | AA96: 4453 | AB96: 4544 | AC96: 4624 | AD96: 4700 | AE96: 4715 | AF96: 4798 | AG96: 4800 | AH96: 4519 | AI96: 4676 | AJ96: 4906 | AK96: 4895 | AL96: FALSO | AQ96: 5209 | AR96: 52093 | AS96: 3 | AT96: 5 | AU96: 209 | AV96: 209 | AW96: ANTIOQUIA | AX96: CONCORDIA | AY96: Independiente | AZ96: 7 | BA96: 5 | BB96: 364 | BC96: 363 | BD96: 359 | BE96: 361 | BF96: 365 | BG96: 358 | BH96: 364 | BI96: 366 | BJ96: 405 | BK96: 410 | BL96: 400 | BM96: 363 | BN96: 365 | BO96: 374 | BP96: 376 | BQ96: 379 | BR96: 383 | BS96: 378 | BT96: 379 | BU96: 383 | BV96: 383 | BW96: 381 | BX96: 378 | BY96: 366 | BZ96: 383 | CA96: 380
A97: 15322 | B97: 153223 | C97: 3 | D97: 15 | E97: 322 | F97: 322 | G97: BOYACÁ | H97: GUATEQUE | I97: Independiente | J97: 8 | K97: 9 | L97: 399 | M97: 405 | N97: 405 | O97: 397 | P97: 392 | Q97: 399 | R97: 413 | S97: 410 | T97: 421 | U97: 432 | V97: 423 | W97: 404 | X97: 414 | Y97: 423 | Z97: 411 | AA97: 397 | AB97: 395 | AC97: 403 | AD97: 398 | AE97: 403 | AF97: 398 | AG97: 394 | AH97: 394 | AI97: 385 | AJ97: 379 | AK97: 363 | AL97: FALSO | AQ97: 5861 | AR97: 58613 | AS97: 3 | AT97: 5 | AU97: 861 | AV97: 861 | AW97: ANTIOQUIA | AX97: VENECIA | AY97: Independiente | AZ97: 7 | BA97: 9 | BB97: 159 | BC97: 162 | BD97: 154 | BE97: 154 | BF97: 161 | BG97: 169 | BH97: 171 | BI97: 168 | BJ97: 185 | BK97: 189 | BL97: 187 | BM97: 160 | BN97: 174 | BO97: 179 | BP97: 177 | BQ97: 193 | BR97: 193 | BS97: 204 | BT97: 208 | BU97: 212 | BV97: 213 | BW97: 223 | BX97: 213 | BY97: 200 | BZ97: 227 | CA97: 217
A98: 54001 | B98: 540012 | C98: 2 | D98: 54 | E98: 1 | F98: 001 | G98: NORTE DE SANTANDER | H98: CÚCUTA | I98: Dep_sec_priv | J98: 11557 | K98: 10348 | L98: 115439 | M98: 115679 | N98: 105411 | O98: 106773 | P98: 108669 | Q98: 108845 | R98: 110999 | S98: 112201 | T98: 113366 | U98: 115218 | V98: 113960 | W98: 110300 | X98: 117243 | Y98: 119860 | Z98: 120768 | AA98: 120445 | AB98: 121720 | AC98: 124212 | AD98: 126467 | AE98: 127731 | AF98: 129707 | AG98: 132314 | AH98: 129840 | AI98: 125953 | AJ98: 129606 | AK98: 130460 | AL98: FALSO | AQ98: 5051 | AR98: 50513 | AS98: 3 | AT98: 5 | AU98: 51 | AV98: 051 | AW98: ANTIOQUIA | AX98: ARBOLETES | AY98: Independiente | AZ98: 15 | BA98: 12 | BB98: 241 | BC98: 257 | BD98: 295 | BE98: 315 | BF98: 316 | BG98: 302 | BH98: 307 | BI98: 329 | BJ98: 318 | BK98: 345 | BL98: 309 | BM98: 232 | BN98: 239 | BO98: 282 | BP98: 334 | BQ98: 357 | BR98: 362 | BS98: 369 | BT98: 387 | BU98: 405 | BV98: 410 | BW98: 414 | BX98: 413 | BY98: 262 | BZ98: 346 | CA98: 331
A99: 50313 | B99: 503133 | C99: 3 | D99: 50 | E99: 313 | F99: 313 | G99: META | H99: GRANADA | I99: Independiente | J99: 98 | K99: 75 | L99: 2350 | M99: 2352 | N99: 2274 | O99: 2265 | P99: 2234 | Q99: 2255 | R99: 2274 | S99: 2360 | T99: 2432 | U99: 2189 | V99: 2160 | W99: 1849 | X99: 2073 | Y99: 2118 | Z99: 2118 | AA99: 2150 | AB99: 2194 | AC99: 2194 | AD99: 2254 | AE99: 2283 | AF99: 2282 | AG99: 2318 | AH99: 2253 | AI99: 2131 | AJ99: 2273 | AK99: 2215 | AL99: FALSO | AQ99: 5240 | AR99: 52403 | AS99: 3 | AT99: 5 | AU99: 240 | AV99: 240 | AW99: ANTIOQUIA | AX99: EBÉJICO | AY99: Independiente | AZ99: 6 | BA99: 2 | BB99: 131 | BC99: 137 | BD99: 137 | BE99: 135 | BF99: 140 | BG99: 143 | BH99: 142 | BI99: 145 | BJ99: 151 | BK99: 158 | BL99: 162 | BM99: 143 | BN99: 146 | BO99: 150 | BP99: 152 | BQ99: 156 | BR99: 163 | BS99: 161 | BT99: 164 | BU99: 166 | BV99: 168 | BW99: 169 | BX99: 171 | BY99: 168 | BZ99: 192 | CA99: 173
A100: 17380 | B100: 173803 | C100: 3 | D100: 17 | E100: 380 | F100: 380 | G100: CALDAS | H100: LA DORADA | I100: Independiente | J100: 227 | K100: 148 | L100: 3248 | M100: 3226 | N100: 3153 | O100: 3155 | P100: 3127 | Q100: 3167 | R100: 3239 | S100: 3280 | T100: 3339 | U100: 3385 | V100: 3351 | W100: 3068 | X100: 3216 | Y100: 3296 | Z100: 3312 | AA100: 3361 | AB100: 3398 | AC100: 3414 | AD100: 3439 | AE100: 3565 | AF100: 3647 | AG100: 3676 | AH100: 3584 | AI100: 3518 | AJ100: 3620 | AK100: 3604 | AL100: FALSO | AQ100: 5686 | AR100: 56863 | AS100: 3 | AT100: 5 | AU100: 686 | AV100: 686 | AW100: ANTIOQUIA | AX100: SANTA ROSA DE OSOS | AY100: Independiente | AZ100: 61 | BA100: 28 | BB100: 1679 | BC100: 1689 | BD100: 1696 | BE100: 1738 | BF100: 1748 | BG100: 1756 | BH100: 1767 | BI100: 1767 | BJ100: 1795 | BK100: 1808 | BL100: 1794 | BM100: 1737 | BN100: 1777 | BO100: 1814 | BP100: 1835 | BQ100: 1847 | BR100: 1886 | BS100: 1878 | BT100: 1903 | BU100: 1959 | BV100: 2002 | BW100: 2011 | BX100: 1974 | BY100: 1935 | BZ100: 1992 | CA100: 1924
A101: 68307 | B101: 683073 | C101: 3 | D101: 68 | E101: 307 | F101: 307 | G101: SANTANDER | H101: GIRÓN | I101: Independiente | J101: 196 | K101: 159 | L101: 3146 | M101: 3150 | N101: 3053 | O101: 3020 | P101: 3108 | Q101: 3086 | R101: 3162 | S101: 3170 | T101: 3314 | U101: 3349 | V101: 3287 | W101: 3057 | X101: 3186 | Y101: 3271 | Z101: 3321 | AA101: 3351 | AB101: 3494 | AC101: 3580 | AD101: 3572 | AE101: 3645 | AF101: 3688 | AG101: 3612 | AH101: 3540 | AI101: 3560 | AJ101: 3890 | AK101: 3806 | AL101: FALSO | AQ101: 5284 | AR101: 52843 | AS101: 3 | AT101: 5 | AU101: 284 | AV101: 284 | AW101: ANTIOQUIA | AX101: FRONTINO | AY101: Independiente | AZ101: 6 | BA101: 9 | BB101: 224 | BC101: 255 | BD101: 268 | BE101: 263 | BF101: 280 | BG101: 280 | BH101: 267 | BI101: 268 | BJ101: 275 | BK101: 280 | BL101: 271 | BM101: 219 | BN101: 232 | BO101: 263 | BP101: 273 | BQ101: 272 | BR101: 310 | BS101: 324 | BT101: 337 | BU101: 325 | BV101: 339 | BW101: 329 | BX101: 326 | BY101: 294 | BZ101: 297 | CA101: 300
A102: 68081 | B102: 680813 | C102: 3 | D102: 68 | E102: 81 | F102: 081 | G102: SANTANDER | H102: BARRANCABERMEJA | I102: Independiente | J102: 598 | K102: 303 | L102: 6607 | M102: 6695 | N102: 6446 | O102: 6431 | P102: 6482 | Q102: 6845 | R102: 6898 | S102: 7057 | T102: 7304 | U102: 7633 | V102: 7598 | W102: 5959 | X102: 6394 | Y102: 6692 | Z102: 6796 | AA102: 7049 | AB102: 7322 | AC102: 7497 | AD102: 7596 | AE102: 7798 | AF102: 7905 | AG102: 7999 | AH102: 7860 | AI102: 7200 | AJ102: 8313 | AK102: 8319 | AL102: FALSO | AQ102: 5284 | AR102: 52842 | AS102: 2 | AT102: 5 | AU102: 284 | AV102: 284 | AW102: ANTIOQUIA | AX102: FRONTINO | AY102: Dep_sec_priv | AZ102: 56 | BA102: 37 | BB102: 361 | BC102: 359 | BD102: 360 | BE102: 358 | BF102: 367 | BG102: 367 | BH102: 377 | BI102: 394 | BJ102: 397 | BK102: 411 | BL102: 409 | BM102: 355 | BN102: 387 | BO102: 400 | BP102: 418 | BQ102: 418 | BR102: 401 | BS102: 388 | BT102: 399 | BU102: 420 | BV102: 421 | BW102: 428 | BX102: 471 | BY102: 424 | BZ102: 467 | CA102: 485
A103: 73624 | B103: 736243 | C103: 3 | D103: 73 | E103: 624 | F103: 624 | G103: TOLIMA | H103: ROVIRA | I103: Independiente | J103: 4 | K103: 3 | L103: 196 | M103: 198 | N103: 182 | O103: 187 | P103: 196 | Q103: 202 | R103: 203 | S103: 215 | T103: 219 | U103: 198 | V103: 191 | W103: 181 | X103: 191 | Y103: 213 | Z103: 206 | AA103: 217 | AB103: 216 | AC103: 217 | AD103: 217 | AE103: 217 | AF103: 223 | AG103: 224 | AH103: 212 | AI103: 215 | AJ103: 235 | AK103: 224 | AL103: FALSO | AQ103: 5679 | AR103: 56792 | AS103: 2 | AT103: 5 | AU103: 679 | AV103: 679 | AW103: ANTIOQUIA | AX103: SANTA BÁRBARA | AY103: Dep_sec_priv | AZ103: 188 | BA103: 83 | BB103: 763 | BC103: 744 | BD103: 677 | BE103: 704 | BF103: 721 | BG103: 814 | BH103: 796 | BI103: 778 | BJ103: 750 | BK103: 697 | BL103: 728 | BM103: 738 | BN103: 692 | BO103: 693 | BP103: 715 | BQ103: 740 | BR103: 788 | BS103: 773 | BT103: 778 | BU103: 838 | BV103: 865 | BW103: 891 | BX103: 892 | BY103: 936 | BZ103: 956 | CA103: 1042
A104: 25599 | B104: 255993 | C104: 3 | D104: 25 | E104: 599 | F104: 599 | G104: CUNDINAMARCA | H104: APULO | I104: Independiente | J104: 11 | K104: 5 | L104: 182 | M104: 185 | N104: 184 | O104: 184 | P104: 178 | Q104: 185 | R104: 181 | S104: 188 | T104: 178 | U104: 176 | V104: 170 | W104: 182 | X104: 182 | Y104: 183 | Z104: 183 | AA104: 185 | AB104: 185 | AC104: 181 | AD104: 190 | AE104: 191 | AF104: 196 | AG104: 197 | AH104: 211 | AI104: 196 | AJ104: 208 | AK104: 210 | AL104: FALSO | AQ104: 5172 | AR104: 51722 | AS104: 2 | AT104: 5 | AU104: 172 | AV104: 172 | AW104: ANTIOQUIA | AX104: CHIGORODÓ | AY104: Dep_sec_priv | AZ104: 320 | BA104: 305 | BB104: 3468 | BC104: 3610 | BD104: 3557 | BE104: 3852 | BF104: 3783 | BG104: 3799 | BH104: 3813 | BI104: 3877 | BJ104: 3849 | BK104: 3871 | BL104: 3815 | BM104: 3779 | BN104: 4006 | BO104: 3975 | BP104: 4174 | BQ104: 4148 | BR104: 4108 | BS104: 4254 | BT104: 4117 | BU104: 4170 | BV104: 4207 | BW104: 4259 | BX104: 4126 | BY104: 3947 | BZ104: 4224 | CA104: 4099
A105: 76147 | B105: 761473 | C105: 3 | D105: 76 | E105: 147 | F105: 147 | G105: VALLE DEL CAUCA | H105: CARTAGO | I105: Independiente | J105: 238 | K105: 180 | L105: 6852 | M105: 6833 | N105: 6623 | O105: 6606 | P105: 6573 | Q105: 6531 | R105: 6518 | S105: 6598 | T105: 6683 | U105: 6712 | V105: 6622 | W105: 6436 | X105: 6526 | Y105: 6688 | Z105: 6682 | AA105: 6650 | AB105: 6632 | AC105: 6617 | AD105: 6708 | AE105: 6758 | AF105: 6751 | AG105: 6809 | AH105: 6706 | AI105: 6629 | AJ105: 6677 | AK105: 6584 | AL105: FALSO | AQ105: 5686 | AR105: 56862 | AS105: 2 | AT105: 5 | AU105: 686 | AV105: 686 | AW105: ANTIOQUIA | AX105: SANTA ROSA DE OSOS | AY105: Dep_sec_priv | AZ105: 509 | BA105: 402 | BB105: 5632 | BC105: 5723 | BD105: 5456 | BE105: 5681 | BF105: 5697 | BG105: 5723 | BH105: 5670 | BI105: 5812 | BJ105: 5922 | BK105: 6132 | BL105: 5923 | BM105: 5840 | BN105: 5979 | BO105: 6254 | BP105: 6337 | BQ105: 6375 | BR105: 6447 | BS105: 6538 | BT105: 6357 | BU105: 6356 | BV105: 6488 | BW105: 6443 | BX105: 6163 | BY105: 5981 | BZ105: 6310 | CA105: 6301
A106: 5266 | B106: 52663 | C106: 3 | D106: 5 | E106: 266 | F106: 266 | G106: ANTIOQUIA | H106: ENVIGADO | I106: Independiente | J106: 713 | K106: 496 | L106: 13584 | M106: 13778 | N106: 13576 | O106: 13729 | P106: 13923 | Q106: 14190 | R106: 14409 | S106: 14704 | T106: 14923 | U106: 15145 | V106: 15267 | W106: 15057 | X106: 15505 | Y106: 15791 | Z106: 15872 | AA106: 15934 | AB106: 16158 | AC106: 16228 | AD106: 16404 | AE106: 16579 | AF106: 16773 | AG106: 16932 | AH106: 16813 | AI106: 16625 | AJ106: 16847 | AK106: 16582 | AL106: FALSO | AQ106: 5674 | AR106: 56742 | AS106: 2 | AT106: 5 | AU106: 674 | AV106: 674 | AW106: ANTIOQUIA | AX106: SAN VICENTE | AY106: Dep_sec_priv | AZ106: 86 | BA106: 56 | BB106: 694 | BC106: 717 | BD106: 714 | BE106: 711 | BF106: 719 | BG106: 737 | BH106: 724 | BI106: 734 | BJ106: 723 | BK106: 735 | BL106: 736 | BM106: 765 | BN106: 742 | BO106: 737 | BP106: 770 | BQ106: 781 | BR106: 806 | BS106: 868 | BT106: 922 | BU106: 929 | BV106: 940 | BW106: 922 | BX106: 880 | BY106: 905 | BZ106: 926 | CA106: 931
A107: 81001 | B107: 810013 | C107: 3 | D107: 81 | E107: 1 | F107: 001 | G107: ARAUCA | H107: ARAUCA | I107: Independiente | J107: 285 | K107: 286 | L107: 4532 | M107: 4617 | N107: 4336 | O107: 4281 | P107: 4264 | Q107: 4411 | R107: 4446 | S107: 4573 | T107: 4755 | U107: 4764 | V107: 4741 | W107: 4273 | X107: 4576 | Y107: 4809 | Z107: 4921 | AA107: 4951 | AB107: 4970 | AC107: 5188 | AD107: 5061 | AE107: 4693 | AF107: 4751 | AG107: 4736 | AH107: 4532 | AI107: 4385 | AJ107: 4433 | AK107: 4167 | AL107: FALSO | AQ107: 5308 | AR107: 53082 | AS107: 2 | AT107: 5 | AU107: 308 | AV107: 308 | AW107: ANTIOQUIA | AX107: GIRARDOTA | AY107: Dep_sec_priv | AZ107: 755 | BA107: 623 | BB107: 8868 | BC107: 8918 | BD107: 8444 | BE107: 8438 | BF107: 8438 | BG107: 8498 | BH107: 8668 | BI107: 8864 | BJ107: 9125 | BK107: 9157 | BL107: 9160 | BM107: 9168 | BN107: 9466 | BO107: 9682 | BP107: 9808 | BQ107: 9771 | BR107: 9962 | BS107: 10031 | BT107: 10182 | BU107: 10238 | BV107: 10287 | BW107: 10365 | BX107: 10288 | BY107: 10358 | BZ107: 10374 | CA107: 10566
A108: 15001 | B108: 150013 | C108: 3 | D108: 15 | E108: 1 | F108: 001 | G108: BOYACÁ | H108: TUNJA | I108: Independiente | J108: 1185 | K108: 899 | L108: 16223 | M108: 16144 | N108: 15558 | O108: 15862 | P108: 16136 | Q108: 16311 | R108: 16524 | S108: 16833 | T108: 17097 | U108: 17445 | V108: 17041 | W108: 15612 | X108: 16254 | Y108: 16913 | Z108: 17115 | AA108: 17105 | AB108: 17403 | AC108: 17540 | AD108: 17521 | AE108: 17710 | AF108: 17978 | AG108: 18174 | AH108: 17730 | AI108: 16564 | AJ108: 17188 | AK108: 16673 | AL108: FALSO | AQ108: 5093 | AR108: 50932 | AS108: 2 | AT108: 5 | AU108: 93 | AV108: 093 | AW108: ANTIOQUIA | AX108: BETULIA | AY108: Dep_sec_priv | AZ108: 36 | BA108: 66 | BB108: 422 | BC108: 460 | BD108: 422 | BE108: 411 | BF108: 391 | BG108: 382 | BH108: 435 | BI108: 407 | BJ108: 365 | BK108: 357 | BL108: 337 | BM108: 307 | BN108: 326 | BO108: 354 | BP108: 402 | BQ108: 459 | BR108: 505 | BS108: 493 | BT108: 513 | BU108: 447 | BV108: 405 | BW108: 419 | BX108: 471 | BY108: 435 | BZ108: 419 | CA108: 443
A109: 76520 | B109: 765203 | C109: 3 | D109: 76 | E109: 520 | F109: 520 | G109: VALLE DEL CAUCA | H109: PALMIRA | I109: Independiente | J109: 432 | K109: 349 | L109: 14431 | M109: 14373 | N109: 14142 | O109: 14204 | P109: 14227 | Q109: 14169 | R109: 14285 | S109: 14544 | T109: 14631 | U109: 14821 | V109: 14721 | W109: 14010 | X109: 14197 | Y109: 14434 | Z109: 14420 | AA109: 14336 | AB109: 14424 | AC109: 14627 | AD109: 14772 | AE109: 14937 | AF109: 14823 | AG109: 14953 | AH109: 14857 | AI109: 14355 | AJ109: 14624 | AK109: 14332 | AL109: FALSO | AQ109: 5264 | AR109: 52642 | AS109: 2 | AT109: 5 | AU109: 264 | AV109: 264 | AW109: ANTIOQUIA | AX109: ENTRERRIOS | AY109: Dep_sec_priv | AZ109: 175 | BA109: 131 | BB109: 2138 | BC109: 2107 | BD109: 2048 | BE109: 2045 | BF109: 2056 | BG109: 2110 | BH109: 2108 | BI109: 2244 | BJ109: 2232 | BK109: 2267 | BL109: 2190 | BM109: 2213 | BN109: 2252 | BO109: 2265 | BP109: 2313 | BQ109: 2355 | BR109: 2359 | BS109: 2343 | BT109: 2374 | BU109: 2391 | BV109: 2172 | BW109: 2114 | BX109: 2115 | BY109: 2130 | BZ109: 2147 | CA109: 2204
A110: 68679 | B110: 686793 | C110: 3 | D110: 68 | E110: 679 | F110: 679 | G110: SANTANDER | H110: SAN GIL | I110: Independiente | J110: 213 | K110: 124 | L110: 4285 | M110: 4315 | N110: 4169 | O110: 4133 | P110: 4206 | Q110: 4246 | R110: 4269 | S110: 4315 | T110: 4453 | U110: 4507 | V110: 4525 | W110: 4007 | X110: 4242 | Y110: 4407 | Z110: 4484 | AA110: 4547 | AB110: 4627 | AC110: 4652 | AD110: 4621 | AE110: 4692 | AF110: 4718 | AG110: 4737 | AH110: 4634 | AI110: 4699 | AJ110: 4737 | AK110: 4655 | AL110: FALSO | AQ110: 5306 | AR110: 53063 | AS110: 3 | AT110: 5 | AU110: 306 | AV110: 306 | AW110: ANTIOQUIA | AX110: GIRALDO | AY110: Independiente | AZ110: 16 | BA110: 5 | BB110: 68 | BC110: 69 | BD110: 66 | BE110: 72 | BF110: 74 | BG110: 67 | BH110: 73 | BI110: 76 | BJ110: 76 | BK110: 86 | BL110: 72 | BM110: 71 | BN110: 81 | BO110: 83 | BP110: 80 | BQ110: 86 | BR110: 96 | BS110: 89 | BT110: 87 | BU110: 92 | BV110: 93 | BW110: 96 | BX110: 84 | BY110: 95 | BZ110: 107 | CA110: 104
A111: 68861 | B111: 688613 | C111: 3 | D111: 68 | E111: 861 | F111: 861 | G111: SANTANDER | H111: VÉLEZ | I111: Independiente | J111: 20 | K111: 17 | L111: 876 | M111: 870 | N111: 843 | O111: 834 | P111: 857 | Q111: 849 | R111: 855 | S111: 865 | T111: 872 | U111: 898 | V111: 890 | W111: 821 | X111: 861 | Y111: 883 | Z111: 899 | AA111: 914 | AB111: 904 | AC111: 913 | AD111: 912 | AE111: 914 | AF111: 901 | AG111: 908 | AH111: 880 | AI111: 866 | AJ111: 894 | AK111: 868 | AL111: FALSO | AQ111: 5237 | AR111: 52372 | AS111: 2 | AT111: 5 | AU111: 237 | AV111: 237 | AW111: ANTIOQUIA | AX111: DON MATÍAS | AY111: Dep_sec_priv | AZ111: 266 | BA111: 267 | BB111: 3638 | BC111: 3643 | BD111: 3522 | BE111: 3589 | BF111: 3595 | BG111: 3536 | BH111: 3475 | BI111: 3498 | BJ111: 3530 | BK111: 3538 | BL111: 3477 | BM111: 3468 | BN111: 3674 | BO111: 3790 | BP111: 3762 | BQ111: 3764 | BR111: 3797 | BS111: 3864 | BT111: 3877 | BU111: 3909 | BV111: 3896 | BW111: 3872 | BX111: 3827 | BY111: 3749 | BZ111: 3888 | CA111: 3853
A112: 5607 | B112: 56073 | C112: 3 | D112: 5 | E112: 607 | F112: 607 | G112: ANTIOQUIA | H112: RETIRO | I112: Independiente | J112: 56 | K112: 27 | L112: 1100 | M112: 1105 | N112: 1089 | O112: 1122 | P112: 1144 | Q112: 1175 | R112: 1195 | S112: 1245 | T112: 1268 | U112: 1286 | V112: 1273 | W112: 1263 | X112: 1314 | Y112: 1340 | Z112: 1365 | AA112: 1397 | AB112: 1420 | AC112: 1452 | AD112: 1468 | AE112: 1449 | AF112: 1469 | AG112: 1495 | AH112: 1507 | AI112: 1501 | AJ112: 1545 | AK112: 1523 | AL112: FALSO | AQ112: 5310 | AR112: 53102 | AS112: 2 | AT112: 5 | AU112: 310 | AV112: 310 | AW112: ANTIOQUIA | AX112: GÓMEZ PLATA | AY112: Dep_sec_priv | AZ112: 65 | BA112: 85 | BB112: 528 | BC112: 543 | BD112: 464 | BE112: 473 | BF112: 435 | BG112: 440 | BH112: 475 | BI112: 508 | BJ112: 528 | BK112: 527 | BL112: 506 | BM112: 497 | BN112: 603 | BO112: 649 | BP112: 697 | BQ112: 701 | BR112: 686 | BS112: 692 | BT112: 711 | BU112: 678 | BV112: 733 | BW112: 728 | BX112: 748 | BY112: 745 | BZ112: 768 | CA112: 770
A113: 95015 | B113: 950151 | C113: 1 | D113: 95 | E113: 15 | F113: 015 | G113: GUAVIARE | H113: CALAMAR | I113: Dep_No_priv | J113: 8 | K113: 11 | L113: 143 | M113: 142 | N113: 147 | O113: 112 | P113: 145 | Q113: 144 | R113: 140 | S113: 148 | T113: 144 | U113: 142 | V113: 141 | W113: 139 | X113: 138 | Y113: 142 | Z113: 139 | AA113: 145 | AB113: 146 | AC113: 146 | AD113: 146 | AE113: 150 | AF113: 145 | AG113: 157 | AH113: 158 | AI113: 157 | AJ113: 155 | AK113: 172 | AL113: FALSO | AQ113: 5321 | AR113: 53213 | AS113: 3 | AT113: 5 | AU113: 321 | AV113: 321 | AW113: ANTIOQUIA | AX113: GUATAPE | AY113: Independiente | AZ113: 35 | BA113: 9 | BB113: 332 | BC113: 349 | BD113: 344 | BE113: 344 | BF113: 366 | BG113: 364 | BH113: 363 | BI113: 359 | BJ113: 391 | BK113: 408 | BL113: 408 | BM113: 380 | BN113: 422 | BO113: 439 | BP113: 451 | BQ113: 450 | BR113: 457 | BS113: 462 | BT113: 457 | BU113: 466 | BV113: 474 | BW113: 470 | BX113: 457 | BY113: 445 | BZ113: 468 | CA113: 483
A114: 25754 | B114: 257543 | C114: 3 | D114: 25 | E114: 754 | F114: 754 | G114: CUNDINAMARCA | H114: SOACHA | I114: Independiente | J114: 715 | K114: 454 | L114: 7665 | M114: 7880 | N114: 7792 | O114: 7939 | P114: 8117 | Q114: 8373 | R114: 8526 | S114: 8890 | T114: 9188 | U114: 9451 | V114: 9379 | W114: 8906 | X114: 9325 | Y114: 9850 | Z114: 10023 | AA114: 10215 | AB114: 10477 | AC114: 10715 | AD114: 10959 | AE114: 11178 | AF114: 11343 | AG114: 11402 | AH114: 11145 | AI114: 11143 | AJ114: 11721 | AK114: 11555 | AL114: FALSO | AQ114: 5736 | AR114: 57362 | AS114: 2 | AT114: 5 | AU114: 736 | AV114: 736 | AW114: ANTIOQUIA | AX114: SEGOVIA | AY114: Dep_sec_priv | AZ114: 586 | BA114: 899 | BB114: 4934 | BC114: 4906 | BD114: 4800 | BE114: 4952 | BF114: 5046 | BG114: 5221 | BH114: 5350 | BI114: 5609 | BJ114: 5744 | BK114: 5785 | BL114: 5664 | BM114: 5893 | BN114: 6107 | BO114: 6246 | BP114: 6186 | BQ114: 6050 | BR114: 6476 | BS114: 6553 | BT114: 6703 | BU114: 6804 | BV114: 6943 | BW114: 6967 | BX114: 7150 | BY114: 6802 | BZ114: 6900 | CA114: 6761
A115: 76736 | B115: 767362 | C115: 2 | D115: 76 | E115: 736 | F115: 736 | G115: VALLE DEL CAUCA | H115: SEVILLA | I115: Dep_sec_priv | J115: 192 | K115: 181 | L115: 1654 | M115: 1689 | N115: 1666 | O115: 1729 | P115: 1698 | Q115: 1721 | R115: 1796 | S115: 1858 | T115: 1752 | U115: 1735 | V115: 1770 | W115: 1766 | X115: 1861 | Y115: 1871 | Z115: 1854 | AA115: 1952 | AB115: 1970 | AC115: 2022 | AD115: 2083 | AE115: 2145 | AF115: 2226 | AG115: 2265 | AH115: 2217 | AI115: 2149 | AJ115: 2176 | AK115: 2205 | AL115: FALSO | AQ115: 5150 | AR115: 51502 | AS115: 2 | AT115: 5 | AU115: 150 | AV115: 150 | AW115: ANTIOQUIA | AX115: CAROLINA | AY115: Dep_sec_priv | AZ115: 7 | BA115: 29 | BB115: 170 | BC115: 169 | BD115: 166 | BE115: 163 | BF115: 174 | BG115: 172 | BH115: 186 | BI115: 189 | BJ115: 180 | BK115: 197 | BL115: 208 | BM115: 192 | BN115: 232 | BO115: 274 | BP115: 301 | BQ115: 302 | BR115: 322 | BS115: 360 | BT115: 397 | BU115: 426 | BV115: 416 | BW115: 411 | BX115: 423 | BY115: 383 | BZ115: 336 | CA115: 290
A116: 73275 | B116: 732753 | C116: 3 | D116: 73 | E116: 275 | F116: 275 | G116: TOLIMA | H116: FLANDES | I116: Independiente | J116: 25 | K116: 36 | L116: 477 | M116: 473 | N116: 460 | O116: 470 | P116: 466 | Q116: 495 | R116: 504 | S116: 499 | T116: 520 | U116: 532 | V116: 536 | W116: 489 | X116: 556 | Y116: 570 | Z116: 575 | AA116: 600 | AB116: 600 | AC116: 592 | AD116: 581 | AE116: 553 | AF116: 538 | AG116: 541 | AH116: 523 | AI116: 554 | AJ116: 567 | AK116: 533 | AL116: FALSO | AQ116: 5313 | AR116: 53133 | AS116: 3 | AT116: 5 | AU116: 313 | AV116: 313 | AW116: ANTIOQUIA | AX116: GRANADA | AY116: Independiente | AZ116: 17 | BA116: 7 | BB116: 189 | BC116: 193 | BD116: 188 | BE116: 193 | BF116: 193 | BG116: 201 | BH116: 212 | BI116: 208 | BJ116: 211 | BK116: 211 | BL116: 210 | BM116: 188 | BN116: 192 | BO116: 197 | BP116: 197 | BQ116: 207 | BR116: 211 | BS116: 218 | BT116: 225 | BU116: 223 | BV116: 223 | BW116: 218 | BX116: 207 | BY116: 219 | BZ116: 234 | CA116: 228
A117: 23660 | B117: 236601 | C117: 1 | D117: 23 | E117: 660 | F117: 660 | G117: CÓRDOBA | H117: SAHAGÚN | I117: Dep_No_priv | J117: 81 | K117: 102 | L117: 1263 | M117: 1267 | N117: 1258 | O117: 1280 | P117: 1317 | Q117: 1311 | R117: 1373 | S117: 1379 | T117: 1409 | U117: 1355 | V117: 1308 | W117: 1352 | X117: 1328 | Y117: 1342 | Z117: 1313 | AA117: 1333 | AB117: 1319 | AC117: 1338 | AD117: 1325 | AE117: 1320 | AF117: 1285 | AG117: 1305 | AH117: 1331 | AI117: 1349 | AJ117: 1338 | AK117: 1370 | AL117: FALSO | AQ117: 5321 | AR117: 53212 | AS117: 2 | AT117: 5 | AU117: 321 | AV117: 321 | AW117: ANTIOQUIA | AX117: GUATAPE | AY117: Dep_sec_priv | AZ117: 97 | BA117: 77 | BB117: 716 | BC117: 683 | BD117: 592 | BE117: 569 | BF117: 536 | BG117: 515 | BH117: 525 | BI117: 583 | BJ117: 629 | BK117: 674 | BL117: 674 | BM117: 649 | BN117: 660 | BO117: 713 | BP117: 700 | BQ117: 725 | BR117: 747 | BS117: 785 | BT117: 814 | BU117: 828 | BV117: 830 | BW117: 825 | BX117: 838 | BY117: 814 | BZ117: 800 | CA117: 825
A118: 25473 | B118: 254732 | C118: 2 | D118: 25 | E118: 473 | F118: 473 | G118: CUNDINAMARCA | H118: MOSQUERA | I118: Dep_sec_priv | J118: 2621 | K118: 2309 | L118: 17438 | M118: 17026 | N118: 15581 | O118: 15390 | P118: 15045 | Q118: 15714 | R118: 15777 | S118: 16066 | T118: 16370 | U118: 16703 | V118: 15969 | W118: 17090 | X118: 17547 | Y118: 17359 | Z118: 18339 | AA118: 17928 | AB118: 17379 | AC118: 17864 | AD118: 17970 | AE118: 18550 | AF118: 18773 | AG118: 19053 | AH118: 18549 | AI118: 19539 | AJ118: 19852 | AK118: 20040 | AL118: FALSO | AQ118: 5541 | AR118: 55413 | AS118: 3 | AT118: 5 | AU118: 541 | AV118: 541 | AW118: ANTIOQUIA | AX118: PEÑOL | AY118: Independiente | AZ118: 74 | BA118: 21 | BB118: 575 | BC118: 599 | BD118: 602 | BE118: 613 | BF118: 615 | BG118: 628 | BH118: 648 | BI118: 655 | BJ118: 669 | BK118: 696 | BL118: 701 | BM118: 666 | BN118: 671 | BO118: 699 | BP118: 750 | BQ118: 779 | BR118: 778 | BS118: 794 | BT118: 802 | BU118: 791 | BV118: 800 | BW118: 794 | BX118: 789 | BY118: 785 | BZ118: 851 | CA118: 887
A119: 5579 | B119: 55793 | C119: 3 | D119: 5 | E119: 579 | F119: 579 | G119: ANTIOQUIA | H119: PUERTO BERRÍO | I119: Independiente | J119: 26 | K119: 24 | L119: 773 | M119: 807 | N119: 800 | O119: 817 | P119: 829 | Q119: 849 | R119: 852 | S119: 858 | T119: 914 | U119: 1057 | V119: 1034 | W119: 764 | X119: 794 | Y119: 861 | Z119: 936 | AA119: 982 | AB119: 973 | AC119: 1017 | AD119: 1034 | AE119: 1048 | AF119: 985 | AG119: 1117 | AH119: 1076 | AI119: 1001 | AJ119: 1040 | AK119: 997 | AL119: FALSO | AQ119: 5667 | AR119: 56673 | AS119: 3 | AT119: 5 | AU119: 667 | AV119: 667 | AW119: ANTIOQUIA | AX119: SAN RAFAEL | AY119: Independiente | AZ119: 11 | BA119: 20 | BB119: 197 | BC119: 216 | BD119: 210 | BE119: 218 | BF119: 220 | BG119: 220 | BH119: 246 | BI119: 256 | BJ119: 255 | BK119: 258 | BL119: 252 | BM119: 203 | BN119: 223 | BO119: 254 | BP119: 268 | BQ119: 288 | BR119: 303 | BS119: 313 | BT119: 319 | BU119: 327 | BV119: 332 | BW119: 332 | BX119: 327 | BY119: 317 | BZ119: 333 | CA119: 317
A120: 76275 | B120: 762752 | C120: 2 | D120: 76 | E120: 275 | F120: 275 | G120: VALLE DEL CAUCA | H120: FLORIDA | I120: Dep_sec_priv | J120: 338 | K120: 358 | L120: 2556 | M120: 2662 | N120: 2393 | O120: 2690 | P120: 2502 | Q120: 2405 | R120: 2437 | S120: 2510 | T120: 2656 | U120: 2745 | V120: 2563 | W120: 2569 | X120: 2617 | Y120: 2576 | Z120: 2598 | AA120: 2263 | AB120: 2357 | AC120: 2432 | AD120: 2404 | AE120: 2546 | AF120: 2678 | AG120: 2671 | AH120: 2403 | AI120: 2514 | AJ120: 2638 | AK120: 2621 | AL120: FALSO | AQ120: 5440 | AR120: 54402 | AS120: 2 | AT120: 5 | AU120: 440 | AV120: 440 | AW120: ANTIOQUIA | AX120: MARINILLA | AY120: Dep_sec_priv | AZ120: 1189 | BA120: 916 | BB120: 7201 | BC120: 7213 | BD120: 6334 | BE120: 6429 | BF120: 6609 | BG120: 6724 | BH120: 6827 | BI120: 7080 | BJ120: 7302 | BK120: 7508 | BL120: 7571 | BM120: 7595 | BN120: 7856 | BO120: 8121 | BP120: 8153 | BQ120: 8089 | BR120: 8208 | BS120: 8421 | BT120: 8573 | BU120: 8785 | BV120: 9063 | BW120: 9102 | BX120: 8922 | BY120: 9166 | BZ120: 9716 | CA120: 10027
A121: 25214 | B121: 252142 | C121: 2 | D121: 25 | E121: 214 | F121: 214 | G121: CUNDINAMARCA | H121: COTA | I121: Dep_sec_priv | J121: 1167 | K121: 996 | L121: 13868 | M121: 13916 | N121: 12777 | O121: 12307 | P121: 12598 | Q121: 12775 | R121: 12941 | S121: 13208 | T121: 13637 | U121: 13749 | V121: 13698 | W121: 14668 | X121: 13935 | Y121: 14227 | Z121: 14482 | AA121: 14328 | AB121: 14511 | AC121: 14653 | AD121: 14755 | AE121: 15142 | AF121: 14911 | AG121: 15769 | AH121: 15547 | AI121: 15746 | AJ121: 16316 | AK121: 16400 | AL121: FALSO | AQ121: 5475 | AR121: 54751 | AS121: 1 | AT121: 5 | AU121: 475 | AV121: 475 | AW121: ANTIOQUIA | AX121: MURINDÓ | AY121: Dep_No_priv | AZ121: 6 | BA121: 8 | BB121: 116 | BC121: 131 | BD121: 125 | BE121: 125 | BF121: 112 | BG121: 112 | BH121: 111 | BI121: 123 | BJ121: 123 | BK121: 134 | BL121: 122 | BM121: 106 | BN121: 123 | BO121: 123 | BP121: 122 | BQ121: 123 | BR121: 115 | BS121: 116 | BT121: 117 | BU121: 117 | BV121: 127 | BW121: 129 | BX121: 120 | BY121: 113 | BZ121: 116 | CA121: 112
A122: 8758 | B122: 87583 | C122: 3 | D122: 8 | E122: 758 | F122: 758 | G122: ATLÁNTICO | H122: SOLEDAD | I122: Independiente | J122: 553 | K122: 520 | L122: 4031 | M122: 4299 | N122: 4326 | O122: 4402 | P122: 4484 | Q122: 4489 | R122: 4702 | S122: 4849 | T122: 4917 | U122: 4945 | V122: 4604 | W122: 4047 | X122: 4377 | Y122: 4867 | Z122: 5091 | AA122: 5224 | AB122: 5239 | AC122: 5290 | AD122: 5210 | AE122: 5351 | AF122: 5437 | AG122: 5398 | AH122: 5025 | AI122: 5016 | AJ122: 5531 | AK122: 5362 | AL122: FALSO | AQ122: 5483 | AR122: 54833 | AS122: 3 | AT122: 5 | AU122: 483 | AV122: 483 | AW122: ANTIOQUIA | AX122: NARIÑO | AY122: Independiente | AZ122: 8 | BA122: 3 | BB122: 82 | BC122: 86 | BD122: 85 | BE122: 89 | BF122: 92 | BG122: 101 | BH122: 98 | BI122: 101 | BJ122: 95 | BK122: 100 | BL122: 104 | BM122: 84 | BN122: 83 | BO122: 85 | BP122: 97 | BQ122: 101 | BR122: 99 | BS122: 100 | BT122: 106 | BU122: 108 | BV122: 110 | BW122: 113 | BX122: 114 | BY122: 89 | BZ122: 114 | CA122: 114
A123: 25658 | B123: 256583 | C123: 3 | D123: 25 | E123: 658 | F123: 658 | G123: CUNDINAMARCA | H123: SAN FRANCISCO | I123: Independiente | J123: 16 | K123: 6 | L123: 217 | M123: 218 | N123: 209 | O123: 231 | P123: 239 | Q123: 236 | R123: 233 | S123: 262 | T123: 262 | U123: 272 | V123: 273 | W123: 274 | X123: 291 | Y123: 283 | Z123: 295 | AA123: 281 | AB123: 288 | AC123: 292 | AD123: 289 | AE123: 298 | AF123: 293 | AG123: 292 | AH123: 275 | AI123: 284 | AJ123: 291 | AK123: 291 | AL123: FALSO | AQ123: 5501 | AR123: 55013 | AS123: 3 | AT123: 5 | AU123: 501 | AV123: 501 | AW123: ANTIOQUIA | AX123: OLAYA | AY123: Independiente | AZ123: 1 | BA123: 1 | BB123: 44 | BC123: 46 | BD123: 47 | BE123: 46 | BF123: 48 | BG123: 44 | BH123: 47 | BI123: 50 | BJ123: 47 | BK123: 51 | BL123: 54 | BM123: 40 | BN123: 49 | BO123: 49 | BP123: 48 | BQ123: 50 | BR123: 52 | BS123: 55 | BT123: 59 | BU123: 58 | BV123: 60 | BW123: 58 | BX123: 57 | BY123: 55 | BZ123: 60 | CA123: 56
A124: 5615 | B124: 56153 | C124: 3 | D124: 5 | E124: 615 | F124: 615 | G124: ANTIOQUIA | H124: RIONEGRO | I124: Independiente | J124: 382 | K124: 239 | L124: 9422 | M124: 9408 | N124: 9026 | O124: 8885 | P124: 9030 | Q124: 9160 | R124: 9396 | S124: 9510 | T124: 9672 | U124: 9736 | V124: 9658 | W124: 9462 | X124: 9542 | Y124: 9803 | Z124: 9980 | AA124: 10018 | AB124: 10095 | AC124: 10183 | AD124: 10322 | AE124: 10357 | AF124: 10451 | AG124: 10508 | AH124: 10334 | AI124: 10226 | AJ124: 10312 | AK124: 10136 | AL124: FALSO | AQ124: 5658 | AR124: 56582 | AS124: 2 | AT124: 5 | AU124: 658 | AV124: 658 | AW124: ANTIOQUIA | AX124: SAN JOSÉ DE LA MONTAÑA | AY124: Dep_sec_priv | AZ124: 19 | BA124: 17 | BB124: 299 | BC124: 289 | BD124: 276 | BE124: 283 | BF124: 277 | BG124: 282 | BH124: 303 | BI124: 293 | BJ124: 285 | BK124: 278 | BL124: 259 | BM124: 237 | BN124: 230 | BO124: 237 | BP124: 252 | BQ124: 250 | BR124: 243 | BS124: 239 | BT124: 228 | BU124: 225 | BV124: 232 | BW124: 231 | BX124: 267 | BY124: 256 | BZ124: 242 | CA124: 235
A125: 25430 | B125: 254302 | C125: 2 | D125: 25 | E125: 430 | F125: 430 | G125: CUNDINAMARCA | H125: MADRID | I125: Dep_sec_priv | J125: 3095 | K125: 2483 | L125: 14518 | M125: 13829 | N125: 12090 | O125: 12930 | P125: 12964 | Q125: 13040 | R125: 13430 | S125: 13599 | T125: 14180 | U125: 14350 | V125: 14224 | W125: 15160 | X125: 14896 | Y125: 14806 | Z125: 15618 | AA125: 14865 | AB125: 14542 | AC125: 15081 | AD125: 15345 | AE125: 15494 | AF125: 16134 | AG125: 16379 | AH125: 16423 | AI125: 18162 | AJ125: 17819 | AK125: 18278 | AL125: FALSO | AQ125: 5576 | AR125: 55763 | AS125: 3 | AT125: 5 | AU125: 576 | AV125: 576 | AW125: ANTIOQUIA | AX125: PUEBLORRICO | AY125: Independiente | AZ125: 5 | BA125: 2 | BB125: 179 | BC125: 180 | BD125: 181 | BE125: 200 | BF125: 189 | BG125: 186 | BH125: 188 | BI125: 197 | BJ125: 208 | BK125: 202 | BL125: 185 | BM125: 174 | BN125: 180 | BO125: 185 | BP125: 184 | BQ125: 184 | BR125: 182 | BS125: 184 | BT125: 189 | BU125: 192 | BV125: 189 | BW125: 194 | BX125: 190 | BY125: 199 | BZ125: 212 | CA125: 203
A126: 25430 | B126: 254303 | C126: 3 | D126: 25 | E126: 430 | F126: 430 | G126: CUNDINAMARCA | H126: MADRID | I126: Independiente | J126: 166 | K126: 112 | L126: 3214 | M126: 3245 | N126: 3243 | O126: 3277 | P126: 3294 | Q126: 3402 | R126: 3475 | S126: 3583 | T126: 3675 | U126: 3722 | V126: 3727 | W126: 3416 | X126: 3559 | Y126: 3752 | Z126: 3848 | AA126: 3875 | AB126: 3942 | AC126: 3987 | AD126: 4053 | AE126: 4114 | AF126: 4188 | AG126: 4198 | AH126: 4134 | AI126: 3980 | AJ126: 4131 | AK126: 4019 | AL126: FALSO | AQ126: 5670 | AR126: 56703 | AS126: 3 | AT126: 5 | AU126: 670 | AV126: 670 | AW126: ANTIOQUIA | AX126: SAN ROQUE | AY126: Independiente | AZ126: 21 | BA126: 6 | BB126: 201 | BC126: 210 | BD126: 192 | BE126: 199 | BF126: 208 | BG126: 205 | BH126: 209 | BI126: 216 | BJ126: 207 | BK126: 221 | BL126: 208 | BM126: 205 | BN126: 212 | BO126: 211 | BP126: 244 | BQ126: 254 | BR126: 254 | BS126: 264 | BT126: 268 | BU126: 270 | BV126: 276 | BW126: 276 | BX126: 269 | BY126: 231 | BZ126: 273 | CA126: 257
A127: 70001 | B127: 700012 | C127: 2 | D127: 70 | E127: 1 | F127: 001 | G127: SUCRE | H127: SINCELEJO | I127: Dep_sec_priv | J127: 3082 | K127: 2616 | L127: 37855 | M127: 38051 | N127: 35395 | O127: 36459 | P127: 36129 | Q127: 36626 | R127: 36666 | S127: 36976 | T127: 37761 | U127: 38159 | V127: 37718 | W127: 35716 | X127: 36784 | Y127: 37904 | Z127: 39290 | AA127: 37740 | AB127: 37983 | AC127: 38293 | AD127: 38564 | AE127: 39685 | AF127: 39382 | AG127: 40173 | AH127: 39768 | AI127: 37457 | AJ127: 38785 | AK127: 38635 | AL127: FALSO | AQ127: 5893 | AR127: 58933 | AS127: 3 | AT127: 5 | AU127: 893 | AV127: 893 | AW127: ANTIOQUIA | AX127: YONDÓ | AY127: Independiente | AZ127: 4 | BA127: 8 | BB127: 145 | BC127: 164 | BD127: 172 | BE127: 188 | BF127: 195 | BG127: 206 | BH127: 197 | BI127: 206 | BJ127: 223 | BK127: 281 | BL127: 286 | BM127: 146 | BN127: 153 | BO127: 160 | BP127: 220 | BQ127: 221 | BR127: 222 | BS127: 216 | BT127: 214 | BU127: 202 | BV127: 209 | BW127: 240 | BX127: 240 | BY127: 163 | BZ127: 186 | CA127: 185
A128: 25286 | B128: 252862 | C128: 2 | D128: 25 | E128: 286 | F128: 286 | G128: CUNDINAMARCA | H128: FUNZA | I128: Dep_sec_priv | J128: 2984 | K128: 2640 | L128: 18192 | M128: 17498 | N128: 16090 | O128: 16077 | P128: 15946 | Q128: 16922 | R128: 17286 | S128: 17389 | T128: 17763 | U128: 17961 | V128: 17604 | W128: 18472 | X128: 18930 | Y128: 19075 | Z128: 19697 | AA128: 19180 | AB128: 19350 | AC128: 19373 | AD128: 19773 | AE128: 20200 | AF128: 21433 | AG128: 21795 | AH128: 21521 | AI128: 21897 | AJ128: 22409 | AK128: 22332 | AL128: FALSO | AQ128: 5591 | AR128: 55913 | AS128: 3 | AT128: 5 | AU128: 591 | AV128: 591 | AW128: ANTIOQUIA | AX128: PUERTO TRIUNFO | AY128: Independiente | AZ128: 17 | BA128: 12 | BB128: 271 | BC128: 252 | BD128: 249 | BE128: 253 | BF128: 253 | BG128: 258 | BH128: 241 | BI128: 246 | BJ128: 256 | BK128: 272 | BL128: 266 | BM128: 234 | BN128: 247 | BO128: 270 | BP128: 278 | BQ128: 305 | BR128: 313 | BS128: 288 | BT128: 295 | BU128: 306 | BV128: 314 | BW128: 306 | BX128: 294 | BY128: 287 | BZ128: 309 | CA128: 309
A129: 25899 | B129: 258992 | C129: 2 | D129: 25 | E129: 899 | F129: 899 | G129: CUNDINAMARCA | H129: ZIPAQUIRÁ | I129: Dep_sec_priv | J129: 2031 | K129: 1836 | L129: 17855 | M129: 17725 | N129: 16372 | O129: 16476 | P129: 16712 | Q129: 17034 | R129: 17074 | S129: 17270 | T129: 17675 | U129: 17665 | V129: 17696 | W129: 17851 | X129: 18453 | Y129: 18486 | Z129: 18720 | AA129: 18171 | AB129: 18566 | AC129: 18942 | AD129: 18992 | AE129: 19186 | AF129: 19361 | AG129: 19382 | AH129: 18628 | AI129: 18976 | AJ129: 19504 | AK129: 19735 | AL129: FALSO | AQ129: 5142 | AR129: 51423 | AS129: 3 | AT129: 5 | AU129: 142 | AV129: 142 | AW129: ANTIOQUIA | AX129: CARACOLÍ | AY129: Independiente | AZ129: 1 | BA129: 2 | BB129: 100 | BC129: 101 | BD129: 99 | BE129: 102 | BF129: 98 | BG129: 99 | BH129: 105 | BI129: 106 | BJ129: 103 | BK129: 117 | BL129: 117 | BM129: 104 | BN129: 104 | BO129: 109 | BP129: 99 | BQ129: 104 | BR129: 104 | BS129: 111 | BT129: 114 | BU129: 119 | BV129: 113 | BW129: 109 | BX129: 106 | BY129: 104 | BZ129: 114 | CA129: 99
A130: 85250 | B130: 852503 | C130: 3 | D130: 85 | E130: 250 | F130: 250 | G130: CASANARE | H130: PAZ DE ARIPORO | I130: Independiente | J130: 69 | K130: 39 | L130: 544 | M130: 579 | N130: 568 | O130: 557 | P130: 563 | Q130: 582 | R130: 595 | S130: 589 | T130: 630 | U130: 626 | V130: 601 | W130: 487 | X130: 572 | Y130: 618 | Z130: 657 | AA130: 645 | AB130: 660 | AC130: 664 | AD130: 690 | AE130: 709 | AF130: 723 | AG130: 730 | AH130: 708 | AI130: 680 | AJ130: 736 | AK130: 731 | AL130: FALSO | AQ130: 5604 | AR130: 56042 | AS130: 2 | AT130: 5 | AU130: 604 | AV130: 604 | AW130: ANTIOQUIA | AX130: REMEDIOS | AY130: Dep_sec_priv | AZ130: 369 | BA130: 337 | BB130: 1481 | BC130: 1444 | BD130: 1265 | BE130: 1319 | BF130: 1411 | BG130: 1430 | BH130: 1466 | BI130: 1532 | BJ130: 1609 | BK130: 1686 | BL130: 1688 | BM130: 1742 | BN130: 1846 | BO130: 1869 | BP130: 2050 | BQ130: 2159 | BR130: 2113 | BS130: 2105 | BT130: 2144 | BU130: 2253 | BV130: 2218 | BW130: 2316 | BX130: 2244 | BY130: 2270 | BZ130: 2374 | CA130: 2537
A131: 70001 | B131: 700013 | C131: 3 | D131: 70 | E131: 1 | F131: 001 | G131: SUCRE | H131: SINCELEJO | I131: Independiente | J131: 620 | K131: 412 | L131: 12039 | M131: 12098 | N131: 11714 | O131: 11719 | P131: 11563 | Q131: 11626 | R131: 11667 | S131: 11800 | T131: 11983 | U131: 12130 | V131: 11744 | W131: 10437 | X131: 11081 | Y131: 11583 | Z131: 11743 | AA131: 11733 | AB131: 11823 | AC131: 11987 | AD131: 12060 | AE131: 12130 | AF131: 12282 | AG131: 12319 | AH131: 11940 | AI131: 11601 | AJ131: 11623 | AK131: 11091 | AL131: =IF(SUM(L131:AK131)=0,"VERDADERO","FALSO") -> FALSO | AQ131: 5086 | AR131: 50863 | AS131: 3 | AT131: 5 | AU131: 86 | AV131: 086 | AW131: ANTIOQUIA | AX131: BELMIRA | AY131: Independiente | AZ131: 3 | BA131: 1 | BB131: 105 | BC131: 117 | BD131: 111 | BE131: 116 | BF131: 115 | BG131: 120 | BH131: 114 | BI131: 122 | BJ131: 128 | BK131: 125 | BL131: 125 | BM131: 117 | BN131: 121 | BO131: 124 | BP131: 128 | BQ131: 128 | BR131: 130 | BS131: 133 | BT131: 142 | BU131: 145 | BV131: 145 | BW131: 147 | BX131: 147 | BY131: 153 | BZ131: 160 | CA131: 153
A132: 63130 | B132: 631303 | C132: 3 | D132: 63 | E132: 130 | F132: 130 | G132: QUINDÍO | H132: CALARCA | I132: Independiente | J132: 64 | K132: 45 | L132: 1416 | M132: 1414 | N132: 1406 | O132: 1422 | P132: 1390 | Q132: 1397 | R132: 1442 | S132: 1454 | T132: 1506 | U132: 1584 | V132: 1600 | W132: 1449 | X132: 1575 | Y132: 1623 | Z132: 1628 | AA132: 1634 | AB132: 1663 | AC132: 1650 | AD132: 1686 | AE132: 1745 | AF132: 1799 | AG132: 1814 | AH132: 1798 | AI132: 1790 | AJ132: 1756 | AK132: 1723 | AL132: FALSO | AQ132: 5642 | AR132: 56423 | AS132: 3 | AT132: 5 | AU132: 642 | AV132: 642 | AW132: ANTIOQUIA | AX132: SALGAR | AY132: Independiente | AZ132: 4 | BA132: 7 | BB132: 213 | BC132: 228 | BD132: 228 | BE132: 234 | BF132: 230 | BG132: 238 | BH132: 246 | BI132: 252 | BJ132: 298 | BK132: 297 | BL132: 305 | BM132: 231 | BN132: 250 | BO132: 268 | BP132: 264 | BQ132: 273 | BR132: 263 | BS132: 273 | BT132: 284 | BU132: 285 | BV132: 288 | BW132: 287 | BX132: 283 | BY132: 256 | BZ132: 267 | CA132: 266
A133: 25312 | B133: 253122 | C133: 2 | D133: 25 | E133: 312 | F133: 312 | G133: CUNDINAMARCA | H133: GRANADA | I133: Dep_sec_priv | J133: 18 | K133: 15 | L133: 167 | M133: 166 | N133: 179 | O133: 187 | P133: 197 | Q133: 186 | R133: 159 | S133: 159 | T133: 166 | U133: 184 | V133: 191 | W133: 198 | X133: 191 | Y133: 204 | Z133: 221 | AA133: 230 | AB133: 225 | AC133: 210 | AD133: 227 | AE133: 231 | AF133: 237 | AG133: 233 | AH133: 241 | AI133: 259 | AJ133: 313 | AK133: 336 | AL133: FALSO | AQ133: 5585 | AR133: 55853 | AS133: 3 | AT133: 5 | AU133: 585 | AV133: 585 | AW133: ANTIOQUIA | AX133: PUERTO NARE | AY133: Independiente | AZ133: 21 | BA133: 12 | BB133: 196 | BC133: 178 | BD133: 170 | BE133: 174 | BF133: 172 | BG133: 191 | BH133: 206 | BI133: 216 | BJ133: 244 | BK133: 256 | BL133: 254 | BM133: 205 | BN133: 221 | BO133: 228 | BP133: 272 | BQ133: 240 | BR133: 288 | BS133: 283 | BT133: 272 | BU133: 262 | BV133: 282 | BW133: 314 | BX133: 322 | BY133: 288 | BZ133: 301 | CA133: 268
A134: 25290 | B134: 252902 | C134: 2 | D134: 25 | E134: 290 | F134: 290 | G134: CUNDINAMARCA | H134: FUSAGASUGÁ | I134: Dep_sec_priv | J134: 1290 | K134: 1330 | L134: 13267 | M134: 13344 | N134: 12351 | O134: 12473 | P134: 12725 | Q134: 12905 | R134: 12805 | S134: 13325 | T134: 13517 | U134: 13896 | V134: 13741 | W134: 13667 | X134: 14379 | Y134: 14562 | Z134: 14690 | AA134: 14818 | AB134: 14926 | AC134: 15140 | AD134: 15408 | AE134: 15679 | AF134: 15256 | AG134: 15237 | AH134: 15190 | AI134: 15000 | AJ134: 15483 | AK134: 15421 | AL134: FALSO | AQ134: 5664 | AR134: 56642 | AS134: 2 | AT134: 5 | AU134: 664 | AV134: 664 | AW134: ANTIOQUIA | AX134: SAN PEDRO DE LOS MILAGROS | AY134: Dep_sec_priv | AZ134: 290 | BA134: 236 | BB134: 3013 | BC134: 2989 | BD134: 2812 | BE134: 2984 | BF134: 2989 | BG134: 2998 | BH134: 3000 | BI134: 3082 | BJ134: 3143 | BK134: 3136 | BL134: 3119 | BM134: 3154 | BN134: 3140 | BO134: 3201 | BP134: 3197 | BQ134: 3245 | BR134: 3312 | BS134: 3357 | BT134: 3395 | BU134: 3419 | BV134: 3489 | BW134: 3511 | BX134: 3540 | BY134: 3422 | BZ134: 3404 | CA134: 3477
A135: 25754 | B135: 257542 | C135: 2 | D135: 25 | E135: 754 | F135: 754 | G135: CUNDINAMARCA | H135: SOACHA | I135: Dep_sec_priv | J135: 2071 | K135: 1599 | L135: 17153 | M135: 16600 | N135: 15412 | O135: 15513 | P135: 15547 | Q135: 15568 | R135: 15893 | S135: 16538 | T135: 16733 | U135: 16983 | V135: 15552 | W135: 15139 | X135: 16963 | Y135: 17487 | Z135: 17805 | AA135: 17394 | AB135: 17554 | AC135: 17775 | AD135: 18172 | AE135: 18503 | AF135: 18710 | AG135: 18949 | AH135: 17540 | AI135: 17231 | AJ135: 19505 | AK135: 19930 | AL135: FALSO | AQ135: 5670 | AR135: 56701 | AS135: 1 | AT135: 5 | AU135: 670 | AV135: 670 | AW135: ANTIOQUIA | AX135: SAN ROQUE | AY135: Dep_No_priv | AZ135: 34 | BA135: 20 | BB135: 440 | BC135: 484 | BD135: 481 | BE135: 482 | BF135: 478 | BG135: 449 | BH135: 458 | BI135: 467 | BJ135: 449 | BK135: 454 | BL135: 459 | BM135: 440 | BN135: 451 | BO135: 510 | BP135: 507 | BQ135: 503 | BR135: 524 | BS135: 507 | BT135: 503 | BU135: 489 | BV135: 464 | BW135: 471 | BX135: 453 | BY135: 439 | BZ135: 473 | CA135: 508
A136: 85162 | B136: 851623 | C136: 3 | D136: 85 | E136: 162 | F136: 162 | G136: CASANARE | H136: MONTERREY | I136: Independiente | J136: 24 | K136: 41 | L136: 496 | M136: 506 | N136: 495 | O136: 498 | P136: 519 | Q136: 533 | R136: 528 | S136: 547 | T136: 557 | U136: 565 | V136: 579 | W136: 438 | X136: 514 | Y136: 557 | Z136: 552 | AA136: 559 | AB136: 562 | AC136: 574 | AD136: 591 | AE136: 583 | AF136: 620 | AG136: 642 | AH136: 613 | AI136: 585 | AJ136: 599 | AK136: 574 | AL136: FALSO | AQ136: 5190 | AR136: 51902 | AS136: 2 | AT136: 5 | AU136: 190 | AV136: 190 | AW136: ANTIOQUIA | AX136: CISNEROS | AY136: Dep_sec_priv | AZ136: 57 | BA136: 50 | BB136: 1612 | BC136: 1620 | BD136: 1553 | BE136: 1608 | BF136: 1582 | BG136: 1624 | BH136: 1631 | BI136: 1531 | BJ136: 1511 | BK136: 1558 | BL136: 1508 | BM136: 1410 | BN136: 1385 | BO136: 1371 | BP136: 1299 | BQ136: 1315 | BR136: 1259 | BS136: 1129 | BT136: 1023 | BU136: 926 | BV136: 905 | BW136: 840 | BX136: 859 | BY136: 800 | BZ136: 805 | CA136: 780
A137: 25019 | B137: 250193 | C137: 3 | D137: 25 | E137: 19 | F137: 019 | G137: CUNDINAMARCA | H137: ALBÁN | I137: Independiente | J137: 9 | K137: 3 | L137: 115 | M137: 121 | N137: 117 | O137: 112 | P137: 119 | Q137: 113 | R137: 115 | S137: 114 | T137: 122 | U137: 123 | V137: 123 | W137: 125 | X137: 132 | Y137: 129 | Z137: 128 | AA137: 128 | AB137: 129 | AC137: 143 | AD137: 142 | AE137: 148 | AF137: 144 | AG137: 146 | AH137: 146 | AI137: 141 | AJ137: 148 | AK137: 143 | AL137: FALSO | AQ137: 5670 | AR137: 56702 | AS137: 2 | AT137: 5 | AU137: 670 | AV137: 670 | AW137: ANTIOQUIA | AX137: SAN ROQUE | AY137: Dep_sec_priv | AZ137: 78 | BA137: 56 | BB137: 734 | BC137: 772 | BD137: 647 | BE137: 693 | BF137: 721 | BG137: 619 | BH137: 623 | BI137: 634 | BJ137: 679 | BK137: 695 | BL137: 664 | BM137: 665 | BN137: 728 | BO137: 787 | BP137: 787 | BQ137: 858 | BR137: 908 | BS137: 879 | BT137: 887 | BU137: 902 | BV137: 933 | BW137: 930 | BX137: 905 | BY137: 883 | BZ137: 914 | CA137: 875
A138: 76111 | B138: 761113 | C138: 3 | D138: 76 | E138: 111 | F138: 111 | G138: VALLE DEL CAUCA | H138: GUADALAJARA DE BUGA | I138: Independiente | J138: 155 | K138: 117 | L138: 5393 | M138: 5530 | N138: 5454 | O138: 5436 | P138: 5475 | Q138: 5507 | R138: 5596 | S138: 5717 | T138: 5810 | U138: 5856 | V138: 5819 | W138: 5220 | X138: 5447 | Y138: 5689 | Z138: 5797 | AA138: 5779 | AB138: 5813 | AC138: 5813 | AD138: 5906 | AE138: 5984 | AF138: 6030 | AG138: 6085 | AH138: 5949 | AI138: 5767 | AJ138: 5877 | AK138: 5772 | AL138: FALSO | AQ138: 5674 | AR138: 56743 | AS138: 3 | AT138: 5 | AU138: 674 | AV138: 674 | AW138: ANTIOQUIA | AX138: SAN VICENTE | AY138: Independiente | AZ138: 14 | BA138: 13 | BB138: 269 | BC138: 274 | BD138: 273 | BE138: 278 | BF138: 289 | BG138: 289 | BH138: 298 | BI138: 300 | BJ138: 302 | BK138: 316 | BL138: 306 | BM138: 289 | BN138: 288 | BO138: 321 | BP138: 344 | BQ138: 360 | BR138: 368 | BS138: 373 | BT138: 378 | BU138: 385 | BV138: 396 | BW138: 400 | BX138: 379 | BY138: 364 | BZ138: 394 | CA138: 386
A139: 25269 | B139: 252692 | C139: 2 | D139: 25 | E139: 269 | F139: 269 | G139: CUNDINAMARCA | H139: FACATATIVÁ | I139: Dep_sec_priv | J139: 4438 | K139: 3473 | L139: 24383 | M139: 23228 | N139: 22488 | O139: 21966 | P139: 21658 | Q139: 22098 | R139: 22136 | S139: 22801 | T139: 23413 | U139: 23826 | V139: 24471 | W139: 26532 | X139: 25811 | Y139: 25333 | Z139: 27376 | AA139: 25946 | AB139: 24831 | AC139: 25238 | AD139: 25462 | AE139: 25404 | AF139: 26027 | AG139: 26700 | AH139: 26213 | AI139: 28524 | AJ139: 27721 | AK139: 27931 | AL139: FALSO | AQ139: 5679 | AR139: 56793 | AS139: 3 | AT139: 5 | AU139: 679 | AV139: 679 | AW139: ANTIOQUIA | AX139: SANTA BÁRBARA | AY139: Independiente | AZ139: 27 | BA139: 13 | BB139: 305 | BC139: 306 | BD139: 300 | BE139: 303 | BF139: 296 | BG139: 300 | BH139: 302 | BI139: 302 | BJ139: 340 | BK139: 350 | BL139: 351 | BM139: 325 | BN139: 339 | BO139: 333 | BP139: 346 | BQ139: 354 | BR139: 357 | BS139: 362 | BT139: 363 | BU139: 372 | BV139: 371 | BW139: 373 | BX139: 359 | BY139: 359 | BZ139: 408 | CA139: 407
A140: 25817 | B140: 258173 | C140: 3 | D140: 25 | E140: 817 | F140: 817 | G140: CUNDINAMARCA | H140: TOCANCIPÁ | I140: Independiente | J140: 135 | K140: 119 | L140: 1260 | M140: 1324 | N140: 1251 | O140: 1260 | P140: 1275 | Q140: 1312 | R140: 1306 | S140: 1372 | T140: 1424 | U140: 1458 | V140: 1500 | W140: 1323 | X140: 1402 | Y140: 1489 | Z140: 1504 | AA140: 1551 | AB140: 1566 | AC140: 1616 | AD140: 1602 | AE140: 1623 | AF140: 1642 | AG140: 1678 | AH140: 1666 | AI140: 1630 | AJ140: 1708 | AK140: 1674 | AL140: FALSO | AQ140: 5789 | AR140: 57892 | AS140: 2 | AT140: 5 | AU140: 789 | AV140: 789 | AW140: ANTIOQUIA | AX140: TÁMESIS | AY140: Dep_sec_priv | AZ140: 171 | BA140: 154 | BB140: 692 | BC140: 704 | BD140: 693 | BE140: 664 | BF140: 746 | BG140: 757 | BH140: 731 | BI140: 778 | BJ140: 832 | BK140: 853 | BL140: 793 | BM140: 865 | BN140: 934 | BO140: 928 | BP140: 981 | BQ140: 972 | BR140: 865 | BS140: 871 | BT140: 800 | BU140: 884 | BV140: 872 | BW140: 897 | BX140: 850 | BY140: 877 | BZ140: 946 | CA140: 1020
A141: 5079 | B141: 50792 | C141: 2 | D141: 5 | E141: 79 | F141: 079 | G141: ANTIOQUIA | H141: BARBOSA | I141: Dep_sec_priv | J141: 277 | K141: 406 | L141: 4200 | M141: 4286 | N141: 4045 | O141: 4120 | P141: 4275 | Q141: 4317 | R141: 4331 | S141: 4372 | T141: 4338 | U141: 4377 | V141: 4270 | W141: 4204 | X141: 4263 | Y141: 4120 | Z141: 4002 | AA141: 3931 | AB141: 3932 | AC141: 4031 | AD141: 4022 | AE141: 3863 | AF141: 3938 | AG141: 4147 | AH141: 3982 | AI141: 3835 | AJ141: 3854 | AK141: 3855 | AL141: FALSO | AQ141: 5390 | AR141: 53902 | AS141: 2 | AT141: 5 | AU141: 390 | AV141: 390 | AW141: ANTIOQUIA | AX141: LA PINTADA | AY141: Dep_sec_priv | AZ141: 100 | BA141: 174 | BB141: 1742 | BC141: 1739 | BD141: 1661 | BE141: 1657 | BF141: 1634 | BG141: 1638 | BH141: 1547 | BI141: 1571 | BJ141: 1537 | BK141: 1542 | BL141: 1545 | BM141: 1435 | BN141: 1393 | BO141: 1362 | BP141: 1319 | BQ141: 1392 | BR141: 1327 | BS141: 1301 | BT141: 1249 | BU141: 1216 | BV141: 1286 | BW141: 1276 | BX141: 1156 | BY141: 1159 | BZ141: 1169 | CA141: 1182
A142: 50006 | B142: 500062 | C142: 2 | D142: 50 | E142: 6 | F142: 006 | G142: META | H142: ACACÍAS | I142: Dep_sec_priv | J142: 1698 | K142: 1606 | L142: 12741 | M142: 12395 | N142: 11033 | O142: 10945 | P142: 10717 | Q142: 10607 | R142: 10082 | S142: 10202 | T142: 10698 | U142: 10661 | V142: 10656 | W142: 10357 | X142: 10533 | Y142: 11245 | Z142: 11205 | AA142: 11147 | AB142: 11477 | AC142: 11631 | AD142: 11794 | AE142: 12144 | AF142: 12489 | AG142: 13284 | AH142: 12847 | AI142: 12737 | AJ142: 13098 | AK142: 12922 | AL142: FALSO | AQ142: 5856 | AR142: 58562 | AS142: 2 | AT142: 5 | AU142: 856 | AV142: 856 | AW142: ANTIOQUIA | AX142: VALPARAÍSO | AY142: Dep_sec_priv | AZ142: 41 | BA142: 33 | BB142: 340 | BC142: 334 | BD142: 323 | BE142: 321 | BF142: 339 | BG142: 327 | BH142: 321 | BI142: 322 | BJ142: 327 | BK142: 324 | BL142: 323 | BM142: 306 | BN142: 314 | BO142: 329 | BP142: 349 | BQ142: 354 | BR142: 351 | BS142: 341 | BT142: 345 | BU142: 345 | BV142: 359 | BW142: 361 | BX142: 362 | BY142: 345 | BZ142: 364 | CA142: 377
A143: 73686 | B143: 736861 | C143: 1 | D143: 73 | E143: 686 | F143: 686 | G143: TOLIMA | H143: SANTA ISABEL | I143: Dep_No_priv | J143: 10 | K143: 17 | L143: 129 | M143: 134 | N143: 136 | O143: 136 | P143: 138 | Q143: 137 | R143: 142 | S143: 138 | T143: 137 | U143: 134 | V143: 137 | W143: 134 | X143: 134 | Y143: 139 | Z143: 139 | AA143: 152 | AB143: 206 | AC143: 208 | AD143: 208 | AE143: 210 | AF143: 209 | AG143: 172 | AH143: 150 | AI143: 143 | AJ143: 146 | AK143: 152 | AL143: FALSO | AQ143: 5120 | AR143: 51203 | AS143: 3 | AT143: 5 | AU143: 120 | AV143: 120 | AW143: ANTIOQUIA | AX143: CÁCERES | AY143: Independiente | AZ143: 8 | BA143: 6 | BB143: 277 | BC143: 278 | BD143: 280 | BE143: 283 | BF143: 128 | BG143: 136 | BH143: 132 | BI143: 134 | BJ143: 142 | BK143: 143 | BL143: 131 | BM143: 110 | BN143: 119 | BO143: 132 | BP143: 155 | BQ143: 163 | BR143: 165 | BS143: 164 | BT143: 182 | BU143: 182 | BV143: 193 | BW143: 201 | BX143: 189 | BY143: 154 | BZ143: 172 | CA143: 165
A144: 25019 | B144: 250192 | C144: 2 | D144: 25 | E144: 19 | F144: 019 | G144: CUNDINAMARCA | H144: ALBÁN | I144: Dep_sec_priv | J144: 30 | K144: 42 | L144: 442 | M144: 411 | N144: 372 | O144: 357 | P144: 356 | Q144: 382 | R144: 379 | S144: 385 | T144: 374 | U144: 388 | V144: 384 | W144: 366 | X144: 383 | Y144: 354 | Z144: 374 | AA144: 371 | AB144: 388 | AC144: 366 | AD144: 367 | AE144: 369 | AF144: 377 | AG144: 368 | AH144: 376 | AI144: 359 | AJ144: 350 | AK144: 354 | AL144: FALSO | AQ144: 5658 | AR144: 56583 | AS144: 3 | AT144: 5 | AU144: 658 | AV144: 658 | AW144: ANTIOQUIA | AX144: SAN JOSÉ DE LA MONTAÑA | AY144: Independiente | AZ144: 16 | BA144: 3 | BB144: 163 | BC144: 167 | BD144: 170 | BE144: 171 | BF144: 174 | BG144: 184 | BH144: 183 | BI144: 185 | BJ144: 186 | BK144: 188 | BL144: 179 | BM144: 180 | BN144: 180 | BO144: 181 | BP144: 184 | BQ144: 191 | BR144: 195 | BS144: 192 | BT144: 195 | BU144: 189 | BV144: 192 | BW144: 184 | BX144: 173 | BY144: 179 | BZ144: 190 | CA144: 202
A145: 15104 | B145: 151042 | C145: 2 | D145: 15 | E145: 104 | F145: 104 | G145: BOYACÁ | H145: BOYACÁ | I145: Dep_sec_priv | J145: 405 | K145: 372 | L145: 4364 | M145: 4315 | N145: 3880 | O145: 4139 | P145: 4233 | Q145: 3742 | R145: 3454 | S145: 3470 | T145: 3700 | U145: 3827 | V145: 3881 | W145: 3793 | X145: 3653 | Y145: 3643 | Z145: 3910 | AA145: 3562 | AB145: 3879 | AC145: 3987 | AD145: 4211 | AE145: 3688 | AF145: 3657 | AG145: 4118 | AH145: 3746 | AI145: 4179 | AJ145: 4137 | AK145: 4277 | AL145: FALSO | AQ145: 5887 | AR145: 58872 | AS145: 2 | AT145: 5 | AU145: 887 | AV145: 887 | AW145: ANTIOQUIA | AX145: YARUMAL | AY145: Dep_sec_priv | AZ145: 251 | BA145: 238 | BB145: 2960 | BC145: 2938 | BD145: 2838 | BE145: 2904 | BF145: 2900 | BG145: 2946 | BH145: 2629 | BI145: 2656 | BJ145: 2684 | BK145: 2786 | BL145: 2779 | BM145: 2706 | BN145: 2792 | BO145: 2837 | BP145: 2885 | BQ145: 2926 | BR145: 2951 | BS145: 2978 | BT145: 2968 | BU145: 3018 | BV145: 3066 | BW145: 3112 | BX145: 3056 | BY145: 2994 | BZ145: 3096 | CA145: 3203
A146: 41615 | B146: 416152 | C146: 2 | D146: 41 | E146: 615 | F146: 615 | G146: HUILA | H146: RIVERA | I146: Dep_sec_priv | J146: 166 | K146: 168 | L146: 1089 | M146: 1131 | N146: 1049 | O146: 1041 | P146: 1044 | Q146: 1044 | R146: 1102 | S146: 1117 | T146: 1157 | U146: 1143 | V146: 1091 | W146: 1490 | X146: 1507 | Y146: 1616 | Z146: 1611 | AA146: 1577 | AB146: 1664 | AC146: 1654 | AD146: 1129 | AE146: 1651 | AF146: 1683 | AG146: 1677 | AH146: 1634 | AI146: 1687 | AJ146: 1834 | AK146: 1782 | AL146: FALSO | AQ146: 5091 | AR146: 50912 | AS146: 2 | AT146: 5 | AU146: 91 | AV146: 091 | AW146: ANTIOQUIA | AX146: BETANIA | AY146: Dep_sec_priv | AZ146: 11 | BA146: 41 | BB146: 299 | BC146: 272 | BD146: 240 | BE146: 240 | BF146: 242 | BG146: 239 | BH146: 281 | BI146: 259 | BJ146: 230 | BK146: 206 | BL146: 179 | BM146: 200 | BN146: 198 | BO146: 186 | BP146: 171 | BQ146: 205 | BR146: 254 | BS146: 231 | BT146: 250 | BU146: 200 | BV146: 180 | BW146: 227 | BX146: 290 | BY146: 232 | BZ146: 245 | CA146: 202
A147: 66001 | B147: 660012 | C147: 2 | D147: 66 | E147: 1 | F147: 001 | G147: RISARALDA | H147: PEREIRA | I147: Dep_sec_priv | J147: 14394 | K147: 13002 | L147: 143565 | M147: 142015 | N147: 129505 | O147: 129764 | P147: 130581 | Q147: 132906 | R147: 133614 | S147: 135556 | T147: 136964 | U147: 138073 | V147: 137794 | W147: 135494 | X147: 138446 | Y147: 139833 | Z147: 141073 | AA147: 138392 | AB147: 139870 | AC147: 141867 | AD147: 144849 | AE147: 147289 | AF147: 149044 | AG147: 150621 | AH147: 149645 | AI147: 147819 | AJ147: 150878 | AK147: 151750 | AL147: FALSO | AQ147: 5690 | AR147: 56901 | AS147: 1 | AT147: 5 | AU147: 690 | AV147: 690 | AW147: ANTIOQUIA | AX147: SANTO DOMINGO | AY147: Dep_No_priv | AZ147: 15 | BA147: 16 | BB147: 294 | BC147: 289 | BD147: 286 | BE147: 288 | BF147: 272 | BG147: 277 | BH147: 281 | BI147: 278 | BJ147: 276 | BK147: 280 | BL147: 277 | BM147: 274 | BN147: 278 | BO147: 280 | BP147: 273 | BQ147: 277 | BR147: 275 | BS147: 278 | BT147: 282 | BU147: 284 | BV147: 283 | BW147: 285 | BX147: 282 | BY147: 281 | BZ147: 279 | CA147: 291
A148: 68500 | B148: 685002 | C148: 2 | D148: 68 | E148: 500 | F148: 500 | G148: SANTANDER | H148: OIBA | I148: Dep_sec_priv | J148: 51 | K148: 42 | L148: 471 | M148: 505 | N148: 429 | O148: 419 | P148: 435 | Q148: 456 | R148: 505 | S148: 626 | T148: 660 | U148: 632 | V148: 602 | W148: 594 | X148: 670 | Y148: 687 | Z148: 670 | AA148: 689 | AB148: 689 | AC148: 686 | AD148: 644 | AE148: 643 | AF148: 630 | AG148: 582 | AH148: 537 | AI148: 511 | AJ148: 536 | AK148: 528 | AL148: FALSO | AQ148: 5697 | AR148: 56972 | AS148: 2 | AT148: 5 | AU148: 697 | AV148: 697 | AW148: ANTIOQUIA | AX148: EL SANTUARIO | AY148: Dep_sec_priv | AZ148: 300 | BA148: 242 | BB148: 3345 | BC148: 3371 | BD148: 3197 | BE148: 3073 | BF148: 3136 | BG148: 3248 | BH148: 3342 | BI148: 3434 | BJ148: 3464 | BK148: 3416 | BL148: 3395 | BM148: 3362 | BN148: 3403 | BO148: 3448 | BP148: 3465 | BQ148: 3555 | BR148: 3603 | BS148: 3631 | BT148: 3612 | BU148: 3618 | BV148: 3648 | BW148: 3662 | BX148: 3613 | BY148: 3617 | BZ148: 3653 | CA148: 3754
A149: 25320 | B149: 253203 | C149: 3 | D149: 25 | E149: 320 | F149: 320 | G149: CUNDINAMARCA | H149: GUADUAS | I149: Independiente | J149: 25 | K149: 23 | L149: 696 | M149: 698 | N149: 692 | O149: 691 | P149: 696 | Q149: 695 | R149: 698 | S149: 779 | T149: 801 | U149: 804 | V149: 805 | W149: 754 | X149: 788 | Y149: 805 | Z149: 813 | AA149: 820 | AB149: 830 | AC149: 827 | AD149: 831 | AE149: 844 | AF149: 851 | AG149: 854 | AH149: 897 | AI149: 791 | AJ149: 827 | AK149: 806 | AL149: FALSO | AQ149: 5756 | AR149: 57563 | AS149: 3 | AT149: 5 | AU149: 756 | AV149: 756 | AW149: ANTIOQUIA | AX149: SONSON | AY149: Independiente | AZ149: 38 | BA149: 23 | BB149: 709 | BC149: 731 | BD149: 696 | BE149: 688 | BF149: 678 | BG149: 652 | BH149: 681 | BI149: 708 | BJ149: 713 | BK149: 727 | BL149: 722 | BM149: 671 | BN149: 679 | BO149: 693 | BP149: 696 | BQ149: 724 | BR149: 730 | BS149: 727 | BT149: 722 | BU149: 749 | BV149: 750 | BW149: 771 | BX149: 758 | BY149: 788 | BZ149: 792 | CA149: 778
A150: 25269 | B150: 252691 | C150: 1 | D150: 25 | E150: 269 | F150: 269 | G150: CUNDINAMARCA | H150: FACATATIVÁ | I150: Dep_No_priv | J150: 276 | K150: 207 | L150: 3365 | M150: 3348 | N150: 3261 | O150: 3274 | P150: 3209 | Q150: 3420 | R150: 3367 | S150: 3512 | T150: 3532 | U150: 3545 | V150: 3522 | W150: 3488 | X150: 3494 | Y150: 3493 | Z150: 3531 | AA150: 3564 | AB150: 3526 | AC150: 3525 | AD150: 3599 | AE150: 3611 | AF150: 3642 | AG150: 3624 | AH150: 3553 | AI150: 3303 | AJ150: 3635 | AK150: 3742 | AL150: FALSO | AQ150: 5756 | AR150: 57562 | AS150: 2 | AT150: 5 | AU150: 756 | AV150: 756 | AW150: ANTIOQUIA | AX150: SONSON | AY150: Dep_sec_priv | AZ150: 85 | BA150: 107 | BB150: 1407 | BC150: 1540 | BD150: 1370 | BE150: 1428 | BF150: 1442 | BG150: 1494 | BH150: 1545 | BI150: 1568 | BJ150: 1601 | BK150: 1596 | BL150: 1604 | BM150: 1547 | BN150: 1594 | BO150: 1571 | BP150: 1596 | BQ150: 1605 | BR150: 1601 | BS150: 1666 | BT150: 1645 | BU150: 1712 | BV150: 1747 | BW150: 1616 | BX150: 1638 | BY150: 1640 | BZ150: 1669 | CA150: 1768
A151: 25040 | B151: 250402 | C151: 2 | D151: 25 | E151: 40 | F151: 040 | G151: CUNDINAMARCA | H151: ANOLAIMA | I151: Dep_sec_priv | J151: 22 | K151: 18 | L151: 383 | M151: 388 | N151: 383 | O151: 371 | P151: 388 | Q151: 395 | R151: 383 | S151: 411 | T151: 451 | U151: 425 | V151: 424 | W151: 346 | X151: 380 | Y151: 409 | Z151: 394 | AA151: 380 | AB151: 408 | AC151: 416 | AD151: 417 | AE151: 410 | AF151: 412 | AG151: 419 | AH151: 403 | AI151: 399 | AJ151: 440 | AK151: 434 | AL151: FALSO | AQ151: 5789 | AR151: 57893 | AS151: 3 | AT151: 5 | AU151: 789 | AV151: 789 | AW151: ANTIOQUIA | AX151: TÁMESIS | AY151: Independiente | AZ151: 23 | BA151: 14 | BB151: 286 | BC151: 298 | BD151: 285 | BE151: 292 | BF151: 295 | BG151: 299 | BH151: 300 | BI151: 306 | BJ151: 300 | BK151: 308 | BL151: 304 | BM151: 306 | BN151: 301 | BO151: 319 | BP151: 317 | BQ151: 304 | BR151: 311 | BS151: 308 | BT151: 318 | BU151: 327 | BV151: 352 | BW151: 348 | BX151: 318 | BY151: 326 | BZ151: 341 | CA151: 344
A152: 25001 | B152: 250011 | C152: 1 | D152: 25 | E152: 1 | F152: 001 | G152: CUNDINAMARCA | H152: AGUA DE DIOS | I152: Dep_No_priv | J152: 113 | K152: 400 | L152: 2577 | M152: 2459 | N152: 2864 | O152: 2314 | P152: 2374 | Q152: 2286 | R152: 2475 | S152: 2550 | T152: 2656 | U152: 2807 | V152: 2477 | W152: 2400 | X152: 2419 | Y152: 2452 | Z152: 2660 | AA152: 2774 | AB152: 2707 | AC152: 2929 | AD152: 2855 | AE152: 2881 | AF152: 3410 | AG152: 3648 | AH152: 2642 | AI152: 2591 | AJ152: 2771 | AK152: 2715 | AL152: FALSO | AQ152: 5792 | AR152: 57923 | AS152: 3 | AT152: 5 | AU152: 792 | AV152: 792 | AW152: ANTIOQUIA | AX152: TARSO | AY152: Independiente | AZ152: 6 | BA152: 5 | BB152: 97 | BC152: 93 | BD152: 85 | BE152: 108 | BF152: 120 | BG152: 125 | BH152: 130 | BI152: 129 | BJ152: 130 | BK152: 129 | BL152: 131 | BM152: 119 | BN152: 129 | BO152: 130 | BP152: 132 | BQ152: 134 | BR152: 127 | BS152: 132 | BT152: 136 | BU152: 128 | BV152: 125 | BW152: 125 | BX152: 116 | BY152: 125 | BZ152: 137 | CA152: 133
A153: 25486 | B153: 254862 | C153: 2 | D153: 25 | E153: 486 | F153: 486 | G153: CUNDINAMARCA | H153: NEMOCÓN | I153: Dep_sec_priv | J153: 173 | K153: 170 | L153: 1320 | M153: 1313 | N153: 1326 | O153: 1301 | P153: 1320 | Q153: 1266 | R153: 1188 | S153: 1283 | T153: 1331 | U153: 1280 | V153: 1283 | W153: 1395 | X153: 1469 | Y153: 1380 | Z153: 1479 | AA153: 1294 | AB153: 1312 | AC153: 1320 | AD153: 1396 | AE153: 1511 | AF153: 1557 | AG153: 1552 | AH153: 1465 | AI153: 1875 | AJ153: 1932 | AK153: 1791 | AL153: FALSO | AQ153: 5809 | AR153: 58093 | AS153: 3 | AT153: 5 | AU153: 809 | AV153: 809 | AW153: ANTIOQUIA | AX153: TITIRIBÍ | AY153: Independiente | AZ153: 3 | BA153: 1 | BB153: 156 | BC153: 163 | BD153: 161 | BE153: 163 | BF153: 167 | BG153: 168 | BH153: 169 | BI153: 171 | BJ153: 172 | BK153: 175 | BL153: 171 | BM153: 157 | BN153: 159 | BO153: 170 | BP153: 173 | BQ153: 173 | BR153: 171 | BS153: 169 | BT153: 174 | BU153: 178 | BV153: 178 | BW153: 185 | BX153: 186 | BY153: 188 | BZ153: 195 | CA153: 187
A154: 25402 | B154: 254022 | C154: 2 | D154: 25 | E154: 402 | F154: 402 | G154: CUNDINAMARCA | H154: LA VEGA | I154: Dep_sec_priv | J154: 88 | K154: 49 | L154: 741 | M154: 765 | N154: 710 | O154: 719 | P154: 763 | Q154: 743 | R154: 749 | S154: 749 | T154: 770 | U154: 777 | V154: 762 | W154: 732 | X154: 731 | Y154: 735 | Z154: 739 | AA154: 761 | AB154: 732 | AC154: 748 | AD154: 769 | AE154: 778 | AF154: 851 | AG154: 854 | AH154: 843 | AI154: 888 | AJ154: 825 | AK154: 861 | AL154: FALSO | AQ154: 5030 | AR154: 50302 | AS154: 2 | AT154: 5 | AU154: 30 | AV154: 030 | AW154: ANTIOQUIA | AX154: AMAGÁ | AY154: Dep_sec_priv | AZ154: 549 | BA154: 567 | BB154: 4416 | BC154: 4483 | BD154: 4144 | BE154: 4342 | BF154: 4489 | BG154: 4521 | BH154: 4672 | BI154: 5072 | BJ154: 5191 | BK154: 5158 | BL154: 5189 | BM154: 5291 | BN154: 5362 | BO154: 5266 | BP154: 5333 | BQ154: 5253 | BR154: 5236 | BS154: 5350 | BT154: 5290 | BU154: 5170 | BV154: 5253 | BW154: 5116 | BX154: 5104 | BY154: 5075 | BZ154: 4862 | CA154: 4950
A155: 50689 | B155: 506891 | C155: 1 | D155: 50 | E155: 689 | F155: 689 | G155: META | H155: SAN MARTÍN | I155: Dep_No_priv | J155: 35 | K155: 34 | L155: 473 | M155: 477 | N155: 475 | O155: 480 | P155: 493 | Q155: 517 | R155: 516 | S155: 506 | T155: 518 | U155: 480 | V155: 454 | W155: 412 | X155: 413 | Y155: 433 | Z155: 439 | AA155: 435 | AB155: 436 | AC155: 440 | AD155: 440 | AE155: 461 | AF155: 439 | AG155: 472 | AH155: 463 | AI155: 445 | AJ155: 437 | AK155: 453 | AL155: FALSO | AQ155: 5088 | AR155: 50881 | AS155: 1 | AT155: 5 | AU155: 88 | AV155: 088 | AW155: ANTIOQUIA | AX155: BELLO | AY155: Dep_No_priv | AZ155: 874 | BA155: 555 | BB155: 5847 | BC155: 5927 | BD155: 6562 | BE155: 6641 | BF155: 7067 | BG155: 7753 | BH155: 7956 | BI155: 7602 | BJ155: 6428 | BK155: 5798 | BL155: 5305 | BM155: 5483 | BN155: 5840 | BO155: 6690 | BP155: 6462 | BQ155: 6576 | BR155: 6337 | BS155: 6248 | BT155: 6971 | BU155: 6921 | BV155: 7033 | BW155: 7163 | BX155: 6454 | BY155: 5539 | BZ155: 5862 | CA155: 6241
A156: 25718 | B156: 257182 | C156: 2 | D156: 25 | E156: 718 | F156: 718 | G156: CUNDINAMARCA | H156: SASAIMA | I156: Dep_sec_priv | J156: 25 | K156: 19 | L156: 520 | M156: 548 | N156: 513 | O156: 468 | P156: 477 | Q156: 515 | R156: 513 | S156: 508 | T156: 485 | U156: 493 | V156: 476 | W156: 446 | X156: 445 | Y156: 449 | Z156: 448 | AA156: 433 | AB156: 440 | AC156: 457 | AD156: 471 | AE156: 481 | AF156: 468 | AG156: 464 | AH156: 474 | AI156: 464 | AJ156: 482 | AK156: 485 | AL156: FALSO | AQ156: 5854 | AR156: 58543 | AS156: 3 | AT156: 5 | AU156: 854 | AV156: 854 | AW156: ANTIOQUIA | AX156: VALDIVIA | AY156: Independiente | AZ156: 7 | BA156: 4 | BB156: 139 | BC156: 151 | BD156: 146 | BE156: 157 | BF156: 159 | BG156: 153 | BH156: 174 | BI156: 193 | BJ156: 204 | BK156: 214 | BL156: 214 | BM156: 158 | BN156: 159 | BO156: 169 | BP156: 166 | BQ156: 180 | BR156: 179 | BS156: 174 | BT156: 183 | BU156: 189 | BV156: 188 | BW156: 192 | BX156: 182 | BY156: 136 | BZ156: 179 | CA156: 174
A157: 25843 | B157: 258432 | C157: 2 | D157: 25 | E157: 843 | F157: 843 | G157: CUNDINAMARCA | H157: VILLA DE SAN DIEGO DE UBATE | I157: Dep_sec_priv | J157: 643 | K157: 497 | L157: 5707 | M157: 5684 | N157: 5356 | O157: 5377 | P157: 5759 | Q157: 5837 | R157: 5607 | S157: 5595 | T157: 5740 | U157: 5743 | V157: 5813 | W157: 5915 | X157: 6119 | Y157: 6347 | Z157: 6502 | AA157: 6541 | AB157: 6606 | AC157: 6638 | AD157: 6787 | AE157: 6906 | AF157: 6783 | AG157: 6792 | AH157: 6537 | AI157: 6599 | AJ157: 6724 | AK157: 6762 | AL157: FALSO | AQ157: 5647 | AR157: 56473 | AS157: 3 | AT157: 5 | AU157: 647 | AV157: 647 | AW157: ANTIOQUIA | AX157: SAN ANDRÉS DE CUERQUÍA | AY157: Independiente | AZ157: 3 | BA157: 8 | BB157: 100 | BC157: 100 | BD157: 96 | BE157: 99 | BF157: 95 | BG157: 98 | BH157: 106 | BI157: 108 | BJ157: 109 | BK157: 111 | BL157: 107 | BM157: 100 | BN157: 104 | BO157: 108 | BP157: 106 | BQ157: 107 | BR157: 111 | BS157: 108 | BT157: 106 | BU157: 118 | BV157: 118 | BW157: 121 | BX157: 115 | BY157: 104 | BZ157: 107 | CA157: 110
A158: 68081 | B158: 680812 | C158: 2 | D158: 68 | E158: 81 | F158: 081 | G158: SANTANDER | H158: BARRANCABERMEJA | I158: Dep_sec_priv | J158: 4467 | K158: 5020 | L158: 36732 | M158: 36566 | N158: 31089 | O158: 30105 | P158: 30813 | Q158: 32051 | R158: 32799 | S158: 34405 | T158: 35364 | U158: 35478 | V158: 35087 | W158: 33825 | X158: 35456 | Y158: 34436 | Z158: 33944 | AA158: 34274 | AB158: 34395 | AC158: 35148 | AD158: 37173 | AE158: 37960 | AF158: 37874 | AG158: 38030 | AH158: 36637 | AI158: 35019 | AJ158: 36226 | AK158: 37039 | AL158: FALSO | AQ158: 5034 | AR158: 50342 | AS158: 2 | AT158: 5 | AU158: 34 | AV158: 034 | AW158: ANTIOQUIA | AX158: ANDES | AY158: Dep_sec_priv | AZ158: 147 | BA158: 133 | BB158: 1719 | BC158: 1707 | BD158: 1625 | BE158: 1700 | BF158: 1713 | BG158: 1694 | BH158: 1707 | BI158: 1781 | BJ158: 1812 | BK158: 1799 | BL158: 1795 | BM158: 1794 | BN158: 1779 | BO158: 1826 | BP158: 1819 | BQ158: 1854 | BR158: 1847 | BS158: 1885 | BT158: 1915 | BU158: 1982 | BV158: 1981 | BW158: 1940 | BX158: 1923 | BY158: 1823 | BZ158: 1855 | CA158: 1867
A159: 15238 | B159: 152382 | C159: 2 | D159: 15 | E159: 238 | F159: 238 | G159: BOYACÁ | H159: DUITAMA | I159: Dep_sec_priv | J159: 1946 | K159: 1651 | L159: 18805 | M159: 18605 | N159: 17041 | O159: 17152 | P159: 17359 | Q159: 17204 | R159: 17157 | S159: 17543 | T159: 18166 | U159: 18436 | V159: 18286 | W159: 18146 | X159: 18661 | Y159: 18827 | Z159: 18937 | AA159: 18617 | AB159: 19143 | AC159: 18510 | AD159: 18942 | AE159: 19132 | AF159: 19288 | AG159: 19621 | AH159: 19375 | AI159: 19223 | AJ159: 19292 | AK159: 19551 | AL159: FALSO | AQ159: 5736 | AR159: 57363 | AS159: 3 | AT159: 5 | AU159: 736 | AV159: 736 | AW159: ANTIOQUIA | AX159: SEGOVIA | AY159: Independiente | AZ159: 33 | BA159: 42 | BB159: 569 | BC159: 575 | BD159: 557 | BE159: 539 | BF159: 542 | BG159: 510 | BH159: 509 | BI159: 514 | BJ159: 530 | BK159: 560 | BL159: 553 | BM159: 537 | BN159: 550 | BO159: 585 | BP159: 600 | BQ159: 632 | BR159: 650 | BS159: 606 | BT159: 617 | BU159: 642 | BV159: 667 | BW159: 635 | BX159: 635 | BY159: 572 | BZ159: 604 | CA159: 585
A160: 5088 | B160: 50883 | C160: 3 | D160: 5 | E160: 88 | F160: 088 | G160: ANTIOQUIA | H160: BELLO | I160: Independiente | J160: 707 | K160: 391 | L160: 9679 | M160: 9821 | N160: 9942 | O160: 10083 | P160: 10276 | Q160: 10496 | R160: 10715 | S160: 11076 | T160: 11414 | U160: 11717 | V160: 11559 | W160: 10714 | X160: 11192 | Y160: 11622 | Z160: 11794 | AA160: 12056 | AB160: 12209 | AC160: 12315 | AD160: 12482 | AE160: 12612 | AF160: 12770 | AG160: 13054 | AH160: 12744 | AI160: 12639 | AJ160: 13046 | AK160: 12758 | AL160: FALSO | AQ160: 5250 | AR160: 52503 | AS160: 3 | AT160: 5 | AU160: 250 | AV160: 250 | AW160: ANTIOQUIA | AX160: EL BAGRE | AY160: Independiente | AZ160: 32 | BA160: 26 | BB160: 392 | BC160: 391 | BD160: 405 | BE160: 441 | BF160: 435 | BG160: 444 | BH160: 428 | BI160: 458 | BJ160: 454 | BK160: 460 | BL160: 452 | BM160: 414 | BN160: 432 | BO160: 467 | BP160: 515 | BQ160: 488 | BR160: 485 | BS160: 504 | BT160: 519 | BU160: 525 | BV160: 545 | BW160: 544 | BX160: 528 | BY160: 522 | BZ160: 511 | CA160: 463
A161: 25001 | B161: 250012 | C161: 2 | D161: 25 | E161: 1 | F161: 001 | G161: CUNDINAMARCA | H161: AGUA DE DIOS | I161: Dep_sec_priv | J161: 6739 | K161: 5394 | L161: 56432 | M161: 52693 | N161: 50674 | O161: 48618 | P161: 51249 | Q161: 50389 | R161: 51689 | S161: 54543 | T161: 55847 | U161: 52323 | V161: 55631 | W161: 51083 | X161: 53232 | Y161: 56667 | Z161: 62111 | AA161: 62945 | AB161: 57334 | AC161: 59330 | AD161: 60231 | AE161: 63472 | AF161: 58198 | AG161: 57826 | AH161: 53972 | AI161: 54989 | AJ161: 56905 | AK161: 61001 | AL161: FALSO | AQ161: 5895 | AR161: 58953 | AS161: 3 | AT161: 5 | AU161: 895 | AV161: 895 | AW161: ANTIOQUIA | AX161: ZARAGOZA | AY161: Independiente | AZ161: 41 | BA161: 25 | BB161: 207 | BC161: 218 | BD161: 228 | BE161: 249 | BF161: 263 | BG161: 263 | BH161: 218 | BI161: 297 | BJ161: 325 | BK161: 347 | BL161: 285 | BM161: 250 | BN161: 322 | BO161: 350 | BP161: 383 | BQ161: 392 | BR161: 409 | BS161: 369 | BT161: 364 | BU161: 395 | BV161: 395 | BW161: 445 | BX161: 315 | BY161: 317 | BZ161: 339 | CA161: 361
A162: 99773 | B162: 997732 | C162: 2 | D162: 99 | E162: 773 | F162: 773 | G162: VICHADA | H162: CUMARIBO | I162: Dep_sec_priv | J162: 3248 | K162: 4696 | L162: 20645 | M162: 20057 | N162: 16658 | O162: 18234 | P162: 19022 | Q162: 19526 | R162: 19384 | S162: 19898 | T162: 20324 | U162: 20820 | V162: 20291 | W162: 20448 | X162: 20895 | Y162: 21987 | Z162: 22514 | AA162: 21550 | AB162: 22658 | AC162: 22606 | AD162: 22976 | AE162: 23375 | AF162: 23663 | AG162: 23891 | AH162: 23119 | AI162: 22547 | AJ162: 22560 | AK162: 21798 | AL162: FALSO | AQ162: 5895 | AR162: 58951 | AS162: 1 | AT162: 5 | AU162: 895 | AV162: 895 | AW162: ANTIOQUIA | AX162: ZARAGOZA | AY162: Dep_No_priv | AZ162: 13 | BA162: 20 | BB162: 332 | BC162: 350 | BD162: 355 | BE162: 354 | BF162: 367 | BG162: 375 | BH162: 375 | BI162: 374 | BJ162: 370 | BK162: 361 | BL162: 358 | BM162: 346 | BN162: 397 | BO162: 372 | BP162: 362 | BQ162: 355 | BR162: 365 | BS162: 367 | BT162: 368 | BU162: 370 | BV162: 366 | BW162: 377 | BX162: 385 | BY162: 368 | BZ162: 363 | CA162: 372
A163: 15759 | B163: 157592 | C163: 2 | D163: 15 | E163: 759 | F163: 759 | G163: BOYACÁ | H163: SOGAMOSO | I163: Dep_sec_priv | J163: 1866 | K163: 1680 | L163: 17254 | M163: 17137 | N163: 15203 | O163: 15450 | P163: 15714 | Q163: 15710 | R163: 15931 | S163: 16267 | T163: 16488 | U163: 16617 | V163: 16681 | W163: 16451 | X163: 17039 | Y163: 17090 | Z163: 17165 | AA163: 16920 | AB163: 17369 | AC163: 17374 | AD163: 17427 | AE163: 17866 | AF163: 17796 | AG163: 18207 | AH163: 17575 | AI163: 17295 | AJ163: 17690 | AK163: 17918 | AL163: FALSO | AQ163: 5585 | AR163: 55851 | AS163: 1 | AT163: 5 | AU163: 585 | AV163: 585 | AW163: ANTIOQUIA | AX163: PUERTO NARE | AY163: Dep_No_priv | AZ163: 19 | BA163: 16 | BB163: 260 | BC163: 259 | BD163: 259 | BE163: 264 | BF163: 267 | BG163: 278 | BH163: 302 | BI163: 299 | BJ163: 291 | BK163: 291 | BL163: 284 | BM163: 284 | BN163: 288 | BO163: 279 | BP163: 277 | BQ163: 284 | BR163: 286 | BS163: 279 | BT163: 280 | BU163: 272 | BV163: 270 | BW163: 269 | BX163: 275 | BY163: 264 | BZ163: 258 | CA163: 266
A164: 25797 | B164: 257973 | C164: 3 | D164: 25 | E164: 797 | F164: 797 | G164: CUNDINAMARCA | H164: TENA | I164: Independiente | J164: 3 | K164: 3 | L164: 161 | M164: 175 | N164: 172 | O164: 170 | P164: 176 | Q164: 171 | R164: 166 | S164: 164 | T164: 168 | U164: 195 | V164: 171 | W164: 166 | X164: 179 | Y164: 189 | Z164: 201 | AA164: 207 | AB164: 206 | AC164: 210 | AD164: 207 | AE164: 205 | AF164: 213 | AG164: 221 | AH164: 231 | AI164: 227 | AJ164: 237 | AK164: 229 | AL164: FALSO | AQ164: 5237 | AR164: 52371 | AS164: 1 | AT164: 5 | AU164: 237 | AV164: 237 | AW164: ANTIOQUIA | AX164: DON MATÍAS | AY164: Dep_No_priv | AZ164: 35 | BA164: 31 | BB164: 335 | BC164: 334 | BD164: 331 | BE164: 323 | BF164: 328 | BG164: 340 | BH164: 356 | BI164: 353 | BJ164: 341 | BK164: 328 | BL164: 315 | BM164: 315 | BN164: 325 | BO164: 330 | BP164: 321 | BQ164: 325 | BR164: 333 | BS164: 332 | BT164: 339 | BU164: 354 | BV164: 349 | BW164: 343 | BX164: 347 | BY164: 343 | BZ164: 349 | CA164: 363
A165: 76400 | B165: 764003 | C165: 3 | D165: 76 | E165: 400 | F165: 400 | G165: VALLE DEL CAUCA | H165: LA UNIÓN | I165: Independiente | J165: 37 | K165: 28 | L165: 994 | M165: 1008 | N165: 1004 | O165: 937 | P165: 914 | Q165: 942 | R165: 942 | S165: 952 | T165: 976 | U165: 1005 | V165: 975 | W165: 953 | X165: 990 | Y165: 1017 | Z165: 1023 | AA165: 1042 | AB165: 999 | AC165: 1029 | AD165: 1059 | AE165: 1055 | AF165: 1024 | AG165: 1020 | AH165: 1019 | AI165: 1019 | AJ165: 1037 | AK165: 1027 | AL165: FALSO | AQ165: 5250 | AR165: 52501 | AS165: 1 | AT165: 5 | AU165: 250 | AV165: 250 | AW165: ANTIOQUIA | AX165: EL BAGRE | AY165: Dep_No_priv | AZ165: 54 | BA165: 53 | BB165: 722 | BC165: 755 | BD165: 768 | BE165: 772 | BF165: 795 | BG165: 802 | BH165: 824 | BI165: 785 | BJ165: 785 | BK165: 781 | BL165: 726 | BM165: 711 | BN165: 742 | BO165: 738 | BP165: 745 | BQ165: 752 | BR165: 779 | BS165: 766 | BT165: 755 | BU165: 744 | BV165: 719 | BW165: 735 | BX165: 736 | BY165: 710 | BZ165: 713 | CA165: 732
A166: 25126 | B166: 251262 | C166: 2 | D166: 25 | E166: 126 | F166: 126 | G166: CUNDINAMARCA | H166: CAJICÁ | I166: Dep_sec_priv | J166: 1583 | K166: 1383 | L166: 13263 | M166: 13196 | N166: 12347 | O166: 12476 | P166: 12672 | Q166: 12856 | R166: 12797 | S166: 12979 | T166: 12992 | U166: 12963 | V166: 12956 | W166: 13248 | X166: 13731 | Y166: 13657 | Z166: 13668 | AA166: 13874 | AB166: 14091 | AC166: 14404 | AD166: 14794 | AE166: 15094 | AF166: 15487 | AG166: 15632 | AH166: 15175 | AI166: 15318 | AJ166: 15720 | AK166: 15868 | AL166: FALSO | AQ166: 5364 | AR166: 53643 | AS166: 3 | AT166: 5 | AU166: 364 | AV166: 364 | AW166: ANTIOQUIA | AX166: JARDÍN | AY166: Independiente | AZ166: 16 | BA166: 4 | BB166: 389 | BC166: 401 | BD166: 398 | BE166: 396 | BF166: 400 | BG166: 405 | BH166: 417 | BI166: 419 | BJ166: 424 | BK166: 444 | BL166: 451 | BM166: 437 | BN166: 436 | BO166: 427 | BP166: 428 | BQ166: 438 | BR166: 440 | BS166: 444 | BT166: 462 | BU166: 461 | BV166: 474 | BW166: 489 | BX166: 480 | BY166: 475 | BZ166: 482 | CA166: 477
A167: 25662 | B167: 256623 | C167: 3 | D167: 25 | E167: 662 | F167: 662 | G167: CUNDINAMARCA | H167: SAN JUAN DE RÍO SECO | I167: Independiente | J167: 3 | K167: 5 | L167: 161 | M167: 164 | N167: 175 | O167: 178 | P167: 178 | Q167: 180 | R167: 174 | S167: 193 | T167: 198 | U167: 210 | V167: 203 | W167: 192 | X167: 207 | Y167: 213 | Z167: 222 | AA167: 222 | AB167: 224 | AC167: 225 | AD167: 232 | AE167: 232 | AF167: 236 | AG167: 233 | AH167: 237 | AI167: 223 | AJ167: 222 | AK167: 215 | AL167: FALSO | AQ167: 5045 | AR167: 50451 | AS167: 1 | AT167: 5 | AU167: 45 | AV167: 045 | AW167: ANTIOQUIA | AX167: APARTADÓ | AY167: Dep_No_priv | AZ167: 714 | BA167: 410 | BB167: 3611 | BC167: 3813 | BD167: 3349 | BE167: 3261 | BF167: 3372 | BG167: 3492 | BH167: 3633 | BI167: 3699 | BJ167: 3440 | BK167: 3324 | BL167: 3170 | BM167: 3084 | BN167: 3354 | BO167: 3639 | BP167: 3954 | BQ167: 3944 | BR167: 3908 | BS167: 3705 | BT167: 3815 | BU167: 3860 | BV167: 3789 | BW167: 3831 | BX167: 3571 | BY167: 3366 | BZ167: 3679 | CA167: 3928
A168: 25019 | B168: 250191 | C168: 1 | D168: 25 | E168: 19 | F168: 019 | G168: CUNDINAMARCA | H168: ALBÁN | I168: Dep_No_priv | J168: 3 | K168: 9 | L168: 114 | M168: 109 | N168: 106 | O168: 150 | P168: 153 | Q168: 152 | R168: 153 | S168: 152 | T168: 150 | U168: 151 | V168: 106 | W168: 106 | X168: 95 | Y168: 95 | Z168: 95 | AA168: 136 | AB168: 135 | AC168: 136 | AD168: 141 | AE168: 141 | AF168: 141 | AG168: 143 | AH168: 106 | AI168: 103 | AJ168: 102 | AK168: 105 | AL168: FALSO | AQ168: 5002 | AR168: 50022 | AS168: 2 | AT168: 5 | AU168: 2 | AV168: 002 | AW168: ANTIOQUIA | AX168: ABEJORRAL | AY168: Dep_sec_priv | AZ168: 337 | BA168: 342 | BB168: 2257 | BC168: 2199 | BD168: 2017 | BE168: 1893 | BF168: 2075 | BG168: 2990 | BH168: 2409 | BI168: 2398 | BJ168: 2396 | BK168: 2382 | BL168: 2249 | BM168: 2377 | BN168: 2398 | BO168: 2508 | BP168: 3604 | BQ168: 3524 | BR168: 3603 | BS168: 2885 | BT168: 2806 | BU168: 3219 | BV168: 2440 | BW168: 2317 | BX168: 2274 | BY168: 2094 | BZ168: 2454 | CA168: 2721
A169: 15759 | B169: 157591 | C169: 1 | D169: 15 | E169: 759 | F169: 759 | G169: BOYACÁ | H169: SOGAMOSO | I169: Dep_No_priv | J169: 346 | K169: 267 | L169: 5074 | M169: 5125 | N169: 4725 | O169: 2304 | P169: 2420 | Q169: 2471 | R169: 2688 | S169: 2915 | T169: 2891 | U169: 2777 | V169: 2540 | W169: 2645 | X169: 2457 | Y169: 2715 | Z169: 2731 | AA169: 2704 | AB169: 2733 | AC169: 2782 | AD169: 2929 | AE169: 4870 | AF169: 5055 | AG169: 4978 | AH169: 2922 | AI169: 2610 | AJ169: 3194 | AK169: 3316 | AL169: FALSO | AQ169: 5059 | AR169: 50593 | AS169: 3 | AT169: 5 | AU169: 59 | AV169: 059 | AW169: ANTIOQUIA | AX169: ARMENIA | AY169: Independiente | AZ169: 9 | BA169: 9 | BB169: 191 | BC169: 177 | BD169: 172 | BE169: 175 | BF169: 176 | BG169: 164 | BH169: 168 | BI169: 166 | BJ169: 160 | BK169: 165 | BL169: 170 | BM169: 167 | BN169: 166 | BO169: 165 | BP169: 165 | BQ169: 163 | BR169: 163 | BS169: 161 | BT169: 164 | BU169: 167 | BV169: 171 | BW169: 172 | BX169: 179 | BY169: 176 | BZ169: 161 | CA169: 160
A170: 68655 | B170: 686552 | C170: 2 | D170: 68 | E170: 655 | F170: 655 | G170: SANTANDER | H170: SABANA DE TORRES | I170: Dep_sec_priv | J170: 561 | K170: 487 | L170: 3721 | M170: 3721 | N170: 3286 | O170: 3299 | P170: 3386 | Q170: 3487 | R170: 3244 | S170: 3285 | T170: 3277 | U170: 3284 | V170: 3179 | W170: 3176 | X170: 3217 | Y170: 3270 | Z170: 3406 | AA170: 3318 | AB170: 3402 | AC170: 3339 | AD170: 3332 | AE170: 3260 | AF170: 3381 | AG170: 3363 | AH170: 3356 | AI170: 3467 | AJ170: 3578 | AK170: 3646 | AL170: FALSO | AQ170: 5310 | AR170: 53103 | AS170: 3 | AT170: 5 | AU170: 310 | AV170: 310 | AW170: ANTIOQUIA | AX170: GÓMEZ PLATA | AY170: Independiente | AZ170: 7 | BA170: 6 | BB170: 178 | BC170: 183 | BD170: 186 | BE170: 196 | BF170: 189 | BG170: 198 | BH170: 212 | BI170: 231 | BJ170: 231 | BK170: 244 | BL170: 242 | BM170: 162 | BN170: 204 | BO170: 224 | BP170: 249 | BQ170: 270 | BR170: 281 | BS170: 285 | BT170: 286 | BU170: 275 | BV170: 278 | BW170: 277 | BX170: 261 | BY170: 193 | BZ170: 264 | CA170: 258
A171: 95001 | B171: 950012 | C171: 2 | D171: 95 | E171: 1 | F171: 001 | G171: GUAVIARE | H171: SAN JOSÉ DEL GUAVIARE | I171: Dep_sec_priv | J171: 1580 | K171: 1624 | L171: 5639 | M171: 5702 | N171: 5053 | O171: 5414 | P171: 5737 | Q171: 6269 | R171: 6466 | S171: 6160 | T171: 6209 | U171: 6322 | V171: 6329 | W171: 6073 | X171: 6401 | Y171: 6960 | Z171: 6773 | AA171: 6673 | AB171: 7075 | AC171: 7229 | AD171: 7515 | AE171: 8175 | AF171: 8330 | AG171: 9022 | AH171: 9061 | AI171: 9285 | AJ171: 10523 | AK171: 10859 | AL171: FALSO | AQ171: 5086 | AR171: 50862 | AS171: 2 | AT171: 5 | AU171: 86 | AV171: 086 | AW171: ANTIOQUIA | AX171: BELMIRA | AY171: Dep_sec_priv | AZ171: 19 | BA171: 28 | BB171: 268 | BC171: 280 | BD171: 268 | BE171: 258 | BF171: 285 | BG171: 285 | BH171: 273 | BI171: 309 | BJ171: 248 | BK171: 228 | BL171: 214 | BM171: 257 | BN171: 278 | BO171: 289 | BP171: 272 | BQ171: 289 | BR171: 378 | BS171: 330 | BT171: 363 | BU171: 303 | BV171: 267 | BW171: 294 | BX171: 297 | BY171: 239 | BZ171: 240 | CA171: 252
A172: 25279 | B172: 252792 | C172: 2 | D172: 25 | E172: 279 | F172: 279 | G172: CUNDINAMARCA | H172: FOMEQUE | I172: Dep_sec_priv | J172: 66 | K172: 63 | L172: 818 | M172: 829 | N172: 780 | O172: 808 | P172: 811 | Q172: 834 | R172: 832 | S172: 876 | T172: 896 | U172: 855 | V172: 803 | W172: 808 | X172: 807 | Y172: 752 | Z172: 771 | AA172: 751 | AB172: 752 | AC172: 754 | AD172: 768 | AE172: 791 | AF172: 783 | AG172: 708 | AH172: 725 | AI172: 705 | AJ172: 742 | AK172: 753 | AL172: FALSO | AQ172: 5652 | AR172: 56522 | AS172: 2 | AT172: 5 | AU172: 652 | AV172: 652 | AW172: ANTIOQUIA | AX172: SAN FRANCISCO | AY172: Dep_sec_priv | AZ172: 11 | BA172: 11 | BB172: 62 | BC172: 61 | BD172: 63 | BE172: 55 | BF172: 64 | BG172: 68 | BH172: 54 | BI172: 50 | BJ172: 49 | BK172: 53 | BL172: 48 | BM172: 38 | BN172: 46 | BO172: 60 | BP172: 81 | BQ172: 91 | BR172: 115 | BS172: 116 | BT172: 137 | BU172: 157 | BV172: 159 | BW172: 162 | BX172: 161 | BY172: 135 | BZ172: 125 | CA172: 125
A173: 25320 | B173: 253202 | C173: 2 | D173: 25 | E173: 320 | F173: 320 | G173: CUNDINAMARCA | H173: GUADUAS | I173: Dep_sec_priv | J173: 127 | K173: 106 | L173: 1510 | M173: 1452 | N173: 1328 | O173: 1269 | P173: 1288 | Q173: 1278 | R173: 1284 | S173: 1319 | T173: 1374 | U173: 1416 | V173: 1403 | W173: 1414 | X173: 1487 | Y173: 1486 | Z173: 1393 | AA173: 1384 | AB173: 1331 | AC173: 1216 | AD173: 1172 | AE173: 1175 | AF173: 1134 | AG173: 1173 | AH173: 1113 | AI173: 1105 | AJ173: 1158 | AK173: 1132 | AL173: FALSO | AQ173: 5308 | AR173: 53081 | AS173: 1 | AT173: 5 | AU173: 308 | AV173: 308 | AW173: ANTIOQUIA | AX173: GIRARDOTA | AY173: Dep_No_priv | AZ173: 99 | BA173: 64 | BB173: 970 | BC173: 992 | BD173: 1027 | BE173: 1034 | BF173: 1061 | BG173: 1100 | BH173: 1113 | BI173: 1067 | BJ173: 1005 | BK173: 971 | BL173: 950 | BM173: 951 | BN173: 1010 | BO173: 1042 | BP173: 1021 | BQ173: 1036 | BR173: 1031 | BS173: 1035 | BT173: 1077 | BU173: 1072 | BV173: 1067 | BW173: 1056 | BX173: 1015 | BY173: 983 | BZ173: 1021 | CA173: 1047
A174: 25758 | B174: 257582 | C174: 2 | D174: 25 | E174: 758 | F174: 758 | G174: CUNDINAMARCA | H174: SOPÓ | I174: Dep_sec_priv | J174: 334 | K174: 267 | L174: 3650 | M174: 3453 | N174: 3227 | O174: 3342 | P174: 3289 | Q174: 3312 | R174: 3283 | S174: 3415 | T174: 3452 | U174: 3473 | V174: 3434 | W174: 3518 | X174: 3604 | Y174: 3588 | Z174: 3803 | AA174: 3633 | AB174: 3572 | AC174: 3557 | AD174: 3616 | AE174: 3592 | AF174: 3635 | AG174: 3682 | AH174: 3711 | AI174: 4175 | AJ174: 4289 | AK174: 4336 | AL174: FALSO | AQ174: 5353 | AR174: 53532 | AS174: 2 | AT174: 5 | AU174: 353 | AV174: 353 | AW174: ANTIOQUIA | AX174: HISPANIA | AY174: Dep_sec_priv | AZ174: 16 | BA174: 9 | BB174: 379 | BC174: 371 | BD174: 326 | BE174: 310 | BF174: 319 | BG174: 318 | BH174: 312 | BI174: 303 | BJ174: 250 | BK174: 227 | BL174: 209 | BM174: 186 | BN174: 192 | BO174: 202 | BP174: 195 | BQ174: 186 | BR174: 187 | BS174: 199 | BT174: 201 | BU174: 192 | BV174: 210 | BW174: 208 | BX174: 197 | BY174: 213 | BZ174: 214 | CA174: 218
A175: 25592 | B175: 255923 | C175: 3 | D175: 25 | E175: 592 | F175: 592 | G175: CUNDINAMARCA | H175: QUEBRADANEGRA | I175: Independiente | J175: 9 | K175: 0 | L175: 80 | M175: 84 | N175: 84 | O175: 80 | P175: 80 | Q175: 77 | R175: 80 | S175: 84 | T175: 83 | U175: 84 | V175: 83 | W175: 77 | X175: 87 | Y175: 87 | Z175: 95 | AA175: 93 | AB175: 94 | AC175: 96 | AD175: 94 | AE175: 105 | AF175: 106 | AG175: 96 | AH175: 89 | AI175: 97 | AJ175: 93 | AK175: 100 | AL175: FALSO | AQ175: 5837 | AR175: 58371 | AS175: 1 | AT175: 5 | AU175: 837 | AV175: 837 | AW175: ANTIOQUIA | AX175: TURBO | AY175: Dep_No_priv | AZ175: 163 | BA175: 136 | BB175: 3116 | BC175: 3112 | BD175: 3172 | BE175: 2897 | BF175: 2887 | BG175: 2869 | BH175: 2857 | BI175: 2818 | BJ175: 2699 | BK175: 2713 | BL175: 2582 | BM175: 2486 | BN175: 2570 | BO175: 2718 | BP175: 2695 | BQ175: 2780 | BR175: 2750 | BS175: 4208 | BT175: 4223 | BU175: 4409 | BV175: 4468 | BW175: 4442 | BX175: 2686 | BY175: 2629 | BZ175: 2913 | CA175: 2959
A176: 25718 | B176: 257181 | C176: 1 | D176: 25 | E176: 718 | F176: 718 | G176: CUNDINAMARCA | H176: SASAIMA | I176: Dep_No_priv | J176: 9 | K176: 9 | L176: 186 | M176: 183 | N176: 179 | O176: 184 | P176: 236 | Q176: 233 | R176: 345 | S176: 282 | T176: 286 | U176: 335 | V176: 175 | W176: 172 | X176: 176 | Y176: 174 | Z176: 177 | AA176: 215 | AB176: 212 | AC176: 212 | AD176: 217 | AE176: 212 | AF176: 281 | AG176: 212 | AH176: 178 | AI176: 172 | AJ176: 179 | AK176: 184 | AL176: FALSO | AQ176: 5837 | AR176: 58372 | AS176: 2 | AT176: 5 | AU176: 837 | AV176: 837 | AW176: ANTIOQUIA | AX176: TURBO | AY176: Dep_sec_priv | AZ176: 509 | BA176: 413 | BB176: 6851 | BC176: 7027 | BD176: 7014 | BE176: 7027 | BF176: 7055 | BG176: 7115 | BH176: 7105 | BI176: 7248 | BJ176: 7466 | BK176: 7469 | BL176: 7401 | BM176: 7155 | BN176: 7465 | BO176: 7682 | BP176: 7820 | BQ176: 7841 | BR176: 7743 | BS176: 7781 | BT176: 7994 | BU176: 7993 | BV176: 8044 | BW176: 8083 | BX176: 7938 | BY176: 7649 | BZ176: 7862 | CA176: 7875
A177: 25328 | B177: 253283 | C177: 3 | D177: 25 | E177: 328 | F177: 328 | G177: CUNDINAMARCA | H177: GUAYABAL DE SIQUIMA | I177: Independiente | J177: 12 | K177: 3 | L177: 71 | M177: 74 | N177: 72 | O177: 77 | P177: 80 | Q177: 78 | R177: 86 | S177: 89 | T177: 97 | U177: 98 | V177: 95 | W177: 84 | X177: 97 | Y177: 101 | Z177: 109 | AA177: 105 | AB177: 105 | AC177: 108 | AD177: 108 | AE177: 106 | AF177: 109 | AG177: 112 | AH177: 113 | AI177: 99 | AJ177: 114 | AK177: 114 | AL177: FALSO | AQ177: 5147 | AR177: 51472 | AS177: 2 | AT177: 5 | AU177: 147 | AV177: 147 | AW177: ANTIOQUIA | AX177: CAREPA | AY177: Dep_sec_priv | AZ177: 281 | BA177: 404 | BB177: 3941 | BC177: 4042 | BD177: 3916 | BE177: 4031 | BF177: 3984 | BG177: 4080 | BH177: 4064 | BI177: 4099 | BJ177: 4132 | BK177: 4103 | BL177: 4047 | BM177: 3839 | BN177: 4019 | BO177: 4122 | BP177: 4198 | BQ177: 4363 | BR177: 4371 | BS177: 4237 | BT177: 4299 | BU177: 4380 | BV177: 4280 | BW177: 4298 | BX177: 4386 | BY177: 4266 | BZ177: 4352 | CA177: 4250
A178: 27006 | B178: 270062 | C178: 2 | D178: 27 | E178: 6 | F178: 006 | G178: CHOCÓ | H178: ACANDÍ | I178: Dep_sec_priv | J178: 445 | K178: 1104 | L178: 4634 | M178: 4330 | N178: 3880 | O178: 3859 | P178: 4201 | Q178: 4768 | R178: 4669 | S178: 4862 | T178: 4862 | U178: 5874 | V178: 4693 | W178: 4560 | X178: 4899 | Y178: 5056 | Z178: 5153 | AA178: 5262 | AB178: 5292 | AC178: 5240 | AD178: 5252 | AE178: 6035 | AF178: 5143 | AG178: 5209 | AH178: 4885 | AI178: 5033 | AJ178: 5006 | AK178: 5906 | AL178: FALSO | AQ178: 5059 | AR178: 50591 | AS178: 1 | AT178: 5 | AU178: 59 | AV178: 059 | AW178: ANTIOQUIA | AX178: ARMENIA | AY178: Dep_No_priv | AZ178: 8 | BA178: 6 | BB178: 81 | BC178: 82 | BD178: 81 | BE178: 90 | BF178: 88 | BG178: 86 | BH178: 93 | BI178: 90 | BJ178: 82 | BK178: 87 | BL178: 84 | BM178: 93 | BN178: 94 | BO178: 98 | BP178: 95 | BQ178: 100 | BR178: 97 | BS178: 99 | BT178: 102 | BU178: 91 | BV178: 95 | BW178: 100 | BX178: 96 | BY178: 88 | BZ178: 90 | CA178: 94
A179: 25740 | B179: 257403 | C179: 3 | D179: 25 | E179: 740 | F179: 740 | G179: CUNDINAMARCA | H179: SIBATÉ | I179: Independiente | J179: 64 | K179: 31 | L179: 752 | M179: 798 | N179: 759 | O179: 770 | P179: 772 | Q179: 797 | R179: 762 | S179: 791 | T179: 1026 | U179: 1078 | V179: 1112 | W179: 891 | X179: 985 | Y179: 884 | Z179: 946 | AA179: 968 | AB179: 1011 | AC179: 1025 | AD179: 937 | AE179: 953 | AF179: 960 | AG179: 947 | AH179: 917 | AI179: 758 | AJ179: 1033 | AK179: 1058 | AL179: FALSO | AQ179: 5101 | AR179: 51012 | AS179: 2 | AT179: 5 | AU179: 101 | AV179: 101 | AW179: ANTIOQUIA | AX179: CIUDAD BOLÍVAR | AY179: Dep_sec_priv | AZ179: 144 | BA179: 111 | BB179: 1936 | BC179: 1877 | BD179: 1771 | BE179: 1789 | BF179: 1853 | BG179: 1859 | BH179: 1835 | BI179: 1772 | BJ179: 1836 | BK179: 1804 | BL179: 1762 | BM179: 1703 | BN179: 1850 | BO179: 1945 | BP179: 1895 | BQ179: 1881 | BR179: 1907 | BS179: 1916 | BT179: 1928 | BU179: 2013 | BV179: 1998 | BW179: 1914 | BX179: 1841 | BY179: 1874 | BZ179: 1889 | CA179: 1912
A180: 25817 | B180: 258172 | C180: 2 | D180: 25 | E180: 817 | F180: 817 | G180: CUNDINAMARCA | H180: TOCANCIPÁ | I180: Dep_sec_priv | J180: 1517 | K180: 1448 | L180: 12387 | M180: 11995 | N180: 11053 | O180: 10848 | P180: 10752 | Q180: 11006 | R180: 11142 | S180: 11302 | T180: 11413 | U180: 11746 | V180: 11651 | W180: 12189 | X180: 12832 | Y180: 12948 | Z180: 13200 | AA180: 13061 | AB180: 12967 | AC180: 13188 | AD180: 13207 | AE180: 13343 | AF180: 14203 | AG180: 13771 | AH180: 13751 | AI180: 14311 | AJ180: 14538 | AK180: 14585 | AL180: FALSO | AQ180: 5591 | AR180: 55911 | AS180: 1 | AT180: 5 | AU180: 591 | AV180: 591 | AW180: ANTIOQUIA | AX180: PUERTO TRIUNFO | AY180: Dep_No_priv | AZ180: 37 | BA180: 25 | BB180: 483 | BC180: 491 | BD180: 483 | BE180: 469 | BF180: 479 | BG180: 544 | BH180: 560 | BI180: 582 | BJ180: 615 | BK180: 631 | BL180: 624 | BM180: 601 | BN180: 525 | BO180: 555 | BP180: 522 | BQ180: 502 | BR180: 524 | BS180: 530 | BT180: 521 | BU180: 530 | BV180: 539 | BW180: 553 | BX180: 578 | BY180: 550 | BZ180: 535 | CA180: 552
A181: 25718 | B181: 257183 | C181: 3 | D181: 25 | E181: 718 | F181: 718 | G181: CUNDINAMARCA | H181: SASAIMA | I181: Independiente | J181: 8 | K181: 11 | L181: 233 | M181: 228 | N181: 230 | O181: 243 | P181: 239 | Q181: 231 | R181: 241 | S181: 250 | T181: 242 | U181: 249 | V181: 249 | W181: 227 | X181: 233 | Y181: 242 | Z181: 240 | AA181: 246 | AB181: 275 | AC181: 276 | AD181: 281 | AE181: 284 | AF181: 375 | AG181: 380 | AH181: 371 | AI181: 372 | AJ181: 373 | AK181: 369 | AL181: FALSO | AQ181: 5172 | AR181: 51721 | AS181: 1 | AT181: 5 | AU181: 172 | AV181: 172 | AW181: ANTIOQUIA | AX181: CHIGORODÓ | AY181: Dep_No_priv | AZ181: 147 | BA181: 119 | BB181: 1678 | BC181: 1834 | BD181: 1588 | BE181: 1598 | BF181: 1721 | BG181: 1658 | BH181: 1706 | BI181: 1220 | BJ181: 1215 | BK181: 1795 | BL181: 1672 | BM181: 1752 | BN181: 1778 | BO181: 1836 | BP181: 1774 | BQ181: 1857 | BR181: 1882 | BS181: 1850 | BT181: 1893 | BU181: 1922 | BV181: 1917 | BW181: 1660 | BX181: 1830 | BY181: 1750 | BZ181: 1778 | CA181: 1817
A182: 25875 | B182: 258752 | C182: 2 | D182: 25 | E182: 875 | F182: 875 | G182: CUNDINAMARCA | H182: VILLETA | I182: Dep_sec_priv | J182: 309 | K182: 220 | L182: 2030 | M182: 2093 | N182: 1856 | O182: 1965 | P182: 1998 | Q182: 2016 | R182: 1996 | S182: 2043 | T182: 2166 | U182: 2192 | V182: 2165 | W182: 2180 | X182: 2376 | Y182: 2380 | Z182: 2458 | AA182: 2528 | AB182: 2466 | AC182: 2431 | AD182: 2423 | AE182: 2457 | AF182: 2534 | AG182: 2472 | AH182: 2454 | AI182: 2387 | AJ182: 2547 | AK182: 2572 | AL182: FALSO | AQ182: 5895 | AR182: 58952 | AS182: 2 | AT182: 5 | AU182: 895 | AV182: 895 | AW182: ANTIOQUIA | AX182: ZARAGOZA | AY182: Dep_sec_priv | AZ182: 142 | BA182: 123 | BB182: 525 | BC182: 508 | BD182: 484 | BE182: 524 | BF182: 551 | BG182: 479 | BH182: 592 | BI182: 625 | BJ182: 600 | BK182: 634 | BL182: 634 | BM182: 614 | BN182: 650 | BO182: 668 | BP182: 669 | BQ182: 684 | BR182: 674 | BS182: 702 | BT182: 713 | BU182: 797 | BV182: 726 | BW182: 692 | BX182: 691 | BY182: 635 | BZ182: 741 | CA182: 777
A183: 15407 | B183: 154072 | C183: 2 | D183: 15 | E183: 407 | F183: 407 | G183: BOYACÁ | H183: VILLA DE LEYVA | I183: Dep_sec_priv | J183: 125 | K183: 91 | L183: 1421 | M183: 1400 | N183: 1194 | O183: 1165 | P183: 1152 | Q183: 1100 | R183: 1115 | S183: 1176 | T183: 1219 | U183: 1276 | V183: 1236 | W183: 1289 | X183: 1325 | Y183: 1376 | Z183: 1420 | AA183: 1422 | AB183: 1438 | AC183: 1455 | AD183: 1495 | AE183: 1513 | AF183: 1588 | AG183: 1655 | AH183: 1623 | AI183: 1570 | AJ183: 1600 | AK183: 1572 | AL183: FALSO | AQ183: 5631 | AR183: 56311 | AS183: 1 | AT183: 5 | AU183: 631 | AV183: 631 | AW183: ANTIOQUIA | AX183: SABANETA | AY183: Dep_No_priv | AZ183: 238 | BA183: 191 | BB183: 2207 | BC183: 2225 | BD183: 2325 | BE183: 2158 | BF183: 2220 | BG183: 2351 | BH183: 2432 | BI183: 2434 | BJ183: 2207 | BK183: 2157 | BL183: 1963 | BM183: 1983 | BN183: 2251 | BO183: 2556 | BP183: 2512 | BQ183: 2566 | BR183: 2516 | BS183: 2190 | BT183: 2544 | BU183: 2517 | BV183: 2556 | BW183: 2554 | BX183: 2486 | BY183: 2578 | BZ183: 2879 | CA183: 2937
A184: 25260 | B184: 252602 | C184: 2 | D184: 25 | E184: 260 | F184: 260 | G184: CUNDINAMARCA | H184: EL ROSAL | I184: Dep_sec_priv | J184: 356 | K184: 268 | L184: 2345 | M184: 2120 | N184: 2033 | O184: 1982 | P184: 2029 | Q184: 2049 | R184: 1951 | S184: 1988 | T184: 2007 | U184: 2032 | V184: 2000 | W184: 2013 | X184: 2223 | Y184: 2318 | Z184: 2330 | AA184: 2375 | AB184: 2351 | AC184: 2326 | AD184: 2203 | AE184: 2363 | AF184: 2407 | AG184: 2407 | AH184: 2351 | AI184: 2423 | AJ184: 2453 | AK184: 2533 | AL184: FALSO | AQ184: 5040 | AR184: 50402 | AS184: 2 | AT184: 5 | AU184: 40 | AV184: 040 | AW184: ANTIOQUIA | AX184: ANORÍ | AY184: Dep_sec_priv | AZ184: 56 | BA184: 60 | BB184: 500 | BC184: 456 | BD184: 408 | BE184: 430 | BF184: 450 | BG184: 520 | BH184: 586 | BI184: 566 | BJ184: 590 | BK184: 577 | BL184: 524 | BM184: 469 | BN184: 588 | BO184: 552 | BP184: 561 | BQ184: 561 | BR184: 603 | BS184: 575 | BT184: 625 | BU184: 640 | BV184: 675 | BW184: 672 | BX184: 695 | BY184: 605 | BZ184: 652 | CA184: 609
A185: 25799 | B185: 257992 | C185: 2 | D185: 25 | E185: 799 | F185: 799 | G185: CUNDINAMARCA | H185: TENJO | I185: Dep_sec_priv | J185: 437 | K185: 428 | L185: 6319 | M185: 6336 | N185: 6031 | O185: 6093 | P185: 5858 | Q185: 5993 | R185: 6041 | S185: 6084 | T185: 5861 | U185: 6010 | V185: 5998 | W185: 5799 | X185: 6072 | Y185: 6089 | Z185: 6079 | AA185: 6086 | AB185: 6210 | AC185: 6231 | AD185: 6291 | AE185: 6017 | AF185: 6330 | AG185: 6478 | AH185: 6405 | AI185: 6122 | AJ185: 6468 | AK185: 6489 | AL185: FALSO | AQ185: 5282 | AR185: 52822 | AS185: 2 | AT185: 5 | AU185: 282 | AV185: 282 | AW185: ANTIOQUIA | AX185: FREDONIA | AY185: Dep_sec_priv | AZ185: 101 | BA185: 115 | BB185: 1781 | BC185: 1773 | BD185: 1654 | BE185: 1667 | BF185: 1631 | BG185: 1656 | BH185: 1630 | BI185: 1693 | BJ185: 1740 | BK185: 1676 | BL185: 1649 | BM185: 1607 | BN185: 1638 | BO185: 1741 | BP185: 1747 | BQ185: 1773 | BR185: 1598 | BS185: 1769 | BT185: 1752 | BU185: 1803 | BV185: 1763 | BW185: 1785 | BX185: 1755 | BY185: 1800 | BZ185: 1792 | CA185: 1772
A186: 95001 | B186: 950011 | C186: 1 | D186: 95 | E186: 1 | F186: 001 | G186: GUAVIARE | H186: SAN JOSÉ DEL GUAVIARE | I186: Dep_No_priv | J186: 1162 | K186: 126 | L186: 2504 | M186: 2657 | N186: 2607 | O186: 2663 | P186: 2585 | Q186: 2664 | R186: 2719 | S186: 2730 | T186: 2684 | U186: 2685 | V186: 2508 | W186: 2390 | X186: 2470 | Y186: 2543 | Z186: 2629 | AA186: 3218 | AB186: 3985 | AC186: 4039 | AD186: 4111 | AE186: 4192 | AF186: 4123 | AG186: 4164 | AH186: 2689 | AI186: 2584 | AJ186: 2655 | AK186: 3501 | AL186: FALSO | AQ186: 5036 | AR186: 50362 | AS186: 2 | AT186: 5 | AU186: 36 | AV186: 036 | AW186: ANTIOQUIA | AX186: ANGELÓPOLIS | AY186: Dep_sec_priv | AZ186: 77 | BA186: 47 | BB186: 513 | BC186: 485 | BD186: 433 | BE186: 417 | BF186: 441 | BG186: 447 | BH186: 430 | BI186: 436 | BJ186: 461 | BK186: 427 | BL186: 418 | BM186: 386 | BN186: 391 | BO186: 397 | BP186: 403 | BQ186: 385 | BR186: 403 | BS186: 417 | BT186: 477 | BU186: 412 | BV186: 421 | BW186: 389 | BX186: 450 | BY186: 367 | BZ186: 396 | CA186: 445
